Workbook

Sheet DATA (hidden)
A1: Item No. | B1: New Listing | C1: Brand | D1: Subsection | E1: Description | F1: Unit UPC | G1: Size | H1: Picked | I1: Pack | J1: O | K1: K | L1: V | M1: GF | N1: N | O1: H | P1: CM | Q1: CO | R1: CP | S1: Guaranteed Days | T1: Storage | U1: Price | V1: Monthly Promo | W1: Promo Discount | X1: SRP | Y1: SKU Territory Ranking - West
A2: FN2639 | C2: 49TH PARALLEL | D2: Nespresso Pods | E2: Déjà Vu Ground | F2: 883242002632 | G2: 10 X 53G | H2: CA | I2: 6 | P2: Y | Q2: Y | S2: 0 | T2: Dry | U2: 66.8 | V2: APRIL DEAL! | W2: SAVE 10% | X2: 14.99 | Y2: 2
A3: FN2622 | C3: 49TH PARALLEL | D3: Nespresso Pods | E3: Med Dark Espresso | F3: 883242002625 | G3: 10 X 53G | H3: CA | I3: 6 | P3: Y | Q3: Y | S3: 0 | T3: Dry | U3: 66.8 | V3: APRIL DEAL! | W3: SAVE 10% | X3: 14.99 | Y3: 1
A4: FN3370 | C4: 49TH PARALLEL | D4: Shipper | E4: Coffee Shipper (8 Old Sch, 8 Org Esp, 8 Fr Rst, 8 Nost) | F4: 883242003370 | G4: 340G | H4: CA | I4: 32 | P4: Y | Q4: Y | S4: 40 | T4: Dry | U4: 477.54 | X4: 0
A5: FN2028 | C5: 49TH PARALLEL | D5: Whole Bean Coffee | E5: Blue Sky Espresso | F5: 883242002021 | G5: 340G | H5: CA | I5: 6 | P5: Y | Q5: Y | S5: 40 | T5: Dry | U5: 89.54 | V5: APRIL DEAL! | W5: SAVE 10% | X5: 19.99
A6: FN2004 | C6: 49TH PARALLEL | D6: Whole Bean Coffee | E6: Epic Espresso | F6: 883242002007 | G6: 340G | H6: CA | I6: 6 | P6: Y | Q6: Y | S6: 56 | T6: Dry | U6: 89.54 | V6: APRIL DEAL! | W6: SAVE 10% | X6: 18.99 | Y6: 2
A7: FN0055 | C7: 49TH PARALLEL | D7: Whole Bean Coffee | E7: Longitude 123 Filter | F7: 883242000058 | G7: 340G | H7: CA | I7: 6 | P7: Y | Q7: Y | S7: 56 | T7: Dry | U7: 89.54 | V7: APRIL DEAL! | W7: SAVE 10% | X7: 18.99 | Y7: 7
A8: FN2868 | C8: 49TH PARALLEL | D8: Whole Bean Coffee | E8: Nostalgia Blend | F8: 883242002861 | G8: 340G | H8: CA | I8: 6 | J8: Y | P8: Y | Q8: Y | S8: 56 | T8: Dry | U8: 89.54 | V8: APRIL DEAL! | W8: SAVE 10% | X8: 0 | Y8: 6
A9: FN2011 | C9: 49TH PARALLEL | D9: Whole Bean Coffee | E9: Old School Espresso | F9: 883242002014 | G9: 340G | H9: CA | I9: 6 | P9: Y | Q9: Y | S9: 56 | T9: Dry | U9: 89.54 | V9: APRIL DEAL! | W9: SAVE 10% | X9: 18.99 | Y9: 1
A10: FN2042 | C10: 49TH PARALLEL | D10: Whole Bean Coffee | E10: Organic Breakfast Roast | F10: 883242002045 | G10: 340G | H10: CA | I10: 6 | J10: Y | P10: Y | Q10: Y | S10: 56 | T10: Dry | U10: 89.54 | V10: APRIL DEAL! | W10: SAVE 10% | X10: 18.99 | Y10: 5
A11: FN2035 | C11: 49TH PARALLEL | D11: Whole Bean Coffee | E11: Organic Espresso | F11: 883242002038 | G11: 340G | H11: CA | I11: 6 | J11: Y | P11: Y | Q11: Y | S11: 56 | T11: Dry | U11: 89.54 | V11: APRIL DEAL! | W11: SAVE 10% | X11: 18.99 | Y11: 4
A12: FN0062 | C12: 49TH PARALLEL | D12: Whole Bean Coffee | E12: Organic French Roast | F12: 883242000065 | G12: 340G | H12: CA | I12: 6 | J12: Y | P12: Y | Q12: Y | S12: 56 | T12: Dry | U12: 89.54 | V12: APRIL DEAL! | W12: SAVE 10% | X12: 18.99 | Y12: 3
A13: FN0048 | C13: 49TH PARALLEL | D13: Whole Bean Coffee | E13: Swiss Water Process Decaf | F13: 883242000041 | G13: 340G | H13: CA | I13: 6 | J13: Y | P13: Y | Q13: Y | S13: 56 | T13: Dry | U13: 89.54 | V13: APRIL DEAL! | W13: SAVE 10% | X13: 18.99 | Y13: 8
A14: AF1252 | C14: ALDERWOOD FARMS | D14: Bone Broth | E14: Organic Beef Bone Broth | F14: 871261001255 | G14: 500ML | H14: CA | I14: 12 | J14: Y | P14: Y | Q14: Y | R14: Y | S14: 95 | T14: Frozen | U14: 136.88 | X14: 14.99
A15: AF1269 | C15: ALDERWOOD FARMS | D15: Bone Broth | E15: Organic Free Range Chicken Bone Broth | F15: 871261001262 | G15: 500ML | H15: CA | I15: 12 | J15: Y | P15: Y | Q15: Y | R15: Y | S15: 95 | T15: Frozen | U15: 136.88 | X15: 14.99
A16: AF1283 | C16: ALDERWOOD FARMS | D16: Breakfast Sausages | E16: Breakfast Sausages Maple Pork | F16: 871261001286 | G16: 375G | H16: CA | I16: 8 | P16: Y | Q16: Y | R16: Y | S16: 110 | T16: Frozen | U16: 69.9 | V16: APRIL DEAL! | W16: SAVE 8% | X16: 13.49
A17: AF1276 | C17: ALDERWOOD FARMS | D17: Breakfast Sausages | E17: Breakfast Sausages Original Pork | F17: 871261001279 | G17: 375G | H17: CA | I17: 8 | P17: Y | Q17: Y | R17: Y | S17: 110 | T17: Frozen | U17: 69.9 | V17: APRIL DEAL! | W17: SAVE 8% | X17: 13.49
A18: AF1382 | C18: ALDERWOOD FARMS | D18: French Fries | E18: Sweet Potato Classic Cut French Fries | F18: 871261001385 | G18: 400G | H18: CA | I18: 12 | P18: Y | Q18: Y | S18: 205 | T18: Frozen | U18: 77.95 | X18: 8.99
A19: AF1351 | C19: ALDERWOOD FARMS | D19: French Fries | E19: Crinkle Cut French Fries | F19: 871261001354 | G19: 450G | H19: CA | I19: 12 | P19: Y | Q19: Y | S19: 205 | T19: Frozen | U19: 67.67 | X19: 7.99
A20: AF1368 | C20: ALDERWOOD FARMS | D20: French Fries | E20: Straight Cut French Fries | F20: 871261001361 | G20: 450G | H20: CA | I20: 12 | P20: Y | Q20: Y | S20: 205 | T20: Frozen | U20: 65.83 | X20: 7.99
A21: AF1375 | C21: ALDERWOOD FARMS | D21: French Fries | E21: Waffle Cut French Fries | F21: 871261001378 | G21: 450G | H21: CA | I21: 12 | P21: Y | Q21: Y | S21: 205 | T21: Frozen | U21: 66.08 | X21: 7.99
A22: AF2129 | C22: ALDERWOOD FARMS | D22: Maple Syrup | E22: 100% Pure Organic Ontario Maple Syrup | F22: 871261002122 | G22: 500ML | H22: CA | I22: 12 | J22: Y | P22: Y | Q22: Y | R22: Y | S22: 205 | T22: Dry | U22: 181.87 | V22: APRIL DEAL! | W22: SAVE 8% | X22: 0
A23: AF1030 | C23: ALDERWOOD FARMS | D23: Quail Eggs | E23: Free Run Quail Eggs | F23: 871261001033 | G23: 15 | H23: CA | I23: 12 | P23: Y | Q23: Y | R23: Y | S23: 2 | T23: Chilled | U23: 60.13 | X23: 5.99
A24: AF1405 | C24: ALDERWOOD FARMS | D24: Yogurt | E24: Organic Skyr Plain 0% Yogurt | F24: 871261001408 | G24: 500G | H24: EA | I24: 1 | J24: Y | K24: Y | M24: Y | Q24: Y | R24: Y | S24: 16 | T24: Dry | U24: 5.75 | X24: 0
A25: AF1412 | C25: ALDERWOOD FARMS | D25: Yogurt | E25: Organic Skyr Plain 2% Yogurt | F25: 871261001415 | G25: 500G | H25: EA | I25: 1 | J25: Y | K25: Y | M25: Y | Q25: Y | R25: Y | S25: 16 | T25: Dry | U25: 5.75 | X25: 0
A26: SN5045 | C26: ALT-PRO ADVANTAGE | D26: Dog food | E26: Nose-to-Tail Wellness: Daily Nutrient-Rich Recipe | F26: 628942605048 | G26: 1.58KG | H26: CA | I26: 4 | P26: Y | Q26: Y | S26: 150 | T26: Dry | U26: 81.17 | V26: APRIL DEAL! | W26: SAVE 15% | X26: 28.99
A27: SN5052 | C27: ALT-PRO ADVANTAGE | D27: Oven-baked dog treats | E27: Calming Care | F27: 628942605055 | G27: 130G | H27: CA | I27: 6 | P27: Y | Q27: Y | S27: 150 | T27: Dry | U27: 47.15 | V27: APRIL DEAL! | W27: SAVE 15% | X27: 9.99
A28: SN0065 | C28: ALT-PRO ADVANTAGE | D28: Oven-baked dog treats | E28: Omega Boost | F28: 628942070068 | G28: 130G | H28: CA | I28: 6 | P28: Y | Q28: Y | S28: 150 | T28: Dry | U28: 47.15 | V28: APRIL DEAL! | W28: SAVE 15% | X28: 9.99
A29: SN0089 | C29: ALT-PRO ADVANTAGE | D29: Oven-baked dog treats | E29: Wellness Blend | F29: 628942070082 | G29: 130G | H29: CA | I29: 6 | P29: Y | Q29: Y | S29: 150 | T29: Dry | U29: 47.15 | V29: APRIL DEAL! | W29: SAVE 15% | X29: 9.99
A30: SN0072 | C30: ALT-PRO ADVANTAGE | D30: Semimoist dog treats | E30: Healthy Skin & Coat | F30: 628942070075 | G30: 130G | H30: CA | I30: 6 | P30: Y | Q30: Y | S30: 150 | T30: Dry | U30: 47.15 | V30: APRIL DEAL! | W30: SAVE 15% | X30: 9.99
A31: SN0058 | C31: ALT-PRO ADVANTAGE | D31: Semimoist dog treats | E31: Prebiotic Boost | F31: 628942070051 | G31: 130G | H31: CA | I31: 6 | P31: Y | Q31: Y | S31: 150 | T31: Dry | U31: 47.15 | V31: APRIL DEAL! | W31: SAVE 15% | X31: 9.99
A32: AT8101 | C32: ATWOOD HERITAGE | D32: Sausage Sticks | E32: Bison Sausage Sticks 5 pack | F32: 691392381015 | G32: 125G | H32: EA | I32: 6 | Q32: Y | R32: Y | S32: 88 | T32: Dry | U32: 50.96 | X32: 12.99
A33: AT8201 | C33: ATWOOD HERITAGE | D33: Sausage Sticks | E33: Elk Sausage Sticks 5 pack | F33: 691392382012 | G33: 125G | H33: EA | I33: 6 | Q33: Y | R33: Y | S33: 88 | T33: Dry | U33: 50.96 | X33: 12.99
A34: AT3017 | C34: ATWOOD HERITAGE | D34: Sausage Sticks | E34: Honey Garlic Grassfed Angus Beef Sausage Sticks 5 pack | F34: 691392523019 | G34: 125G | H34: EA | I34: 6 | Q34: Y | R34: Y | S34: 88 | T34: Dry | U34: 50.96 | X34: 12.99
A35: AT2010 | C35: ATWOOD HERITAGE | D35: Sausage Sticks | E35: Hot Grassfed Angus Beef Sausage Sticks 5 pack | F35: 691392522012 | G35: 125G | H35: EA | I35: 6 | Q35: Y | R35: Y | S35: 88 | T35: Dry | U35: 50.96 | X35: 12.99
A36: AT4014 | C36: ATWOOD HERITAGE | D36: Sausage Sticks | E36: Kangaroo Sausage Sticks 5 pack | F36: 691392384016 | G36: 125G | H36: EA | I36: 6 | Q36: Y | R36: Y | S36: 88 | T36: Dry | U36: 50.96 | X36: 12.99
A37: AT1013 | C37: ATWOOD HERITAGE | D37: Sausage Sticks | E37: Mild Grassfed Angus Beef Sausage Sticks 5 pack | F37: 691392521015 | G37: 125G | H37: EA | I37: 6 | Q37: Y | R37: Y | S37: 88 | T37: Dry | U37: 50.96 | X37: 12.99
A38: AT8301 | C38: ATWOOD HERITAGE | D38: Sausage Sticks | E38: Venison Sausage Sticks 5 pack | F38: 691392383019 | G38: 125G | H38: EA | I38: 6 | Q38: Y | R38: Y | S38: 88 | T38: Dry | U38: 50.96 | X38: 12.99
A39: AT6018 | C39: ATWOOD HERITAGE | D39: Sausage Sticks | E39: Wild Boar Sausage Sticks 5 pack | F39: 691392386010 | G39: 125G | H39: EA | I39: 6 | Q39: Y | R39: Y | S39: 88 | T39: Dry | U39: 50.96 | X39: 12.99
A40: AT8102 | C40: ATWOOD HERITAGE | D40: Sausage Sticks | E40: Bison Sausage Sticks 2 pack | F40: 691392381022 | G40: 50G | H40: EA | I40: 12 | Q40: Y | R40: Y | S40: 88 | T40: Dry | U40: 43 | X40: 5.49
A41: AT8202 | C41: ATWOOD HERITAGE | D41: Sausage Sticks | E41: Elk Sausage Sticks 2 pack | F41: 691392382029 | G41: 50G | H41: EA | I41: 12 | Q41: Y | R41: Y | S41: 88 | T41: Dry | U41: 43 | X41: 5.49
A42: AT3024 | C42: ATWOOD HERITAGE | D42: Sausage Sticks | E42: Honey Garlic Grassfed Angus Beef Sausage Sticks 2 pack | F42: 691392523026 | G42: 50G | H42: EA | I42: 12 | Q42: Y | R42: Y | S42: 88 | T42: Dry | U42: 43 | X42: 5.49
A43: AT2027 | C43: ATWOOD HERITAGE | D43: Sausage Sticks | E43: Hot Grassfed Angus Beef Sausage Sticks 2 pack | F43: 691392522029 | G43: 50G | H43: EA | I43: 12 | Q43: Y | R43: Y | S43: 88 | T43: Dry | U43: 43 | X43: 5.49
A44: AT4021 | C44: ATWOOD HERITAGE | D44: Sausage Sticks | E44: Kangaroo Sausage Sticks 2 pack | F44: 691392384023 | G44: 50G | H44: EA | I44: 12 | Q44: Y | R44: Y | S44: 88 | T44: Dry | U44: 43 | X44: 5.49
A45: AT1020 | C45: ATWOOD HERITAGE | D45: Sausage Sticks | E45: Mild Grassfed Angus Beef Sausage Sticks 2 pack | F45: 691392521022 | G45: 50G | H45: EA | I45: 12 | Q45: Y | R45: Y | S45: 88 | T45: Dry | U45: 43 | X45: 5.49
A46: AT8302 | C46: ATWOOD HERITAGE | D46: Sausage Sticks | E46: Venison Sausage Sticks 2 pack | F46: 691392383026 | G46: 50G | H46: EA | I46: 12 | Q46: Y | R46: Y | S46: 88 | T46: Dry | U46: 43 | X46: 5.49
A47: AT6025 | C47: ATWOOD HERITAGE | D47: Sausage Sticks | E47: Wild Boar Sausage Sticks 2 pack | F47: 691392386027 | G47: 50G | H47: EA | I47: 12 | Q47: Y | R47: Y | S47: 88 | T47: Dry | U47: 43 | X47: 5.49
A48: AT1011 | C48: ATWOOD HERITAGE | D48: Sliced pack | E48: Bison Salami sliced pack | F48: 691392231013 | G48: 125G | H48: EA | I48: 6 | Q48: Y | R48: Y | S48: 88 | T48: Dry | U48: 50.96 | X48: 12.99
A49: AT1028 | C49: ATWOOD HERITAGE | D49: Sliced pack | E49: Elk Salami sliced pack | F49: 691392231020 | G49: 125G | H49: EA | I49: 6 | Q49: Y | R49: Y | S49: 88 | T49: Dry | U49: 50.96 | X49: 12.99
A50: AT1012 | C50: ATWOOD HERITAGE | D50: Sliced pack | E50: Grassfed Angus Beef Salami sliced pack | F50: 691392221014 | G50: 125G | H50: EA | I50: 6 | Q50: Y | R50: Y | S50: 88 | T50: Dry | U50: 50.96 | X50: 12.99
A51: AT1042 | C51: ATWOOD HERITAGE | D51: Sliced pack | E51: Venison Salami sliced pack | F51: 691392231044 | G51: 125G | H51: EA | I51: 6 | Q51: Y | R51: Y | S51: 88 | T51: Dry | U51: 50.96 | X51: 12.99
A52: AT1059 | C52: ATWOOD HERITAGE | D52: Sliced pack | E52: Wild Boar Salami sliced pack | F52: 691392231051 | G52: 125G | H52: EA | I52: 6 | Q52: Y | R52: Y | S52: 88 | T52: Dry | U52: 50.96 | X52: 12.99
A53: BE8295 | C53: BARBET | D53: Sparkling water | E53: Deep Dive | F53: 627987748291 | G53: 355ML | H53: CA | I53: 12 | P53: Y | S53: 95 | T53: Dry | U53: 30.78 | X53: 3.49 | Y53: 3
A54: BE8196 | C54: BARBET | D54: Sparkling water | E54: Light Wave | F54: 627987748192 | G54: 355ML | H54: CA | I54: 12 | P54: Y | Q54: Y | R54: Y | S54: 95 | T54: Dry | U54: 30.78 | X54: 3.49 | Y54: 2
A55: BE8199 | C55: BARBET | D55: Sparkling water | E55: Light Wave | F55: 627987748192 | G55: 355ML | H55: CA | I55: 24 | P55: Y | S55: 95 | T55: Dry | U55: 57.53 | X55: 3.49 | Y55: 2
A56: BE8233 | C56: BARBET | D56: Sparkling water | E56: Love Bite | F56: 627987748239 | G56: 355ML | H56: CA | I56: 12 | P56: Y | Q56: Y | R56: Y | S56: 95 | T56: Dry | U56: 30.78 | X56: 3.49 | Y56: 1
A57: BE8236 | C57: BARBET | D57: Sparkling water | E57: Love Bite | F57: 627987748239 | G57: 355ML | H57: CA | I57: 24 | P57: Y | S57: 95 | T57: Dry | U57: 57.53 | X57: 3.49 | Y57: 1
A58: BE8212 | C58: BARBET | D58: Sparkling water | E58: Wild Card | F58: 627987748215 | G58: 355ML | H58: CA | I58: 24 | P58: Y | S58: 95 | T58: Dry | U58: 57.53 | X58: 3.49 | Y58: 4
A59: BE8219 | C59: BARBET | D59: Sparkling water | E59: Wild Card | F59: 627987748215 | G59: 355ML | H59: CA | I59: 12 | P59: Y | Q59: Y | R59: Y | S59: 95 | T59: Dry | U59: 30.78 | X59: 3.49 | Y59: 4
A60: BY1841 | B60: JUST LISTED! | C60: BENNY | D60: Energy drink | E60: Mint Lemonade Non Sparkling | F60: 628942441844 | G60: 355ML | H60: CA | I60: 12 | L60: Y | M60: Y | N60: Y | Q60: Y | S60: 95 | T60: Dry | U60: 40 | X60: 4.99 | Y60: 4
A61: BY1780 | C61: BENNY | D61: Nourishing energy | E61: Elderberry yuzu | F61: 628942441783 | G61: 355ML | H61: CA | I61: 12 | P61: Y | Q61: Y | R61: Y | S61: 109 | T61: Dry | U61: 40 | V61: APRIL DEAL! | W61: SAVE 15% | X61: 4.99 | Y61: 3
A62: BY1766 | C62: BENNY | D62: Nourishing energy | E62: Peach lychee | F62: 628942441769 | G62: 355ML | H62: CA | I62: 12 | P62: Y | Q62: Y | R62: Y | S62: 109 | T62: Dry | U62: 40 | V62: APRIL DEAL! | W62: SAVE 15% | X62: 4.99 | Y62: 1
A63: BY1759 | C63: BENNY | D63: Nourishing energy | E63: Raspberry hibiscus | F63: 628942441752 | G63: 355ML | H63: CA | I63: 12 | P63: Y | Q63: Y | R63: Y | S63: 109 | T63: Dry | U63: 40 | V63: APRIL DEAL! | W63: SAVE 15% | X63: 4.99 | Y63: 2
A64: BY1803 | C64: BENNY | D64: Nourishing energy | E64: Elderberry yuzu | F64: 628942441806 | G64: 4x355ML | H64: CA | I64: 6 | J64: Y | L64: Y | M64: Y | N64: Y | P64: Y | Q64: Y | R64: Y | S64: 95 | T64: Dry | U64: 83.34 | V64: APRIL DEAL! | W64: SAVE 15% | X64: 18.99 | Y64: 3
A65: BY1773 | C65: BENNY | D65: Nourishing energy | E65: Peach lychee | F65: 628942441776 | G65: 4x355ML | H65: CA | I65: 6 | J65: Y | L65: Y | M65: Y | N65: Y | P65: Y | Q65: Y | R65: Y | S65: 95 | T65: Dry | U65: 83.34 | V65: APRIL DEAL! | W65: SAVE 15% | X65: 18.99 | Y65: 1
A66: BY1810 | C66: BENNY | D66: Nourishing energy | E66: Raspberry hibiscus | F66: 628942441813 | G66: 4x355ML | H66: CA | I66: 6 | J66: Y | L66: Y | M66: Y | N66: Y | P66: Y | Q66: Y | R66: Y | S66: 95 | T66: Dry | U66: 83.34 | V66: APRIL DEAL! | W66: SAVE 15% | X66: 18.99 | Y66: 2
A67: BS5372 | C67: BIERE SANS ALCOOL | D67: Non-Alcoholic Beer | E67: Blonde Pilsner | F67: 627987335378 | G67: 473ML | H67: CA | I67: 12 | P67: Y | Q67: Y | S67: 200 | T67: Dry | U67: 32.33 | V67: APRIL DEAL! | W67: SAVE 10% | X67: 3.99 | Y67: 4
A68: BS5365 | C68: BIERE SANS ALCOOL | D68: Non-Alcoholic Craft Beer | E68: Raspberry Sour | F68: 627987335361 | G68: 473ML | H68: CA | I68: 12 | P68: Y | Q68: Y | S68: 200 | T68: Dry | U68: 32.33 | V68: APRIL DEAL! | W68: SAVE 10% | X68: 3.99 | Y68: 1
A69: BS5341 | C69: BIERE SANS ALCOOL | D69: Non-Alcoholic Craft Beer | E69: Smooth IPA | F69: 627987335347 | G69: 473ML | H69: CA | I69: 12 | P69: Y | Q69: Y | S69: 200 | T69: Dry | U69: 32.33 | V69: APRIL DEAL! | W69: SAVE 10% | X69: 3.99 | Y69: 3
A70: BS5358 | C70: BIERE SANS ALCOOL | D70: Non-Alcoholic Craft Beer | E70: Tropical Sour | F70: 627987335354 | G70: 473ML | H70: CA | I70: 12 | P70: Y | Q70: Y | S70: 200 | T70: Dry | U70: 32.33 | V70: APRIL DEAL! | W70: SAVE 10% | X70: 3.99 | Y70: 2
A71: BS5396 | C71: BIERE SANS ALCOOL | D71: Non-Alcoholic Craft Beer | E71: White Orange | F71: 627987335392 | G71: 473ML | H71: CA | I71: 12 | P71: Y | Q71: Y | S71: 219 | T71: Dry | U71: 32.33 | V71: APRIL DEAL! | W71: SAVE 10% | X71: 3.99 | Y71: 5
A72: UF0870 | C72: BOTTICELLI | D72: Premium White Pasta Sauce | E72: Alfredo Sauce | F72: 810095660566 | G72: 370ML | H72: CA | I72: 6 | M72: Y | S72: 205 | T72: Dry | U72: 49.45 | V72: APRIL DEAL! | W72: SAVE 10% | X72: 12.99 | Y72: 1
A73: BO0059 | C73: BRIGHTSIDE ORGANICS | D73: Daily Fibre Boost | E73: Natura Fibre | F73: 839266000055 | G73: 750G | H73: CA | I73: 6 | J73: Y | M73: Y | S73: 60 | T73: Dry | U73: 145.33 | X73: 36.99
A74: BD8928 | C74: BREW DR K | D74: Organic Kombucha - Glass Bottles | E74: Organic Kombucha Pineapple Paradise | F74: 857161008921 | G74: 414ML | H74: CA | I74: 12 | J74: Y | K74: Y | M74: Y | N74: Y | Q74: Y | S74: 40 | T74: Chilled | U74: 38.46 | X74: 4.49 | Y74: 5
A75: BD1140 | C75: BREW DR K | D75: Organic Raw Kombucha - Glass Bottles | E75: Cherry Limeade | F75: 850044821143 | G75: 414ML | H75: CA | I75: 12 | J75: Y | K75: Y | L75: Y | M75: Y | Q75: Y | S75: 22 | T75: Chilled | U75: 38.46 | X75: 3.99
A76: BD3008 | C76: BREW DR K | D76: Organic Raw Kombucha - Glass Bottles | E76: Clear Mind (Rosemary · Mint · Sage · Green Tea) | F76: 851107003001 | G76: 414ML | H76: CA | I76: 12 | J76: Y | K76: Y | M76: Y | N76: Y | Q76: Y | S76: 36 | T76: Chilled | U76: 38.46 | X76: 4.99 | Y76: 3
A77: BD1133 | C77: BREW DR K | D77: Organic Raw Kombucha - Glass Bottles | E77: Crisp Apple | F77: 850044821136 | G77: 414ML | H77: CA | I77: 12 | J77: Y | K77: Y | L77: Y | M77: Y | Q77: Y | S77: 22 | T77: Chilled | U77: 38.46 | X77: 3.99
A78: BD1171 | C78: BREW DR K | D78: Organic Raw Kombucha - Glass Bottles | E78: Iced Tea Lemonade | F78: 850044821174 | G78: 414ML | H78: CA | I78: 12 | J78: Y | K78: Y | L78: Y | M78: Y | Q78: Y | S78: 22 | T78: Chilled | U78: 38.46 | X78: 3.99
A79: BD8461 | C79: BREW DR K | D79: Organic Raw Kombucha - Glass Bottles | E79: Island Mango (Passionfruit · Ginger · Green Tea) | F79: 857161008464 | G79: 414ML | H79: CA | I79: 12 | J79: Y | K79: Y | M79: Y | N79: Y | Q79: Y | S79: 36 | T79: Chilled | U79: 38.46 | X79: 4.99 | Y79: 3
A80: BD3077 | C80: BREW DR K | D80: Organic Raw Kombucha - Glass Bottles | E80: Love (Lavender · Chamomile · Jasmine Green Tea | F80: 851107003070 | G80: 414ML | H80: CA | I80: 12 | J80: Y | K80: Y | M80: Y | N80: Y | Q80: Y | S80: 36 | T80: Chilled | U80: 38.46 | X80: 4.99 | Y80: 2
A81: BD3643 | C81: BREW DR K | D81: Organic Raw Kombucha - Glass Bottles | E81: Mountain Ginger | F81: 851107003629 | G81: 414ML | H81: CA | I81: 12 | J81: Y | K81: Y | M81: Y | N81: Y | Q81: Y | S81: 0 | T81: Chilled | U81: 38.46 | X81: 4.99
A82: BD3039 | C82: BREW DR K | D82: Organic Raw Kombucha - Glass Bottles | E82: Superberry (Raspberry · Blueberry · Goji Berry · Oolong Tea) | F82: 851107003032 | G82: 414ML | H82: CA | I82: 12 | J82: Y | K82: Y | M82: Y | N82: Y | Q82: Y | S82: 36 | T82: Chilled | U82: 38.46 | X82: 4.99 | Y82: 3
A83: BR7200 | C83: BROYA | D83: Bone Broth | E83: Chocolate Broth | F83: 628451797203 | G83: 237ML | H83: CA | I83: 6 | Q83: Y | R83: Y | S83: 95 | T83: Dry | U83: 40.99 | V83: APRIL DEAL! | W83: SAVE 15% | X83: 9.99
A84: BR7187 | C84: BROYA | D84: Bone Broth | E84: Classic Beef Bone Broth | F84: 628451797180 | G84: 237ML | H84: CA | I84: 6 | P84: Y | Q84: Y | R84: Y | S84: 150 | T84: Dry | U84: 30.95 | V84: APRIL DEAL! | W84: SAVE 15% | X84: 7.99
A85: BR7170 | C85: BROYA | D85: Bone Broth | E85: Classic Chicken Bone Broth | F85: 628451797173 | G85: 237ML | H85: CA | I85: 6 | J85: Y | P85: Y | Q85: Y | R85: Y | S85: 150 | T85: Dry | U85: 30.95 | V85: APRIL DEAL! | W85: SAVE 15% | X85: 7.99
A86: BR7149 | C86: BROYA | D86: Bone Broth (Pouches) | E86: Beef - Parsley & Cumin | F86: 628451797142 | G86: 500ML | H86: CA | I86: 8 | M86: Y | N86: Y | P86: Y | Q86: Y | R86: Y | S86: 76 | T86: Dry | U86: 74.26 | V86: APRIL DEAL! | W86: SAVE 15% | X86: 12.99 | Y86: 2
A87: BR7163 | C87: BROYA | D87: Bone Broth (Pouches) | E87: Beef - Tomato & Smoked Paprika | F87: 628451797166 | G87: 500ML | H87: CA | I87: 8 | J87: Y | M87: Y | N87: Y | P87: Y | Q87: Y | R87: Y | S87: 76 | T87: Dry | U87: 74.26 | V87: APRIL DEAL! | W87: SAVE 15% | X87: 12.99 | Y87: 3
A88: BR7156 | C88: BROYA | D88: Bone Broth (Pouches) | E88: Chicken - Sriracha & Chili | F88: 628451797159 | G88: 500ML | H88: CA | I88: 8 | J88: Y | M88: Y | N88: Y | P88: Y | Q88: Y | R88: Y | S88: 76 | T88: Dry | U88: 74.26 | V88: APRIL DEAL! | W88: SAVE 15% | X88: 12.99 | Y88: 4
A89: BR7132 | C89: BROYA | D89: Bone Broth (Pouches) | E89: Chicken - Turmeric & Ginger | F89: 628451797135 | G89: 500ML | H89: CA | I89: 8 | J89: Y | M89: Y | N89: Y | P89: Y | Q89: Y | R89: Y | S89: 76 | T89: Dry | U89: 74.26 | V89: APRIL DEAL! | W89: SAVE 15% | X89: 12.99 | Y89: 1
A90: BR7507 | C90: BROYA | D90: Tallow Balm | E90: Premium Tallow Balm | F90: 628451797500 | G90: 56G | H90: CA | I90: 6 | P90: Y | Q90: Y | R90: Y | S90: 196 | T90: Dry | U90: 171.05 | V90: APRIL DEAL! | W90: SAVE 15% | X90: 44.99
A91: BF7501 | C91: BUBBIES | D91: Ferments | E91: Bread N Butter Pickle | F91: 38261957504 | G91: 1L | H91: CA | I91: 6 | K91: Y | L91: Y | S91: 72 | T91: Chilled | U91: 55 | X91: 0 | Y91: 3
A92: BF7365 | C92: BUBBIES | D92: Ferments | E92: Kosher Dill Pickle | F92: 38261957368 | G92: 1L | H92: CA | I92: 6 | K92: Y | L92: Y | S92: 72 | T92: Chilled | U92: 55 | X92: 0 | Y92: 1
A93: BF4364 | C93: BUBBIES | D93: Ferments | E93: Spicy Kosher Dills | F93: 38261954367 | G93: 1L | H93: CA | I93: 6 | K93: Y | N93: Y | S93: 60 | T93: Chilled | U93: 55 | X93: 0
A94: BF7610 | C94: BUBBIES | D94: Ferments | E94: Beet Horseradish | F94: 38261957610 | G94: 250ML | H94: CA | I94: 12 | K94: Y | L94: Y | S94: 24 | T94: Chilled | U94: 55 | X94: 0 | Y94: 6
A95: BF7665 | C95: BUBBIES | D95: Ferments | E95: Prepared Horseradish | F95: 38261957665 | G95: 250ML | H95: CA | I95: 12 | K95: Y | L95: Y | S95: 24 | T95: Chilled | U95: 55 | X95: 0 | Y95: 5
A96: BF7122 | C96: BUBBIES | D96: Ferments | E96: Herring Filets | F96: 38261957122 | G96: 320G | H96: CA | I96: 12 | K96: Y | L96: Y | S96: 36 | T96: Chilled | U96: 117.48 | X96: 0 | Y96: 7
A97: BF7372 | C97: BUBBIES | D97: Ferments | E97: Pure Kosher Dill Pickle Relish | F97: 38261957375 | G97: 500ML | H97: CA | I97: 6 | K97: Y | L97: Y | S97: 72 | T97: Chilled | U97: 39.52 | X97: 0 | Y97: 4
A98: BF7471 | C98: BUBBIES | D98: Ferments | E98: Plain Sauerkraut | F98: 38261957474 | G98: 750ML | H98: CA | I98: 6 | K98: Y | L98: Y | S98: 72 | T98: Chilled | U98: 55 | X98: 0 | Y98: 2
A99: CAS0204 | C99: CASA BONITA | D99: Casa Bonita Soft Tortillas | E99: Blue Corn Soft Tortillas | F99: 627843861065 | G99: 250G | H99: CA | I99: 18 | L99: Y | P99: Y | Q99: Y | R99: Y | S99: 41 | T99: Dry | U99: 66.03 | X99: 0 | Y99: 2
A100: CAS0202 | C100: CASA BONITA | D100: Casa Bonita Soft Tortillas | E100: White Corn Soft Tortillas | F100: 627843861041 | G100: 450G | H100: CA | I100: 18 | L100: Y | P100: Y | Q100: Y | R100: Y | S100: 41 | T100: Dry | U100: 66.03 | X100: 0 | Y100: 1
A101: CAS0203 | C101: CASA BONITA | D101: Casa Bonita Soft Tortillas | E101: Yellow Corn Soft Tortillas | F101: 627843861072 | G101: 450G | H101: CA | I101: 18 | L101: Y | P101: Y | Q101: Y | R101: Y | S101: 41 | T101: Dry | U101: 66.03 | X101: 0 | Y101: 3
A102: CAS0101 | C102: CASA BONITA | D102: Corn Chips | E102: Cantina Style Corn Chips | F102: 627843861058 | G102: 300G | H102: CA | I102: 6 | J102: Y | L102: Y | M102: Y | P102: Y | Q102: Y | R102: Y | S102: 27 | T102: Dry | U102: 27.22 | X102: 0 | Y102: 2
A103: CAS0104 | C103: CASA BONITA | D103: Corn Chips | E103: Cantina Style Smokey Chipotle | F103: 627843861089 | G103: 300G | H103: CA | I103: 6 | Q103: Y | S103: 27 | U103: 29.99 | X103: 0 | Y103: 3
A104: CAS0103 | C104: CASA BONITA | D104: Corn Chips | E104: Tortilla chips with Tajin | F104: 627843861096 | G104: 300G | H104: CA | I104: 6 | L104: Y | P104: Y | Q104: Y | R104: Y | S104: 27 | U104: 29.99 | X104: 0 | Y104: 3
A105: CAS0207 | C105: CASA BONITA | D105: Corn Tortilla | E105: Retail Ready Blue Corn Tortilla | F105: 627843861065 | G105: 250G | H105: CA | I105: 18 | J105: Y | N105: Y | Q105: Y | R105: Y | S105: 40 | T105: Dry | U105: 69.61 | X105: 5
A106: CAS0205 | C106: CASA BONITA | D106: Corn Tortilla | E106: Retail Ready White Corn Tortilla | F106: 627843861041 | G106: 450G | H106: CA | I106: 12 | J106: Y | N106: Y | Q106: Y | R106: Y | S106: 40 | T106: Dry | U106: 47.98 | X106: 5.29
A107: CAS0206 | C107: CASA BONITA | D107: Corn Tortilla | E107: Retail Ready Yellow Corn Tortilla | F107: 627843861072 | G107: 450G | H107: CA | I107: 12 | J107: Y | N107: Y | Q107: Y | R107: Y | S107: 40 | T107: Dry | U107: 47.98 | X107: 5.29
A108: CAS0105 | C108: CASA BONITA | D108: Displayer | E108: Tortilla Display Wire Rack | F108: 628250868029 | H108: CA | I108: 1 | P108: Y | Q108: Y | R108: Y | S108: 0 | T108: Dry | U108: 0.001 | X108: 0
A109: CAS0403 | C109: CASA BONITA | D109: Salsa | E109: Fire Roasted Chipotle Salsa | F109: 627843861119 | G109: 300ML | H109: CA | I109: 6 | L109: Y | Q109: Y | S109: 148 | T109: Dry | U109: 24.18 | V109: APRIL DEAL! | W109: SAVE 30% | X109: 0 | Y109: 2
A110: CAS0401 | C110: CASA BONITA | D110: Salsa | E110: Fire Roasted Habanero Salsa | F110: 627843861126 | G110: 300ML | H110: CA | I110: 6 | L110: Y | Q110: Y | S110: 148 | T110: Dry | U110: 24.18 | V110: APRIL DEAL! | W110: SAVE 30% | X110: 0 | Y110: 2
A111: CAS0402 | C111: CASA BONITA | D111: Salsa | E111: Fire Roasted Jalapeno Salsa | F111: 627843861133 | G111: 300ML | H111: CA | I111: 6 | L111: Y | Q111: Y | S111: 148 | T111: Dry | U111: 24.18 | V111: APRIL DEAL! | W111: SAVE 30% | X111: 0 | Y111: 2
A112: CAS0107 | C112: CASA BONITA | D112: Salsa | E112: White Cheese Salsa with Jalapeno | F112: 628250868012 | G112: 425G | H112: CA | I112: 6 | M112: Y | Q112: Y | S112: 150 | T112: Dry | U112: 37.44 | X112: 10.39
A113: CAS0106 | C113: CASA BONITA | D113: Salsa | E113: Yellow Cheese Salsa with Chipotle | F113: 628250868005 | G113: 425G | H113: CA | I113: 6 | M113: Y | Q113: Y | S113: 150 | T113: Dry | U113: 37.44 | X113: 10.39
A114: CAS0303 | C114: CASA BONITA | D114: Seasonings | E114: Al Pastor Seasonings | F114: 628250868043 | G114: 30G | H114: CA | I114: 12 | L114: Y | M114: Y | N114: Y | S114: 720 | T114: Dry | U114: 17.14 | X114: 2.35
A115: CAS0306 | C115: CASA BONITA | D115: Seasonings | E115: Barbacoa Seasonings | F115: 628250868036 | G115: 30G | H115: CA | I115: 12 | L115: Y | M115: Y | N115: Y | S115: 720 | T115: Dry | U115: 17.14 | X115: 2.35
A116: CAS0304 | C116: CASA BONITA | D116: Seasonings | E116: Carne Asada Seasonings | F116: 628250868081 | G116: 30G | H116: CA | I116: 12 | L116: Y | M116: Y | N116: Y | S116: 720 | T116: Dry | U116: 17.14 | X116: 2.35
A117: CAS0307 | C117: CASA BONITA | D117: Seasonings | E117: Carnitas Seasonings | F117: 628250868067 | G117: 30G | H117: CA | I117: 12 | L117: Y | M117: Y | N117: Y | S117: 720 | T117: Dry | U117: 17.14 | X117: 2.35
A118: CAS0308 | C118: CASA BONITA | D118: Seasonings | E118: Chicken Tinga Seasonings | F118: 628250868074 | G118: 30G | H118: CA | I118: 12 | L118: Y | M118: Y | N118: Y | S118: 720 | T118: Dry | U118: 17.14 | X118: 2.35
A119: CAS0305 | C119: CASA BONITA | D119: Seasonings | E119: Street Tacos Taco Seasoning | F119: 628250868050 | G119: 30G | H119: CA | I119: 12 | L119: Y | M119: Y | N119: Y | S119: 720 | T119: Dry | U119: 17.14 | X119: 2.35
A120: CAS0208 | C120: CASA BONITA | D120: Taco Shells | E120: Hard Taco Shells | F120: 628250868227 | G120: 125G | H120: CA | I120: 12 | M120: Y | N120: Y | R120: Y | S120: 72 | T120: Dry | U120: 40.56 | X120: 6
A121: CAS0301 | C121: CASA BONITA | D121: Tajin | E121: Tajin classic lime | F121: 633148100013 | G121: 142G | H121: CA | I121: 12 | K121: Y | L121: Y | Q121: Y | S121: 126 | T121: Dry | U121: 61.48 | X121: 0 | Y121: 2
A122: CAS0504 | C122: CASA BONITA | D122: Tajin | E122: Tajin Liquid Chamoy | F122: 633148104028 | G122: 455ML | H122: CA | I122: 12 | K122: Y | L122: Y | Q122: Y | S122: 81 | T122: Dry | U122: 76.69 | X122: 0 | Y122: 2
A123: CAS0503 | C123: CASA BONITA | D123: Tajin | E123: Tajin Liquid Classic | F123: 633148104035 | G123: 455ML | H123: CA | I123: 12 | K123: Y | L123: Y | Q123: Y | S123: 81 | T123: Dry | U123: 76.69 | X123: 0 | Y123: 2
A124: CAS0302 | C124: CASA BONITA | D124: Tajin | E124: Tajin habanero | F124: 633148104547 | G124: 45G | H124: CA | I124: 24 | K124: Y | L124: Y | Q124: Y | S124: 126 | T124: Dry | U124: 117.85 | X124: 0 | Y124: 3
A125: CAS0109 | C125: CASA BONITA | D125: Tortilla Chips | E125: Casa Bonita Chilli Lime | F125: 628250868111 | G125: 63G | H125: CA | I125: 20 | M125: Y | N125: Y | P125: Y | S125: 94 | T125: Dry | U125: 30 | X125: 2.31
A126: CAS0108 | C126: CASA BONITA | D126: Tortilla Chips | E126: Casa Bonita Jalapeno Cheddar | F126: 628250868104 | G126: 63G | H126: CA | I126: 20 | M126: Y | N126: Y | P126: Y | S126: 94 | T126: Dry | U126: 30 | X126: 2.31
A127: CA5115 | C127: CATHERINE'S PRESERVES | D127: Catherine's Preserves | E127: Port Wine Jelly | F127: 63026445118 | G127: 125ML | H127: CA | I127: 12 | P127: Y | Q127: Y | R127: Y | S127: 205 | T127: Dry | U127: 61.27 | X127: 0
A128: CA5092 | C128: CATHERINE'S PRESERVES | D128: Catherine's Preserves | E128: Cranberry Sauce | F128: 63026445095 | G128: 250ML | H128: CA | I128: 12 | P128: Y | Q128: Y | R128: Y | S128: 205 | T128: Dry | U128: 69.69 | X128: 0
A129: CA5030 | C129: CATHERINE'S PRESERVES | D129: Catherine's Preserves | E129: Hot Antipasto | F129: 63026445033 | G129: 250ML | H129: CA | I129: 12 | P129: Y | Q129: Y | R129: Y | S129: 205 | T129: Dry | U129: 72.45 | X129: 0
A130: CA5184 | C130: CATHERINE'S PRESERVES | D130: Catherine's Preserves | E130: Hot Red Pepper Jelly | F130: 63026445187 | G130: 250ML | H130: CA | I130: 12 | P130: Y | Q130: Y | R130: Y | S130: 205 | T130: Dry | U130: 67.92 | X130: 0
A131: CA5146 | C131: CATHERINE'S PRESERVES | D131: Catherine's Preserves | E131: Jalapeno Jelly | F131: 63026445149 | G131: 250ML | H131: CA | I131: 12 | P131: Y | Q131: Y | R131: Y | S131: 205 | T131: Dry | U131: 67.92 | X131: 0
A132: CA5016 | C132: CATHERINE'S PRESERVES | D132: Catherine's Preserves | E132: Original Antipasto | F132: 63026445019 | G132: 250ML | H132: CA | I132: 12 | P132: Y | Q132: Y | R132: Y | S132: 205 | T132: Dry | U132: 72.45 | X132: 0
A133: CA5122 | C133: CATHERINE'S PRESERVES | D133: Catherine's Preserves | E133: Red Pepper Jelly | F133: 63026445125 | G133: 250ML | H133: CA | I133: 12 | P133: Y | Q133: Y | R133: Y | S133: 205 | T133: Dry | U133: 67.92 | X133: 0
A134: CA5160 | C134: CATHERINE'S PRESERVES | D134: Catherine's Preserves | E134: Savoury Vegetarian Antipasto | F134: 63026445163 | G134: 250ML | H134: CA | I134: 12 | P134: Y | Q134: Y | R134: Y | S134: 205 | T134: Dry | U134: 72.45 | X134: 0
A135: CA5023 | C135: CATHERINE'S PRESERVES | D135: Catherine's Preserves | E135: Original Antipasto | F135: 63026445026 | G135: 375ML | H135: CA | I135: 12 | P135: Y | Q135: Y | R135: Y | S135: 205 | T135: Dry | U135: 91.14 | X135: 0
A136: CT2063 | C136: CHOCOLATAS | D136: Dark Chocolate | E136: Grapefruit Caramels Dark | F136: 628774352066 | G136: 80G | H136: CA | I136: 12 | Q136: Y | R136: Y | S136: 109 | T136: Dry | U136: 65 | X136: 7.99
A137: CT2049 | C137: CHOCOLATAS | D137: Dark Chocolate | E137: Salted Caramels Dark | F137: 628774352042 | G137: 80G | H137: CA | I137: 12 | Q137: Y | R137: Y | S137: 109 | T137: Dry | U137: 65 | X137: 7.99
A138: CT2070 | C138: CHOCOLATAS | D138: Milk Chocolate | E138: Lemon Caramels Milk | F138: 628774352073 | G138: 80G | H138: CA | I138: 12 | Q138: Y | R138: Y | S138: 109 | T138: Dry | U138: 65 | X138: 7.99
A139: CT2032 | C139: CHOCOLATAS | D139: Milk Chocolate | E139: Salted Caramels Milk | F139: 628774352035 | G139: 80G | H139: CA | I139: 12 | Q139: Y | R139: Y | S139: 109 | T139: Dry | U139: 65 | X139: 7.99
A140: CT2056 | C140: CHOCOLATAS | D140: Milk Chocolate | E140: Strawberry Caramels Milk | F140: 628774352059 | G140: 80G | H140: CA | I140: 12 | Q140: Y | R140: Y | S140: 109 | T140: Dry | U140: 65 | X140: 7.99
A141: CBS0108 | C141: COMEBACK SNACKS | D141: Comeback Snack | E141: Double Coated Caramel | F141: 628719575017 | G141: 200G | H141: CA | I141: 12 | P141: Y | Q141: Y | S141: 67 | T141: Dry | U141: 59.68 | V141: APRIL DEAL! | W141: SAVE 15% | X141: 0
A142: CBS0107 | C142: COMEBACK SNACKS | D142: Comeback Snack | E142: Lemon Meringue Caramel | F142: 628719575031 | G142: 225G | H142: CA | I142: 12 | P142: Y | Q142: Y | S142: 67 | T142: Dry | U142: 59.68 | V142: APRIL DEAL! | W142: SAVE 15% | X142: 0
A143: CBS0106 | C143: COMEBACK SNACKS | D143: Comeback Snack | E143: Peanut Butter & Chocolate Caramel | F143: 628719575024 | G143: 225G | H143: CA | I143: 12 | P143: Y | Q143: Y | S143: 67 | T143: Dry | U143: 59.68 | V143: APRIL DEAL! | W143: SAVE 15% | X143: 0
A144: CBS0109 | C144: COMEBACK SNACKS | D144: Comeback Snack | E144: Salted Chocolate Caramel | F144: 628719575000 | G144: 225G | H144: CA | I144: 12 | P144: Y | Q144: Y | S144: 67 | T144: Dry | U144: 59.68 | V144: APRIL DEAL! | W144: SAVE 15% | X144: 0
A145: YE8215 | C145: COOLER CO. | D145: Beverage | E145: Berry Active | F145: 850071748154 | G145: 473ML | H145: CA | I145: 12 | Q145: Y | S145: 165 | T145: Dry | U145: 33.33 | X145: 4.29 | Y145: 3
A146: YE8208 | C146: COOLER CO. | D146: Beverage | E146: Blue Balance | F146: 850071748147 | G146: 473ML | H146: CA | I146: 12 | Q146: Y | S146: 165 | T146: Dry | U146: 33.33 | X146: 4.29 | Y146: 4
A147: YE8192 | C147: COOLER CO. | D147: Beverage | E147: Mighty Mint | F147: 850071748130 | G147: 473ML | H147: CA | I147: 12 | Q147: Y | S147: 165 | T147: Dry | U147: 33.33 | X147: 4.29 | Y147: 2
A148: YE8222 | C148: COOLER CO. | D148: Beverage | E148: Power Peach | F148: 850071748161 | G148: 473ML | H148: CA | I148: 12 | Q148: Y | S148: 165 | T148: Dry | U148: 33.33 | X148: 4.29 | Y148: 1
A149: YE8185 | C149: COOLER CO. | D149: Beverage | E149: The OG | F149: 850071748123 | G149: 473ML | H149: CA | I149: 12 | Q149: Y | S149: 165 | T149: Dry | U149: 33.33 | X149: 4.29 | Y149: 6
A150: YE8239 | C150: COOLER CO. | D150: Beverage | E150: Unsweetened | F150: 850071748178 | G150: 473ML | H150: CA | I150: 12 | Q150: Y | S150: 165 | T150: Dry | U150: 33.33 | X150: 4.29 | Y150: 5
A151: KO0012 | C151: COOLER CO. | D151: Kombucha | E151: Blueberry Ginger | F151: 628176059211 | G151: 355ML | H151: CA | I151: 12 | Q151: Y | R151: Y | S151: 72 | T151: Chilled | U151: 34.11 | V151: APRIL DEAL! | W151: SAVE 10% | X151: 4.49 | Y151: 3
A152: KO0043 | C152: COOLER CO. | D152: Kombucha | E152: Cherry Cream Soda | F152: 628176059242 | G152: 355ML | H152: CA | I152: 12 | Q152: Y | R152: Y | S152: 72 | T152: Chilled | U152: 34.11 | V152: APRIL DEAL! | W152: SAVE 10% | X152: 4.49 | Y152: 1
A153: KO0029 | C153: COOLER CO. | D153: Kombucha | E153: Lavender Lemonade | F153: 628176059228 | G153: 355ML | H153: CA | I153: 12 | Q153: Y | R153: Y | S153: 72 | T153: Chilled | U153: 34.11 | V153: APRIL DEAL! | W153: SAVE 10% | X153: 4.49 | Y153: 2
A154: KO0036 | C154: COOLER CO. | D154: Kombucha | E154: Peach Basil | F154: 628176059235 | G154: 355ML | H154: CA | I154: 12 | Q154: Y | R154: Y | S154: 72 | T154: Chilled | U154: 34.11 | V154: APRIL DEAL! | W154: SAVE 10% | X154: 4.49 | Y154: 4
A155: KO0067 | C155: COOLER CO. | D155: Kombucha | E155: Raspberry Rose | F155: 628176059266 | G155: 355ML | H155: CA | I155: 12 | Q155: Y | R155: Y | S155: 72 | T155: Chilled | U155: 34.11 | V155: APRIL DEAL! | W155: SAVE 10% | X155: 4.49 | Y155: 6
A156: KO0050 | C156: COOLER CO. | D156: Kombucha | E156: Strawberry Mojito | F156: 628176059259 | G156: 355ML | H156: CA | I156: 12 | Q156: Y | R156: Y | S156: 72 | T156: Chilled | U156: 34.11 | V156: APRIL DEAL! | W156: SAVE 10% | X156: 4.49 | Y156: 5
A157: CO6172 | C157: CORBICULA | D157: Honey | E157: Buzzed Honey | F157: 627987546170 | G157: 6 X 500G | H157: CA | I157: 6 | P157: Y | Q157: Y | R157: Y | S157: 150 | T157: Dry | U157: 83.34 | X157: 19.99 | Y157: 3
A158: CRK0101 | C158: CRANK COFFEE | D158: Crank Coffee | E158: Crank It Up™ | F158: 56932910016 | G158: 340G | H158: CA | I158: 6 | J158: Y | P158: Y | Q158: Y | S158: 95 | T158: Dry | U158: 79.71 | X158: 15.99 | Y158: 4
A159: CRK0102 | C159: CRANK COFFEE | D159: Crank Coffee | E159: Cranky Pants™ | F159: 56932910023 | G159: 340G | H159: CA | I159: 6 | J159: Y | P159: Y | Q159: Y | S159: 95 | T159: Dry | U159: 79.71 | X159: 15.99 | Y159: 2
A160: CRK0106 | C160: CRANK COFFEE | D160: Crank Coffee | E160: Decaf Dark Roast™ | F160: 56932910061 | G160: 340G | H160: CA | I160: 6 | J160: Y | K160: Y | P160: Y | Q160: Y | S160: 95 | T160: Dry | U160: 79.71 | X160: 0 | Y160: 5
A161: CRK0105 | C161: CRANK COFFEE | D161: Crank Coffee | E161: Fifth Gear™ | F161: 56932910054 | G161: 340G | H161: CA | I161: 6 | J161: Y | P161: Y | Q161: Y | S161: 95 | T161: Dry | U161: 79.71 | X161: 15.99 | Y161: 3
A162: CRK0103 | C162: CRANK COFFEE | D162: Crank Coffee | E162: Get Cranked™ | F162: 56932910030 | G162: 340G | H162: CA | I162: 6 | J162: Y | P162: Y | Q162: Y | S162: 95 | T162: Dry | U162: 79.71 | X162: 15.99 | Y162: 5
A163: CRK0107 | C163: CRANK COFFEE | D163: Crank Coffee | E163: Gran Fondo Light Roast | F163: 56932910078 | G163: 340G | H163: CA | I163: 6 | J163: Y | K163: Y | P163: Y | Q163: Y | S163: 95 | T163: Dry | U163: 79.71 | X163: 16.79
A164: CRK0104 | C164: CRANK COFFEE | D164: Crank Coffee | E164: Morning Glory™ | F164: 56932910047 | G164: 340G | H164: CA | I164: 6 | J164: Y | P164: Y | Q164: Y | S164: 95 | T164: Dry | U164: 79.71 | X164: 15.99 | Y164: 1
A165: CRK9901 | C165: CRANK COFFEE | D165: Displayer | E165: Crank 80 Count Unfilled Display | G165: 1 EA | H165: EA | I165: 1 | P165: Y | Q165: Y | S165: 0 | T165: Dry | U165: 0.001 | X165: 0 | Y165: 5
A166: DR9424 | C166: DR. NATURAL | D166: Baby Powder | E166: Kids Non Talc Baby Powder | F166: 855548009424 | G166: 424G | H166: EA | I166: 12 | S166: 94 | T166: Dry | U166: 2.85 | X166: 4.29
A167: DR2224 | C167: DR. NATURAL | D167: Body Lotion | E167: Almond Castile Body Lotion | F167: 855548002227 | G167: 473ML | H167: EA | I167: 6 | S167: 0 | T167: Dry | U167: 6.96 | X167: 9.99 | Y167: 2
A168: DR2217 | C168: DR. NATURAL | D168: Body Lotion | E168: Lavendar Castile Body Lotion | F168: 855548002210 | G168: 473ML | H168: EA | I168: 6 | S168: 0 | T168: Dry | U168: 6.96 | X168: 9.99 | Y168: 3
A169: DR2231 | C169: DR. NATURAL | D169: Body Lotion | E169: Shea Butter Castile Body Lotion | F169: 855548002234 | G169: 473ML | H169: EA | I169: 6 | S169: 0 | T169: Dry | U169: 6.96 | X169: 9.99 | Y169: 1
A170: DR8290 | C170: DR. NATURAL | D170: Body Wash | E170: Body Wash Fresh Clarity | F170: 850070218290 | G170: 532ML | H170: EA | I170: 12 | S170: 328 | T170: Dry | U170: 7.25 | X170: 2.99
A171: DR8283 | C171: DR. NATURAL | D171: Body Wash | E171: Body Wash Honey Glow | F171: 850070218283 | G171: 532ML | H171: EA | I171: 12 | S171: 328 | T171: Dry | U171: 7.25 | X171: 2.99
A172: DR8313 | C172: DR. NATURAL | D172: Body Wash | E172: Body Wash Hydra Calm | F172: 850070218313 | G172: 532ML | H172: EA | I172: 12 | S172: 328 | T172: Dry | U172: 7.25 | X172: 2.99
A173: DR8320 | C173: DR. NATURAL | D173: Body Wash | E173: Body Wash Radiance Fresh | F173: 850070218320 | G173: 532ML | H173: EA | I173: 12 | S173: 328 | T173: Dry | U173: 7.25 | X173: 2.99
A174: DR8306 | C174: DR. NATURAL | D174: Body Wash | E174: Body Wash Golden Renewal | F174: 850070218306 | G174: 591ML | H174: EA | I174: 12 | S174: 328 | T174: Dry | U174: 7.25 | X174: 2.99
A175: DR2941 | C175: DR. NATURAL | D175: Body Wash | E175: Hemp with Citrus Body Wash | F175: 855548002944 | G175: 946ML | H175: EA | I175: 6 | S175: 0 | T175: Dry | U175: 11.78 | X175: 19.99 | Y175: 2
A176: DR2705 | C176: DR. NATURAL | D176: Body Wash | E176: Hemp with Lavender Body Wash | F176: 855548002708 | G176: 946ML | H176: EA | I176: 6 | S176: 0 | T176: Dry | U176: 11.78 | X176: 19.99 | Y176: 3
A177: DR9216 | C177: DR. NATURAL | D177: Conditioner | E177: Kids Leavein Conditioner & Detangler | F177: 855548009219 | G177: 198ML | H177: EA | I177: 12 | S177: 0 | T177: Dry | U177: 4.89 | X177: 6.78 | Y177: 1
A178: DR7141 | C178: DR. NATURAL | D178: Epsom Salt | E178: Epsom Salt Midnight Bloom | F178: 850054767141 | G178: 425G | H178: EA | I178: 6 | S178: 328 | T178: Dry | U178: 2.18 | X178: 2.99
A179: DR9431 | C179: DR. NATURAL | D179: Epsom Salt | E179: Epsom Salt Green Tea & Chamomile | F179: 855548009431 | G179: 450G | H179: EA | I179: 6 | S179: 328 | T179: Dry | U179: 2.18 | X179: 2.99
A180: DR9455 | C180: DR. NATURAL | D180: Epsom Salt | E180: Epsom Salt Menthol and Eucalyptus | F180: 855548009455 | G180: 450G | H180: EA | I180: 6 | S180: 328 | T180: Dry | U180: 2.18 | X180: 2.99
A181: DR9448 | C181: DR. NATURAL | D181: Epsom Salt | E181: Epsom Salt Ocean Breeze | F181: 855548009448 | G181: 450G | H181: EA | I181: 6 | S181: 328 | T181: Dry | U181: 2.18 | X181: 2.99
A182: DR9226 | C182: DR. NATURAL | D182: Health & Beauty | E182: 3-in-1 Tear-Free Baby + Kids Soap Citrus | F182: 855548009226 | G182: 473ML | H182: EA | I182: 12 | S182: 0 | T182: Dry | U182: 6.18 | X182: 9.48 | Y182: 3
A183: DR9240 | C183: DR. NATURAL | D183: Health & Beauty | E183: 3-in-1 Tear-Free Baby + Kids Soap Lavender | F183: 855548009240 | G183: 473ML | H183: EA | I183: 12 | S183: 0 | T183: Dry | U183: 6.18 | X183: 9.48 | Y183: 1
A184: DR9233 | C184: DR. NATURAL | D184: Health & Beauty | E184: 3-in-1 Tear-Free Baby + Kids Soap Rosewater | F184: 855548009233 | G184: 473ML | H184: EA | I184: 12 | S184: 0 | T184: Dry | U184: 6.18 | X184: 9.48 | Y184: 2
A185: DR2395 | C185: DR. NATURAL | D185: Liquid Soap | E185: Castile Liquid Soap Almond | F185: 855548002395 | G185: 946ML | H185: EA | I185: 6 | L185: Y | S185: 130 | T185: Dry | U185: 11.64 | X185: 17.99
A186: DR9261 | C186: DR. NATURAL | D186: Lotion | E186: Almond + Mandarin Castile Baby Lotion | F186: 855548009264 | G186: 473mL | H186: EA | I186: 6 | S186: 0 | T186: Dry | U186: 6.96 | X186: 9.99 | Y186: 2
A187: DR9254 | C187: DR. NATURAL | D187: Lotion | E187: Shea Butter + Vanilla Castile Baby Lotion | F187: 855548009257 | G187: 473mL | H187: EA | I187: 6 | S187: 0 | T187: Dry | U187: 6.96 | X187: 9.99 | Y187: 1
A188: DR9018 | C188: DR. NATURAL | D188: Soap | E188: Activated Charcoal Castile Bar Soap | F188: 855548009011 | G188: 2x113G | H188: EA | I188: 18 | S188: 0 | T188: Dry | U188: 5.17 | V188: APRIL DEAL! | W188: SAVE 10% | X188: 7.99 | Y188: 3
A189: DR2576 | C189: DR. NATURAL | D189: Soap | E189: Almond Castile Bar Soap | F189: 855548002579 | G189: 2x113G | H189: EA | I189: 18 | S189: 0 | T189: Dry | U189: 5.17 | V189: APRIL DEAL! | W189: SAVE 10% | X189: 7.99 | Y189: 1
A190: DR2644 | C190: DR. NATURAL | D190: Soap | E190: Black Bar Soap | F190: 855548002647 | G190: 2x113G | H190: EA | I190: 18 | S190: 0 | T190: Dry | U190: 5.17 | V190: APRIL DEAL! | W190: SAVE 10% | X190: 7.99 | Y190: 4
A191: DR2583 | C191: DR. NATURAL | D191: Soap | E191: Lavender Castile Bar Soap | F191: 855548002586 | G191: 2x113G | H191: EA | I191: 18 | S191: 0 | T191: Dry | U191: 5.17 | V191: APRIL DEAL! | W191: SAVE 10% | X191: 7.99 | Y191: 2
A192: DR2590 | C192: DR. NATURAL | D192: Soap | E192: Peppermint Castile Bar Soap | F192: 855548002593 | G192: 2x113G | H192: EA | I192: 18 | S192: 0 | T192: Dry | U192: 5.17 | V192: APRIL DEAL! | W192: SAVE 10% | X192: 7.99 | Y192: 5
A193: DR9155 | C193: DR. NATURAL | D193: Soap | E193: Multi-Purpose Baby+Kids Soap Almond | F193: 855548009158 | G193: 473ML | H193: EA | I193: 12 | S193: 0 | T193: Dry | U193: 6.45 | X193: 9.48 | Y193: 2
A194: DR9186 | C194: DR. NATURAL | D194: Soap | E194: Multi-Purpose Baby+Kids Soap Lavender | F194: 855548009189 | G194: 473ML | H194: EA | I194: 12 | S194: 0 | T194: Dry | U194: 6.45 | X194: 9.48 | Y194: 1
A195: DR9193 | C195: DR. NATURAL | D195: Soap | E195: Multi-Purpose Baby+Kids Soap Unscented | F195: 855548009196 | G195: 473ML | H195: EA | I195: 12 | S195: 0 | T195: Dry | U195: 6.45 | X195: 9.48 | Y195: 15
A196: DR2385 | C196: DR. NATURAL | D196: Soap | E196: Black Liquid Soap | F196: 855548002388 | G196: 946ML | H196: EA | I196: 6 | S196: 0 | T196: Dry | U196: 11.33 | X196: 17.99 | Y196: 3
A197: DR2361 | C197: DR. NATURAL | D197: Soap | E197: Lavendar Castile Soap | F197: 855548002364 | G197: 946ML | H197: EA | I197: 6 | S197: 0 | T197: Dry | U197: 11.33 | X197: 17.99 | Y197: 20
A198: DR2378 | C198: DR. NATURAL | D198: Soap | E198: Peppermint Castile Soap | F198: 855548002371 | G198: 946ml | H198: EA | I198: 6 | S198: 0 | T198: Dry | U198: 11.33 | X198: 17.99
A199: DUI0253 | C199: DUINKERKEN | D199: Baking Mixes | E199: Guar Gum | F199: 628305000251 | G199: 124G | H199: CA | I199: 10 | M199: Y | P199: Y | Q199: Y | R199: Y | S199: 205 | T199: Dry | U199: 70.54 | X199: 9.49
A200: DUI0190 | C200: DUINKERKEN | D200: Baking Mixes | E200: Xanthan Gum | F200: 628305000190 | G200: 124G | H200: CA | I200: 10 | P200: Y | Q200: Y | R200: Y | S200: 212 | U200: 74.07 | X200: 8.99
... 836 more rows

Sheet OG
C1: West Order Guide
C3: ALL ORDERS MUST BE RECEIVED BY 2PM orders@jonluca.ca | credits@jonluca.ca | ar@jonluca.ca Orders and Sample Pickups are: Monday - Friday 10:00 am - 4:00 pm EST | D3: PRICES AND PRODUCTS ARE SUBJECT TO CHANGE WITHOUT NOTICE
C4: Please verify your order upon receipt and if required, request a credit within 24hrs of delivery | D4: All prices below are plus applicable taxes
C5: Organic: O | Kosher: K | Vegan: V | Gluten Free: GF | Non-GMO: N | Halal: H | Canadian Made: CM | Canadian Owned: CO | Canadian Produced: CP
A6: When placing orders please be mindful of how skus are picked, Column F is the PICKED column: CA indicates CASE and EA indicates EACH If an item is picked by CASE and you want 1 case please enter 1 in the Order Column
A7: Item Code | B7: Order QTY | C7: Description | D7: Unit UPC | E7: Size | F7: Picked | G7: Pack | H7: O | I7: K | J7: V | K7: GF | L7: N | M7: H | N7: CM | O7: CO | P7: CP | Q7: Guaranteed Days | R7: Storage | S7: Price | T7: Monthly Promo | U7: Promo Discount | V7: SRP | W7: Sku Ranking
A8: 49TH PARALLEL | C8: =_xlfn.XLOOKUP(A8,DATA[Item No.],DATA[Description],"") ->  | D8: =_xlfn.XLOOKUP(A8,DATA[Item No.],DATA[Unit UPC],"") ->  | E8: =_xlfn.XLOOKUP(A8,DATA[Item No.],DATA[Size],"") ->  | F8: =_xlfn.XLOOKUP(A8,DATA[Item No.],DATA[Picked],"") ->  | G8: =_xlfn.XLOOKUP(A8,DATA[Item No.],DATA[Pack],"") ->  | H8: =_xlfn.XLOOKUP(A8,DATA[Item No.],DATA[O],"") ->  | I8: =_xlfn.XLOOKUP(A8,DATA[Item No.],DATA[K],"") ->  | J8: =_xlfn.XLOOKUP(A8,DATA[Item No.],DATA[V],"") ->  | K8: =_xlfn.XLOOKUP(A8,DATA[Item No.],DATA[GF],"") ->  | L8: =_xlfn.XLOOKUP(A8,DATA[Item No.],DATA[N],"") ->  | M8: =_xlfn.XLOOKUP(A8,DATA[Item No.],DATA[H],"") ->  | N8: =_xlfn.XLOOKUP(A8,DATA[Item No.],DATA[CM],"") ->  | O8: =_xlfn.XLOOKUP(A8,DATA[Item No.],DATA[CO],"") ->  | P8: =_xlfn.XLOOKUP(A8,DATA[Item No.],DATA[CP],"") ->  | Q8: =_xlfn.XLOOKUP(A8,DATA[Item No.],DATA[Guaranteed Days],"") ->  | R8: =_xlfn.XLOOKUP(A8,DATA[Item No.],DATA[Storage],"") ->  | S8: =_xlfn.XLOOKUP(A8,DATA[Item No.],DATA[Price],"") ->  | T8: =_xlfn.XLOOKUP(A8,DATA[Item No.],DATA[Monthly Promo],"") ->  | U8: =_xlfn.XLOOKUP(A8,DATA[Item No.],DATA[Promo Discount],"") ->  | V8: =_xlfn.XLOOKUP(A8,DATA[Item No.],DATA[SRP],"") ->  | W8: =_xlfn.XLOOKUP(A8,DATA[Item No.],DATA[SKU Territory Ranking - West],"") -> 
A9: Nespresso Pods | C9: =_xlfn.XLOOKUP(A9,DATA[Item No.],DATA[Description],"") ->  | D9: =_xlfn.XLOOKUP(A9,DATA[Item No.],DATA[Unit UPC],"") ->  | E9: =_xlfn.XLOOKUP(A9,DATA[Item No.],DATA[Size],"") ->  | F9: =_xlfn.XLOOKUP(A9,DATA[Item No.],DATA[Picked],"") ->  | G9: =_xlfn.XLOOKUP(A9,DATA[Item No.],DATA[Pack],"") ->  | H9: =_xlfn.XLOOKUP(A9,DATA[Item No.],DATA[O],"") ->  | I9: =_xlfn.XLOOKUP(A9,DATA[Item No.],DATA[K],"") ->  | J9: =_xlfn.XLOOKUP(A9,DATA[Item No.],DATA[V],"") ->  | K9: =_xlfn.XLOOKUP(A9,DATA[Item No.],DATA[GF],"") ->  | L9: =_xlfn.XLOOKUP(A9,DATA[Item No.],DATA[N],"") ->  | M9: =_xlfn.XLOOKUP(A9,DATA[Item No.],DATA[H],"") ->  | N9: =_xlfn.XLOOKUP(A9,DATA[Item No.],DATA[CM],"") ->  | O9: =_xlfn.XLOOKUP(A9,DATA[Item No.],DATA[CO],"") ->  | P9: =_xlfn.XLOOKUP(A9,DATA[Item No.],DATA[CP],"") ->  | Q9: =_xlfn.XLOOKUP(A9,DATA[Item No.],DATA[Guaranteed Days],"") ->  | R9: =_xlfn.XLOOKUP(A9,DATA[Item No.],DATA[Storage],"") ->  | S9: =_xlfn.XLOOKUP(A9,DATA[Item No.],DATA[Price],"") ->  | T9: =_xlfn.XLOOKUP(A9,DATA[Item No.],DATA[Monthly Promo],"") ->  | U9: =_xlfn.XLOOKUP(A9,DATA[Item No.],DATA[Promo Discount],"") ->  | V9: =_xlfn.XLOOKUP(A9,DATA[Item No.],DATA[SRP],"") ->  | W9: =_xlfn.XLOOKUP(A9,DATA[Item No.],DATA[SKU Territory Ranking - West],"") -> 
A10: FN2622 | C10: =_xlfn.XLOOKUP(A10,DATA[Item No.],DATA[Description],"") -> Med Dark Espresso | D10: =_xlfn.XLOOKUP(A10,DATA[Item No.],DATA[Unit UPC],"") -> 883242002625 | E10: =_xlfn.XLOOKUP(A10,DATA[Item No.],DATA[Size],"") -> 10 X 53G | F10: =_xlfn.XLOOKUP(A10,DATA[Item No.],DATA[Picked],"") -> CA | G10: =_xlfn.XLOOKUP(A10,DATA[Item No.],DATA[Pack],"") -> 6 | H10: =_xlfn.XLOOKUP(A10,DATA[Item No.],DATA[O],"") -> 0 | I10: =_xlfn.XLOOKUP(A10,DATA[Item No.],DATA[K],"") -> 0 | J10: =_xlfn.XLOOKUP(A10,DATA[Item No.],DATA[V],"") -> 0 | K10: =_xlfn.XLOOKUP(A10,DATA[Item No.],DATA[GF],"") -> 0 | L10: =_xlfn.XLOOKUP(A10,DATA[Item No.],DATA[N],"") -> 0 | M10: =_xlfn.XLOOKUP(A10,DATA[Item No.],DATA[H],"") -> 0 | N10: =_xlfn.XLOOKUP(A10,DATA[Item No.],DATA[CM],"") -> Y | O10: =_xlfn.XLOOKUP(A10,DATA[Item No.],DATA[CO],"") -> Y | P10: =_xlfn.XLOOKUP(A10,DATA[Item No.],DATA[CP],"") -> 0 | Q10: =_xlfn.XLOOKUP(A10,DATA[Item No.],DATA[Guaranteed Days],"") -> 0 | R10: =_xlfn.XLOOKUP(A10,DATA[Item No.],DATA[Storage],"") -> Dry | S10: =_xlfn.XLOOKUP(A10,DATA[Item No.],DATA[Price],"") -> 66.8 | T10: =_xlfn.XLOOKUP(A10,DATA[Item No.],DATA[Monthly Promo],"") -> APRIL DEAL! | U10: =_xlfn.XLOOKUP(A10,DATA[Item No.],DATA[Promo Discount],"") -> SAVE 10% | V10: =_xlfn.XLOOKUP(A10,DATA[Item No.],DATA[SRP],"") -> 14.99 | W10: =_xlfn.XLOOKUP(A10,DATA[Item No.],DATA[SKU Territory Ranking - West],"") -> 1
A11: FN2639 | C11: =_xlfn.XLOOKUP(A11,DATA[Item No.],DATA[Description],"") -> Déjà Vu Ground | D11: =_xlfn.XLOOKUP(A11,DATA[Item No.],DATA[Unit UPC],"") -> 883242002632 | E11: =_xlfn.XLOOKUP(A11,DATA[Item No.],DATA[Size],"") -> 10 X 53G | F11: =_xlfn.XLOOKUP(A11,DATA[Item No.],DATA[Picked],"") -> CA | G11: =_xlfn.XLOOKUP(A11,DATA[Item No.],DATA[Pack],"") -> 6 | H11: =_xlfn.XLOOKUP(A11,DATA[Item No.],DATA[O],"") -> 0 | I11: =_xlfn.XLOOKUP(A11,DATA[Item No.],DATA[K],"") -> 0 | J11: =_xlfn.XLOOKUP(A11,DATA[Item No.],DATA[V],"") -> 0 | K11: =_xlfn.XLOOKUP(A11,DATA[Item No.],DATA[GF],"") -> 0 | L11: =_xlfn.XLOOKUP(A11,DATA[Item No.],DATA[N],"") -> 0 | M11: =_xlfn.XLOOKUP(A11,DATA[Item No.],DATA[H],"") -> 0 | N11: =_xlfn.XLOOKUP(A11,DATA[Item No.],DATA[CM],"") -> Y | O11: =_xlfn.XLOOKUP(A11,DATA[Item No.],DATA[CO],"") -> Y | P11: =_xlfn.XLOOKUP(A11,DATA[Item No.],DATA[CP],"") -> 0 | Q11: =_xlfn.XLOOKUP(A11,DATA[Item No.],DATA[Guaranteed Days],"") -> 0 | R11: =_xlfn.XLOOKUP(A11,DATA[Item No.],DATA[Storage],"") -> Dry | S11: =_xlfn.XLOOKUP(A11,DATA[Item No.],DATA[Price],"") -> 66.8 | T11: =_xlfn.XLOOKUP(A11,DATA[Item No.],DATA[Monthly Promo],"") -> APRIL DEAL! | U11: =_xlfn.XLOOKUP(A11,DATA[Item No.],DATA[Promo Discount],"") -> SAVE 10% | V11: =_xlfn.XLOOKUP(A11,DATA[Item No.],DATA[SRP],"") -> 14.99 | W11: =_xlfn.XLOOKUP(A11,DATA[Item No.],DATA[SKU Territory Ranking - West],"") -> 2
A12: Shipper | C12: =_xlfn.XLOOKUP(A12,DATA[Item No.],DATA[Description],"") ->  | D12: =_xlfn.XLOOKUP(A12,DATA[Item No.],DATA[Unit UPC],"") ->  | E12: =_xlfn.XLOOKUP(A12,DATA[Item No.],DATA[Size],"") ->  | F12: =_xlfn.XLOOKUP(A12,DATA[Item No.],DATA[Picked],"") ->  | G12: =_xlfn.XLOOKUP(A12,DATA[Item No.],DATA[Pack],"") ->  | H12: =_xlfn.XLOOKUP(A12,DATA[Item No.],DATA[O],"") ->  | I12: =_xlfn.XLOOKUP(A12,DATA[Item No.],DATA[K],"") ->  | J12: =_xlfn.XLOOKUP(A12,DATA[Item No.],DATA[V],"") ->  | K12: =_xlfn.XLOOKUP(A12,DATA[Item No.],DATA[GF],"") ->  | L12: =_xlfn.XLOOKUP(A12,DATA[Item No.],DATA[N],"") ->  | M12: =_xlfn.XLOOKUP(A12,DATA[Item No.],DATA[H],"") ->  | N12: =_xlfn.XLOOKUP(A12,DATA[Item No.],DATA[CM],"") ->  | O12: =_xlfn.XLOOKUP(A12,DATA[Item No.],DATA[CO],"") ->  | P12: =_xlfn.XLOOKUP(A12,DATA[Item No.],DATA[CP],"") ->  | Q12: =_xlfn.XLOOKUP(A12,DATA[Item No.],DATA[Guaranteed Days],"") ->  | R12: =_xlfn.XLOOKUP(A12,DATA[Item No.],DATA[Storage],"") ->  | S12: =_xlfn.XLOOKUP(A12,DATA[Item No.],DATA[Price],"") ->  | T12: =_xlfn.XLOOKUP(A12,DATA[Item No.],DATA[Monthly Promo],"") ->  | U12: =_xlfn.XLOOKUP(A12,DATA[Item No.],DATA[Promo Discount],"") ->  | V12: =_xlfn.XLOOKUP(A12,DATA[Item No.],DATA[SRP],"") ->  | W12: =_xlfn.XLOOKUP(A12,DATA[Item No.],DATA[SKU Territory Ranking - West],"") -> 
A13: FN3370 | C13: =_xlfn.XLOOKUP(A13,DATA[Item No.],DATA[Description],"") -> Coffee Shipper (8 Old Sch, 8 Org Esp, 8 Fr Rst, 8 Nost) | D13: =_xlfn.XLOOKUP(A13,DATA[Item No.],DATA[Unit UPC],"") -> 883242003370 | E13: =_xlfn.XLOOKUP(A13,DATA[Item No.],DATA[Size],"") -> 340G | F13: =_xlfn.XLOOKUP(A13,DATA[Item No.],DATA[Picked],"") -> CA | G13: =_xlfn.XLOOKUP(A13,DATA[Item No.],DATA[Pack],"") -> 32 | H13: =_xlfn.XLOOKUP(A13,DATA[Item No.],DATA[O],"") -> 0 | I13: =_xlfn.XLOOKUP(A13,DATA[Item No.],DATA[K],"") -> 0 | J13: =_xlfn.XLOOKUP(A13,DATA[Item No.],DATA[V],"") -> 0 | K13: =_xlfn.XLOOKUP(A13,DATA[Item No.],DATA[GF],"") -> 0 | L13: =_xlfn.XLOOKUP(A13,DATA[Item No.],DATA[N],"") -> 0 | M13: =_xlfn.XLOOKUP(A13,DATA[Item No.],DATA[H],"") -> 0 | N13: =_xlfn.XLOOKUP(A13,DATA[Item No.],DATA[CM],"") -> Y | O13: =_xlfn.XLOOKUP(A13,DATA[Item No.],DATA[CO],"") -> Y | P13: =_xlfn.XLOOKUP(A13,DATA[Item No.],DATA[CP],"") -> 0 | Q13: =_xlfn.XLOOKUP(A13,DATA[Item No.],DATA[Guaranteed Days],"") -> 40 | R13: =_xlfn.XLOOKUP(A13,DATA[Item No.],DATA[Storage],"") -> Dry | S13: =_xlfn.XLOOKUP(A13,DATA[Item No.],DATA[Price],"") -> 477.54 | T13: =_xlfn.XLOOKUP(A13,DATA[Item No.],DATA[Monthly Promo],"") -> 0 | U13: =_xlfn.XLOOKUP(A13,DATA[Item No.],DATA[Promo Discount],"") -> 0 | V13: =_xlfn.XLOOKUP(A13,DATA[Item No.],DATA[SRP],"") -> 0 | W13: =_xlfn.XLOOKUP(A13,DATA[Item No.],DATA[SKU Territory Ranking - West],"") -> 0
A14: Whole Bean Coffee | C14: =_xlfn.XLOOKUP(A14,DATA[Item No.],DATA[Description],"") ->  | D14: =_xlfn.XLOOKUP(A14,DATA[Item No.],DATA[Unit UPC],"") ->  | E14: =_xlfn.XLOOKUP(A14,DATA[Item No.],DATA[Size],"") ->  | F14: =_xlfn.XLOOKUP(A14,DATA[Item No.],DATA[Picked],"") ->  | G14: =_xlfn.XLOOKUP(A14,DATA[Item No.],DATA[Pack],"") ->  | H14: =_xlfn.XLOOKUP(A14,DATA[Item No.],DATA[O],"") ->  | I14: =_xlfn.XLOOKUP(A14,DATA[Item No.],DATA[K],"") ->  | J14: =_xlfn.XLOOKUP(A14,DATA[Item No.],DATA[V],"") ->  | K14: =_xlfn.XLOOKUP(A14,DATA[Item No.],DATA[GF],"") ->  | L14: =_xlfn.XLOOKUP(A14,DATA[Item No.],DATA[N],"") ->  | M14: =_xlfn.XLOOKUP(A14,DATA[Item No.],DATA[H],"") ->  | N14: =_xlfn.XLOOKUP(A14,DATA[Item No.],DATA[CM],"") ->  | O14: =_xlfn.XLOOKUP(A14,DATA[Item No.],DATA[CO],"") ->  | P14: =_xlfn.XLOOKUP(A14,DATA[Item No.],DATA[CP],"") ->  | Q14: =_xlfn.XLOOKUP(A14,DATA[Item No.],DATA[Guaranteed Days],"") ->  | R14: =_xlfn.XLOOKUP(A14,DATA[Item No.],DATA[Storage],"") ->  | S14: =_xlfn.XLOOKUP(A14,DATA[Item No.],DATA[Price],"") ->  | T14: =_xlfn.XLOOKUP(A14,DATA[Item No.],DATA[Monthly Promo],"") ->  | U14: =_xlfn.XLOOKUP(A14,DATA[Item No.],DATA[Promo Discount],"") ->  | V14: =_xlfn.XLOOKUP(A14,DATA[Item No.],DATA[SRP],"") ->  | W14: =_xlfn.XLOOKUP(A14,DATA[Item No.],DATA[SKU Territory Ranking - West],"") -> 
A15: FN0048 | C15: =_xlfn.XLOOKUP(A15,DATA[Item No.],DATA[Description],"") -> Swiss Water Process Decaf | D15: =_xlfn.XLOOKUP(A15,DATA[Item No.],DATA[Unit UPC],"") -> 883242000041 | E15: =_xlfn.XLOOKUP(A15,DATA[Item No.],DATA[Size],"") -> 340G | F15: =_xlfn.XLOOKUP(A15,DATA[Item No.],DATA[Picked],"") -> CA | G15: =_xlfn.XLOOKUP(A15,DATA[Item No.],DATA[Pack],"") -> 6 | H15: =_xlfn.XLOOKUP(A15,DATA[Item No.],DATA[O],"") -> Y | I15: =_xlfn.XLOOKUP(A15,DATA[Item No.],DATA[K],"") -> 0 | J15: =_xlfn.XLOOKUP(A15,DATA[Item No.],DATA[V],"") -> 0 | K15: =_xlfn.XLOOKUP(A15,DATA[Item No.],DATA[GF],"") -> 0 | L15: =_xlfn.XLOOKUP(A15,DATA[Item No.],DATA[N],"") -> 0 | M15: =_xlfn.XLOOKUP(A15,DATA[Item No.],DATA[H],"") -> 0 | N15: =_xlfn.XLOOKUP(A15,DATA[Item No.],DATA[CM],"") -> Y | O15: =_xlfn.XLOOKUP(A15,DATA[Item No.],DATA[CO],"") -> Y | P15: =_xlfn.XLOOKUP(A15,DATA[Item No.],DATA[CP],"") -> 0 | Q15: =_xlfn.XLOOKUP(A15,DATA[Item No.],DATA[Guaranteed Days],"") -> 56 | R15: =_xlfn.XLOOKUP(A15,DATA[Item No.],DATA[Storage],"") -> Dry | S15: =_xlfn.XLOOKUP(A15,DATA[Item No.],DATA[Price],"") -> 89.54 | T15: =_xlfn.XLOOKUP(A15,DATA[Item No.],DATA[Monthly Promo],"") -> APRIL DEAL! | U15: =_xlfn.XLOOKUP(A15,DATA[Item No.],DATA[Promo Discount],"") -> SAVE 10% | V15: =_xlfn.XLOOKUP(A15,DATA[Item No.],DATA[SRP],"") -> 18.99 | W15: =_xlfn.XLOOKUP(A15,DATA[Item No.],DATA[SKU Territory Ranking - West],"") -> 8
A16: FN0055 | C16: =_xlfn.XLOOKUP(A16,DATA[Item No.],DATA[Description],"") -> Longitude 123 Filter | D16: =_xlfn.XLOOKUP(A16,DATA[Item No.],DATA[Unit UPC],"") -> 883242000058 | E16: =_xlfn.XLOOKUP(A16,DATA[Item No.],DATA[Size],"") -> 340G | F16: =_xlfn.XLOOKUP(A16,DATA[Item No.],DATA[Picked],"") -> CA | G16: =_xlfn.XLOOKUP(A16,DATA[Item No.],DATA[Pack],"") -> 6 | H16: =_xlfn.XLOOKUP(A16,DATA[Item No.],DATA[O],"") -> 0 | I16: =_xlfn.XLOOKUP(A16,DATA[Item No.],DATA[K],"") -> 0 | J16: =_xlfn.XLOOKUP(A16,DATA[Item No.],DATA[V],"") -> 0 | K16: =_xlfn.XLOOKUP(A16,DATA[Item No.],DATA[GF],"") -> 0 | L16: =_xlfn.XLOOKUP(A16,DATA[Item No.],DATA[N],"") -> 0 | M16: =_xlfn.XLOOKUP(A16,DATA[Item No.],DATA[H],"") -> 0 | N16: =_xlfn.XLOOKUP(A16,DATA[Item No.],DATA[CM],"") -> Y | O16: =_xlfn.XLOOKUP(A16,DATA[Item No.],DATA[CO],"") -> Y | P16: =_xlfn.XLOOKUP(A16,DATA[Item No.],DATA[CP],"") -> 0 | Q16: =_xlfn.XLOOKUP(A16,DATA[Item No.],DATA[Guaranteed Days],"") -> 56 | R16: =_xlfn.XLOOKUP(A16,DATA[Item No.],DATA[Storage],"") -> Dry | S16: =_xlfn.XLOOKUP(A16,DATA[Item No.],DATA[Price],"") -> 89.54 | T16: =_xlfn.XLOOKUP(A16,DATA[Item No.],DATA[Monthly Promo],"") -> APRIL DEAL! | U16: =_xlfn.XLOOKUP(A16,DATA[Item No.],DATA[Promo Discount],"") -> SAVE 10% | V16: =_xlfn.XLOOKUP(A16,DATA[Item No.],DATA[SRP],"") -> 18.99 | W16: =_xlfn.XLOOKUP(A16,DATA[Item No.],DATA[SKU Territory Ranking - West],"") -> 7
A17: FN0062 | C17: =_xlfn.XLOOKUP(A17,DATA[Item No.],DATA[Description],"") -> Organic French Roast | D17: =_xlfn.XLOOKUP(A17,DATA[Item No.],DATA[Unit UPC],"") -> 883242000065 | E17: =_xlfn.XLOOKUP(A17,DATA[Item No.],DATA[Size],"") -> 340G | F17: =_xlfn.XLOOKUP(A17,DATA[Item No.],DATA[Picked],"") -> CA | G17: =_xlfn.XLOOKUP(A17,DATA[Item No.],DATA[Pack],"") -> 6 | H17: =_xlfn.XLOOKUP(A17,DATA[Item No.],DATA[O],"") -> Y | I17: =_xlfn.XLOOKUP(A17,DATA[Item No.],DATA[K],"") -> 0 | J17: =_xlfn.XLOOKUP(A17,DATA[Item No.],DATA[V],"") -> 0 | K17: =_xlfn.XLOOKUP(A17,DATA[Item No.],DATA[GF],"") -> 0 | L17: =_xlfn.XLOOKUP(A17,DATA[Item No.],DATA[N],"") -> 0 | M17: =_xlfn.XLOOKUP(A17,DATA[Item No.],DATA[H],"") -> 0 | N17: =_xlfn.XLOOKUP(A17,DATA[Item No.],DATA[CM],"") -> Y | O17: =_xlfn.XLOOKUP(A17,DATA[Item No.],DATA[CO],"") -> Y | P17: =_xlfn.XLOOKUP(A17,DATA[Item No.],DATA[CP],"") -> 0 | Q17: =_xlfn.XLOOKUP(A17,DATA[Item No.],DATA[Guaranteed Days],"") -> 56 | R17: =_xlfn.XLOOKUP(A17,DATA[Item No.],DATA[Storage],"") -> Dry | S17: =_xlfn.XLOOKUP(A17,DATA[Item No.],DATA[Price],"") -> 89.54 | T17: =_xlfn.XLOOKUP(A17,DATA[Item No.],DATA[Monthly Promo],"") -> APRIL DEAL! | U17: =_xlfn.XLOOKUP(A17,DATA[Item No.],DATA[Promo Discount],"") -> SAVE 10% | V17: =_xlfn.XLOOKUP(A17,DATA[Item No.],DATA[SRP],"") -> 18.99 | W17: =_xlfn.XLOOKUP(A17,DATA[Item No.],DATA[SKU Territory Ranking - West],"") -> 3
A18: FN2004 | C18: =_xlfn.XLOOKUP(A18,DATA[Item No.],DATA[Description],"") -> Epic Espresso | D18: =_xlfn.XLOOKUP(A18,DATA[Item No.],DATA[Unit UPC],"") -> 883242002007 | E18: =_xlfn.XLOOKUP(A18,DATA[Item No.],DATA[Size],"") -> 340G | F18: =_xlfn.XLOOKUP(A18,DATA[Item No.],DATA[Picked],"") -> CA | G18: =_xlfn.XLOOKUP(A18,DATA[Item No.],DATA[Pack],"") -> 6 | H18: =_xlfn.XLOOKUP(A18,DATA[Item No.],DATA[O],"") -> 0 | I18: =_xlfn.XLOOKUP(A18,DATA[Item No.],DATA[K],"") -> 0 | J18: =_xlfn.XLOOKUP(A18,DATA[Item No.],DATA[V],"") -> 0 | K18: =_xlfn.XLOOKUP(A18,DATA[Item No.],DATA[GF],"") -> 0 | L18: =_xlfn.XLOOKUP(A18,DATA[Item No.],DATA[N],"") -> 0 | M18: =_xlfn.XLOOKUP(A18,DATA[Item No.],DATA[H],"") -> 0 | N18: =_xlfn.XLOOKUP(A18,DATA[Item No.],DATA[CM],"") -> Y | O18: =_xlfn.XLOOKUP(A18,DATA[Item No.],DATA[CO],"") -> Y | P18: =_xlfn.XLOOKUP(A18,DATA[Item No.],DATA[CP],"") -> 0 | Q18: =_xlfn.XLOOKUP(A18,DATA[Item No.],DATA[Guaranteed Days],"") -> 56 | R18: =_xlfn.XLOOKUP(A18,DATA[Item No.],DATA[Storage],"") -> Dry | S18: =_xlfn.XLOOKUP(A18,DATA[Item No.],DATA[Price],"") -> 89.54 | T18: =_xlfn.XLOOKUP(A18,DATA[Item No.],DATA[Monthly Promo],"") -> APRIL DEAL! | U18: =_xlfn.XLOOKUP(A18,DATA[Item No.],DATA[Promo Discount],"") -> SAVE 10% | V18: =_xlfn.XLOOKUP(A18,DATA[Item No.],DATA[SRP],"") -> 18.99 | W18: =_xlfn.XLOOKUP(A18,DATA[Item No.],DATA[SKU Territory Ranking - West],"") -> 2
A19: FN2011 | C19: =_xlfn.XLOOKUP(A19,DATA[Item No.],DATA[Description],"") -> Old School Espresso | D19: =_xlfn.XLOOKUP(A19,DATA[Item No.],DATA[Unit UPC],"") -> 883242002014 | E19: =_xlfn.XLOOKUP(A19,DATA[Item No.],DATA[Size],"") -> 340G | F19: =_xlfn.XLOOKUP(A19,DATA[Item No.],DATA[Picked],"") -> CA | G19: =_xlfn.XLOOKUP(A19,DATA[Item No.],DATA[Pack],"") -> 6 | H19: =_xlfn.XLOOKUP(A19,DATA[Item No.],DATA[O],"") -> 0 | I19: =_xlfn.XLOOKUP(A19,DATA[Item No.],DATA[K],"") -> 0 | J19: =_xlfn.XLOOKUP(A19,DATA[Item No.],DATA[V],"") -> 0 | K19: =_xlfn.XLOOKUP(A19,DATA[Item No.],DATA[GF],"") -> 0 | L19: =_xlfn.XLOOKUP(A19,DATA[Item No.],DATA[N],"") -> 0 | M19: =_xlfn.XLOOKUP(A19,DATA[Item No.],DATA[H],"") -> 0 | N19: =_xlfn.XLOOKUP(A19,DATA[Item No.],DATA[CM],"") -> Y | O19: =_xlfn.XLOOKUP(A19,DATA[Item No.],DATA[CO],"") -> Y | P19: =_xlfn.XLOOKUP(A19,DATA[Item No.],DATA[CP],"") -> 0 | Q19: =_xlfn.XLOOKUP(A19,DATA[Item No.],DATA[Guaranteed Days],"") -> 56 | R19: =_xlfn.XLOOKUP(A19,DATA[Item No.],DATA[Storage],"") -> Dry | S19: =_xlfn.XLOOKUP(A19,DATA[Item No.],DATA[Price],"") -> 89.54 | T19: =_xlfn.XLOOKUP(A19,DATA[Item No.],DATA[Monthly Promo],"") -> APRIL DEAL! | U19: =_xlfn.XLOOKUP(A19,DATA[Item No.],DATA[Promo Discount],"") -> SAVE 10% | V19: =_xlfn.XLOOKUP(A19,DATA[Item No.],DATA[SRP],"") -> 18.99 | W19: =_xlfn.XLOOKUP(A19,DATA[Item No.],DATA[SKU Territory Ranking - West],"") -> 1
A20: FN2028 | C20: =_xlfn.XLOOKUP(A20,DATA[Item No.],DATA[Description],"") -> Blue Sky Espresso | D20: =_xlfn.XLOOKUP(A20,DATA[Item No.],DATA[Unit UPC],"") -> 883242002021 | E20: =_xlfn.XLOOKUP(A20,DATA[Item No.],DATA[Size],"") -> 340G | F20: =_xlfn.XLOOKUP(A20,DATA[Item No.],DATA[Picked],"") -> CA | G20: =_xlfn.XLOOKUP(A20,DATA[Item No.],DATA[Pack],"") -> 6 | H20: =_xlfn.XLOOKUP(A20,DATA[Item No.],DATA[O],"") -> 0 | I20: =_xlfn.XLOOKUP(A20,DATA[Item No.],DATA[K],"") -> 0 | J20: =_xlfn.XLOOKUP(A20,DATA[Item No.],DATA[V],"") -> 0 | K20: =_xlfn.XLOOKUP(A20,DATA[Item No.],DATA[GF],"") -> 0 | L20: =_xlfn.XLOOKUP(A20,DATA[Item No.],DATA[N],"") -> 0 | M20: =_xlfn.XLOOKUP(A20,DATA[Item No.],DATA[H],"") -> 0 | N20: =_xlfn.XLOOKUP(A20,DATA[Item No.],DATA[CM],"") -> Y | O20: =_xlfn.XLOOKUP(A20,DATA[Item No.],DATA[CO],"") -> Y | P20: =_xlfn.XLOOKUP(A20,DATA[Item No.],DATA[CP],"") -> 0 | Q20: =_xlfn.XLOOKUP(A20,DATA[Item No.],DATA[Guaranteed Days],"") -> 40 | R20: =_xlfn.XLOOKUP(A20,DATA[Item No.],DATA[Storage],"") -> Dry | S20: =_xlfn.XLOOKUP(A20,DATA[Item No.],DATA[Price],"") -> 89.54 | T20: =_xlfn.XLOOKUP(A20,DATA[Item No.],DATA[Monthly Promo],"") -> APRIL DEAL! | U20: =_xlfn.XLOOKUP(A20,DATA[Item No.],DATA[Promo Discount],"") -> SAVE 10% | V20: =_xlfn.XLOOKUP(A20,DATA[Item No.],DATA[SRP],"") -> 19.99 | W20: =_xlfn.XLOOKUP(A20,DATA[Item No.],DATA[SKU Territory Ranking - West],"") -> 0
A21: FN2035 | C21: =_xlfn.XLOOKUP(A21,DATA[Item No.],DATA[Description],"") -> Organic Espresso | D21: =_xlfn.XLOOKUP(A21,DATA[Item No.],DATA[Unit UPC],"") -> 883242002038 | E21: =_xlfn.XLOOKUP(A21,DATA[Item No.],DATA[Size],"") -> 340G | F21: =_xlfn.XLOOKUP(A21,DATA[Item No.],DATA[Picked],"") -> CA | G21: =_xlfn.XLOOKUP(A21,DATA[Item No.],DATA[Pack],"") -> 6 | H21: =_xlfn.XLOOKUP(A21,DATA[Item No.],DATA[O],"") -> Y | I21: =_xlfn.XLOOKUP(A21,DATA[Item No.],DATA[K],"") -> 0 | J21: =_xlfn.XLOOKUP(A21,DATA[Item No.],DATA[V],"") -> 0 | K21: =_xlfn.XLOOKUP(A21,DATA[Item No.],DATA[GF],"") -> 0 | L21: =_xlfn.XLOOKUP(A21,DATA[Item No.],DATA[N],"") -> 0 | M21: =_xlfn.XLOOKUP(A21,DATA[Item No.],DATA[H],"") -> 0 | N21: =_xlfn.XLOOKUP(A21,DATA[Item No.],DATA[CM],"") -> Y | O21: =_xlfn.XLOOKUP(A21,DATA[Item No.],DATA[CO],"") -> Y | P21: =_xlfn.XLOOKUP(A21,DATA[Item No.],DATA[CP],"") -> 0 | Q21: =_xlfn.XLOOKUP(A21,DATA[Item No.],DATA[Guaranteed Days],"") -> 56 | R21: =_xlfn.XLOOKUP(A21,DATA[Item No.],DATA[Storage],"") -> Dry | S21: =_xlfn.XLOOKUP(A21,DATA[Item No.],DATA[Price],"") -> 89.54 | T21: =_xlfn.XLOOKUP(A21,DATA[Item No.],DATA[Monthly Promo],"") -> APRIL DEAL! | U21: =_xlfn.XLOOKUP(A21,DATA[Item No.],DATA[Promo Discount],"") -> SAVE 10% | V21: =_xlfn.XLOOKUP(A21,DATA[Item No.],DATA[SRP],"") -> 18.99 | W21: =_xlfn.XLOOKUP(A21,DATA[Item No.],DATA[SKU Territory Ranking - West],"") -> 4
A22: FN2042 | C22: =_xlfn.XLOOKUP(A22,DATA[Item No.],DATA[Description],"") -> Organic Breakfast Roast | D22: =_xlfn.XLOOKUP(A22,DATA[Item No.],DATA[Unit UPC],"") -> 883242002045 | E22: =_xlfn.XLOOKUP(A22,DATA[Item No.],DATA[Size],"") -> 340G | F22: =_xlfn.XLOOKUP(A22,DATA[Item No.],DATA[Picked],"") -> CA | G22: =_xlfn.XLOOKUP(A22,DATA[Item No.],DATA[Pack],"") -> 6 | H22: =_xlfn.XLOOKUP(A22,DATA[Item No.],DATA[O],"") -> Y | I22: =_xlfn.XLOOKUP(A22,DATA[Item No.],DATA[K],"") -> 0 | J22: =_xlfn.XLOOKUP(A22,DATA[Item No.],DATA[V],"") -> 0 | K22: =_xlfn.XLOOKUP(A22,DATA[Item No.],DATA[GF],"") -> 0 | L22: =_xlfn.XLOOKUP(A22,DATA[Item No.],DATA[N],"") -> 0 | M22: =_xlfn.XLOOKUP(A22,DATA[Item No.],DATA[H],"") -> 0 | N22: =_xlfn.XLOOKUP(A22,DATA[Item No.],DATA[CM],"") -> Y | O22: =_xlfn.XLOOKUP(A22,DATA[Item No.],DATA[CO],"") -> Y | P22: =_xlfn.XLOOKUP(A22,DATA[Item No.],DATA[CP],"") -> 0 | Q22: =_xlfn.XLOOKUP(A22,DATA[Item No.],DATA[Guaranteed Days],"") -> 56 | R22: =_xlfn.XLOOKUP(A22,DATA[Item No.],DATA[Storage],"") -> Dry | S22: =_xlfn.XLOOKUP(A22,DATA[Item No.],DATA[Price],"") -> 89.54 | T22: =_xlfn.XLOOKUP(A22,DATA[Item No.],DATA[Monthly Promo],"") -> APRIL DEAL! | U22: =_xlfn.XLOOKUP(A22,DATA[Item No.],DATA[Promo Discount],"") -> SAVE 10% | V22: =_xlfn.XLOOKUP(A22,DATA[Item No.],DATA[SRP],"") -> 18.99 | W22: =_xlfn.XLOOKUP(A22,DATA[Item No.],DATA[SKU Territory Ranking - West],"") -> 5
A23: FN2868 | C23: =_xlfn.XLOOKUP(A23,DATA[Item No.],DATA[Description],"") -> Nostalgia Blend | D23: =_xlfn.XLOOKUP(A23,DATA[Item No.],DATA[Unit UPC],"") -> 883242002861 | E23: =_xlfn.XLOOKUP(A23,DATA[Item No.],DATA[Size],"") -> 340G | F23: =_xlfn.XLOOKUP(A23,DATA[Item No.],DATA[Picked],"") -> CA | G23: =_xlfn.XLOOKUP(A23,DATA[Item No.],DATA[Pack],"") -> 6 | H23: =_xlfn.XLOOKUP(A23,DATA[Item No.],DATA[O],"") -> Y | I23: =_xlfn.XLOOKUP(A23,DATA[Item No.],DATA[K],"") -> 0 | J23: =_xlfn.XLOOKUP(A23,DATA[Item No.],DATA[V],"") -> 0 | K23: =_xlfn.XLOOKUP(A23,DATA[Item No.],DATA[GF],"") -> 0 | L23: =_xlfn.XLOOKUP(A23,DATA[Item No.],DATA[N],"") -> 0 | M23: =_xlfn.XLOOKUP(A23,DATA[Item No.],DATA[H],"") -> 0 | N23: =_xlfn.XLOOKUP(A23,DATA[Item No.],DATA[CM],"") -> Y | O23: =_xlfn.XLOOKUP(A23,DATA[Item No.],DATA[CO],"") -> Y | P23: =_xlfn.XLOOKUP(A23,DATA[Item No.],DATA[CP],"") -> 0 | Q23: =_xlfn.XLOOKUP(A23,DATA[Item No.],DATA[Guaranteed Days],"") -> 56 | R23: =_xlfn.XLOOKUP(A23,DATA[Item No.],DATA[Storage],"") -> Dry | S23: =_xlfn.XLOOKUP(A23,DATA[Item No.],DATA[Price],"") -> 89.54 | T23: =_xlfn.XLOOKUP(A23,DATA[Item No.],DATA[Monthly Promo],"") -> APRIL DEAL! | U23: =_xlfn.XLOOKUP(A23,DATA[Item No.],DATA[Promo Discount],"") -> SAVE 10% | V23: =_xlfn.XLOOKUP(A23,DATA[Item No.],DATA[SRP],"") -> 0 | W23: =_xlfn.XLOOKUP(A23,DATA[Item No.],DATA[SKU Territory Ranking - West],"") -> 6
A24: ALDERWOOD FARMS | C24: =_xlfn.XLOOKUP(A24,DATA[Item No.],DATA[Description],"") ->  | D24: =_xlfn.XLOOKUP(A24,DATA[Item No.],DATA[Unit UPC],"") ->  | E24: =_xlfn.XLOOKUP(A24,DATA[Item No.],DATA[Size],"") ->  | F24: =_xlfn.XLOOKUP(A24,DATA[Item No.],DATA[Picked],"") ->  | G24: =_xlfn.XLOOKUP(A24,DATA[Item No.],DATA[Pack],"") ->  | H24: =_xlfn.XLOOKUP(A24,DATA[Item No.],DATA[O],"") ->  | I24: =_xlfn.XLOOKUP(A24,DATA[Item No.],DATA[K],"") ->  | J24: =_xlfn.XLOOKUP(A24,DATA[Item No.],DATA[V],"") ->  | K24: =_xlfn.XLOOKUP(A24,DATA[Item No.],DATA[GF],"") ->  | L24: =_xlfn.XLOOKUP(A24,DATA[Item No.],DATA[N],"") ->  | M24: =_xlfn.XLOOKUP(A24,DATA[Item No.],DATA[H],"") ->  | N24: =_xlfn.XLOOKUP(A24,DATA[Item No.],DATA[CM],"") ->  | O24: =_xlfn.XLOOKUP(A24,DATA[Item No.],DATA[CO],"") ->  | P24: =_xlfn.XLOOKUP(A24,DATA[Item No.],DATA[CP],"") ->  | Q24: =_xlfn.XLOOKUP(A24,DATA[Item No.],DATA[Guaranteed Days],"") ->  | R24: =_xlfn.XLOOKUP(A24,DATA[Item No.],DATA[Storage],"") ->  | S24: =_xlfn.XLOOKUP(A24,DATA[Item No.],DATA[Price],"") ->  | T24: =_xlfn.XLOOKUP(A24,DATA[Item No.],DATA[Monthly Promo],"") ->  | U24: =_xlfn.XLOOKUP(A24,DATA[Item No.],DATA[Promo Discount],"") ->  | V24: =_xlfn.XLOOKUP(A24,DATA[Item No.],DATA[SRP],"") ->  | W24: =_xlfn.XLOOKUP(A24,DATA[Item No.],DATA[SKU Territory Ranking - West],"") -> 
A25: Bone Broth | C25: =_xlfn.XLOOKUP(A25,DATA[Item No.],DATA[Description],"") ->  | D25: =_xlfn.XLOOKUP(A25,DATA[Item No.],DATA[Unit UPC],"") ->  | E25: =_xlfn.XLOOKUP(A25,DATA[Item No.],DATA[Size],"") ->  | F25: =_xlfn.XLOOKUP(A25,DATA[Item No.],DATA[Picked],"") ->  | G25: =_xlfn.XLOOKUP(A25,DATA[Item No.],DATA[Pack],"") ->  | H25: =_xlfn.XLOOKUP(A25,DATA[Item No.],DATA[O],"") ->  | I25: =_xlfn.XLOOKUP(A25,DATA[Item No.],DATA[K],"") ->  | J25: =_xlfn.XLOOKUP(A25,DATA[Item No.],DATA[V],"") ->  | K25: =_xlfn.XLOOKUP(A25,DATA[Item No.],DATA[GF],"") ->  | L25: =_xlfn.XLOOKUP(A25,DATA[Item No.],DATA[N],"") ->  | M25: =_xlfn.XLOOKUP(A25,DATA[Item No.],DATA[H],"") ->  | N25: =_xlfn.XLOOKUP(A25,DATA[Item No.],DATA[CM],"") ->  | O25: =_xlfn.XLOOKUP(A25,DATA[Item No.],DATA[CO],"") ->  | P25: =_xlfn.XLOOKUP(A25,DATA[Item No.],DATA[CP],"") ->  | Q25: =_xlfn.XLOOKUP(A25,DATA[Item No.],DATA[Guaranteed Days],"") ->  | R25: =_xlfn.XLOOKUP(A25,DATA[Item No.],DATA[Storage],"") ->  | S25: =_xlfn.XLOOKUP(A25,DATA[Item No.],DATA[Price],"") ->  | T25: =_xlfn.XLOOKUP(A25,DATA[Item No.],DATA[Monthly Promo],"") ->  | U25: =_xlfn.XLOOKUP(A25,DATA[Item No.],DATA[Promo Discount],"") ->  | V25: =_xlfn.XLOOKUP(A25,DATA[Item No.],DATA[SRP],"") ->  | W25: =_xlfn.XLOOKUP(A25,DATA[Item No.],DATA[SKU Territory Ranking - West],"") -> 
A26: AF1252 | C26: =_xlfn.XLOOKUP(A26,DATA[Item No.],DATA[Description],"") -> Organic Beef Bone Broth | D26: =_xlfn.XLOOKUP(A26,DATA[Item No.],DATA[Unit UPC],"") -> 871261001255 | E26: =_xlfn.XLOOKUP(A26,DATA[Item No.],DATA[Size],"") -> 500ML | F26: =_xlfn.XLOOKUP(A26,DATA[Item No.],DATA[Picked],"") -> CA | G26: =_xlfn.XLOOKUP(A26,DATA[Item No.],DATA[Pack],"") -> 12 | H26: =_xlfn.XLOOKUP(A26,DATA[Item No.],DATA[O],"") -> Y | I26: =_xlfn.XLOOKUP(A26,DATA[Item No.],DATA[K],"") -> 0 | J26: =_xlfn.XLOOKUP(A26,DATA[Item No.],DATA[V],"") -> 0 | K26: =_xlfn.XLOOKUP(A26,DATA[Item No.],DATA[GF],"") -> 0 | L26: =_xlfn.XLOOKUP(A26,DATA[Item No.],DATA[N],"") -> 0 | M26: =_xlfn.XLOOKUP(A26,DATA[Item No.],DATA[H],"") -> 0 | N26: =_xlfn.XLOOKUP(A26,DATA[Item No.],DATA[CM],"") -> Y | O26: =_xlfn.XLOOKUP(A26,DATA[Item No.],DATA[CO],"") -> Y | P26: =_xlfn.XLOOKUP(A26,DATA[Item No.],DATA[CP],"") -> Y | Q26: =_xlfn.XLOOKUP(A26,DATA[Item No.],DATA[Guaranteed Days],"") -> 95 | R26: =_xlfn.XLOOKUP(A26,DATA[Item No.],DATA[Storage],"") -> Frozen | S26: =_xlfn.XLOOKUP(A26,DATA[Item No.],DATA[Price],"") -> 136.88 | T26: =_xlfn.XLOOKUP(A26,DATA[Item No.],DATA[Monthly Promo],"") -> 0 | U26: =_xlfn.XLOOKUP(A26,DATA[Item No.],DATA[Promo Discount],"") -> 0 | V26: =_xlfn.XLOOKUP(A26,DATA[Item No.],DATA[SRP],"") -> 14.99 | W26: =_xlfn.XLOOKUP(A26,DATA[Item No.],DATA[SKU Territory Ranking - West],"") -> 0
A27: AF1269 | C27: =_xlfn.XLOOKUP(A27,DATA[Item No.],DATA[Description],"") -> Organic Free Range Chicken Bone Broth | D27: =_xlfn.XLOOKUP(A27,DATA[Item No.],DATA[Unit UPC],"") -> 871261001262 | E27: =_xlfn.XLOOKUP(A27,DATA[Item No.],DATA[Size],"") -> 500ML | F27: =_xlfn.XLOOKUP(A27,DATA[Item No.],DATA[Picked],"") -> CA | G27: =_xlfn.XLOOKUP(A27,DATA[Item No.],DATA[Pack],"") -> 12 | H27: =_xlfn.XLOOKUP(A27,DATA[Item No.],DATA[O],"") -> Y | I27: =_xlfn.XLOOKUP(A27,DATA[Item No.],DATA[K],"") -> 0 | J27: =_xlfn.XLOOKUP(A27,DATA[Item No.],DATA[V],"") -> 0 | K27: =_xlfn.XLOOKUP(A27,DATA[Item No.],DATA[GF],"") -> 0 | L27: =_xlfn.XLOOKUP(A27,DATA[Item No.],DATA[N],"") -> 0 | M27: =_xlfn.XLOOKUP(A27,DATA[Item No.],DATA[H],"") -> 0 | N27: =_xlfn.XLOOKUP(A27,DATA[Item No.],DATA[CM],"") -> Y | O27: =_xlfn.XLOOKUP(A27,DATA[Item No.],DATA[CO],"") -> Y | P27: =_xlfn.XLOOKUP(A27,DATA[Item No.],DATA[CP],"") -> Y | Q27: =_xlfn.XLOOKUP(A27,DATA[Item No.],DATA[Guaranteed Days],"") -> 95 | R27: =_xlfn.XLOOKUP(A27,DATA[Item No.],DATA[Storage],"") -> Frozen | S27: =_xlfn.XLOOKUP(A27,DATA[Item No.],DATA[Price],"") -> 136.88 | T27: =_xlfn.XLOOKUP(A27,DATA[Item No.],DATA[Monthly Promo],"") -> 0 | U27: =_xlfn.XLOOKUP(A27,DATA[Item No.],DATA[Promo Discount],"") -> 0 | V27: =_xlfn.XLOOKUP(A27,DATA[Item No.],DATA[SRP],"") -> 14.99 | W27: =_xlfn.XLOOKUP(A27,DATA[Item No.],DATA[SKU Territory Ranking - West],"") -> 0
A28: Breakfast Sausages | C28: =_xlfn.XLOOKUP(A28,DATA[Item No.],DATA[Description],"") ->  | D28: =_xlfn.XLOOKUP(A28,DATA[Item No.],DATA[Unit UPC],"") ->  | E28: =_xlfn.XLOOKUP(A28,DATA[Item No.],DATA[Size],"") ->  | F28: =_xlfn.XLOOKUP(A28,DATA[Item No.],DATA[Picked],"") ->  | G28: =_xlfn.XLOOKUP(A28,DATA[Item No.],DATA[Pack],"") ->  | H28: =_xlfn.XLOOKUP(A28,DATA[Item No.],DATA[O],"") ->  | I28: =_xlfn.XLOOKUP(A28,DATA[Item No.],DATA[K],"") ->  | J28: =_xlfn.XLOOKUP(A28,DATA[Item No.],DATA[V],"") ->  | K28: =_xlfn.XLOOKUP(A28,DATA[Item No.],DATA[GF],"") ->  | L28: =_xlfn.XLOOKUP(A28,DATA[Item No.],DATA[N],"") ->  | M28: =_xlfn.XLOOKUP(A28,DATA[Item No.],DATA[H],"") ->  | N28: =_xlfn.XLOOKUP(A28,DATA[Item No.],DATA[CM],"") ->  | O28: =_xlfn.XLOOKUP(A28,DATA[Item No.],DATA[CO],"") ->  | P28: =_xlfn.XLOOKUP(A28,DATA[Item No.],DATA[CP],"") ->  | Q28: =_xlfn.XLOOKUP(A28,DATA[Item No.],DATA[Guaranteed Days],"") ->  | R28: =_xlfn.XLOOKUP(A28,DATA[Item No.],DATA[Storage],"") ->  | S28: =_xlfn.XLOOKUP(A28,DATA[Item No.],DATA[Price],"") ->  | T28: =_xlfn.XLOOKUP(A28,DATA[Item No.],DATA[Monthly Promo],"") ->  | U28: =_xlfn.XLOOKUP(A28,DATA[Item No.],DATA[Promo Discount],"") ->  | V28: =_xlfn.XLOOKUP(A28,DATA[Item No.],DATA[SRP],"") ->  | W28: =_xlfn.XLOOKUP(A28,DATA[Item No.],DATA[SKU Territory Ranking - West],"") -> 
A29: AF1276 | C29: =_xlfn.XLOOKUP(A29,DATA[Item No.],DATA[Description],"") -> Breakfast Sausages Original Pork | D29: =_xlfn.XLOOKUP(A29,DATA[Item No.],DATA[Unit UPC],"") -> 871261001279 | E29: =_xlfn.XLOOKUP(A29,DATA[Item No.],DATA[Size],"") -> 375G | F29: =_xlfn.XLOOKUP(A29,DATA[Item No.],DATA[Picked],"") -> CA | G29: =_xlfn.XLOOKUP(A29,DATA[Item No.],DATA[Pack],"") -> 8 | H29: =_xlfn.XLOOKUP(A29,DATA[Item No.],DATA[O],"") -> 0 | I29: =_xlfn.XLOOKUP(A29,DATA[Item No.],DATA[K],"") -> 0 | J29: =_xlfn.XLOOKUP(A29,DATA[Item No.],DATA[V],"") -> 0 | K29: =_xlfn.XLOOKUP(A29,DATA[Item No.],DATA[GF],"") -> 0 | L29: =_xlfn.XLOOKUP(A29,DATA[Item No.],DATA[N],"") -> 0 | M29: =_xlfn.XLOOKUP(A29,DATA[Item No.],DATA[H],"") -> 0 | N29: =_xlfn.XLOOKUP(A29,DATA[Item No.],DATA[CM],"") -> Y | O29: =_xlfn.XLOOKUP(A29,DATA[Item No.],DATA[CO],"") -> Y | P29: =_xlfn.XLOOKUP(A29,DATA[Item No.],DATA[CP],"") -> Y | Q29: =_xlfn.XLOOKUP(A29,DATA[Item No.],DATA[Guaranteed Days],"") -> 110 | R29: =_xlfn.XLOOKUP(A29,DATA[Item No.],DATA[Storage],"") -> Frozen | S29: =_xlfn.XLOOKUP(A29,DATA[Item No.],DATA[Price],"") -> 69.9 | T29: =_xlfn.XLOOKUP(A29,DATA[Item No.],DATA[Monthly Promo],"") -> APRIL DEAL! | U29: =_xlfn.XLOOKUP(A29,DATA[Item No.],DATA[Promo Discount],"") -> SAVE 8% | V29: =_xlfn.XLOOKUP(A29,DATA[Item No.],DATA[SRP],"") -> 13.49 | W29: =_xlfn.XLOOKUP(A29,DATA[Item No.],DATA[SKU Territory Ranking - West],"") -> 0
A30: AF1283 | C30: =_xlfn.XLOOKUP(A30,DATA[Item No.],DATA[Description],"") -> Breakfast Sausages Maple Pork | D30: =_xlfn.XLOOKUP(A30,DATA[Item No.],DATA[Unit UPC],"") -> 871261001286 | E30: =_xlfn.XLOOKUP(A30,DATA[Item No.],DATA[Size],"") -> 375G | F30: =_xlfn.XLOOKUP(A30,DATA[Item No.],DATA[Picked],"") -> CA | G30: =_xlfn.XLOOKUP(A30,DATA[Item No.],DATA[Pack],"") -> 8 | H30: =_xlfn.XLOOKUP(A30,DATA[Item No.],DATA[O],"") -> 0 | I30: =_xlfn.XLOOKUP(A30,DATA[Item No.],DATA[K],"") -> 0 | J30: =_xlfn.XLOOKUP(A30,DATA[Item No.],DATA[V],"") -> 0 | K30: =_xlfn.XLOOKUP(A30,DATA[Item No.],DATA[GF],"") -> 0 | L30: =_xlfn.XLOOKUP(A30,DATA[Item No.],DATA[N],"") -> 0 | M30: =_xlfn.XLOOKUP(A30,DATA[Item No.],DATA[H],"") -> 0 | N30: =_xlfn.XLOOKUP(A30,DATA[Item No.],DATA[CM],"") -> Y | O30: =_xlfn.XLOOKUP(A30,DATA[Item No.],DATA[CO],"") -> Y | P30: =_xlfn.XLOOKUP(A30,DATA[Item No.],DATA[CP],"") -> Y | Q30: =_xlfn.XLOOKUP(A30,DATA[Item No.],DATA[Guaranteed Days],"") -> 110 | R30: =_xlfn.XLOOKUP(A30,DATA[Item No.],DATA[Storage],"") -> Frozen | S30: =_xlfn.XLOOKUP(A30,DATA[Item No.],DATA[Price],"") -> 69.9 | T30: =_xlfn.XLOOKUP(A30,DATA[Item No.],DATA[Monthly Promo],"") -> APRIL DEAL! | U30: =_xlfn.XLOOKUP(A30,DATA[Item No.],DATA[Promo Discount],"") -> SAVE 8% | V30: =_xlfn.XLOOKUP(A30,DATA[Item No.],DATA[SRP],"") -> 13.49 | W30: =_xlfn.XLOOKUP(A30,DATA[Item No.],DATA[SKU Territory Ranking - West],"") -> 0
A31: French Fries | C31: =_xlfn.XLOOKUP(A31,DATA[Item No.],DATA[Description],"") ->  | D31: =_xlfn.XLOOKUP(A31,DATA[Item No.],DATA[Unit UPC],"") ->  | E31: =_xlfn.XLOOKUP(A31,DATA[Item No.],DATA[Size],"") ->  | F31: =_xlfn.XLOOKUP(A31,DATA[Item No.],DATA[Picked],"") ->  | G31: =_xlfn.XLOOKUP(A31,DATA[Item No.],DATA[Pack],"") ->  | H31: =_xlfn.XLOOKUP(A31,DATA[Item No.],DATA[O],"") ->  | I31: =_xlfn.XLOOKUP(A31,DATA[Item No.],DATA[K],"") ->  | J31: =_xlfn.XLOOKUP(A31,DATA[Item No.],DATA[V],"") ->  | K31: =_xlfn.XLOOKUP(A31,DATA[Item No.],DATA[GF],"") ->  | L31: =_xlfn.XLOOKUP(A31,DATA[Item No.],DATA[N],"") ->  | M31: =_xlfn.XLOOKUP(A31,DATA[Item No.],DATA[H],"") ->  | N31: =_xlfn.XLOOKUP(A31,DATA[Item No.],DATA[CM],"") ->  | O31: =_xlfn.XLOOKUP(A31,DATA[Item No.],DATA[CO],"") ->  | P31: =_xlfn.XLOOKUP(A31,DATA[Item No.],DATA[CP],"") ->  | Q31: =_xlfn.XLOOKUP(A31,DATA[Item No.],DATA[Guaranteed Days],"") ->  | R31: =_xlfn.XLOOKUP(A31,DATA[Item No.],DATA[Storage],"") ->  | S31: =_xlfn.XLOOKUP(A31,DATA[Item No.],DATA[Price],"") ->  | T31: =_xlfn.XLOOKUP(A31,DATA[Item No.],DATA[Monthly Promo],"") ->  | U31: =_xlfn.XLOOKUP(A31,DATA[Item No.],DATA[Promo Discount],"") ->  | V31: =_xlfn.XLOOKUP(A31,DATA[Item No.],DATA[SRP],"") ->  | W31: =_xlfn.XLOOKUP(A31,DATA[Item No.],DATA[SKU Territory Ranking - West],"") -> 
A32: AF1351 | C32: =_xlfn.XLOOKUP(A32,DATA[Item No.],DATA[Description],"") -> Crinkle Cut French Fries | D32: =_xlfn.XLOOKUP(A32,DATA[Item No.],DATA[Unit UPC],"") -> 871261001354 | E32: =_xlfn.XLOOKUP(A32,DATA[Item No.],DATA[Size],"") -> 450G | F32: =_xlfn.XLOOKUP(A32,DATA[Item No.],DATA[Picked],"") -> CA | G32: =_xlfn.XLOOKUP(A32,DATA[Item No.],DATA[Pack],"") -> 12 | H32: =_xlfn.XLOOKUP(A32,DATA[Item No.],DATA[O],"") -> 0 | I32: =_xlfn.XLOOKUP(A32,DATA[Item No.],DATA[K],"") -> 0 | J32: =_xlfn.XLOOKUP(A32,DATA[Item No.],DATA[V],"") -> 0 | K32: =_xlfn.XLOOKUP(A32,DATA[Item No.],DATA[GF],"") -> 0 | L32: =_xlfn.XLOOKUP(A32,DATA[Item No.],DATA[N],"") -> 0 | M32: =_xlfn.XLOOKUP(A32,DATA[Item No.],DATA[H],"") -> 0 | N32: =_xlfn.XLOOKUP(A32,DATA[Item No.],DATA[CM],"") -> Y | O32: =_xlfn.XLOOKUP(A32,DATA[Item No.],DATA[CO],"") -> Y | P32: =_xlfn.XLOOKUP(A32,DATA[Item No.],DATA[CP],"") -> 0 | Q32: =_xlfn.XLOOKUP(A32,DATA[Item No.],DATA[Guaranteed Days],"") -> 205 | R32: =_xlfn.XLOOKUP(A32,DATA[Item No.],DATA[Storage],"") -> Frozen | S32: =_xlfn.XLOOKUP(A32,DATA[Item No.],DATA[Price],"") -> 67.67 | T32: =_xlfn.XLOOKUP(A32,DATA[Item No.],DATA[Monthly Promo],"") -> 0 | U32: =_xlfn.XLOOKUP(A32,DATA[Item No.],DATA[Promo Discount],"") -> 0 | V32: =_xlfn.XLOOKUP(A32,DATA[Item No.],DATA[SRP],"") -> 7.99 | W32: =_xlfn.XLOOKUP(A32,DATA[Item No.],DATA[SKU Territory Ranking - West],"") -> 0
A33: AF1368 | C33: =_xlfn.XLOOKUP(A33,DATA[Item No.],DATA[Description],"") -> Straight Cut French Fries | D33: =_xlfn.XLOOKUP(A33,DATA[Item No.],DATA[Unit UPC],"") -> 871261001361 | E33: =_xlfn.XLOOKUP(A33,DATA[Item No.],DATA[Size],"") -> 450G | F33: =_xlfn.XLOOKUP(A33,DATA[Item No.],DATA[Picked],"") -> CA | G33: =_xlfn.XLOOKUP(A33,DATA[Item No.],DATA[Pack],"") -> 12 | H33: =_xlfn.XLOOKUP(A33,DATA[Item No.],DATA[O],"") -> 0 | I33: =_xlfn.XLOOKUP(A33,DATA[Item No.],DATA[K],"") -> 0 | J33: =_xlfn.XLOOKUP(A33,DATA[Item No.],DATA[V],"") -> 0 | K33: =_xlfn.XLOOKUP(A33,DATA[Item No.],DATA[GF],"") -> 0 | L33: =_xlfn.XLOOKUP(A33,DATA[Item No.],DATA[N],"") -> 0 | M33: =_xlfn.XLOOKUP(A33,DATA[Item No.],DATA[H],"") -> 0 | N33: =_xlfn.XLOOKUP(A33,DATA[Item No.],DATA[CM],"") -> Y | O33: =_xlfn.XLOOKUP(A33,DATA[Item No.],DATA[CO],"") -> Y | P33: =_xlfn.XLOOKUP(A33,DATA[Item No.],DATA[CP],"") -> 0 | Q33: =_xlfn.XLOOKUP(A33,DATA[Item No.],DATA[Guaranteed Days],"") -> 205 | R33: =_xlfn.XLOOKUP(A33,DATA[Item No.],DATA[Storage],"") -> Frozen | S33: =_xlfn.XLOOKUP(A33,DATA[Item No.],DATA[Price],"") -> 65.83 | T33: =_xlfn.XLOOKUP(A33,DATA[Item No.],DATA[Monthly Promo],"") -> 0 | U33: =_xlfn.XLOOKUP(A33,DATA[Item No.],DATA[Promo Discount],"") -> 0 | V33: =_xlfn.XLOOKUP(A33,DATA[Item No.],DATA[SRP],"") -> 7.99 | W33: =_xlfn.XLOOKUP(A33,DATA[Item No.],DATA[SKU Territory Ranking - West],"") -> 0
A34: AF1375 | C34: =_xlfn.XLOOKUP(A34,DATA[Item No.],DATA[Description],"") -> Waffle Cut French Fries | D34: =_xlfn.XLOOKUP(A34,DATA[Item No.],DATA[Unit UPC],"") -> 871261001378 | E34: =_xlfn.XLOOKUP(A34,DATA[Item No.],DATA[Size],"") -> 450G | F34: =_xlfn.XLOOKUP(A34,DATA[Item No.],DATA[Picked],"") -> CA | G34: =_xlfn.XLOOKUP(A34,DATA[Item No.],DATA[Pack],"") -> 12 | H34: =_xlfn.XLOOKUP(A34,DATA[Item No.],DATA[O],"") -> 0 | I34: =_xlfn.XLOOKUP(A34,DATA[Item No.],DATA[K],"") -> 0 | J34: =_xlfn.XLOOKUP(A34,DATA[Item No.],DATA[V],"") -> 0 | K34: =_xlfn.XLOOKUP(A34,DATA[Item No.],DATA[GF],"") -> 0 | L34: =_xlfn.XLOOKUP(A34,DATA[Item No.],DATA[N],"") -> 0 | M34: =_xlfn.XLOOKUP(A34,DATA[Item No.],DATA[H],"") -> 0 | N34: =_xlfn.XLOOKUP(A34,DATA[Item No.],DATA[CM],"") -> Y | O34: =_xlfn.XLOOKUP(A34,DATA[Item No.],DATA[CO],"") -> Y | P34: =_xlfn.XLOOKUP(A34,DATA[Item No.],DATA[CP],"") -> 0 | Q34: =_xlfn.XLOOKUP(A34,DATA[Item No.],DATA[Guaranteed Days],"") -> 205 | R34: =_xlfn.XLOOKUP(A34,DATA[Item No.],DATA[Storage],"") -> Frozen | S34: =_xlfn.XLOOKUP(A34,DATA[Item No.],DATA[Price],"") -> 66.08 | T34: =_xlfn.XLOOKUP(A34,DATA[Item No.],DATA[Monthly Promo],"") -> 0 | U34: =_xlfn.XLOOKUP(A34,DATA[Item No.],DATA[Promo Discount],"") -> 0 | V34: =_xlfn.XLOOKUP(A34,DATA[Item No.],DATA[SRP],"") -> 7.99 | W34: =_xlfn.XLOOKUP(A34,DATA[Item No.],DATA[SKU Territory Ranking - West],"") -> 0
A35: AF1382 | C35: =_xlfn.XLOOKUP(A35,DATA[Item No.],DATA[Description],"") -> Sweet Potato Classic Cut French Fries | D35: =_xlfn.XLOOKUP(A35,DATA[Item No.],DATA[Unit UPC],"") -> 871261001385 | E35: =_xlfn.XLOOKUP(A35,DATA[Item No.],DATA[Size],"") -> 400G | F35: =_xlfn.XLOOKUP(A35,DATA[Item No.],DATA[Picked],"") -> CA | G35: =_xlfn.XLOOKUP(A35,DATA[Item No.],DATA[Pack],"") -> 12 | H35: =_xlfn.XLOOKUP(A35,DATA[Item No.],DATA[O],"") -> 0 | I35: =_xlfn.XLOOKUP(A35,DATA[Item No.],DATA[K],"") -> 0 | J35: =_xlfn.XLOOKUP(A35,DATA[Item No.],DATA[V],"") -> 0 | K35: =_xlfn.XLOOKUP(A35,DATA[Item No.],DATA[GF],"") -> 0 | L35: =_xlfn.XLOOKUP(A35,DATA[Item No.],DATA[N],"") -> 0 | M35: =_xlfn.XLOOKUP(A35,DATA[Item No.],DATA[H],"") -> 0 | N35: =_xlfn.XLOOKUP(A35,DATA[Item No.],DATA[CM],"") -> Y | O35: =_xlfn.XLOOKUP(A35,DATA[Item No.],DATA[CO],"") -> Y | P35: =_xlfn.XLOOKUP(A35,DATA[Item No.],DATA[CP],"") -> 0 | Q35: =_xlfn.XLOOKUP(A35,DATA[Item No.],DATA[Guaranteed Days],"") -> 205 | R35: =_xlfn.XLOOKUP(A35,DATA[Item No.],DATA[Storage],"") -> Frozen | S35: =_xlfn.XLOOKUP(A35,DATA[Item No.],DATA[Price],"") -> 77.95 | T35: =_xlfn.XLOOKUP(A35,DATA[Item No.],DATA[Monthly Promo],"") -> 0 | U35: =_xlfn.XLOOKUP(A35,DATA[Item No.],DATA[Promo Discount],"") -> 0 | V35: =_xlfn.XLOOKUP(A35,DATA[Item No.],DATA[SRP],"") -> 8.99 | W35: =_xlfn.XLOOKUP(A35,DATA[Item No.],DATA[SKU Territory Ranking - West],"") -> 0
A36: Maple Syrup | C36: =_xlfn.XLOOKUP(A36,DATA[Item No.],DATA[Description],"") ->  | D36: =_xlfn.XLOOKUP(A36,DATA[Item No.],DATA[Unit UPC],"") ->  | E36: =_xlfn.XLOOKUP(A36,DATA[Item No.],DATA[Size],"") ->  | F36: =_xlfn.XLOOKUP(A36,DATA[Item No.],DATA[Picked],"") ->  | G36: =_xlfn.XLOOKUP(A36,DATA[Item No.],DATA[Pack],"") ->  | H36: =_xlfn.XLOOKUP(A36,DATA[Item No.],DATA[O],"") ->  | I36: =_xlfn.XLOOKUP(A36,DATA[Item No.],DATA[K],"") ->  | J36: =_xlfn.XLOOKUP(A36,DATA[Item No.],DATA[V],"") ->  | K36: =_xlfn.XLOOKUP(A36,DATA[Item No.],DATA[GF],"") ->  | L36: =_xlfn.XLOOKUP(A36,DATA[Item No.],DATA[N],"") ->  | M36: =_xlfn.XLOOKUP(A36,DATA[Item No.],DATA[H],"") ->  | N36: =_xlfn.XLOOKUP(A36,DATA[Item No.],DATA[CM],"") ->  | O36: =_xlfn.XLOOKUP(A36,DATA[Item No.],DATA[CO],"") ->  | P36: =_xlfn.XLOOKUP(A36,DATA[Item No.],DATA[CP],"") ->  | Q36: =_xlfn.XLOOKUP(A36,DATA[Item No.],DATA[Guaranteed Days],"") ->  | R36: =_xlfn.XLOOKUP(A36,DATA[Item No.],DATA[Storage],"") ->  | S36: =_xlfn.XLOOKUP(A36,DATA[Item No.],DATA[Price],"") ->  | T36: =_xlfn.XLOOKUP(A36,DATA[Item No.],DATA[Monthly Promo],"") ->  | U36: =_xlfn.XLOOKUP(A36,DATA[Item No.],DATA[Promo Discount],"") ->  | V36: =_xlfn.XLOOKUP(A36,DATA[Item No.],DATA[SRP],"") ->  | W36: =_xlfn.XLOOKUP(A36,DATA[Item No.],DATA[SKU Territory Ranking - West],"") -> 
A37: AF2129 | C37: =_xlfn.XLOOKUP(A37,DATA[Item No.],DATA[Description],"") -> 100% Pure Organic Ontario Maple Syrup | D37: =_xlfn.XLOOKUP(A37,DATA[Item No.],DATA[Unit UPC],"") -> 871261002122 | E37: =_xlfn.XLOOKUP(A37,DATA[Item No.],DATA[Size],"") -> 500ML | F37: =_xlfn.XLOOKUP(A37,DATA[Item No.],DATA[Picked],"") -> CA | G37: =_xlfn.XLOOKUP(A37,DATA[Item No.],DATA[Pack],"") -> 12 | H37: =_xlfn.XLOOKUP(A37,DATA[Item No.],DATA[O],"") -> Y | I37: =_xlfn.XLOOKUP(A37,DATA[Item No.],DATA[K],"") -> 0 | J37: =_xlfn.XLOOKUP(A37,DATA[Item No.],DATA[V],"") -> 0 | K37: =_xlfn.XLOOKUP(A37,DATA[Item No.],DATA[GF],"") -> 0 | L37: =_xlfn.XLOOKUP(A37,DATA[Item No.],DATA[N],"") -> 0 | M37: =_xlfn.XLOOKUP(A37,DATA[Item No.],DATA[H],"") -> 0 | N37: =_xlfn.XLOOKUP(A37,DATA[Item No.],DATA[CM],"") -> Y | O37: =_xlfn.XLOOKUP(A37,DATA[Item No.],DATA[CO],"") -> Y | P37: =_xlfn.XLOOKUP(A37,DATA[Item No.],DATA[CP],"") -> Y | Q37: =_xlfn.XLOOKUP(A37,DATA[Item No.],DATA[Guaranteed Days],"") -> 205 | R37: =_xlfn.XLOOKUP(A37,DATA[Item No.],DATA[Storage],"") -> Dry | S37: =_xlfn.XLOOKUP(A37,DATA[Item No.],DATA[Price],"") -> 181.87 | T37: =_xlfn.XLOOKUP(A37,DATA[Item No.],DATA[Monthly Promo],"") -> APRIL DEAL! | U37: =_xlfn.XLOOKUP(A37,DATA[Item No.],DATA[Promo Discount],"") -> SAVE 8% | V37: =_xlfn.XLOOKUP(A37,DATA[Item No.],DATA[SRP],"") -> 0 | W37: =_xlfn.XLOOKUP(A37,DATA[Item No.],DATA[SKU Territory Ranking - West],"") -> 0
A38: Quail Eggs | C38: =_xlfn.XLOOKUP(A38,DATA[Item No.],DATA[Description],"") ->  | D38: =_xlfn.XLOOKUP(A38,DATA[Item No.],DATA[Unit UPC],"") ->  | E38: =_xlfn.XLOOKUP(A38,DATA[Item No.],DATA[Size],"") ->  | F38: =_xlfn.XLOOKUP(A38,DATA[Item No.],DATA[Picked],"") ->  | G38: =_xlfn.XLOOKUP(A38,DATA[Item No.],DATA[Pack],"") ->  | H38: =_xlfn.XLOOKUP(A38,DATA[Item No.],DATA[O],"") ->  | I38: =_xlfn.XLOOKUP(A38,DATA[Item No.],DATA[K],"") ->  | J38: =_xlfn.XLOOKUP(A38,DATA[Item No.],DATA[V],"") ->  | K38: =_xlfn.XLOOKUP(A38,DATA[Item No.],DATA[GF],"") ->  | L38: =_xlfn.XLOOKUP(A38,DATA[Item No.],DATA[N],"") ->  | M38: =_xlfn.XLOOKUP(A38,DATA[Item No.],DATA[H],"") ->  | N38: =_xlfn.XLOOKUP(A38,DATA[Item No.],DATA[CM],"") ->  | O38: =_xlfn.XLOOKUP(A38,DATA[Item No.],DATA[CO],"") ->  | P38: =_xlfn.XLOOKUP(A38,DATA[Item No.],DATA[CP],"") ->  | Q38: =_xlfn.XLOOKUP(A38,DATA[Item No.],DATA[Guaranteed Days],"") ->  | R38: =_xlfn.XLOOKUP(A38,DATA[Item No.],DATA[Storage],"") ->  | S38: =_xlfn.XLOOKUP(A38,DATA[Item No.],DATA[Price],"") ->  | T38: =_xlfn.XLOOKUP(A38,DATA[Item No.],DATA[Monthly Promo],"") ->  | U38: =_xlfn.XLOOKUP(A38,DATA[Item No.],DATA[Promo Discount],"") ->  | V38: =_xlfn.XLOOKUP(A38,DATA[Item No.],DATA[SRP],"") ->  | W38: =_xlfn.XLOOKUP(A38,DATA[Item No.],DATA[SKU Territory Ranking - West],"") -> 
A39: AF1030 | C39: =_xlfn.XLOOKUP(A39,DATA[Item No.],DATA[Description],"") -> Free Run Quail Eggs | D39: =_xlfn.XLOOKUP(A39,DATA[Item No.],DATA[Unit UPC],"") -> 871261001033 | E39: =_xlfn.XLOOKUP(A39,DATA[Item No.],DATA[Size],"") -> 15 | F39: =_xlfn.XLOOKUP(A39,DATA[Item No.],DATA[Picked],"") -> CA | G39: =_xlfn.XLOOKUP(A39,DATA[Item No.],DATA[Pack],"") -> 12 | H39: =_xlfn.XLOOKUP(A39,DATA[Item No.],DATA[O],"") -> 0 | I39: =_xlfn.XLOOKUP(A39,DATA[Item No.],DATA[K],"") -> 0 | J39: =_xlfn.XLOOKUP(A39,DATA[Item No.],DATA[V],"") -> 0 | K39: =_xlfn.XLOOKUP(A39,DATA[Item No.],DATA[GF],"") -> 0 | L39: =_xlfn.XLOOKUP(A39,DATA[Item No.],DATA[N],"") -> 0 | M39: =_xlfn.XLOOKUP(A39,DATA[Item No.],DATA[H],"") -> 0 | N39: =_xlfn.XLOOKUP(A39,DATA[Item No.],DATA[CM],"") -> Y | O39: =_xlfn.XLOOKUP(A39,DATA[Item No.],DATA[CO],"") -> Y | P39: =_xlfn.XLOOKUP(A39,DATA[Item No.],DATA[CP],"") -> Y | Q39: =_xlfn.XLOOKUP(A39,DATA[Item No.],DATA[Guaranteed Days],"") -> 2 | R39: =_xlfn.XLOOKUP(A39,DATA[Item No.],DATA[Storage],"") -> Chilled | S39: =_xlfn.XLOOKUP(A39,DATA[Item No.],DATA[Price],"") -> 60.13 | T39: =_xlfn.XLOOKUP(A39,DATA[Item No.],DATA[Monthly Promo],"") -> 0 | U39: =_xlfn.XLOOKUP(A39,DATA[Item No.],DATA[Promo Discount],"") -> 0 | V39: =_xlfn.XLOOKUP(A39,DATA[Item No.],DATA[SRP],"") -> 5.99 | W39: =_xlfn.XLOOKUP(A39,DATA[Item No.],DATA[SKU Territory Ranking - West],"") -> 0
A40: Yogurt | C40: =_xlfn.XLOOKUP(A40,DATA[Item No.],DATA[Description],"") ->  | D40: =_xlfn.XLOOKUP(A40,DATA[Item No.],DATA[Unit UPC],"") ->  | E40: =_xlfn.XLOOKUP(A40,DATA[Item No.],DATA[Size],"") ->  | F40: =_xlfn.XLOOKUP(A40,DATA[Item No.],DATA[Picked],"") ->  | G40: =_xlfn.XLOOKUP(A40,DATA[Item No.],DATA[Pack],"") ->  | H40: =_xlfn.XLOOKUP(A40,DATA[Item No.],DATA[O],"") ->  | I40: =_xlfn.XLOOKUP(A40,DATA[Item No.],DATA[K],"") ->  | J40: =_xlfn.XLOOKUP(A40,DATA[Item No.],DATA[V],"") ->  | K40: =_xlfn.XLOOKUP(A40,DATA[Item No.],DATA[GF],"") ->  | L40: =_xlfn.XLOOKUP(A40,DATA[Item No.],DATA[N],"") ->  | M40: =_xlfn.XLOOKUP(A40,DATA[Item No.],DATA[H],"") ->  | N40: =_xlfn.XLOOKUP(A40,DATA[Item No.],DATA[CM],"") ->  | O40: =_xlfn.XLOOKUP(A40,DATA[Item No.],DATA[CO],"") ->  | P40: =_xlfn.XLOOKUP(A40,DATA[Item No.],DATA[CP],"") ->  | Q40: =_xlfn.XLOOKUP(A40,DATA[Item No.],DATA[Guaranteed Days],"") ->  | R40: =_xlfn.XLOOKUP(A40,DATA[Item No.],DATA[Storage],"") ->  | S40: =_xlfn.XLOOKUP(A40,DATA[Item No.],DATA[Price],"") ->  | T40: =_xlfn.XLOOKUP(A40,DATA[Item No.],DATA[Monthly Promo],"") ->  | U40: =_xlfn.XLOOKUP(A40,DATA[Item No.],DATA[Promo Discount],"") ->  | V40: =_xlfn.XLOOKUP(A40,DATA[Item No.],DATA[SRP],"") ->  | W40: =_xlfn.XLOOKUP(A40,DATA[Item No.],DATA[SKU Territory Ranking - West],"") -> 
A41: AF1405 | C41: =_xlfn.XLOOKUP(A41,DATA[Item No.],DATA[Description],"") -> Organic Skyr Plain 0% Yogurt | D41: =_xlfn.XLOOKUP(A41,DATA[Item No.],DATA[Unit UPC],"") -> 871261001408 | E41: =_xlfn.XLOOKUP(A41,DATA[Item No.],DATA[Size],"") -> 500G | F41: =_xlfn.XLOOKUP(A41,DATA[Item No.],DATA[Picked],"") -> EA | G41: =_xlfn.XLOOKUP(A41,DATA[Item No.],DATA[Pack],"") -> 1 | H41: =_xlfn.XLOOKUP(A41,DATA[Item No.],DATA[O],"") -> Y | I41: =_xlfn.XLOOKUP(A41,DATA[Item No.],DATA[K],"") -> Y | J41: =_xlfn.XLOOKUP(A41,DATA[Item No.],DATA[V],"") -> 0 | K41: =_xlfn.XLOOKUP(A41,DATA[Item No.],DATA[GF],"") -> Y | L41: =_xlfn.XLOOKUP(A41,DATA[Item No.],DATA[N],"") -> 0 | M41: =_xlfn.XLOOKUP(A41,DATA[Item No.],DATA[H],"") -> 0 | N41: =_xlfn.XLOOKUP(A41,DATA[Item No.],DATA[CM],"") -> 0 | O41: =_xlfn.XLOOKUP(A41,DATA[Item No.],DATA[CO],"") -> Y | P41: =_xlfn.XLOOKUP(A41,DATA[Item No.],DATA[CP],"") -> Y | Q41: =_xlfn.XLOOKUP(A41,DATA[Item No.],DATA[Guaranteed Days],"") -> 16 | R41: =_xlfn.XLOOKUP(A41,DATA[Item No.],DATA[Storage],"") -> Dry | S41: =_xlfn.XLOOKUP(A41,DATA[Item No.],DATA[Price],"") -> 5.75 | T41: =_xlfn.XLOOKUP(A41,DATA[Item No.],DATA[Monthly Promo],"") -> 0 | U41: =_xlfn.XLOOKUP(A41,DATA[Item No.],DATA[Promo Discount],"") -> 0 | V41: =_xlfn.XLOOKUP(A41,DATA[Item No.],DATA[SRP],"") -> 0 | W41: =_xlfn.XLOOKUP(A41,DATA[Item No.],DATA[SKU Territory Ranking - West],"") -> 0
A42: AF1412 | C42: =_xlfn.XLOOKUP(A42,DATA[Item No.],DATA[Description],"") -> Organic Skyr Plain 2% Yogurt | D42: =_xlfn.XLOOKUP(A42,DATA[Item No.],DATA[Unit UPC],"") -> 871261001415 | E42: =_xlfn.XLOOKUP(A42,DATA[Item No.],DATA[Size],"") -> 500G | F42: =_xlfn.XLOOKUP(A42,DATA[Item No.],DATA[Picked],"") -> EA | G42: =_xlfn.XLOOKUP(A42,DATA[Item No.],DATA[Pack],"") -> 1 | H42: =_xlfn.XLOOKUP(A42,DATA[Item No.],DATA[O],"") -> Y | I42: =_xlfn.XLOOKUP(A42,DATA[Item No.],DATA[K],"") -> Y | J42: =_xlfn.XLOOKUP(A42,DATA[Item No.],DATA[V],"") -> 0 | K42: =_xlfn.XLOOKUP(A42,DATA[Item No.],DATA[GF],"") -> Y | L42: =_xlfn.XLOOKUP(A42,DATA[Item No.],DATA[N],"") -> 0 | M42: =_xlfn.XLOOKUP(A42,DATA[Item No.],DATA[H],"") -> 0 | N42: =_xlfn.XLOOKUP(A42,DATA[Item No.],DATA[CM],"") -> 0 | O42: =_xlfn.XLOOKUP(A42,DATA[Item No.],DATA[CO],"") -> Y | P42: =_xlfn.XLOOKUP(A42,DATA[Item No.],DATA[CP],"") -> Y | Q42: =_xlfn.XLOOKUP(A42,DATA[Item No.],DATA[Guaranteed Days],"") -> 16 | R42: =_xlfn.XLOOKUP(A42,DATA[Item No.],DATA[Storage],"") -> Dry | S42: =_xlfn.XLOOKUP(A42,DATA[Item No.],DATA[Price],"") -> 5.75 | T42: =_xlfn.XLOOKUP(A42,DATA[Item No.],DATA[Monthly Promo],"") -> 0 | U42: =_xlfn.XLOOKUP(A42,DATA[Item No.],DATA[Promo Discount],"") -> 0 | V42: =_xlfn.XLOOKUP(A42,DATA[Item No.],DATA[SRP],"") -> 0 | W42: =_xlfn.XLOOKUP(A42,DATA[Item No.],DATA[SKU Territory Ranking - West],"") -> 0
A43: ALT-PRO ADVANTAGE | C43: =_xlfn.XLOOKUP(A43,DATA[Item No.],DATA[Description],"") ->  | D43: =_xlfn.XLOOKUP(A43,DATA[Item No.],DATA[Unit UPC],"") ->  | E43: =_xlfn.XLOOKUP(A43,DATA[Item No.],DATA[Size],"") ->  | F43: =_xlfn.XLOOKUP(A43,DATA[Item No.],DATA[Picked],"") ->  | G43: =_xlfn.XLOOKUP(A43,DATA[Item No.],DATA[Pack],"") ->  | H43: =_xlfn.XLOOKUP(A43,DATA[Item No.],DATA[O],"") ->  | I43: =_xlfn.XLOOKUP(A43,DATA[Item No.],DATA[K],"") ->  | J43: =_xlfn.XLOOKUP(A43,DATA[Item No.],DATA[V],"") ->  | K43: =_xlfn.XLOOKUP(A43,DATA[Item No.],DATA[GF],"") ->  | L43: =_xlfn.XLOOKUP(A43,DATA[Item No.],DATA[N],"") ->  | M43: =_xlfn.XLOOKUP(A43,DATA[Item No.],DATA[H],"") ->  | N43: =_xlfn.XLOOKUP(A43,DATA[Item No.],DATA[CM],"") ->  | O43: =_xlfn.XLOOKUP(A43,DATA[Item No.],DATA[CO],"") ->  | P43: =_xlfn.XLOOKUP(A43,DATA[Item No.],DATA[CP],"") ->  | Q43: =_xlfn.XLOOKUP(A43,DATA[Item No.],DATA[Guaranteed Days],"") ->  | R43: =_xlfn.XLOOKUP(A43,DATA[Item No.],DATA[Storage],"") ->  | S43: =_xlfn.XLOOKUP(A43,DATA[Item No.],DATA[Price],"") ->  | T43: =_xlfn.XLOOKUP(A43,DATA[Item No.],DATA[Monthly Promo],"") ->  | U43: =_xlfn.XLOOKUP(A43,DATA[Item No.],DATA[Promo Discount],"") ->  | V43: =_xlfn.XLOOKUP(A43,DATA[Item No.],DATA[SRP],"") ->  | W43: =_xlfn.XLOOKUP(A43,DATA[Item No.],DATA[SKU Territory Ranking - West],"") -> 
A44: Dog food | C44: =_xlfn.XLOOKUP(A44,DATA[Item No.],DATA[Description],"") ->  | D44: =_xlfn.XLOOKUP(A44,DATA[Item No.],DATA[Unit UPC],"") ->  | E44: =_xlfn.XLOOKUP(A44,DATA[Item No.],DATA[Size],"") ->  | F44: =_xlfn.XLOOKUP(A44,DATA[Item No.],DATA[Picked],"") ->  | G44: =_xlfn.XLOOKUP(A44,DATA[Item No.],DATA[Pack],"") ->  | H44: =_xlfn.XLOOKUP(A44,DATA[Item No.],DATA[O],"") ->  | I44: =_xlfn.XLOOKUP(A44,DATA[Item No.],DATA[K],"") ->  | J44: =_xlfn.XLOOKUP(A44,DATA[Item No.],DATA[V],"") ->  | K44: =_xlfn.XLOOKUP(A44,DATA[Item No.],DATA[GF],"") ->  | L44: =_xlfn.XLOOKUP(A44,DATA[Item No.],DATA[N],"") ->  | M44: =_xlfn.XLOOKUP(A44,DATA[Item No.],DATA[H],"") ->  | N44: =_xlfn.XLOOKUP(A44,DATA[Item No.],DATA[CM],"") ->  | O44: =_xlfn.XLOOKUP(A44,DATA[Item No.],DATA[CO],"") ->  | P44: =_xlfn.XLOOKUP(A44,DATA[Item No.],DATA[CP],"") ->  | Q44: =_xlfn.XLOOKUP(A44,DATA[Item No.],DATA[Guaranteed Days],"") ->  | R44: =_xlfn.XLOOKUP(A44,DATA[Item No.],DATA[Storage],"") ->  | S44: =_xlfn.XLOOKUP(A44,DATA[Item No.],DATA[Price],"") ->  | T44: =_xlfn.XLOOKUP(A44,DATA[Item No.],DATA[Monthly Promo],"") ->  | U44: =_xlfn.XLOOKUP(A44,DATA[Item No.],DATA[Promo Discount],"") ->  | V44: =_xlfn.XLOOKUP(A44,DATA[Item No.],DATA[SRP],"") ->  | W44: =_xlfn.XLOOKUP(A44,DATA[Item No.],DATA[SKU Territory Ranking - West],"") -> 
A45: SN5045 | C45: =_xlfn.XLOOKUP(A45,DATA[Item No.],DATA[Description],"") -> Nose-to-Tail Wellness: Daily Nutrient-Rich Recipe | D45: =_xlfn.XLOOKUP(A45,DATA[Item No.],DATA[Unit UPC],"") -> 628942605048 | E45: =_xlfn.XLOOKUP(A45,DATA[Item No.],DATA[Size],"") -> 1.58KG | F45: =_xlfn.XLOOKUP(A45,DATA[Item No.],DATA[Picked],"") -> CA | G45: =_xlfn.XLOOKUP(A45,DATA[Item No.],DATA[Pack],"") -> 4 | H45: =_xlfn.XLOOKUP(A45,DATA[Item No.],DATA[O],"") -> 0 | I45: =_xlfn.XLOOKUP(A45,DATA[Item No.],DATA[K],"") -> 0 | J45: =_xlfn.XLOOKUP(A45,DATA[Item No.],DATA[V],"") -> 0 | K45: =_xlfn.XLOOKUP(A45,DATA[Item No.],DATA[GF],"") -> 0 | L45: =_xlfn.XLOOKUP(A45,DATA[Item No.],DATA[N],"") -> 0 | M45: =_xlfn.XLOOKUP(A45,DATA[Item No.],DATA[H],"") -> 0 | N45: =_xlfn.XLOOKUP(A45,DATA[Item No.],DATA[CM],"") -> Y | O45: =_xlfn.XLOOKUP(A45,DATA[Item No.],DATA[CO],"") -> Y | P45: =_xlfn.XLOOKUP(A45,DATA[Item No.],DATA[CP],"") -> 0 | Q45: =_xlfn.XLOOKUP(A45,DATA[Item No.],DATA[Guaranteed Days],"") -> 150 | R45: =_xlfn.XLOOKUP(A45,DATA[Item No.],DATA[Storage],"") -> Dry | S45: =_xlfn.XLOOKUP(A45,DATA[Item No.],DATA[Price],"") -> 81.17 | T45: =_xlfn.XLOOKUP(A45,DATA[Item No.],DATA[Monthly Promo],"") -> APRIL DEAL! | U45: =_xlfn.XLOOKUP(A45,DATA[Item No.],DATA[Promo Discount],"") -> SAVE 15% | V45: =_xlfn.XLOOKUP(A45,DATA[Item No.],DATA[SRP],"") -> 28.99 | W45: =_xlfn.XLOOKUP(A45,DATA[Item No.],DATA[SKU Territory Ranking - West],"") -> 0
A46: Oven-baked dog treats | C46: =_xlfn.XLOOKUP(A46,DATA[Item No.],DATA[Description],"") ->  | D46: =_xlfn.XLOOKUP(A46,DATA[Item No.],DATA[Unit UPC],"") ->  | E46: =_xlfn.XLOOKUP(A46,DATA[Item No.],DATA[Size],"") ->  | F46: =_xlfn.XLOOKUP(A46,DATA[Item No.],DATA[Picked],"") ->  | G46: =_xlfn.XLOOKUP(A46,DATA[Item No.],DATA[Pack],"") ->  | H46: =_xlfn.XLOOKUP(A46,DATA[Item No.],DATA[O],"") ->  | I46: =_xlfn.XLOOKUP(A46,DATA[Item No.],DATA[K],"") ->  | J46: =_xlfn.XLOOKUP(A46,DATA[Item No.],DATA[V],"") ->  | K46: =_xlfn.XLOOKUP(A46,DATA[Item No.],DATA[GF],"") ->  | L46: =_xlfn.XLOOKUP(A46,DATA[Item No.],DATA[N],"") ->  | M46: =_xlfn.XLOOKUP(A46,DATA[Item No.],DATA[H],"") ->  | N46: =_xlfn.XLOOKUP(A46,DATA[Item No.],DATA[CM],"") ->  | O46: =_xlfn.XLOOKUP(A46,DATA[Item No.],DATA[CO],"") ->  | P46: =_xlfn.XLOOKUP(A46,DATA[Item No.],DATA[CP],"") ->  | Q46: =_xlfn.XLOOKUP(A46,DATA[Item No.],DATA[Guaranteed Days],"") ->  | R46: =_xlfn.XLOOKUP(A46,DATA[Item No.],DATA[Storage],"") ->  | S46: =_xlfn.XLOOKUP(A46,DATA[Item No.],DATA[Price],"") ->  | T46: =_xlfn.XLOOKUP(A46,DATA[Item No.],DATA[Monthly Promo],"") ->  | U46: =_xlfn.XLOOKUP(A46,DATA[Item No.],DATA[Promo Discount],"") ->  | V46: =_xlfn.XLOOKUP(A46,DATA[Item No.],DATA[SRP],"") ->  | W46: =_xlfn.XLOOKUP(A46,DATA[Item No.],DATA[SKU Territory Ranking - West],"") -> 
A47: SN0065 | C47: =_xlfn.XLOOKUP(A47,DATA[Item No.],DATA[Description],"") -> Omega Boost | D47: =_xlfn.XLOOKUP(A47,DATA[Item No.],DATA[Unit UPC],"") -> 628942070068 | E47: =_xlfn.XLOOKUP(A47,DATA[Item No.],DATA[Size],"") -> 130G | F47: =_xlfn.XLOOKUP(A47,DATA[Item No.],DATA[Picked],"") -> CA | G47: =_xlfn.XLOOKUP(A47,DATA[Item No.],DATA[Pack],"") -> 6 | H47: =_xlfn.XLOOKUP(A47,DATA[Item No.],DATA[O],"") -> 0 | I47: =_xlfn.XLOOKUP(A47,DATA[Item No.],DATA[K],"") -> 0 | J47: =_xlfn.XLOOKUP(A47,DATA[Item No.],DATA[V],"") -> 0 | K47: =_xlfn.XLOOKUP(A47,DATA[Item No.],DATA[GF],"") -> 0 | L47: =_xlfn.XLOOKUP(A47,DATA[Item No.],DATA[N],"") -> 0 | M47: =_xlfn.XLOOKUP(A47,DATA[Item No.],DATA[H],"") -> 0 | N47: =_xlfn.XLOOKUP(A47,DATA[Item No.],DATA[CM],"") -> Y | O47: =_xlfn.XLOOKUP(A47,DATA[Item No.],DATA[CO],"") -> Y | P47: =_xlfn.XLOOKUP(A47,DATA[Item No.],DATA[CP],"") -> 0 | Q47: =_xlfn.XLOOKUP(A47,DATA[Item No.],DATA[Guaranteed Days],"") -> 150 | R47: =_xlfn.XLOOKUP(A47,DATA[Item No.],DATA[Storage],"") -> Dry | S47: =_xlfn.XLOOKUP(A47,DATA[Item No.],DATA[Price],"") -> 47.15 | T47: =_xlfn.XLOOKUP(A47,DATA[Item No.],DATA[Monthly Promo],"") -> APRIL DEAL! | U47: =_xlfn.XLOOKUP(A47,DATA[Item No.],DATA[Promo Discount],"") -> SAVE 15% | V47: =_xlfn.XLOOKUP(A47,DATA[Item No.],DATA[SRP],"") -> 9.99 | W47: =_xlfn.XLOOKUP(A47,DATA[Item No.],DATA[SKU Territory Ranking - West],"") -> 0
A48: SN0089 | C48: =_xlfn.XLOOKUP(A48,DATA[Item No.],DATA[Description],"") -> Wellness Blend | D48: =_xlfn.XLOOKUP(A48,DATA[Item No.],DATA[Unit UPC],"") -> 628942070082 | E48: =_xlfn.XLOOKUP(A48,DATA[Item No.],DATA[Size],"") -> 130G | F48: =_xlfn.XLOOKUP(A48,DATA[Item No.],DATA[Picked],"") -> CA | G48: =_xlfn.XLOOKUP(A48,DATA[Item No.],DATA[Pack],"") -> 6 | H48: =_xlfn.XLOOKUP(A48,DATA[Item No.],DATA[O],"") -> 0 | I48: =_xlfn.XLOOKUP(A48,DATA[Item No.],DATA[K],"") -> 0 | J48: =_xlfn.XLOOKUP(A48,DATA[Item No.],DATA[V],"") -> 0 | K48: =_xlfn.XLOOKUP(A48,DATA[Item No.],DATA[GF],"") -> 0 | L48: =_xlfn.XLOOKUP(A48,DATA[Item No.],DATA[N],"") -> 0 | M48: =_xlfn.XLOOKUP(A48,DATA[Item No.],DATA[H],"") -> 0 | N48: =_xlfn.XLOOKUP(A48,DATA[Item No.],DATA[CM],"") -> Y | O48: =_xlfn.XLOOKUP(A48,DATA[Item No.],DATA[CO],"") -> Y | P48: =_xlfn.XLOOKUP(A48,DATA[Item No.],DATA[CP],"") -> 0 | Q48: =_xlfn.XLOOKUP(A48,DATA[Item No.],DATA[Guaranteed Days],"") -> 150 | R48: =_xlfn.XLOOKUP(A48,DATA[Item No.],DATA[Storage],"") -> Dry | S48: =_xlfn.XLOOKUP(A48,DATA[Item No.],DATA[Price],"") -> 47.15 | T48: =_xlfn.XLOOKUP(A48,DATA[Item No.],DATA[Monthly Promo],"") -> APRIL DEAL! | U48: =_xlfn.XLOOKUP(A48,DATA[Item No.],DATA[Promo Discount],"") -> SAVE 15% | V48: =_xlfn.XLOOKUP(A48,DATA[Item No.],DATA[SRP],"") -> 9.99 | W48: =_xlfn.XLOOKUP(A48,DATA[Item No.],DATA[SKU Territory Ranking - West],"") -> 0
A49: SN5052 | C49: =_xlfn.XLOOKUP(A49,DATA[Item No.],DATA[Description],"") -> Calming Care | D49: =_xlfn.XLOOKUP(A49,DATA[Item No.],DATA[Unit UPC],"") -> 628942605055 | E49: =_xlfn.XLOOKUP(A49,DATA[Item No.],DATA[Size],"") -> 130G | F49: =_xlfn.XLOOKUP(A49,DATA[Item No.],DATA[Picked],"") -> CA | G49: =_xlfn.XLOOKUP(A49,DATA[Item No.],DATA[Pack],"") -> 6 | H49: =_xlfn.XLOOKUP(A49,DATA[Item No.],DATA[O],"") -> 0 | I49: =_xlfn.XLOOKUP(A49,DATA[Item No.],DATA[K],"") -> 0 | J49: =_xlfn.XLOOKUP(A49,DATA[Item No.],DATA[V],"") -> 0 | K49: =_xlfn.XLOOKUP(A49,DATA[Item No.],DATA[GF],"") -> 0 | L49: =_xlfn.XLOOKUP(A49,DATA[Item No.],DATA[N],"") -> 0 | M49: =_xlfn.XLOOKUP(A49,DATA[Item No.],DATA[H],"") -> 0 | N49: =_xlfn.XLOOKUP(A49,DATA[Item No.],DATA[CM],"") -> Y | O49: =_xlfn.XLOOKUP(A49,DATA[Item No.],DATA[CO],"") -> Y | P49: =_xlfn.XLOOKUP(A49,DATA[Item No.],DATA[CP],"") -> 0 | Q49: =_xlfn.XLOOKUP(A49,DATA[Item No.],DATA[Guaranteed Days],"") -> 150 | R49: =_xlfn.XLOOKUP(A49,DATA[Item No.],DATA[Storage],"") -> Dry | S49: =_xlfn.XLOOKUP(A49,DATA[Item No.],DATA[Price],"") -> 47.15 | T49: =_xlfn.XLOOKUP(A49,DATA[Item No.],DATA[Monthly Promo],"") -> APRIL DEAL! | U49: =_xlfn.XLOOKUP(A49,DATA[Item No.],DATA[Promo Discount],"") -> SAVE 15% | V49: =_xlfn.XLOOKUP(A49,DATA[Item No.],DATA[SRP],"") -> 9.99 | W49: =_xlfn.XLOOKUP(A49,DATA[Item No.],DATA[SKU Territory Ranking - West],"") -> 0
A50: Semimoist dog treats | C50: =_xlfn.XLOOKUP(A50,DATA[Item No.],DATA[Description],"") ->  | D50: =_xlfn.XLOOKUP(A50,DATA[Item No.],DATA[Unit UPC],"") ->  | E50: =_xlfn.XLOOKUP(A50,DATA[Item No.],DATA[Size],"") ->  | F50: =_xlfn.XLOOKUP(A50,DATA[Item No.],DATA[Picked],"") ->  | G50: =_xlfn.XLOOKUP(A50,DATA[Item No.],DATA[Pack],"") ->  | H50: =_xlfn.XLOOKUP(A50,DATA[Item No.],DATA[O],"") ->  | I50: =_xlfn.XLOOKUP(A50,DATA[Item No.],DATA[K],"") ->  | J50: =_xlfn.XLOOKUP(A50,DATA[Item No.],DATA[V],"") ->  | K50: =_xlfn.XLOOKUP(A50,DATA[Item No.],DATA[GF],"") ->  | L50: =_xlfn.XLOOKUP(A50,DATA[Item No.],DATA[N],"") ->  | M50: =_xlfn.XLOOKUP(A50,DATA[Item No.],DATA[H],"") ->  | N50: =_xlfn.XLOOKUP(A50,DATA[Item No.],DATA[CM],"") ->  | O50: =_xlfn.XLOOKUP(A50,DATA[Item No.],DATA[CO],"") ->  | P50: =_xlfn.XLOOKUP(A50,DATA[Item No.],DATA[CP],"") ->  | Q50: =_xlfn.XLOOKUP(A50,DATA[Item No.],DATA[Guaranteed Days],"") ->  | R50: =_xlfn.XLOOKUP(A50,DATA[Item No.],DATA[Storage],"") ->  | S50: =_xlfn.XLOOKUP(A50,DATA[Item No.],DATA[Price],"") ->  | T50: =_xlfn.XLOOKUP(A50,DATA[Item No.],DATA[Monthly Promo],"") ->  | U50: =_xlfn.XLOOKUP(A50,DATA[Item No.],DATA[Promo Discount],"") ->  | V50: =_xlfn.XLOOKUP(A50,DATA[Item No.],DATA[SRP],"") ->  | W50: =_xlfn.XLOOKUP(A50,DATA[Item No.],DATA[SKU Territory Ranking - West],"") -> 
A51: SN0058 | C51: =_xlfn.XLOOKUP(A51,DATA[Item No.],DATA[Description],"") -> Prebiotic Boost | D51: =_xlfn.XLOOKUP(A51,DATA[Item No.],DATA[Unit UPC],"") -> 628942070051 | E51: =_xlfn.XLOOKUP(A51,DATA[Item No.],DATA[Size],"") -> 130G | F51: =_xlfn.XLOOKUP(A51,DATA[Item No.],DATA[Picked],"") -> CA | G51: =_xlfn.XLOOKUP(A51,DATA[Item No.],DATA[Pack],"") -> 6 | H51: =_xlfn.XLOOKUP(A51,DATA[Item No.],DATA[O],"") -> 0 | I51: =_xlfn.XLOOKUP(A51,DATA[Item No.],DATA[K],"") -> 0 | J51: =_xlfn.XLOOKUP(A51,DATA[Item No.],DATA[V],"") -> 0 | K51: =_xlfn.XLOOKUP(A51,DATA[Item No.],DATA[GF],"") -> 0 | L51: =_xlfn.XLOOKUP(A51,DATA[Item No.],DATA[N],"") -> 0 | M51: =_xlfn.XLOOKUP(A51,DATA[Item No.],DATA[H],"") -> 0 | N51: =_xlfn.XLOOKUP(A51,DATA[Item No.],DATA[CM],"") -> Y | O51: =_xlfn.XLOOKUP(A51,DATA[Item No.],DATA[CO],"") -> Y | P51: =_xlfn.XLOOKUP(A51,DATA[Item No.],DATA[CP],"") -> 0 | Q51: =_xlfn.XLOOKUP(A51,DATA[Item No.],DATA[Guaranteed Days],"") -> 150 | R51: =_xlfn.XLOOKUP(A51,DATA[Item No.],DATA[Storage],"") -> Dry | S51: =_xlfn.XLOOKUP(A51,DATA[Item No.],DATA[Price],"") -> 47.15 | T51: =_xlfn.XLOOKUP(A51,DATA[Item No.],DATA[Monthly Promo],"") -> APRIL DEAL! | U51: =_xlfn.XLOOKUP(A51,DATA[Item No.],DATA[Promo Discount],"") -> SAVE 15% | V51: =_xlfn.XLOOKUP(A51,DATA[Item No.],DATA[SRP],"") -> 9.99 | W51: =_xlfn.XLOOKUP(A51,DATA[Item No.],DATA[SKU Territory Ranking - West],"") -> 0
A52: SN0072 | C52: =_xlfn.XLOOKUP(A52,DATA[Item No.],DATA[Description],"") -> Healthy Skin & Coat | D52: =_xlfn.XLOOKUP(A52,DATA[Item No.],DATA[Unit UPC],"") -> 628942070075 | E52: =_xlfn.XLOOKUP(A52,DATA[Item No.],DATA[Size],"") -> 130G | F52: =_xlfn.XLOOKUP(A52,DATA[Item No.],DATA[Picked],"") -> CA | G52: =_xlfn.XLOOKUP(A52,DATA[Item No.],DATA[Pack],"") -> 6 | H52: =_xlfn.XLOOKUP(A52,DATA[Item No.],DATA[O],"") -> 0 | I52: =_xlfn.XLOOKUP(A52,DATA[Item No.],DATA[K],"") -> 0 | J52: =_xlfn.XLOOKUP(A52,DATA[Item No.],DATA[V],"") -> 0 | K52: =_xlfn.XLOOKUP(A52,DATA[Item No.],DATA[GF],"") -> 0 | L52: =_xlfn.XLOOKUP(A52,DATA[Item No.],DATA[N],"") -> 0 | M52: =_xlfn.XLOOKUP(A52,DATA[Item No.],DATA[H],"") -> 0 | N52: =_xlfn.XLOOKUP(A52,DATA[Item No.],DATA[CM],"") -> Y | O52: =_xlfn.XLOOKUP(A52,DATA[Item No.],DATA[CO],"") -> Y | P52: =_xlfn.XLOOKUP(A52,DATA[Item No.],DATA[CP],"") -> 0 | Q52: =_xlfn.XLOOKUP(A52,DATA[Item No.],DATA[Guaranteed Days],"") -> 150 | R52: =_xlfn.XLOOKUP(A52,DATA[Item No.],DATA[Storage],"") -> Dry | S52: =_xlfn.XLOOKUP(A52,DATA[Item No.],DATA[Price],"") -> 47.15 | T52: =_xlfn.XLOOKUP(A52,DATA[Item No.],DATA[Monthly Promo],"") -> APRIL DEAL! | U52: =_xlfn.XLOOKUP(A52,DATA[Item No.],DATA[Promo Discount],"") -> SAVE 15% | V52: =_xlfn.XLOOKUP(A52,DATA[Item No.],DATA[SRP],"") -> 9.99 | W52: =_xlfn.XLOOKUP(A52,DATA[Item No.],DATA[SKU Territory Ranking - West],"") -> 0
A53: ATWOOD HERITAGE | C53: =_xlfn.XLOOKUP(A53,DATA[Item No.],DATA[Description],"") ->  | D53: =_xlfn.XLOOKUP(A53,DATA[Item No.],DATA[Unit UPC],"") ->  | E53: =_xlfn.XLOOKUP(A53,DATA[Item No.],DATA[Size],"") ->  | F53: =_xlfn.XLOOKUP(A53,DATA[Item No.],DATA[Picked],"") ->  | G53: =_xlfn.XLOOKUP(A53,DATA[Item No.],DATA[Pack],"") ->  | H53: =_xlfn.XLOOKUP(A53,DATA[Item No.],DATA[O],"") ->  | I53: =_xlfn.XLOOKUP(A53,DATA[Item No.],DATA[K],"") ->  | J53: =_xlfn.XLOOKUP(A53,DATA[Item No.],DATA[V],"") ->  | K53: =_xlfn.XLOOKUP(A53,DATA[Item No.],DATA[GF],"") ->  | L53: =_xlfn.XLOOKUP(A53,DATA[Item No.],DATA[N],"") ->  | M53: =_xlfn.XLOOKUP(A53,DATA[Item No.],DATA[H],"") ->  | N53: =_xlfn.XLOOKUP(A53,DATA[Item No.],DATA[CM],"") ->  | O53: =_xlfn.XLOOKUP(A53,DATA[Item No.],DATA[CO],"") ->  | P53: =_xlfn.XLOOKUP(A53,DATA[Item No.],DATA[CP],"") ->  | Q53: =_xlfn.XLOOKUP(A53,DATA[Item No.],DATA[Guaranteed Days],"") ->  | R53: =_xlfn.XLOOKUP(A53,DATA[Item No.],DATA[Storage],"") ->  | S53: =_xlfn.XLOOKUP(A53,DATA[Item No.],DATA[Price],"") ->  | T53: =_xlfn.XLOOKUP(A53,DATA[Item No.],DATA[Monthly Promo],"") ->  | U53: =_xlfn.XLOOKUP(A53,DATA[Item No.],DATA[Promo Discount],"") ->  | V53: =_xlfn.XLOOKUP(A53,DATA[Item No.],DATA[SRP],"") ->  | W53: =_xlfn.XLOOKUP(A53,DATA[Item No.],DATA[SKU Territory Ranking - West],"") -> 
A54: Sausage Sticks | C54: =_xlfn.XLOOKUP(A54,DATA[Item No.],DATA[Description],"") ->  | D54: =_xlfn.XLOOKUP(A54,DATA[Item No.],DATA[Unit UPC],"") ->  | E54: =_xlfn.XLOOKUP(A54,DATA[Item No.],DATA[Size],"") ->  | F54: =_xlfn.XLOOKUP(A54,DATA[Item No.],DATA[Picked],"") ->  | G54: =_xlfn.XLOOKUP(A54,DATA[Item No.],DATA[Pack],"") ->  | H54: =_xlfn.XLOOKUP(A54,DATA[Item No.],DATA[O],"") ->  | I54: =_xlfn.XLOOKUP(A54,DATA[Item No.],DATA[K],"") ->  | J54: =_xlfn.XLOOKUP(A54,DATA[Item No.],DATA[V],"") ->  | K54: =_xlfn.XLOOKUP(A54,DATA[Item No.],DATA[GF],"") ->  | L54: =_xlfn.XLOOKUP(A54,DATA[Item No.],DATA[N],"") ->  | M54: =_xlfn.XLOOKUP(A54,DATA[Item No.],DATA[H],"") ->  | N54: =_xlfn.XLOOKUP(A54,DATA[Item No.],DATA[CM],"") ->  | O54: =_xlfn.XLOOKUP(A54,DATA[Item No.],DATA[CO],"") ->  | P54: =_xlfn.XLOOKUP(A54,DATA[Item No.],DATA[CP],"") ->  | Q54: =_xlfn.XLOOKUP(A54,DATA[Item No.],DATA[Guaranteed Days],"") ->  | R54: =_xlfn.XLOOKUP(A54,DATA[Item No.],DATA[Storage],"") ->  | S54: =_xlfn.XLOOKUP(A54,DATA[Item No.],DATA[Price],"") ->  | T54: =_xlfn.XLOOKUP(A54,DATA[Item No.],DATA[Monthly Promo],"") ->  | U54: =_xlfn.XLOOKUP(A54,DATA[Item No.],DATA[Promo Discount],"") ->  | V54: =_xlfn.XLOOKUP(A54,DATA[Item No.],DATA[SRP],"") ->  | W54: =_xlfn.XLOOKUP(A54,DATA[Item No.],DATA[SKU Territory Ranking - West],"") -> 
A55: AT8101 | C55: =_xlfn.XLOOKUP(A55,DATA[Item No.],DATA[Description],"") -> Bison Sausage Sticks 5 pack | D55: =_xlfn.XLOOKUP(A55,DATA[Item No.],DATA[Unit UPC],"") -> 691392381015 | E55: =_xlfn.XLOOKUP(A55,DATA[Item No.],DATA[Size],"") -> 125G | F55: =_xlfn.XLOOKUP(A55,DATA[Item No.],DATA[Picked],"") -> EA | G55: =_xlfn.XLOOKUP(A55,DATA[Item No.],DATA[Pack],"") -> 6 | H55: =_xlfn.XLOOKUP(A55,DATA[Item No.],DATA[O],"") -> 0 | I55: =_xlfn.XLOOKUP(A55,DATA[Item No.],DATA[K],"") -> 0 | J55: =_xlfn.XLOOKUP(A55,DATA[Item No.],DATA[V],"") -> 0 | K55: =_xlfn.XLOOKUP(A55,DATA[Item No.],DATA[GF],"") -> 0 | L55: =_xlfn.XLOOKUP(A55,DATA[Item No.],DATA[N],"") -> 0 | M55: =_xlfn.XLOOKUP(A55,DATA[Item No.],DATA[H],"") -> 0 | N55: =_xlfn.XLOOKUP(A55,DATA[Item No.],DATA[CM],"") -> 0 | O55: =_xlfn.XLOOKUP(A55,DATA[Item No.],DATA[CO],"") -> Y | P55: =_xlfn.XLOOKUP(A55,DATA[Item No.],DATA[CP],"") -> Y | Q55: =_xlfn.XLOOKUP(A55,DATA[Item No.],DATA[Guaranteed Days],"") -> 88 | R55: =_xlfn.XLOOKUP(A55,DATA[Item No.],DATA[Storage],"") -> Dry | S55: =_xlfn.XLOOKUP(A55,DATA[Item No.],DATA[Price],"") -> 50.96 | T55: =_xlfn.XLOOKUP(A55,DATA[Item No.],DATA[Monthly Promo],"") -> 0 | U55: =_xlfn.XLOOKUP(A55,DATA[Item No.],DATA[Promo Discount],"") -> 0 | V55: =_xlfn.XLOOKUP(A55,DATA[Item No.],DATA[SRP],"") -> 12.99 | W55: =_xlfn.XLOOKUP(A55,DATA[Item No.],DATA[SKU Territory Ranking - West],"") -> 0
A56: AT8201 | C56: =_xlfn.XLOOKUP(A56,DATA[Item No.],DATA[Description],"") -> Elk Sausage Sticks 5 pack | D56: =_xlfn.XLOOKUP(A56,DATA[Item No.],DATA[Unit UPC],"") -> 691392382012 | E56: =_xlfn.XLOOKUP(A56,DATA[Item No.],DATA[Size],"") -> 125G | F56: =_xlfn.XLOOKUP(A56,DATA[Item No.],DATA[Picked],"") -> EA | G56: =_xlfn.XLOOKUP(A56,DATA[Item No.],DATA[Pack],"") -> 6 | H56: =_xlfn.XLOOKUP(A56,DATA[Item No.],DATA[O],"") -> 0 | I56: =_xlfn.XLOOKUP(A56,DATA[Item No.],DATA[K],"") -> 0 | J56: =_xlfn.XLOOKUP(A56,DATA[Item No.],DATA[V],"") -> 0 | K56: =_xlfn.XLOOKUP(A56,DATA[Item No.],DATA[GF],"") -> 0 | L56: =_xlfn.XLOOKUP(A56,DATA[Item No.],DATA[N],"") -> 0 | M56: =_xlfn.XLOOKUP(A56,DATA[Item No.],DATA[H],"") -> 0 | N56: =_xlfn.XLOOKUP(A56,DATA[Item No.],DATA[CM],"") -> 0 | O56: =_xlfn.XLOOKUP(A56,DATA[Item No.],DATA[CO],"") -> Y | P56: =_xlfn.XLOOKUP(A56,DATA[Item No.],DATA[CP],"") -> Y | Q56: =_xlfn.XLOOKUP(A56,DATA[Item No.],DATA[Guaranteed Days],"") -> 88 | R56: =_xlfn.XLOOKUP(A56,DATA[Item No.],DATA[Storage],"") -> Dry | S56: =_xlfn.XLOOKUP(A56,DATA[Item No.],DATA[Price],"") -> 50.96 | T56: =_xlfn.XLOOKUP(A56,DATA[Item No.],DATA[Monthly Promo],"") -> 0 | U56: =_xlfn.XLOOKUP(A56,DATA[Item No.],DATA[Promo Discount],"") -> 0 | V56: =_xlfn.XLOOKUP(A56,DATA[Item No.],DATA[SRP],"") -> 12.99 | W56: =_xlfn.XLOOKUP(A56,DATA[Item No.],DATA[SKU Territory Ranking - West],"") -> 0
A57: AT3017 | C57: =_xlfn.XLOOKUP(A57,DATA[Item No.],DATA[Description],"") -> Honey Garlic Grassfed Angus Beef Sausage Sticks 5 pack | D57: =_xlfn.XLOOKUP(A57,DATA[Item No.],DATA[Unit UPC],"") -> 691392523019 | E57: =_xlfn.XLOOKUP(A57,DATA[Item No.],DATA[Size],"") -> 125G | F57: =_xlfn.XLOOKUP(A57,DATA[Item No.],DATA[Picked],"") -> EA | G57: =_xlfn.XLOOKUP(A57,DATA[Item No.],DATA[Pack],"") -> 6 | H57: =_xlfn.XLOOKUP(A57,DATA[Item No.],DATA[O],"") -> 0 | I57: =_xlfn.XLOOKUP(A57,DATA[Item No.],DATA[K],"") -> 0 | J57: =_xlfn.XLOOKUP(A57,DATA[Item No.],DATA[V],"") -> 0 | K57: =_xlfn.XLOOKUP(A57,DATA[Item No.],DATA[GF],"") -> 0 | L57: =_xlfn.XLOOKUP(A57,DATA[Item No.],DATA[N],"") -> 0 | M57: =_xlfn.XLOOKUP(A57,DATA[Item No.],DATA[H],"") -> 0 | N57: =_xlfn.XLOOKUP(A57,DATA[Item No.],DATA[CM],"") -> 0 | O57: =_xlfn.XLOOKUP(A57,DATA[Item No.],DATA[CO],"") -> Y | P57: =_xlfn.XLOOKUP(A57,DATA[Item No.],DATA[CP],"") -> Y | Q57: =_xlfn.XLOOKUP(A57,DATA[Item No.],DATA[Guaranteed Days],"") -> 88 | R57: =_xlfn.XLOOKUP(A57,DATA[Item No.],DATA[Storage],"") -> Dry | S57: =_xlfn.XLOOKUP(A57,DATA[Item No.],DATA[Price],"") -> 50.96 | T57: =_xlfn.XLOOKUP(A57,DATA[Item No.],DATA[Monthly Promo],"") -> 0 | U57: =_xlfn.XLOOKUP(A57,DATA[Item No.],DATA[Promo Discount],"") -> 0 | V57: =_xlfn.XLOOKUP(A57,DATA[Item No.],DATA[SRP],"") -> 12.99 | W57: =_xlfn.XLOOKUP(A57,DATA[Item No.],DATA[SKU Territory Ranking - West],"") -> 0
A58: AT2010 | C58: =_xlfn.XLOOKUP(A58,DATA[Item No.],DATA[Description],"") -> Hot Grassfed Angus Beef Sausage Sticks 5 pack | D58: =_xlfn.XLOOKUP(A58,DATA[Item No.],DATA[Unit UPC],"") -> 691392522012 | E58: =_xlfn.XLOOKUP(A58,DATA[Item No.],DATA[Size],"") -> 125G | F58: =_xlfn.XLOOKUP(A58,DATA[Item No.],DATA[Picked],"") -> EA | G58: =_xlfn.XLOOKUP(A58,DATA[Item No.],DATA[Pack],"") -> 6 | H58: =_xlfn.XLOOKUP(A58,DATA[Item No.],DATA[O],"") -> 0 | I58: =_xlfn.XLOOKUP(A58,DATA[Item No.],DATA[K],"") -> 0 | J58: =_xlfn.XLOOKUP(A58,DATA[Item No.],DATA[V],"") -> 0 | K58: =_xlfn.XLOOKUP(A58,DATA[Item No.],DATA[GF],"") -> 0 | L58: =_xlfn.XLOOKUP(A58,DATA[Item No.],DATA[N],"") -> 0 | M58: =_xlfn.XLOOKUP(A58,DATA[Item No.],DATA[H],"") -> 0 | N58: =_xlfn.XLOOKUP(A58,DATA[Item No.],DATA[CM],"") -> 0 | O58: =_xlfn.XLOOKUP(A58,DATA[Item No.],DATA[CO],"") -> Y | P58: =_xlfn.XLOOKUP(A58,DATA[Item No.],DATA[CP],"") -> Y | Q58: =_xlfn.XLOOKUP(A58,DATA[Item No.],DATA[Guaranteed Days],"") -> 88 | R58: =_xlfn.XLOOKUP(A58,DATA[Item No.],DATA[Storage],"") -> Dry | S58: =_xlfn.XLOOKUP(A58,DATA[Item No.],DATA[Price],"") -> 50.96 | T58: =_xlfn.XLOOKUP(A58,DATA[Item No.],DATA[Monthly Promo],"") -> 0 | U58: =_xlfn.XLOOKUP(A58,DATA[Item No.],DATA[Promo Discount],"") -> 0 | V58: =_xlfn.XLOOKUP(A58,DATA[Item No.],DATA[SRP],"") -> 12.99 | W58: =_xlfn.XLOOKUP(A58,DATA[Item No.],DATA[SKU Territory Ranking - West],"") -> 0
A59: AT4014 | C59: =_xlfn.XLOOKUP(A59,DATA[Item No.],DATA[Description],"") -> Kangaroo Sausage Sticks 5 pack | D59: =_xlfn.XLOOKUP(A59,DATA[Item No.],DATA[Unit UPC],"") -> 691392384016 | E59: =_xlfn.XLOOKUP(A59,DATA[Item No.],DATA[Size],"") -> 125G | F59: =_xlfn.XLOOKUP(A59,DATA[Item No.],DATA[Picked],"") -> EA | G59: =_xlfn.XLOOKUP(A59,DATA[Item No.],DATA[Pack],"") -> 6 | H59: =_xlfn.XLOOKUP(A59,DATA[Item No.],DATA[O],"") -> 0 | I59: =_xlfn.XLOOKUP(A59,DATA[Item No.],DATA[K],"") -> 0 | J59: =_xlfn.XLOOKUP(A59,DATA[Item No.],DATA[V],"") -> 0 | K59: =_xlfn.XLOOKUP(A59,DATA[Item No.],DATA[GF],"") -> 0 | L59: =_xlfn.XLOOKUP(A59,DATA[Item No.],DATA[N],"") -> 0 | M59: =_xlfn.XLOOKUP(A59,DATA[Item No.],DATA[H],"") -> 0 | N59: =_xlfn.XLOOKUP(A59,DATA[Item No.],DATA[CM],"") -> 0 | O59: =_xlfn.XLOOKUP(A59,DATA[Item No.],DATA[CO],"") -> Y | P59: =_xlfn.XLOOKUP(A59,DATA[Item No.],DATA[CP],"") -> Y | Q59: =_xlfn.XLOOKUP(A59,DATA[Item No.],DATA[Guaranteed Days],"") -> 88 | R59: =_xlfn.XLOOKUP(A59,DATA[Item No.],DATA[Storage],"") -> Dry | S59: =_xlfn.XLOOKUP(A59,DATA[Item No.],DATA[Price],"") -> 50.96 | T59: =_xlfn.XLOOKUP(A59,DATA[Item No.],DATA[Monthly Promo],"") -> 0 | U59: =_xlfn.XLOOKUP(A59,DATA[Item No.],DATA[Promo Discount],"") -> 0 | V59: =_xlfn.XLOOKUP(A59,DATA[Item No.],DATA[SRP],"") -> 12.99 | W59: =_xlfn.XLOOKUP(A59,DATA[Item No.],DATA[SKU Territory Ranking - West],"") -> 0
A60: AT1013 | C60: =_xlfn.XLOOKUP(A60,DATA[Item No.],DATA[Description],"") -> Mild Grassfed Angus Beef Sausage Sticks 5 pack | D60: =_xlfn.XLOOKUP(A60,DATA[Item No.],DATA[Unit UPC],"") -> 691392521015 | E60: =_xlfn.XLOOKUP(A60,DATA[Item No.],DATA[Size],"") -> 125G | F60: =_xlfn.XLOOKUP(A60,DATA[Item No.],DATA[Picked],"") -> EA | G60: =_xlfn.XLOOKUP(A60,DATA[Item No.],DATA[Pack],"") -> 6 | H60: =_xlfn.XLOOKUP(A60,DATA[Item No.],DATA[O],"") -> 0 | I60: =_xlfn.XLOOKUP(A60,DATA[Item No.],DATA[K],"") -> 0 | J60: =_xlfn.XLOOKUP(A60,DATA[Item No.],DATA[V],"") -> 0 | K60: =_xlfn.XLOOKUP(A60,DATA[Item No.],DATA[GF],"") -> 0 | L60: =_xlfn.XLOOKUP(A60,DATA[Item No.],DATA[N],"") -> 0 | M60: =_xlfn.XLOOKUP(A60,DATA[Item No.],DATA[H],"") -> 0 | N60: =_xlfn.XLOOKUP(A60,DATA[Item No.],DATA[CM],"") -> 0 | O60: =_xlfn.XLOOKUP(A60,DATA[Item No.],DATA[CO],"") -> Y | P60: =_xlfn.XLOOKUP(A60,DATA[Item No.],DATA[CP],"") -> Y | Q60: =_xlfn.XLOOKUP(A60,DATA[Item No.],DATA[Guaranteed Days],"") -> 88 | R60: =_xlfn.XLOOKUP(A60,DATA[Item No.],DATA[Storage],"") -> Dry | S60: =_xlfn.XLOOKUP(A60,DATA[Item No.],DATA[Price],"") -> 50.96 | T60: =_xlfn.XLOOKUP(A60,DATA[Item No.],DATA[Monthly Promo],"") -> 0 | U60: =_xlfn.XLOOKUP(A60,DATA[Item No.],DATA[Promo Discount],"") -> 0 | V60: =_xlfn.XLOOKUP(A60,DATA[Item No.],DATA[SRP],"") -> 12.99 | W60: =_xlfn.XLOOKUP(A60,DATA[Item No.],DATA[SKU Territory Ranking - West],"") -> 0
A61: AT8301 | C61: =_xlfn.XLOOKUP(A61,DATA[Item No.],DATA[Description],"") -> Venison Sausage Sticks 5 pack | D61: =_xlfn.XLOOKUP(A61,DATA[Item No.],DATA[Unit UPC],"") -> 691392383019 | E61: =_xlfn.XLOOKUP(A61,DATA[Item No.],DATA[Size],"") -> 125G | F61: =_xlfn.XLOOKUP(A61,DATA[Item No.],DATA[Picked],"") -> EA | G61: =_xlfn.XLOOKUP(A61,DATA[Item No.],DATA[Pack],"") -> 6 | H61: =_xlfn.XLOOKUP(A61,DATA[Item No.],DATA[O],"") -> 0 | I61: =_xlfn.XLOOKUP(A61,DATA[Item No.],DATA[K],"") -> 0 | J61: =_xlfn.XLOOKUP(A61,DATA[Item No.],DATA[V],"") -> 0 | K61: =_xlfn.XLOOKUP(A61,DATA[Item No.],DATA[GF],"") -> 0 | L61: =_xlfn.XLOOKUP(A61,DATA[Item No.],DATA[N],"") -> 0 | M61: =_xlfn.XLOOKUP(A61,DATA[Item No.],DATA[H],"") -> 0 | N61: =_xlfn.XLOOKUP(A61,DATA[Item No.],DATA[CM],"") -> 0 | O61: =_xlfn.XLOOKUP(A61,DATA[Item No.],DATA[CO],"") -> Y | P61: =_xlfn.XLOOKUP(A61,DATA[Item No.],DATA[CP],"") -> Y | Q61: =_xlfn.XLOOKUP(A61,DATA[Item No.],DATA[Guaranteed Days],"") -> 88 | R61: =_xlfn.XLOOKUP(A61,DATA[Item No.],DATA[Storage],"") -> Dry | S61: =_xlfn.XLOOKUP(A61,DATA[Item No.],DATA[Price],"") -> 50.96 | T61: =_xlfn.XLOOKUP(A61,DATA[Item No.],DATA[Monthly Promo],"") -> 0 | U61: =_xlfn.XLOOKUP(A61,DATA[Item No.],DATA[Promo Discount],"") -> 0 | V61: =_xlfn.XLOOKUP(A61,DATA[Item No.],DATA[SRP],"") -> 12.99 | W61: =_xlfn.XLOOKUP(A61,DATA[Item No.],DATA[SKU Territory Ranking - West],"") -> 0
A62: AT6018 | C62: =_xlfn.XLOOKUP(A62,DATA[Item No.],DATA[Description],"") -> Wild Boar Sausage Sticks 5 pack | D62: =_xlfn.XLOOKUP(A62,DATA[Item No.],DATA[Unit UPC],"") -> 691392386010 | E62: =_xlfn.XLOOKUP(A62,DATA[Item No.],DATA[Size],"") -> 125G | F62: =_xlfn.XLOOKUP(A62,DATA[Item No.],DATA[Picked],"") -> EA | G62: =_xlfn.XLOOKUP(A62,DATA[Item No.],DATA[Pack],"") -> 6 | H62: =_xlfn.XLOOKUP(A62,DATA[Item No.],DATA[O],"") -> 0 | I62: =_xlfn.XLOOKUP(A62,DATA[Item No.],DATA[K],"") -> 0 | J62: =_xlfn.XLOOKUP(A62,DATA[Item No.],DATA[V],"") -> 0 | K62: =_xlfn.XLOOKUP(A62,DATA[Item No.],DATA[GF],"") -> 0 | L62: =_xlfn.XLOOKUP(A62,DATA[Item No.],DATA[N],"") -> 0 | M62: =_xlfn.XLOOKUP(A62,DATA[Item No.],DATA[H],"") -> 0 | N62: =_xlfn.XLOOKUP(A62,DATA[Item No.],DATA[CM],"") -> 0 | O62: =_xlfn.XLOOKUP(A62,DATA[Item No.],DATA[CO],"") -> Y | P62: =_xlfn.XLOOKUP(A62,DATA[Item No.],DATA[CP],"") -> Y | Q62: =_xlfn.XLOOKUP(A62,DATA[Item No.],DATA[Guaranteed Days],"") -> 88 | R62: =_xlfn.XLOOKUP(A62,DATA[Item No.],DATA[Storage],"") -> Dry | S62: =_xlfn.XLOOKUP(A62,DATA[Item No.],DATA[Price],"") -> 50.96 | T62: =_xlfn.XLOOKUP(A62,DATA[Item No.],DATA[Monthly Promo],"") -> 0 | U62: =_xlfn.XLOOKUP(A62,DATA[Item No.],DATA[Promo Discount],"") -> 0 | V62: =_xlfn.XLOOKUP(A62,DATA[Item No.],DATA[SRP],"") -> 12.99 | W62: =_xlfn.XLOOKUP(A62,DATA[Item No.],DATA[SKU Territory Ranking - West],"") -> 0
A63: AT8102 | C63: =_xlfn.XLOOKUP(A63,DATA[Item No.],DATA[Description],"") -> Bison Sausage Sticks 2 pack | D63: =_xlfn.XLOOKUP(A63,DATA[Item No.],DATA[Unit UPC],"") -> 691392381022 | E63: =_xlfn.XLOOKUP(A63,DATA[Item No.],DATA[Size],"") -> 50G | F63: =_xlfn.XLOOKUP(A63,DATA[Item No.],DATA[Picked],"") -> EA | G63: =_xlfn.XLOOKUP(A63,DATA[Item No.],DATA[Pack],"") -> 12 | H63: =_xlfn.XLOOKUP(A63,DATA[Item No.],DATA[O],"") -> 0 | I63: =_xlfn.XLOOKUP(A63,DATA[Item No.],DATA[K],"") -> 0 | J63: =_xlfn.XLOOKUP(A63,DATA[Item No.],DATA[V],"") -> 0 | K63: =_xlfn.XLOOKUP(A63,DATA[Item No.],DATA[GF],"") -> 0 | L63: =_xlfn.XLOOKUP(A63,DATA[Item No.],DATA[N],"") -> 0 | M63: =_xlfn.XLOOKUP(A63,DATA[Item No.],DATA[H],"") -> 0 | N63: =_xlfn.XLOOKUP(A63,DATA[Item No.],DATA[CM],"") -> 0 | O63: =_xlfn.XLOOKUP(A63,DATA[Item No.],DATA[CO],"") -> Y | P63: =_xlfn.XLOOKUP(A63,DATA[Item No.],DATA[CP],"") -> Y | Q63: =_xlfn.XLOOKUP(A63,DATA[Item No.],DATA[Guaranteed Days],"") -> 88 | R63: =_xlfn.XLOOKUP(A63,DATA[Item No.],DATA[Storage],"") -> Dry | S63: =_xlfn.XLOOKUP(A63,DATA[Item No.],DATA[Price],"") -> 43 | T63: =_xlfn.XLOOKUP(A63,DATA[Item No.],DATA[Monthly Promo],"") -> 0 | U63: =_xlfn.XLOOKUP(A63,DATA[Item No.],DATA[Promo Discount],"") -> 0 | V63: =_xlfn.XLOOKUP(A63,DATA[Item No.],DATA[SRP],"") -> 5.49 | W63: =_xlfn.XLOOKUP(A63,DATA[Item No.],DATA[SKU Territory Ranking - West],"") -> 0
A64: AT8202 | C64: =_xlfn.XLOOKUP(A64,DATA[Item No.],DATA[Description],"") -> Elk Sausage Sticks 2 pack | D64: =_xlfn.XLOOKUP(A64,DATA[Item No.],DATA[Unit UPC],"") -> 691392382029 | E64: =_xlfn.XLOOKUP(A64,DATA[Item No.],DATA[Size],"") -> 50G | F64: =_xlfn.XLOOKUP(A64,DATA[Item No.],DATA[Picked],"") -> EA | G64: =_xlfn.XLOOKUP(A64,DATA[Item No.],DATA[Pack],"") -> 12 | H64: =_xlfn.XLOOKUP(A64,DATA[Item No.],DATA[O],"") -> 0 | I64: =_xlfn.XLOOKUP(A64,DATA[Item No.],DATA[K],"") -> 0 | J64: =_xlfn.XLOOKUP(A64,DATA[Item No.],DATA[V],"") -> 0 | K64: =_xlfn.XLOOKUP(A64,DATA[Item No.],DATA[GF],"") -> 0 | L64: =_xlfn.XLOOKUP(A64,DATA[Item No.],DATA[N],"") -> 0 | M64: =_xlfn.XLOOKUP(A64,DATA[Item No.],DATA[H],"") -> 0 | N64: =_xlfn.XLOOKUP(A64,DATA[Item No.],DATA[CM],"") -> 0 | O64: =_xlfn.XLOOKUP(A64,DATA[Item No.],DATA[CO],"") -> Y | P64: =_xlfn.XLOOKUP(A64,DATA[Item No.],DATA[CP],"") -> Y | Q64: =_xlfn.XLOOKUP(A64,DATA[Item No.],DATA[Guaranteed Days],"") -> 88 | R64: =_xlfn.XLOOKUP(A64,DATA[Item No.],DATA[Storage],"") -> Dry | S64: =_xlfn.XLOOKUP(A64,DATA[Item No.],DATA[Price],"") -> 43 | T64: =_xlfn.XLOOKUP(A64,DATA[Item No.],DATA[Monthly Promo],"") -> 0 | U64: =_xlfn.XLOOKUP(A64,DATA[Item No.],DATA[Promo Discount],"") -> 0 | V64: =_xlfn.XLOOKUP(A64,DATA[Item No.],DATA[SRP],"") -> 5.49 | W64: =_xlfn.XLOOKUP(A64,DATA[Item No.],DATA[SKU Territory Ranking - West],"") -> 0
A65: AT3024 | C65: =_xlfn.XLOOKUP(A65,DATA[Item No.],DATA[Description],"") -> Honey Garlic Grassfed Angus Beef Sausage Sticks 2 pack | D65: =_xlfn.XLOOKUP(A65,DATA[Item No.],DATA[Unit UPC],"") -> 691392523026 | E65: =_xlfn.XLOOKUP(A65,DATA[Item No.],DATA[Size],"") -> 50G | F65: =_xlfn.XLOOKUP(A65,DATA[Item No.],DATA[Picked],"") -> EA | G65: =_xlfn.XLOOKUP(A65,DATA[Item No.],DATA[Pack],"") -> 12 | H65: =_xlfn.XLOOKUP(A65,DATA[Item No.],DATA[O],"") -> 0 | I65: =_xlfn.XLOOKUP(A65,DATA[Item No.],DATA[K],"") -> 0 | J65: =_xlfn.XLOOKUP(A65,DATA[Item No.],DATA[V],"") -> 0 | K65: =_xlfn.XLOOKUP(A65,DATA[Item No.],DATA[GF],"") -> 0 | L65: =_xlfn.XLOOKUP(A65,DATA[Item No.],DATA[N],"") -> 0 | M65: =_xlfn.XLOOKUP(A65,DATA[Item No.],DATA[H],"") -> 0 | N65: =_xlfn.XLOOKUP(A65,DATA[Item No.],DATA[CM],"") -> 0 | O65: =_xlfn.XLOOKUP(A65,DATA[Item No.],DATA[CO],"") -> Y | P65: =_xlfn.XLOOKUP(A65,DATA[Item No.],DATA[CP],"") -> Y | Q65: =_xlfn.XLOOKUP(A65,DATA[Item No.],DATA[Guaranteed Days],"") -> 88 | R65: =_xlfn.XLOOKUP(A65,DATA[Item No.],DATA[Storage],"") -> Dry | S65: =_xlfn.XLOOKUP(A65,DATA[Item No.],DATA[Price],"") -> 43 | T65: =_xlfn.XLOOKUP(A65,DATA[Item No.],DATA[Monthly Promo],"") -> 0 | U65: =_xlfn.XLOOKUP(A65,DATA[Item No.],DATA[Promo Discount],"") -> 0 | V65: =_xlfn.XLOOKUP(A65,DATA[Item No.],DATA[SRP],"") -> 5.49 | W65: =_xlfn.XLOOKUP(A65,DATA[Item No.],DATA[SKU Territory Ranking - West],"") -> 0
A66: AT2027 | C66: =_xlfn.XLOOKUP(A66,DATA[Item No.],DATA[Description],"") -> Hot Grassfed Angus Beef Sausage Sticks 2 pack | D66: =_xlfn.XLOOKUP(A66,DATA[Item No.],DATA[Unit UPC],"") -> 691392522029 | E66: =_xlfn.XLOOKUP(A66,DATA[Item No.],DATA[Size],"") -> 50G | F66: =_xlfn.XLOOKUP(A66,DATA[Item No.],DATA[Picked],"") -> EA | G66: =_xlfn.XLOOKUP(A66,DATA[Item No.],DATA[Pack],"") -> 12 | H66: =_xlfn.XLOOKUP(A66,DATA[Item No.],DATA[O],"") -> 0 | I66: =_xlfn.XLOOKUP(A66,DATA[Item No.],DATA[K],"") -> 0 | J66: =_xlfn.XLOOKUP(A66,DATA[Item No.],DATA[V],"") -> 0 | K66: =_xlfn.XLOOKUP(A66,DATA[Item No.],DATA[GF],"") -> 0 | L66: =_xlfn.XLOOKUP(A66,DATA[Item No.],DATA[N],"") -> 0 | M66: =_xlfn.XLOOKUP(A66,DATA[Item No.],DATA[H],"") -> 0 | N66: =_xlfn.XLOOKUP(A66,DATA[Item No.],DATA[CM],"") -> 0 | O66: =_xlfn.XLOOKUP(A66,DATA[Item No.],DATA[CO],"") -> Y | P66: =_xlfn.XLOOKUP(A66,DATA[Item No.],DATA[CP],"") -> Y | Q66: =_xlfn.XLOOKUP(A66,DATA[Item No.],DATA[Guaranteed Days],"") -> 88 | R66: =_xlfn.XLOOKUP(A66,DATA[Item No.],DATA[Storage],"") -> Dry | S66: =_xlfn.XLOOKUP(A66,DATA[Item No.],DATA[Price],"") -> 43 | T66: =_xlfn.XLOOKUP(A66,DATA[Item No.],DATA[Monthly Promo],"") -> 0 | U66: =_xlfn.XLOOKUP(A66,DATA[Item No.],DATA[Promo Discount],"") -> 0 | V66: =_xlfn.XLOOKUP(A66,DATA[Item No.],DATA[SRP],"") -> 5.49 | W66: =_xlfn.XLOOKUP(A66,DATA[Item No.],DATA[SKU Territory Ranking - West],"") -> 0
A67: AT4021 | C67: =_xlfn.XLOOKUP(A67,DATA[Item No.],DATA[Description],"") -> Kangaroo Sausage Sticks 2 pack | D67: =_xlfn.XLOOKUP(A67,DATA[Item No.],DATA[Unit UPC],"") -> 691392384023 | E67: =_xlfn.XLOOKUP(A67,DATA[Item No.],DATA[Size],"") -> 50G | F67: =_xlfn.XLOOKUP(A67,DATA[Item No.],DATA[Picked],"") -> EA | G67: =_xlfn.XLOOKUP(A67,DATA[Item No.],DATA[Pack],"") -> 12 | H67: =_xlfn.XLOOKUP(A67,DATA[Item No.],DATA[O],"") -> 0 | I67: =_xlfn.XLOOKUP(A67,DATA[Item No.],DATA[K],"") -> 0 | J67: =_xlfn.XLOOKUP(A67,DATA[Item No.],DATA[V],"") -> 0 | K67: =_xlfn.XLOOKUP(A67,DATA[Item No.],DATA[GF],"") -> 0 | L67: =_xlfn.XLOOKUP(A67,DATA[Item No.],DATA[N],"") -> 0 | M67: =_xlfn.XLOOKUP(A67,DATA[Item No.],DATA[H],"") -> 0 | N67: =_xlfn.XLOOKUP(A67,DATA[Item No.],DATA[CM],"") -> 0 | O67: =_xlfn.XLOOKUP(A67,DATA[Item No.],DATA[CO],"") -> Y | P67: =_xlfn.XLOOKUP(A67,DATA[Item No.],DATA[CP],"") -> Y | Q67: =_xlfn.XLOOKUP(A67,DATA[Item No.],DATA[Guaranteed Days],"") -> 88 | R67: =_xlfn.XLOOKUP(A67,DATA[Item No.],DATA[Storage],"") -> Dry | S67: =_xlfn.XLOOKUP(A67,DATA[Item No.],DATA[Price],"") -> 43 | T67: =_xlfn.XLOOKUP(A67,DATA[Item No.],DATA[Monthly Promo],"") -> 0 | U67: =_xlfn.XLOOKUP(A67,DATA[Item No.],DATA[Promo Discount],"") -> 0 | V67: =_xlfn.XLOOKUP(A67,DATA[Item No.],DATA[SRP],"") -> 5.49 | W67: =_xlfn.XLOOKUP(A67,DATA[Item No.],DATA[SKU Territory Ranking - West],"") -> 0
A68: AT1020 | C68: =_xlfn.XLOOKUP(A68,DATA[Item No.],DATA[Description],"") -> Mild Grassfed Angus Beef Sausage Sticks 2 pack | D68: =_xlfn.XLOOKUP(A68,DATA[Item No.],DATA[Unit UPC],"") -> 691392521022 | E68: =_xlfn.XLOOKUP(A68,DATA[Item No.],DATA[Size],"") -> 50G | F68: =_xlfn.XLOOKUP(A68,DATA[Item No.],DATA[Picked],"") -> EA | G68: =_xlfn.XLOOKUP(A68,DATA[Item No.],DATA[Pack],"") -> 12 | H68: =_xlfn.XLOOKUP(A68,DATA[Item No.],DATA[O],"") -> 0 | I68: =_xlfn.XLOOKUP(A68,DATA[Item No.],DATA[K],"") -> 0 | J68: =_xlfn.XLOOKUP(A68,DATA[Item No.],DATA[V],"") -> 0 | K68: =_xlfn.XLOOKUP(A68,DATA[Item No.],DATA[GF],"") -> 0 | L68: =_xlfn.XLOOKUP(A68,DATA[Item No.],DATA[N],"") -> 0 | M68: =_xlfn.XLOOKUP(A68,DATA[Item No.],DATA[H],"") -> 0 | N68: =_xlfn.XLOOKUP(A68,DATA[Item No.],DATA[CM],"") -> 0 | O68: =_xlfn.XLOOKUP(A68,DATA[Item No.],DATA[CO],"") -> Y | P68: =_xlfn.XLOOKUP(A68,DATA[Item No.],DATA[CP],"") -> Y | Q68: =_xlfn.XLOOKUP(A68,DATA[Item No.],DATA[Guaranteed Days],"") -> 88 | R68: =_xlfn.XLOOKUP(A68,DATA[Item No.],DATA[Storage],"") -> Dry | S68: =_xlfn.XLOOKUP(A68,DATA[Item No.],DATA[Price],"") -> 43 | T68: =_xlfn.XLOOKUP(A68,DATA[Item No.],DATA[Monthly Promo],"") -> 0 | U68: =_xlfn.XLOOKUP(A68,DATA[Item No.],DATA[Promo Discount],"") -> 0 | V68: =_xlfn.XLOOKUP(A68,DATA[Item No.],DATA[SRP],"") -> 5.49 | W68: =_xlfn.XLOOKUP(A68,DATA[Item No.],DATA[SKU Territory Ranking - West],"") -> 0
A69: AT8302 | C69: =_xlfn.XLOOKUP(A69,DATA[Item No.],DATA[Description],"") -> Venison Sausage Sticks 2 pack | D69: =_xlfn.XLOOKUP(A69,DATA[Item No.],DATA[Unit UPC],"") -> 691392383026 | E69: =_xlfn.XLOOKUP(A69,DATA[Item No.],DATA[Size],"") -> 50G | F69: =_xlfn.XLOOKUP(A69,DATA[Item No.],DATA[Picked],"") -> EA | G69: =_xlfn.XLOOKUP(A69,DATA[Item No.],DATA[Pack],"") -> 12 | H69: =_xlfn.XLOOKUP(A69,DATA[Item No.],DATA[O],"") -> 0 | I69: =_xlfn.XLOOKUP(A69,DATA[Item No.],DATA[K],"") -> 0 | J69: =_xlfn.XLOOKUP(A69,DATA[Item No.],DATA[V],"") -> 0 | K69: =_xlfn.XLOOKUP(A69,DATA[Item No.],DATA[GF],"") -> 0 | L69: =_xlfn.XLOOKUP(A69,DATA[Item No.],DATA[N],"") -> 0 | M69: =_xlfn.XLOOKUP(A69,DATA[Item No.],DATA[H],"") -> 0 | N69: =_xlfn.XLOOKUP(A69,DATA[Item No.],DATA[CM],"") -> 0 | O69: =_xlfn.XLOOKUP(A69,DATA[Item No.],DATA[CO],"") -> Y | P69: =_xlfn.XLOOKUP(A69,DATA[Item No.],DATA[CP],"") -> Y | Q69: =_xlfn.XLOOKUP(A69,DATA[Item No.],DATA[Guaranteed Days],"") -> 88 | R69: =_xlfn.XLOOKUP(A69,DATA[Item No.],DATA[Storage],"") -> Dry | S69: =_xlfn.XLOOKUP(A69,DATA[Item No.],DATA[Price],"") -> 43 | T69: =_xlfn.XLOOKUP(A69,DATA[Item No.],DATA[Monthly Promo],"") -> 0 | U69: =_xlfn.XLOOKUP(A69,DATA[Item No.],DATA[Promo Discount],"") -> 0 | V69: =_xlfn.XLOOKUP(A69,DATA[Item No.],DATA[SRP],"") -> 5.49 | W69: =_xlfn.XLOOKUP(A69,DATA[Item No.],DATA[SKU Territory Ranking - West],"") -> 0
A70: AT6025 | C70: =_xlfn.XLOOKUP(A70,DATA[Item No.],DATA[Description],"") -> Wild Boar Sausage Sticks 2 pack | D70: =_xlfn.XLOOKUP(A70,DATA[Item No.],DATA[Unit UPC],"") -> 691392386027 | E70: =_xlfn.XLOOKUP(A70,DATA[Item No.],DATA[Size],"") -> 50G | F70: =_xlfn.XLOOKUP(A70,DATA[Item No.],DATA[Picked],"") -> EA | G70: =_xlfn.XLOOKUP(A70,DATA[Item No.],DATA[Pack],"") -> 12 | H70: =_xlfn.XLOOKUP(A70,DATA[Item No.],DATA[O],"") -> 0 | I70: =_xlfn.XLOOKUP(A70,DATA[Item No.],DATA[K],"") -> 0 | J70: =_xlfn.XLOOKUP(A70,DATA[Item No.],DATA[V],"") -> 0 | K70: =_xlfn.XLOOKUP(A70,DATA[Item No.],DATA[GF],"") -> 0 | L70: =_xlfn.XLOOKUP(A70,DATA[Item No.],DATA[N],"") -> 0 | M70: =_xlfn.XLOOKUP(A70,DATA[Item No.],DATA[H],"") -> 0 | N70: =_xlfn.XLOOKUP(A70,DATA[Item No.],DATA[CM],"") -> 0 | O70: =_xlfn.XLOOKUP(A70,DATA[Item No.],DATA[CO],"") -> Y | P70: =_xlfn.XLOOKUP(A70,DATA[Item No.],DATA[CP],"") -> Y | Q70: =_xlfn.XLOOKUP(A70,DATA[Item No.],DATA[Guaranteed Days],"") -> 88 | R70: =_xlfn.XLOOKUP(A70,DATA[Item No.],DATA[Storage],"") -> Dry | S70: =_xlfn.XLOOKUP(A70,DATA[Item No.],DATA[Price],"") -> 43 | T70: =_xlfn.XLOOKUP(A70,DATA[Item No.],DATA[Monthly Promo],"") -> 0 | U70: =_xlfn.XLOOKUP(A70,DATA[Item No.],DATA[Promo Discount],"") -> 0 | V70: =_xlfn.XLOOKUP(A70,DATA[Item No.],DATA[SRP],"") -> 5.49 | W70: =_xlfn.XLOOKUP(A70,DATA[Item No.],DATA[SKU Territory Ranking - West],"") -> 0
A71: Sliced pack | C71: =_xlfn.XLOOKUP(A71,DATA[Item No.],DATA[Description],"") ->  | D71: =_xlfn.XLOOKUP(A71,DATA[Item No.],DATA[Unit UPC],"") ->  | E71: =_xlfn.XLOOKUP(A71,DATA[Item No.],DATA[Size],"") ->  | F71: =_xlfn.XLOOKUP(A71,DATA[Item No.],DATA[Picked],"") ->  | G71: =_xlfn.XLOOKUP(A71,DATA[Item No.],DATA[Pack],"") ->  | H71: =_xlfn.XLOOKUP(A71,DATA[Item No.],DATA[O],"") ->  | I71: =_xlfn.XLOOKUP(A71,DATA[Item No.],DATA[K],"") ->  | J71: =_xlfn.XLOOKUP(A71,DATA[Item No.],DATA[V],"") ->  | K71: =_xlfn.XLOOKUP(A71,DATA[Item No.],DATA[GF],"") ->  | L71: =_xlfn.XLOOKUP(A71,DATA[Item No.],DATA[N],"") ->  | M71: =_xlfn.XLOOKUP(A71,DATA[Item No.],DATA[H],"") ->  | N71: =_xlfn.XLOOKUP(A71,DATA[Item No.],DATA[CM],"") ->  | O71: =_xlfn.XLOOKUP(A71,DATA[Item No.],DATA[CO],"") ->  | P71: =_xlfn.XLOOKUP(A71,DATA[Item No.],DATA[CP],"") ->  | Q71: =_xlfn.XLOOKUP(A71,DATA[Item No.],DATA[Guaranteed Days],"") ->  | R71: =_xlfn.XLOOKUP(A71,DATA[Item No.],DATA[Storage],"") ->  | S71: =_xlfn.XLOOKUP(A71,DATA[Item No.],DATA[Price],"") ->  | T71: =_xlfn.XLOOKUP(A71,DATA[Item No.],DATA[Monthly Promo],"") ->  | U71: =_xlfn.XLOOKUP(A71,DATA[Item No.],DATA[Promo Discount],"") ->  | V71: =_xlfn.XLOOKUP(A71,DATA[Item No.],DATA[SRP],"") ->  | W71: =_xlfn.XLOOKUP(A71,DATA[Item No.],DATA[SKU Territory Ranking - West],"") -> 
A72: AT1011 | C72: =_xlfn.XLOOKUP(A72,DATA[Item No.],DATA[Description],"") -> Bison Salami sliced pack | D72: =_xlfn.XLOOKUP(A72,DATA[Item No.],DATA[Unit UPC],"") -> 691392231013 | E72: =_xlfn.XLOOKUP(A72,DATA[Item No.],DATA[Size],"") -> 125G | F72: =_xlfn.XLOOKUP(A72,DATA[Item No.],DATA[Picked],"") -> EA | G72: =_xlfn.XLOOKUP(A72,DATA[Item No.],DATA[Pack],"") -> 6 | H72: =_xlfn.XLOOKUP(A72,DATA[Item No.],DATA[O],"") -> 0 | I72: =_xlfn.XLOOKUP(A72,DATA[Item No.],DATA[K],"") -> 0 | J72: =_xlfn.XLOOKUP(A72,DATA[Item No.],DATA[V],"") -> 0 | K72: =_xlfn.XLOOKUP(A72,DATA[Item No.],DATA[GF],"") -> 0 | L72: =_xlfn.XLOOKUP(A72,DATA[Item No.],DATA[N],"") -> 0 | M72: =_xlfn.XLOOKUP(A72,DATA[Item No.],DATA[H],"") -> 0 | N72: =_xlfn.XLOOKUP(A72,DATA[Item No.],DATA[CM],"") -> 0 | O72: =_xlfn.XLOOKUP(A72,DATA[Item No.],DATA[CO],"") -> Y | P72: =_xlfn.XLOOKUP(A72,DATA[Item No.],DATA[CP],"") -> Y | Q72: =_xlfn.XLOOKUP(A72,DATA[Item No.],DATA[Guaranteed Days],"") -> 88 | R72: =_xlfn.XLOOKUP(A72,DATA[Item No.],DATA[Storage],"") -> Dry | S72: =_xlfn.XLOOKUP(A72,DATA[Item No.],DATA[Price],"") -> 50.96 | T72: =_xlfn.XLOOKUP(A72,DATA[Item No.],DATA[Monthly Promo],"") -> 0 | U72: =_xlfn.XLOOKUP(A72,DATA[Item No.],DATA[Promo Discount],"") -> 0 | V72: =_xlfn.XLOOKUP(A72,DATA[Item No.],DATA[SRP],"") -> 12.99 | W72: =_xlfn.XLOOKUP(A72,DATA[Item No.],DATA[SKU Territory Ranking - West],"") -> 0
A73: AT1028 | C73: =_xlfn.XLOOKUP(A73,DATA[Item No.],DATA[Description],"") -> Elk Salami sliced pack | D73: =_xlfn.XLOOKUP(A73,DATA[Item No.],DATA[Unit UPC],"") -> 691392231020 | E73: =_xlfn.XLOOKUP(A73,DATA[Item No.],DATA[Size],"") -> 125G | F73: =_xlfn.XLOOKUP(A73,DATA[Item No.],DATA[Picked],"") -> EA | G73: =_xlfn.XLOOKUP(A73,DATA[Item No.],DATA[Pack],"") -> 6 | H73: =_xlfn.XLOOKUP(A73,DATA[Item No.],DATA[O],"") -> 0 | I73: =_xlfn.XLOOKUP(A73,DATA[Item No.],DATA[K],"") -> 0 | J73: =_xlfn.XLOOKUP(A73,DATA[Item No.],DATA[V],"") -> 0 | K73: =_xlfn.XLOOKUP(A73,DATA[Item No.],DATA[GF],"") -> 0 | L73: =_xlfn.XLOOKUP(A73,DATA[Item No.],DATA[N],"") -> 0 | M73: =_xlfn.XLOOKUP(A73,DATA[Item No.],DATA[H],"") -> 0 | N73: =_xlfn.XLOOKUP(A73,DATA[Item No.],DATA[CM],"") -> 0 | O73: =_xlfn.XLOOKUP(A73,DATA[Item No.],DATA[CO],"") -> Y | P73: =_xlfn.XLOOKUP(A73,DATA[Item No.],DATA[CP],"") -> Y | Q73: =_xlfn.XLOOKUP(A73,DATA[Item No.],DATA[Guaranteed Days],"") -> 88 | R73: =_xlfn.XLOOKUP(A73,DATA[Item No.],DATA[Storage],"") -> Dry | S73: =_xlfn.XLOOKUP(A73,DATA[Item No.],DATA[Price],"") -> 50.96 | T73: =_xlfn.XLOOKUP(A73,DATA[Item No.],DATA[Monthly Promo],"") -> 0 | U73: =_xlfn.XLOOKUP(A73,DATA[Item No.],DATA[Promo Discount],"") -> 0 | V73: =_xlfn.XLOOKUP(A73,DATA[Item No.],DATA[SRP],"") -> 12.99 | W73: =_xlfn.XLOOKUP(A73,DATA[Item No.],DATA[SKU Territory Ranking - West],"") -> 0
A74: AT1012 | C74: =_xlfn.XLOOKUP(A74,DATA[Item No.],DATA[Description],"") -> Grassfed Angus Beef Salami sliced pack | D74: =_xlfn.XLOOKUP(A74,DATA[Item No.],DATA[Unit UPC],"") -> 691392221014 | E74: =_xlfn.XLOOKUP(A74,DATA[Item No.],DATA[Size],"") -> 125G | F74: =_xlfn.XLOOKUP(A74,DATA[Item No.],DATA[Picked],"") -> EA | G74: =_xlfn.XLOOKUP(A74,DATA[Item No.],DATA[Pack],"") -> 6 | H74: =_xlfn.XLOOKUP(A74,DATA[Item No.],DATA[O],"") -> 0 | I74: =_xlfn.XLOOKUP(A74,DATA[Item No.],DATA[K],"") -> 0 | J74: =_xlfn.XLOOKUP(A74,DATA[Item No.],DATA[V],"") -> 0 | K74: =_xlfn.XLOOKUP(A74,DATA[Item No.],DATA[GF],"") -> 0 | L74: =_xlfn.XLOOKUP(A74,DATA[Item No.],DATA[N],"") -> 0 | M74: =_xlfn.XLOOKUP(A74,DATA[Item No.],DATA[H],"") -> 0 | N74: =_xlfn.XLOOKUP(A74,DATA[Item No.],DATA[CM],"") -> 0 | O74: =_xlfn.XLOOKUP(A74,DATA[Item No.],DATA[CO],"") -> Y | P74: =_xlfn.XLOOKUP(A74,DATA[Item No.],DATA[CP],"") -> Y | Q74: =_xlfn.XLOOKUP(A74,DATA[Item No.],DATA[Guaranteed Days],"") -> 88 | R74: =_xlfn.XLOOKUP(A74,DATA[Item No.],DATA[Storage],"") -> Dry | S74: =_xlfn.XLOOKUP(A74,DATA[Item No.],DATA[Price],"") -> 50.96 | T74: =_xlfn.XLOOKUP(A74,DATA[Item No.],DATA[Monthly Promo],"") -> 0 | U74: =_xlfn.XLOOKUP(A74,DATA[Item No.],DATA[Promo Discount],"") -> 0 | V74: =_xlfn.XLOOKUP(A74,DATA[Item No.],DATA[SRP],"") -> 12.99 | W74: =_xlfn.XLOOKUP(A74,DATA[Item No.],DATA[SKU Territory Ranking - West],"") -> 0
A75: AT1042 | C75: =_xlfn.XLOOKUP(A75,DATA[Item No.],DATA[Description],"") -> Venison Salami sliced pack | D75: =_xlfn.XLOOKUP(A75,DATA[Item No.],DATA[Unit UPC],"") -> 691392231044 | E75: =_xlfn.XLOOKUP(A75,DATA[Item No.],DATA[Size],"") -> 125G | F75: =_xlfn.XLOOKUP(A75,DATA[Item No.],DATA[Picked],"") -> EA | G75: =_xlfn.XLOOKUP(A75,DATA[Item No.],DATA[Pack],"") -> 6 | H75: =_xlfn.XLOOKUP(A75,DATA[Item No.],DATA[O],"") -> 0 | I75: =_xlfn.XLOOKUP(A75,DATA[Item No.],DATA[K],"") -> 0 | J75: =_xlfn.XLOOKUP(A75,DATA[Item No.],DATA[V],"") -> 0 | K75: =_xlfn.XLOOKUP(A75,DATA[Item No.],DATA[GF],"") -> 0 | L75: =_xlfn.XLOOKUP(A75,DATA[Item No.],DATA[N],"") -> 0 | M75: =_xlfn.XLOOKUP(A75,DATA[Item No.],DATA[H],"") -> 0 | N75: =_xlfn.XLOOKUP(A75,DATA[Item No.],DATA[CM],"") -> 0 | O75: =_xlfn.XLOOKUP(A75,DATA[Item No.],DATA[CO],"") -> Y | P75: =_xlfn.XLOOKUP(A75,DATA[Item No.],DATA[CP],"") -> Y | Q75: =_xlfn.XLOOKUP(A75,DATA[Item No.],DATA[Guaranteed Days],"") -> 88 | R75: =_xlfn.XLOOKUP(A75,DATA[Item No.],DATA[Storage],"") -> Dry | S75: =_xlfn.XLOOKUP(A75,DATA[Item No.],DATA[Price],"") -> 50.96 | T75: =_xlfn.XLOOKUP(A75,DATA[Item No.],DATA[Monthly Promo],"") -> 0 | U75: =_xlfn.XLOOKUP(A75,DATA[Item No.],DATA[Promo Discount],"") -> 0 | V75: =_xlfn.XLOOKUP(A75,DATA[Item No.],DATA[SRP],"") -> 12.99 | W75: =_xlfn.XLOOKUP(A75,DATA[Item No.],DATA[SKU Territory Ranking - West],"") -> 0
A76: AT1059 | C76: =_xlfn.XLOOKUP(A76,DATA[Item No.],DATA[Description],"") -> Wild Boar Salami sliced pack | D76: =_xlfn.XLOOKUP(A76,DATA[Item No.],DATA[Unit UPC],"") -> 691392231051 | E76: =_xlfn.XLOOKUP(A76,DATA[Item No.],DATA[Size],"") -> 125G | F76: =_xlfn.XLOOKUP(A76,DATA[Item No.],DATA[Picked],"") -> EA | G76: =_xlfn.XLOOKUP(A76,DATA[Item No.],DATA[Pack],"") -> 6 | H76: =_xlfn.XLOOKUP(A76,DATA[Item No.],DATA[O],"") -> 0 | I76: =_xlfn.XLOOKUP(A76,DATA[Item No.],DATA[K],"") -> 0 | J76: =_xlfn.XLOOKUP(A76,DATA[Item No.],DATA[V],"") -> 0 | K76: =_xlfn.XLOOKUP(A76,DATA[Item No.],DATA[GF],"") -> 0 | L76: =_xlfn.XLOOKUP(A76,DATA[Item No.],DATA[N],"") -> 0 | M76: =_xlfn.XLOOKUP(A76,DATA[Item No.],DATA[H],"") -> 0 | N76: =_xlfn.XLOOKUP(A76,DATA[Item No.],DATA[CM],"") -> 0 | O76: =_xlfn.XLOOKUP(A76,DATA[Item No.],DATA[CO],"") -> Y | P76: =_xlfn.XLOOKUP(A76,DATA[Item No.],DATA[CP],"") -> Y | Q76: =_xlfn.XLOOKUP(A76,DATA[Item No.],DATA[Guaranteed Days],"") -> 88 | R76: =_xlfn.XLOOKUP(A76,DATA[Item No.],DATA[Storage],"") -> Dry | S76: =_xlfn.XLOOKUP(A76,DATA[Item No.],DATA[Price],"") -> 50.96 | T76: =_xlfn.XLOOKUP(A76,DATA[Item No.],DATA[Monthly Promo],"") -> 0 | U76: =_xlfn.XLOOKUP(A76,DATA[Item No.],DATA[Promo Discount],"") -> 0 | V76: =_xlfn.XLOOKUP(A76,DATA[Item No.],DATA[SRP],"") -> 12.99 | W76: =_xlfn.XLOOKUP(A76,DATA[Item No.],DATA[SKU Territory Ranking - West],"") -> 0
A77: BARBET | C77: =_xlfn.XLOOKUP(A77,DATA[Item No.],DATA[Description],"") ->  | D77: =_xlfn.XLOOKUP(A77,DATA[Item No.],DATA[Unit UPC],"") ->  | E77: =_xlfn.XLOOKUP(A77,DATA[Item No.],DATA[Size],"") ->  | F77: =_xlfn.XLOOKUP(A77,DATA[Item No.],DATA[Picked],"") ->  | G77: =_xlfn.XLOOKUP(A77,DATA[Item No.],DATA[Pack],"") ->  | H77: =_xlfn.XLOOKUP(A77,DATA[Item No.],DATA[O],"") ->  | I77: =_xlfn.XLOOKUP(A77,DATA[Item No.],DATA[K],"") ->  | J77: =_xlfn.XLOOKUP(A77,DATA[Item No.],DATA[V],"") ->  | K77: =_xlfn.XLOOKUP(A77,DATA[Item No.],DATA[GF],"") ->  | L77: =_xlfn.XLOOKUP(A77,DATA[Item No.],DATA[N],"") ->  | M77: =_xlfn.XLOOKUP(A77,DATA[Item No.],DATA[H],"") ->  | N77: =_xlfn.XLOOKUP(A77,DATA[Item No.],DATA[CM],"") ->  | O77: =_xlfn.XLOOKUP(A77,DATA[Item No.],DATA[CO],"") ->  | P77: =_xlfn.XLOOKUP(A77,DATA[Item No.],DATA[CP],"") ->  | Q77: =_xlfn.XLOOKUP(A77,DATA[Item No.],DATA[Guaranteed Days],"") ->  | R77: =_xlfn.XLOOKUP(A77,DATA[Item No.],DATA[Storage],"") ->  | S77: =_xlfn.XLOOKUP(A77,DATA[Item No.],DATA[Price],"") ->  | T77: =_xlfn.XLOOKUP(A77,DATA[Item No.],DATA[Monthly Promo],"") ->  | U77: =_xlfn.XLOOKUP(A77,DATA[Item No.],DATA[Promo Discount],"") ->  | V77: =_xlfn.XLOOKUP(A77,DATA[Item No.],DATA[SRP],"") ->  | W77: =_xlfn.XLOOKUP(A77,DATA[Item No.],DATA[SKU Territory Ranking - West],"") -> 
A78: Sparkling water | C78: =_xlfn.XLOOKUP(A78,DATA[Item No.],DATA[Description],"") ->  | D78: =_xlfn.XLOOKUP(A78,DATA[Item No.],DATA[Unit UPC],"") ->  | E78: =_xlfn.XLOOKUP(A78,DATA[Item No.],DATA[Size],"") ->  | F78: =_xlfn.XLOOKUP(A78,DATA[Item No.],DATA[Picked],"") ->  | G78: =_xlfn.XLOOKUP(A78,DATA[Item No.],DATA[Pack],"") ->  | H78: =_xlfn.XLOOKUP(A78,DATA[Item No.],DATA[O],"") ->  | I78: =_xlfn.XLOOKUP(A78,DATA[Item No.],DATA[K],"") ->  | J78: =_xlfn.XLOOKUP(A78,DATA[Item No.],DATA[V],"") ->  | K78: =_xlfn.XLOOKUP(A78,DATA[Item No.],DATA[GF],"") ->  | L78: =_xlfn.XLOOKUP(A78,DATA[Item No.],DATA[N],"") ->  | M78: =_xlfn.XLOOKUP(A78,DATA[Item No.],DATA[H],"") ->  | N78: =_xlfn.XLOOKUP(A78,DATA[Item No.],DATA[CM],"") ->  | O78: =_xlfn.XLOOKUP(A78,DATA[Item No.],DATA[CO],"") ->  | P78: =_xlfn.XLOOKUP(A78,DATA[Item No.],DATA[CP],"") ->  | Q78: =_xlfn.XLOOKUP(A78,DATA[Item No.],DATA[Guaranteed Days],"") ->  | R78: =_xlfn.XLOOKUP(A78,DATA[Item No.],DATA[Storage],"") ->  | S78: =_xlfn.XLOOKUP(A78,DATA[Item No.],DATA[Price],"") ->  | T78: =_xlfn.XLOOKUP(A78,DATA[Item No.],DATA[Monthly Promo],"") ->  | U78: =_xlfn.XLOOKUP(A78,DATA[Item No.],DATA[Promo Discount],"") ->  | V78: =_xlfn.XLOOKUP(A78,DATA[Item No.],DATA[SRP],"") ->  | W78: =_xlfn.XLOOKUP(A78,DATA[Item No.],DATA[SKU Territory Ranking - West],"") -> 
A79: BE8196 | C79: =_xlfn.XLOOKUP(A79,DATA[Item No.],DATA[Description],"") -> Light Wave | D79: =_xlfn.XLOOKUP(A79,DATA[Item No.],DATA[Unit UPC],"") -> 627987748192 | E79: =_xlfn.XLOOKUP(A79,DATA[Item No.],DATA[Size],"") -> 355ML | F79: =_xlfn.XLOOKUP(A79,DATA[Item No.],DATA[Picked],"") -> CA | G79: =_xlfn.XLOOKUP(A79,DATA[Item No.],DATA[Pack],"") -> 12 | H79: =_xlfn.XLOOKUP(A79,DATA[Item No.],DATA[O],"") -> 0 | I79: =_xlfn.XLOOKUP(A79,DATA[Item No.],DATA[K],"") -> 0 | J79: =_xlfn.XLOOKUP(A79,DATA[Item No.],DATA[V],"") -> 0 | K79: =_xlfn.XLOOKUP(A79,DATA[Item No.],DATA[GF],"") -> 0 | L79: =_xlfn.XLOOKUP(A79,DATA[Item No.],DATA[N],"") -> 0 | M79: =_xlfn.XLOOKUP(A79,DATA[Item No.],DATA[H],"") -> 0 | N79: =_xlfn.XLOOKUP(A79,DATA[Item No.],DATA[CM],"") -> Y | O79: =_xlfn.XLOOKUP(A79,DATA[Item No.],DATA[CO],"") -> Y | P79: =_xlfn.XLOOKUP(A79,DATA[Item No.],DATA[CP],"") -> Y | Q79: =_xlfn.XLOOKUP(A79,DATA[Item No.],DATA[Guaranteed Days],"") -> 95 | R79: =_xlfn.XLOOKUP(A79,DATA[Item No.],DATA[Storage],"") -> Dry | S79: =_xlfn.XLOOKUP(A79,DATA[Item No.],DATA[Price],"") -> 30.78 | T79: =_xlfn.XLOOKUP(A79,DATA[Item No.],DATA[Monthly Promo],"") -> 0 | U79: =_xlfn.XLOOKUP(A79,DATA[Item No.],DATA[Promo Discount],"") -> 0 | V79: =_xlfn.XLOOKUP(A79,DATA[Item No.],DATA[SRP],"") -> 3.49 | W79: =_xlfn.XLOOKUP(A79,DATA[Item No.],DATA[SKU Territory Ranking - West],"") -> 2
A80: BE8199 | C80: =_xlfn.XLOOKUP(A80,DATA[Item No.],DATA[Description],"") -> Light Wave | D80: =_xlfn.XLOOKUP(A80,DATA[Item No.],DATA[Unit UPC],"") -> 627987748192 | E80: =_xlfn.XLOOKUP(A80,DATA[Item No.],DATA[Size],"") -> 355ML | F80: =_xlfn.XLOOKUP(A80,DATA[Item No.],DATA[Picked],"") -> CA | G80: =_xlfn.XLOOKUP(A80,DATA[Item No.],DATA[Pack],"") -> 24 | H80: =_xlfn.XLOOKUP(A80,DATA[Item No.],DATA[O],"") -> 0 | I80: =_xlfn.XLOOKUP(A80,DATA[Item No.],DATA[K],"") -> 0 | J80: =_xlfn.XLOOKUP(A80,DATA[Item No.],DATA[V],"") -> 0 | K80: =_xlfn.XLOOKUP(A80,DATA[Item No.],DATA[GF],"") -> 0 | L80: =_xlfn.XLOOKUP(A80,DATA[Item No.],DATA[N],"") -> 0 | M80: =_xlfn.XLOOKUP(A80,DATA[Item No.],DATA[H],"") -> 0 | N80: =_xlfn.XLOOKUP(A80,DATA[Item No.],DATA[CM],"") -> Y | O80: =_xlfn.XLOOKUP(A80,DATA[Item No.],DATA[CO],"") -> 0 | P80: =_xlfn.XLOOKUP(A80,DATA[Item No.],DATA[CP],"") -> 0 | Q80: =_xlfn.XLOOKUP(A80,DATA[Item No.],DATA[Guaranteed Days],"") -> 95 | R80: =_xlfn.XLOOKUP(A80,DATA[Item No.],DATA[Storage],"") -> Dry | S80: =_xlfn.XLOOKUP(A80,DATA[Item No.],DATA[Price],"") -> 57.53 | T80: =_xlfn.XLOOKUP(A80,DATA[Item No.],DATA[Monthly Promo],"") -> 0 | U80: =_xlfn.XLOOKUP(A80,DATA[Item No.],DATA[Promo Discount],"") -> 0 | V80: =_xlfn.XLOOKUP(A80,DATA[Item No.],DATA[SRP],"") -> 3.49 | W80: =_xlfn.XLOOKUP(A80,DATA[Item No.],DATA[SKU Territory Ranking - West],"") -> 2
A81: BE8212 | C81: =_xlfn.XLOOKUP(A81,DATA[Item No.],DATA[Description],"") -> Wild Card | D81: =_xlfn.XLOOKUP(A81,DATA[Item No.],DATA[Unit UPC],"") -> 627987748215 | E81: =_xlfn.XLOOKUP(A81,DATA[Item No.],DATA[Size],"") -> 355ML | F81: =_xlfn.XLOOKUP(A81,DATA[Item No.],DATA[Picked],"") -> CA | G81: =_xlfn.XLOOKUP(A81,DATA[Item No.],DATA[Pack],"") -> 24 | H81: =_xlfn.XLOOKUP(A81,DATA[Item No.],DATA[O],"") -> 0 | I81: =_xlfn.XLOOKUP(A81,DATA[Item No.],DATA[K],"") -> 0 | J81: =_xlfn.XLOOKUP(A81,DATA[Item No.],DATA[V],"") -> 0 | K81: =_xlfn.XLOOKUP(A81,DATA[Item No.],DATA[GF],"") -> 0 | L81: =_xlfn.XLOOKUP(A81,DATA[Item No.],DATA[N],"") -> 0 | M81: =_xlfn.XLOOKUP(A81,DATA[Item No.],DATA[H],"") -> 0 | N81: =_xlfn.XLOOKUP(A81,DATA[Item No.],DATA[CM],"") -> Y | O81: =_xlfn.XLOOKUP(A81,DATA[Item No.],DATA[CO],"") -> 0 | P81: =_xlfn.XLOOKUP(A81,DATA[Item No.],DATA[CP],"") -> 0 | Q81: =_xlfn.XLOOKUP(A81,DATA[Item No.],DATA[Guaranteed Days],"") -> 95 | R81: =_xlfn.XLOOKUP(A81,DATA[Item No.],DATA[Storage],"") -> Dry | S81: =_xlfn.XLOOKUP(A81,DATA[Item No.],DATA[Price],"") -> 57.53 | T81: =_xlfn.XLOOKUP(A81,DATA[Item No.],DATA[Monthly Promo],"") -> 0 | U81: =_xlfn.XLOOKUP(A81,DATA[Item No.],DATA[Promo Discount],"") -> 0 | V81: =_xlfn.XLOOKUP(A81,DATA[Item No.],DATA[SRP],"") -> 3.49 | W81: =_xlfn.XLOOKUP(A81,DATA[Item No.],DATA[SKU Territory Ranking - West],"") -> 4
A82: BE8219 | C82: =_xlfn.XLOOKUP(A82,DATA[Item No.],DATA[Description],"") -> Wild Card | D82: =_xlfn.XLOOKUP(A82,DATA[Item No.],DATA[Unit UPC],"") -> 627987748215 | E82: =_xlfn.XLOOKUP(A82,DATA[Item No.],DATA[Size],"") -> 355ML | F82: =_xlfn.XLOOKUP(A82,DATA[Item No.],DATA[Picked],"") -> CA | G82: =_xlfn.XLOOKUP(A82,DATA[Item No.],DATA[Pack],"") -> 12 | H82: =_xlfn.XLOOKUP(A82,DATA[Item No.],DATA[O],"") -> 0 | I82: =_xlfn.XLOOKUP(A82,DATA[Item No.],DATA[K],"") -> 0 | J82: =_xlfn.XLOOKUP(A82,DATA[Item No.],DATA[V],"") -> 0 | K82: =_xlfn.XLOOKUP(A82,DATA[Item No.],DATA[GF],"") -> 0 | L82: =_xlfn.XLOOKUP(A82,DATA[Item No.],DATA[N],"") -> 0 | M82: =_xlfn.XLOOKUP(A82,DATA[Item No.],DATA[H],"") -> 0 | N82: =_xlfn.XLOOKUP(A82,DATA[Item No.],DATA[CM],"") -> Y | O82: =_xlfn.XLOOKUP(A82,DATA[Item No.],DATA[CO],"") -> Y | P82: =_xlfn.XLOOKUP(A82,DATA[Item No.],DATA[CP],"") -> Y | Q82: =_xlfn.XLOOKUP(A82,DATA[Item No.],DATA[Guaranteed Days],"") -> 95 | R82: =_xlfn.XLOOKUP(A82,DATA[Item No.],DATA[Storage],"") -> Dry | S82: =_xlfn.XLOOKUP(A82,DATA[Item No.],DATA[Price],"") -> 30.78 | T82: =_xlfn.XLOOKUP(A82,DATA[Item No.],DATA[Monthly Promo],"") -> 0 | U82: =_xlfn.XLOOKUP(A82,DATA[Item No.],DATA[Promo Discount],"") -> 0 | V82: =_xlfn.XLOOKUP(A82,DATA[Item No.],DATA[SRP],"") -> 3.49 | W82: =_xlfn.XLOOKUP(A82,DATA[Item No.],DATA[SKU Territory Ranking - West],"") -> 4
A83: BE8233 | C83: =_xlfn.XLOOKUP(A83,DATA[Item No.],DATA[Description],"") -> Love Bite | D83: =_xlfn.XLOOKUP(A83,DATA[Item No.],DATA[Unit UPC],"") -> 627987748239 | E83: =_xlfn.XLOOKUP(A83,DATA[Item No.],DATA[Size],"") -> 355ML | F83: =_xlfn.XLOOKUP(A83,DATA[Item No.],DATA[Picked],"") -> CA | G83: =_xlfn.XLOOKUP(A83,DATA[Item No.],DATA[Pack],"") -> 12 | H83: =_xlfn.XLOOKUP(A83,DATA[Item No.],DATA[O],"") -> 0 | I83: =_xlfn.XLOOKUP(A83,DATA[Item No.],DATA[K],"") -> 0 | J83: =_xlfn.XLOOKUP(A83,DATA[Item No.],DATA[V],"") -> 0 | K83: =_xlfn.XLOOKUP(A83,DATA[Item No.],DATA[GF],"") -> 0 | L83: =_xlfn.XLOOKUP(A83,DATA[Item No.],DATA[N],"") -> 0 | M83: =_xlfn.XLOOKUP(A83,DATA[Item No.],DATA[H],"") -> 0 | N83: =_xlfn.XLOOKUP(A83,DATA[Item No.],DATA[CM],"") -> Y | O83: =_xlfn.XLOOKUP(A83,DATA[Item No.],DATA[CO],"") -> Y | P83: =_xlfn.XLOOKUP(A83,DATA[Item No.],DATA[CP],"") -> Y | Q83: =_xlfn.XLOOKUP(A83,DATA[Item No.],DATA[Guaranteed Days],"") -> 95 | R83: =_xlfn.XLOOKUP(A83,DATA[Item No.],DATA[Storage],"") -> Dry | S83: =_xlfn.XLOOKUP(A83,DATA[Item No.],DATA[Price],"") -> 30.78 | T83: =_xlfn.XLOOKUP(A83,DATA[Item No.],DATA[Monthly Promo],"") -> 0 | U83: =_xlfn.XLOOKUP(A83,DATA[Item No.],DATA[Promo Discount],"") -> 0 | V83: =_xlfn.XLOOKUP(A83,DATA[Item No.],DATA[SRP],"") -> 3.49 | W83: =_xlfn.XLOOKUP(A83,DATA[Item No.],DATA[SKU Territory Ranking - West],"") -> 1
A84: BE8236 | C84: =_xlfn.XLOOKUP(A84,DATA[Item No.],DATA[Description],"") -> Love Bite | D84: =_xlfn.XLOOKUP(A84,DATA[Item No.],DATA[Unit UPC],"") -> 627987748239 | E84: =_xlfn.XLOOKUP(A84,DATA[Item No.],DATA[Size],"") -> 355ML | F84: =_xlfn.XLOOKUP(A84,DATA[Item No.],DATA[Picked],"") -> CA | G84: =_xlfn.XLOOKUP(A84,DATA[Item No.],DATA[Pack],"") -> 24 | H84: =_xlfn.XLOOKUP(A84,DATA[Item No.],DATA[O],"") -> 0 | I84: =_xlfn.XLOOKUP(A84,DATA[Item No.],DATA[K],"") -> 0 | J84: =_xlfn.XLOOKUP(A84,DATA[Item No.],DATA[V],"") -> 0 | K84: =_xlfn.XLOOKUP(A84,DATA[Item No.],DATA[GF],"") -> 0 | L84: =_xlfn.XLOOKUP(A84,DATA[Item No.],DATA[N],"") -> 0 | M84: =_xlfn.XLOOKUP(A84,DATA[Item No.],DATA[H],"") -> 0 | N84: =_xlfn.XLOOKUP(A84,DATA[Item No.],DATA[CM],"") -> Y | O84: =_xlfn.XLOOKUP(A84,DATA[Item No.],DATA[CO],"") -> 0 | P84: =_xlfn.XLOOKUP(A84,DATA[Item No.],DATA[CP],"") -> 0 | Q84: =_xlfn.XLOOKUP(A84,DATA[Item No.],DATA[Guaranteed Days],"") -> 95 | R84: =_xlfn.XLOOKUP(A84,DATA[Item No.],DATA[Storage],"") -> Dry | S84: =_xlfn.XLOOKUP(A84,DATA[Item No.],DATA[Price],"") -> 57.53 | T84: =_xlfn.XLOOKUP(A84,DATA[Item No.],DATA[Monthly Promo],"") -> 0 | U84: =_xlfn.XLOOKUP(A84,DATA[Item No.],DATA[Promo Discount],"") -> 0 | V84: =_xlfn.XLOOKUP(A84,DATA[Item No.],DATA[SRP],"") -> 3.49 | W84: =_xlfn.XLOOKUP(A84,DATA[Item No.],DATA[SKU Territory Ranking - West],"") -> 1
A85: BE8295 | C85: =_xlfn.XLOOKUP(A85,DATA[Item No.],DATA[Description],"") -> Deep Dive | D85: =_xlfn.XLOOKUP(A85,DATA[Item No.],DATA[Unit UPC],"") -> 627987748291 | E85: =_xlfn.XLOOKUP(A85,DATA[Item No.],DATA[Size],"") -> 355ML | F85: =_xlfn.XLOOKUP(A85,DATA[Item No.],DATA[Picked],"") -> CA | G85: =_xlfn.XLOOKUP(A85,DATA[Item No.],DATA[Pack],"") -> 12 | H85: =_xlfn.XLOOKUP(A85,DATA[Item No.],DATA[O],"") -> 0 | I85: =_xlfn.XLOOKUP(A85,DATA[Item No.],DATA[K],"") -> 0 | J85: =_xlfn.XLOOKUP(A85,DATA[Item No.],DATA[V],"") -> 0 | K85: =_xlfn.XLOOKUP(A85,DATA[Item No.],DATA[GF],"") -> 0 | L85: =_xlfn.XLOOKUP(A85,DATA[Item No.],DATA[N],"") -> 0 | M85: =_xlfn.XLOOKUP(A85,DATA[Item No.],DATA[H],"") -> 0 | N85: =_xlfn.XLOOKUP(A85,DATA[Item No.],DATA[CM],"") -> Y | O85: =_xlfn.XLOOKUP(A85,DATA[Item No.],DATA[CO],"") -> 0 | P85: =_xlfn.XLOOKUP(A85,DATA[Item No.],DATA[CP],"") -> 0 | Q85: =_xlfn.XLOOKUP(A85,DATA[Item No.],DATA[Guaranteed Days],"") -> 95 | R85: =_xlfn.XLOOKUP(A85,DATA[Item No.],DATA[Storage],"") -> Dry | S85: =_xlfn.XLOOKUP(A85,DATA[Item No.],DATA[Price],"") -> 30.78 | T85: =_xlfn.XLOOKUP(A85,DATA[Item No.],DATA[Monthly Promo],"") -> 0 | U85: =_xlfn.XLOOKUP(A85,DATA[Item No.],DATA[Promo Discount],"") -> 0 | V85: =_xlfn.XLOOKUP(A85,DATA[Item No.],DATA[SRP],"") -> 3.49 | W85: =_xlfn.XLOOKUP(A85,DATA[Item No.],DATA[SKU Territory Ranking - West],"") -> 3
A86: BENNY | C86: =_xlfn.XLOOKUP(A86,DATA[Item No.],DATA[Description],"") ->  | D86: =_xlfn.XLOOKUP(A86,DATA[Item No.],DATA[Unit UPC],"") ->  | E86: =_xlfn.XLOOKUP(A86,DATA[Item No.],DATA[Size],"") ->  | F86: =_xlfn.XLOOKUP(A86,DATA[Item No.],DATA[Picked],"") ->  | G86: =_xlfn.XLOOKUP(A86,DATA[Item No.],DATA[Pack],"") ->  | H86: =_xlfn.XLOOKUP(A86,DATA[Item No.],DATA[O],"") ->  | I86: =_xlfn.XLOOKUP(A86,DATA[Item No.],DATA[K],"") ->  | J86: =_xlfn.XLOOKUP(A86,DATA[Item No.],DATA[V],"") ->  | K86: =_xlfn.XLOOKUP(A86,DATA[Item No.],DATA[GF],"") ->  | L86: =_xlfn.XLOOKUP(A86,DATA[Item No.],DATA[N],"") ->  | M86: =_xlfn.XLOOKUP(A86,DATA[Item No.],DATA[H],"") ->  | N86: =_xlfn.XLOOKUP(A86,DATA[Item No.],DATA[CM],"") ->  | O86: =_xlfn.XLOOKUP(A86,DATA[Item No.],DATA[CO],"") ->  | P86: =_xlfn.XLOOKUP(A86,DATA[Item No.],DATA[CP],"") ->  | Q86: =_xlfn.XLOOKUP(A86,DATA[Item No.],DATA[Guaranteed Days],"") ->  | R86: =_xlfn.XLOOKUP(A86,DATA[Item No.],DATA[Storage],"") ->  | S86: =_xlfn.XLOOKUP(A86,DATA[Item No.],DATA[Price],"") ->  | T86: =_xlfn.XLOOKUP(A86,DATA[Item No.],DATA[Monthly Promo],"") ->  | U86: =_xlfn.XLOOKUP(A86,DATA[Item No.],DATA[Promo Discount],"") ->  | V86: =_xlfn.XLOOKUP(A86,DATA[Item No.],DATA[SRP],"") ->  | W86: =_xlfn.XLOOKUP(A86,DATA[Item No.],DATA[SKU Territory Ranking - West],"") -> 
A87: Nourishing energy | C87: =_xlfn.XLOOKUP(A87,DATA[Item No.],DATA[Description],"") ->  | D87: =_xlfn.XLOOKUP(A87,DATA[Item No.],DATA[Unit UPC],"") ->  | E87: =_xlfn.XLOOKUP(A87,DATA[Item No.],DATA[Size],"") ->  | F87: =_xlfn.XLOOKUP(A87,DATA[Item No.],DATA[Picked],"") ->  | G87: =_xlfn.XLOOKUP(A87,DATA[Item No.],DATA[Pack],"") ->  | H87: =_xlfn.XLOOKUP(A87,DATA[Item No.],DATA[O],"") ->  | I87: =_xlfn.XLOOKUP(A87,DATA[Item No.],DATA[K],"") ->  | J87: =_xlfn.XLOOKUP(A87,DATA[Item No.],DATA[V],"") ->  | K87: =_xlfn.XLOOKUP(A87,DATA[Item No.],DATA[GF],"") ->  | L87: =_xlfn.XLOOKUP(A87,DATA[Item No.],DATA[N],"") ->  | M87: =_xlfn.XLOOKUP(A87,DATA[Item No.],DATA[H],"") ->  | N87: =_xlfn.XLOOKUP(A87,DATA[Item No.],DATA[CM],"") ->  | O87: =_xlfn.XLOOKUP(A87,DATA[Item No.],DATA[CO],"") ->  | P87: =_xlfn.XLOOKUP(A87,DATA[Item No.],DATA[CP],"") ->  | Q87: =_xlfn.XLOOKUP(A87,DATA[Item No.],DATA[Guaranteed Days],"") ->  | R87: =_xlfn.XLOOKUP(A87,DATA[Item No.],DATA[Storage],"") ->  | S87: =_xlfn.XLOOKUP(A87,DATA[Item No.],DATA[Price],"") ->  | T87: =_xlfn.XLOOKUP(A87,DATA[Item No.],DATA[Monthly Promo],"") ->  | U87: =_xlfn.XLOOKUP(A87,DATA[Item No.],DATA[Promo Discount],"") ->  | V87: =_xlfn.XLOOKUP(A87,DATA[Item No.],DATA[SRP],"") ->  | W87: =_xlfn.XLOOKUP(A87,DATA[Item No.],DATA[SKU Territory Ranking - West],"") -> 
A88: BY1759 | C88: =_xlfn.XLOOKUP(A88,DATA[Item No.],DATA[Description],"") -> Raspberry hibiscus | D88: =_xlfn.XLOOKUP(A88,DATA[Item No.],DATA[Unit UPC],"") -> 628942441752 | E88: =_xlfn.XLOOKUP(A88,DATA[Item No.],DATA[Size],"") -> 355ML | F88: =_xlfn.XLOOKUP(A88,DATA[Item No.],DATA[Picked],"") -> CA | G88: =_xlfn.XLOOKUP(A88,DATA[Item No.],DATA[Pack],"") -> 12 | H88: =_xlfn.XLOOKUP(A88,DATA[Item No.],DATA[O],"") -> 0 | I88: =_xlfn.XLOOKUP(A88,DATA[Item No.],DATA[K],"") -> 0 | J88: =_xlfn.XLOOKUP(A88,DATA[Item No.],DATA[V],"") -> 0 | K88: =_xlfn.XLOOKUP(A88,DATA[Item No.],DATA[GF],"") -> 0 | L88: =_xlfn.XLOOKUP(A88,DATA[Item No.],DATA[N],"") -> 0 | M88: =_xlfn.XLOOKUP(A88,DATA[Item No.],DATA[H],"") -> 0 | N88: =_xlfn.XLOOKUP(A88,DATA[Item No.],DATA[CM],"") -> Y | O88: =_xlfn.XLOOKUP(A88,DATA[Item No.],DATA[CO],"") -> Y | P88: =_xlfn.XLOOKUP(A88,DATA[Item No.],DATA[CP],"") -> Y | Q88: =_xlfn.XLOOKUP(A88,DATA[Item No.],DATA[Guaranteed Days],"") -> 109 | R88: =_xlfn.XLOOKUP(A88,DATA[Item No.],DATA[Storage],"") -> Dry | S88: =_xlfn.XLOOKUP(A88,DATA[Item No.],DATA[Price],"") -> 40 | T88: =_xlfn.XLOOKUP(A88,DATA[Item No.],DATA[Monthly Promo],"") -> APRIL DEAL! | U88: =_xlfn.XLOOKUP(A88,DATA[Item No.],DATA[Promo Discount],"") -> SAVE 15% | V88: =_xlfn.XLOOKUP(A88,DATA[Item No.],DATA[SRP],"") -> 4.99 | W88: =_xlfn.XLOOKUP(A88,DATA[Item No.],DATA[SKU Territory Ranking - West],"") -> 2
A89: BY1766 | C89: =_xlfn.XLOOKUP(A89,DATA[Item No.],DATA[Description],"") -> Peach lychee | D89: =_xlfn.XLOOKUP(A89,DATA[Item No.],DATA[Unit UPC],"") -> 628942441769 | E89: =_xlfn.XLOOKUP(A89,DATA[Item No.],DATA[Size],"") -> 355ML | F89: =_xlfn.XLOOKUP(A89,DATA[Item No.],DATA[Picked],"") -> CA | G89: =_xlfn.XLOOKUP(A89,DATA[Item No.],DATA[Pack],"") -> 12 | H89: =_xlfn.XLOOKUP(A89,DATA[Item No.],DATA[O],"") -> 0 | I89: =_xlfn.XLOOKUP(A89,DATA[Item No.],DATA[K],"") -> 0 | J89: =_xlfn.XLOOKUP(A89,DATA[Item No.],DATA[V],"") -> 0 | K89: =_xlfn.XLOOKUP(A89,DATA[Item No.],DATA[GF],"") -> 0 | L89: =_xlfn.XLOOKUP(A89,DATA[Item No.],DATA[N],"") -> 0 | M89: =_xlfn.XLOOKUP(A89,DATA[Item No.],DATA[H],"") -> 0 | N89: =_xlfn.XLOOKUP(A89,DATA[Item No.],DATA[CM],"") -> Y | O89: =_xlfn.XLOOKUP(A89,DATA[Item No.],DATA[CO],"") -> Y | P89: =_xlfn.XLOOKUP(A89,DATA[Item No.],DATA[CP],"") -> Y | Q89: =_xlfn.XLOOKUP(A89,DATA[Item No.],DATA[Guaranteed Days],"") -> 109 | R89: =_xlfn.XLOOKUP(A89,DATA[Item No.],DATA[Storage],"") -> Dry | S89: =_xlfn.XLOOKUP(A89,DATA[Item No.],DATA[Price],"") -> 40 | T89: =_xlfn.XLOOKUP(A89,DATA[Item No.],DATA[Monthly Promo],"") -> APRIL DEAL! | U89: =_xlfn.XLOOKUP(A89,DATA[Item No.],DATA[Promo Discount],"") -> SAVE 15% | V89: =_xlfn.XLOOKUP(A89,DATA[Item No.],DATA[SRP],"") -> 4.99 | W89: =_xlfn.XLOOKUP(A89,DATA[Item No.],DATA[SKU Territory Ranking - West],"") -> 1
A90: BY1773 | C90: =_xlfn.XLOOKUP(A90,DATA[Item No.],DATA[Description],"") -> Peach lychee | D90: =_xlfn.XLOOKUP(A90,DATA[Item No.],DATA[Unit UPC],"") -> 628942441776 | E90: =_xlfn.XLOOKUP(A90,DATA[Item No.],DATA[Size],"") -> 4x355ML | F90: =_xlfn.XLOOKUP(A90,DATA[Item No.],DATA[Picked],"") -> CA | G90: =_xlfn.XLOOKUP(A90,DATA[Item No.],DATA[Pack],"") -> 6 | H90: =_xlfn.XLOOKUP(A90,DATA[Item No.],DATA[O],"") -> Y | I90: =_xlfn.XLOOKUP(A90,DATA[Item No.],DATA[K],"") -> 0 | J90: =_xlfn.XLOOKUP(A90,DATA[Item No.],DATA[V],"") -> Y | K90: =_xlfn.XLOOKUP(A90,DATA[Item No.],DATA[GF],"") -> Y | L90: =_xlfn.XLOOKUP(A90,DATA[Item No.],DATA[N],"") -> Y | M90: =_xlfn.XLOOKUP(A90,DATA[Item No.],DATA[H],"") -> 0 | N90: =_xlfn.XLOOKUP(A90,DATA[Item No.],DATA[CM],"") -> Y | O90: =_xlfn.XLOOKUP(A90,DATA[Item No.],DATA[CO],"") -> Y | P90: =_xlfn.XLOOKUP(A90,DATA[Item No.],DATA[CP],"") -> Y | Q90: =_xlfn.XLOOKUP(A90,DATA[Item No.],DATA[Guaranteed Days],"") -> 95 | R90: =_xlfn.XLOOKUP(A90,DATA[Item No.],DATA[Storage],"") -> Dry | S90: =_xlfn.XLOOKUP(A90,DATA[Item No.],DATA[Price],"") -> 83.34 | T90: =_xlfn.XLOOKUP(A90,DATA[Item No.],DATA[Monthly Promo],"") -> APRIL DEAL! | U90: =_xlfn.XLOOKUP(A90,DATA[Item No.],DATA[Promo Discount],"") -> SAVE 15% | V90: =_xlfn.XLOOKUP(A90,DATA[Item No.],DATA[SRP],"") -> 18.99 | W90: =_xlfn.XLOOKUP(A90,DATA[Item No.],DATA[SKU Territory Ranking - West],"") -> 1
A91: BY1780 | C91: =_xlfn.XLOOKUP(A91,DATA[Item No.],DATA[Description],"") -> Elderberry yuzu | D91: =_xlfn.XLOOKUP(A91,DATA[Item No.],DATA[Unit UPC],"") -> 628942441783 | E91: =_xlfn.XLOOKUP(A91,DATA[Item No.],DATA[Size],"") -> 355ML | F91: =_xlfn.XLOOKUP(A91,DATA[Item No.],DATA[Picked],"") -> CA | G91: =_xlfn.XLOOKUP(A91,DATA[Item No.],DATA[Pack],"") -> 12 | H91: =_xlfn.XLOOKUP(A91,DATA[Item No.],DATA[O],"") -> 0 | I91: =_xlfn.XLOOKUP(A91,DATA[Item No.],DATA[K],"") -> 0 | J91: =_xlfn.XLOOKUP(A91,DATA[Item No.],DATA[V],"") -> 0 | K91: =_xlfn.XLOOKUP(A91,DATA[Item No.],DATA[GF],"") -> 0 | L91: =_xlfn.XLOOKUP(A91,DATA[Item No.],DATA[N],"") -> 0 | M91: =_xlfn.XLOOKUP(A91,DATA[Item No.],DATA[H],"") -> 0 | N91: =_xlfn.XLOOKUP(A91,DATA[Item No.],DATA[CM],"") -> Y | O91: =_xlfn.XLOOKUP(A91,DATA[Item No.],DATA[CO],"") -> Y | P91: =_xlfn.XLOOKUP(A91,DATA[Item No.],DATA[CP],"") -> Y | Q91: =_xlfn.XLOOKUP(A91,DATA[Item No.],DATA[Guaranteed Days],"") -> 109 | R91: =_xlfn.XLOOKUP(A91,DATA[Item No.],DATA[Storage],"") -> Dry | S91: =_xlfn.XLOOKUP(A91,DATA[Item No.],DATA[Price],"") -> 40 | T91: =_xlfn.XLOOKUP(A91,DATA[Item No.],DATA[Monthly Promo],"") -> APRIL DEAL! | U91: =_xlfn.XLOOKUP(A91,DATA[Item No.],DATA[Promo Discount],"") -> SAVE 15% | V91: =_xlfn.XLOOKUP(A91,DATA[Item No.],DATA[SRP],"") -> 4.99 | W91: =_xlfn.XLOOKUP(A91,DATA[Item No.],DATA[SKU Territory Ranking - West],"") -> 3
A92: BY1803 | C92: =_xlfn.XLOOKUP(A92,DATA[Item No.],DATA[Description],"") -> Elderberry yuzu | D92: =_xlfn.XLOOKUP(A92,DATA[Item No.],DATA[Unit UPC],"") -> 628942441806 | E92: =_xlfn.XLOOKUP(A92,DATA[Item No.],DATA[Size],"") -> 4x355ML | F92: =_xlfn.XLOOKUP(A92,DATA[Item No.],DATA[Picked],"") -> CA | G92: =_xlfn.XLOOKUP(A92,DATA[Item No.],DATA[Pack],"") -> 6 | H92: =_xlfn.XLOOKUP(A92,DATA[Item No.],DATA[O],"") -> Y | I92: =_xlfn.XLOOKUP(A92,DATA[Item No.],DATA[K],"") -> 0 | J92: =_xlfn.XLOOKUP(A92,DATA[Item No.],DATA[V],"") -> Y | K92: =_xlfn.XLOOKUP(A92,DATA[Item No.],DATA[GF],"") -> Y | L92: =_xlfn.XLOOKUP(A92,DATA[Item No.],DATA[N],"") -> Y | M92: =_xlfn.XLOOKUP(A92,DATA[Item No.],DATA[H],"") -> 0 | N92: =_xlfn.XLOOKUP(A92,DATA[Item No.],DATA[CM],"") -> Y | O92: =_xlfn.XLOOKUP(A92,DATA[Item No.],DATA[CO],"") -> Y | P92: =_xlfn.XLOOKUP(A92,DATA[Item No.],DATA[CP],"") -> Y | Q92: =_xlfn.XLOOKUP(A92,DATA[Item No.],DATA[Guaranteed Days],"") -> 95 | R92: =_xlfn.XLOOKUP(A92,DATA[Item No.],DATA[Storage],"") -> Dry | S92: =_xlfn.XLOOKUP(A92,DATA[Item No.],DATA[Price],"") -> 83.34 | T92: =_xlfn.XLOOKUP(A92,DATA[Item No.],DATA[Monthly Promo],"") -> APRIL DEAL! | U92: =_xlfn.XLOOKUP(A92,DATA[Item No.],DATA[Promo Discount],"") -> SAVE 15% | V92: =_xlfn.XLOOKUP(A92,DATA[Item No.],DATA[SRP],"") -> 18.99 | W92: =_xlfn.XLOOKUP(A92,DATA[Item No.],DATA[SKU Territory Ranking - West],"") -> 3
A93: BY1810 | C93: =_xlfn.XLOOKUP(A93,DATA[Item No.],DATA[Description],"") -> Raspberry hibiscus | D93: =_xlfn.XLOOKUP(A93,DATA[Item No.],DATA[Unit UPC],"") -> 628942441813 | E93: =_xlfn.XLOOKUP(A93,DATA[Item No.],DATA[Size],"") -> 4x355ML | F93: =_xlfn.XLOOKUP(A93,DATA[Item No.],DATA[Picked],"") -> CA | G93: =_xlfn.XLOOKUP(A93,DATA[Item No.],DATA[Pack],"") -> 6 | H93: =_xlfn.XLOOKUP(A93,DATA[Item No.],DATA[O],"") -> Y | I93: =_xlfn.XLOOKUP(A93,DATA[Item No.],DATA[K],"") -> 0 | J93: =_xlfn.XLOOKUP(A93,DATA[Item No.],DATA[V],"") -> Y | K93: =_xlfn.XLOOKUP(A93,DATA[Item No.],DATA[GF],"") -> Y | L93: =_xlfn.XLOOKUP(A93,DATA[Item No.],DATA[N],"") -> Y | M93: =_xlfn.XLOOKUP(A93,DATA[Item No.],DATA[H],"") -> 0 | N93: =_xlfn.XLOOKUP(A93,DATA[Item No.],DATA[CM],"") -> Y | O93: =_xlfn.XLOOKUP(A93,DATA[Item No.],DATA[CO],"") -> Y | P93: =_xlfn.XLOOKUP(A93,DATA[Item No.],DATA[CP],"") -> Y | Q93: =_xlfn.XLOOKUP(A93,DATA[Item No.],DATA[Guaranteed Days],"") -> 95 | R93: =_xlfn.XLOOKUP(A93,DATA[Item No.],DATA[Storage],"") -> Dry | S93: =_xlfn.XLOOKUP(A93,DATA[Item No.],DATA[Price],"") -> 83.34 | T93: =_xlfn.XLOOKUP(A93,DATA[Item No.],DATA[Monthly Promo],"") -> APRIL DEAL! | U93: =_xlfn.XLOOKUP(A93,DATA[Item No.],DATA[Promo Discount],"") -> SAVE 15% | V93: =_xlfn.XLOOKUP(A93,DATA[Item No.],DATA[SRP],"") -> 18.99 | W93: =_xlfn.XLOOKUP(A93,DATA[Item No.],DATA[SKU Territory Ranking - West],"") -> 2
A94: Energy drink | C94: =_xlfn.XLOOKUP(A94,DATA[Item No.],DATA[Description],"") ->  | D94: =_xlfn.XLOOKUP(A94,DATA[Item No.],DATA[Unit UPC],"") ->  | E94: =_xlfn.XLOOKUP(A94,DATA[Item No.],DATA[Size],"") ->  | F94: =_xlfn.XLOOKUP(A94,DATA[Item No.],DATA[Picked],"") ->  | G94: =_xlfn.XLOOKUP(A94,DATA[Item No.],DATA[Pack],"") ->  | H94: =_xlfn.XLOOKUP(A94,DATA[Item No.],DATA[O],"") ->  | I94: =_xlfn.XLOOKUP(A94,DATA[Item No.],DATA[K],"") ->  | J94: =_xlfn.XLOOKUP(A94,DATA[Item No.],DATA[V],"") ->  | K94: =_xlfn.XLOOKUP(A94,DATA[Item No.],DATA[GF],"") ->  | L94: =_xlfn.XLOOKUP(A94,DATA[Item No.],DATA[N],"") ->  | M94: =_xlfn.XLOOKUP(A94,DATA[Item No.],DATA[H],"") ->  | N94: =_xlfn.XLOOKUP(A94,DATA[Item No.],DATA[CM],"") ->  | O94: =_xlfn.XLOOKUP(A94,DATA[Item No.],DATA[CO],"") ->  | P94: =_xlfn.XLOOKUP(A94,DATA[Item No.],DATA[CP],"") ->  | Q94: =_xlfn.XLOOKUP(A94,DATA[Item No.],DATA[Guaranteed Days],"") ->  | R94: =_xlfn.XLOOKUP(A94,DATA[Item No.],DATA[Storage],"") ->  | S94: =_xlfn.XLOOKUP(A94,DATA[Item No.],DATA[Price],"") ->  | T94: =_xlfn.XLOOKUP(A94,DATA[Item No.],DATA[Monthly Promo],"") ->  | U94: =_xlfn.XLOOKUP(A94,DATA[Item No.],DATA[Promo Discount],"") ->  | V94: =_xlfn.XLOOKUP(A94,DATA[Item No.],DATA[SRP],"") ->  | W94: =_xlfn.XLOOKUP(A94,DATA[Item No.],DATA[SKU Territory Ranking - West],"") -> 
A95: BY1841 | C95: =_xlfn.XLOOKUP(A95,DATA[Item No.],DATA[Description],"") -> Mint Lemonade Non Sparkling | D95: =_xlfn.XLOOKUP(A95,DATA[Item No.],DATA[Unit UPC],"") -> 628942441844 | E95: =_xlfn.XLOOKUP(A95,DATA[Item No.],DATA[Size],"") -> 355ML | F95: =_xlfn.XLOOKUP(A95,DATA[Item No.],DATA[Picked],"") -> CA | G95: =_xlfn.XLOOKUP(A95,DATA[Item No.],DATA[Pack],"") -> 12 | H95: =_xlfn.XLOOKUP(A95,DATA[Item No.],DATA[O],"") -> 0 | I95: =_xlfn.XLOOKUP(A95,DATA[Item No.],DATA[K],"") -> 0 | J95: =_xlfn.XLOOKUP(A95,DATA[Item No.],DATA[V],"") -> Y | K95: =_xlfn.XLOOKUP(A95,DATA[Item No.],DATA[GF],"") -> Y | L95: =_xlfn.XLOOKUP(A95,DATA[Item No.],DATA[N],"") -> Y | M95: =_xlfn.XLOOKUP(A95,DATA[Item No.],DATA[H],"") -> 0 | N95: =_xlfn.XLOOKUP(A95,DATA[Item No.],DATA[CM],"") -> 0 | O95: =_xlfn.XLOOKUP(A95,DATA[Item No.],DATA[CO],"") -> Y | P95: =_xlfn.XLOOKUP(A95,DATA[Item No.],DATA[CP],"") -> 0 | Q95: =_xlfn.XLOOKUP(A95,DATA[Item No.],DATA[Guaranteed Days],"") -> 95 | R95: =_xlfn.XLOOKUP(A95,DATA[Item No.],DATA[Storage],"") -> Dry | S95: =_xlfn.XLOOKUP(A95,DATA[Item No.],DATA[Price],"") -> 40 | T95: =_xlfn.XLOOKUP(A95,DATA[Item No.],DATA[Monthly Promo],"") -> 0 | U95: =_xlfn.XLOOKUP(A95,DATA[Item No.],DATA[Promo Discount],"") -> 0 | V95: =_xlfn.XLOOKUP(A95,DATA[Item No.],DATA[SRP],"") -> 4.99 | W95: =_xlfn.XLOOKUP(A95,DATA[Item No.],DATA[SKU Territory Ranking - West],"") -> 4
A96: BIERE SANS ALCOOL | C96: =_xlfn.XLOOKUP(A96,DATA[Item No.],DATA[Description],"") ->  | D96: =_xlfn.XLOOKUP(A96,DATA[Item No.],DATA[Unit UPC],"") ->  | E96: =_xlfn.XLOOKUP(A96,DATA[Item No.],DATA[Size],"") ->  | F96: =_xlfn.XLOOKUP(A96,DATA[Item No.],DATA[Picked],"") ->  | G96: =_xlfn.XLOOKUP(A96,DATA[Item No.],DATA[Pack],"") ->  | H96: =_xlfn.XLOOKUP(A96,DATA[Item No.],DATA[O],"") ->  | I96: =_xlfn.XLOOKUP(A96,DATA[Item No.],DATA[K],"") ->  | J96: =_xlfn.XLOOKUP(A96,DATA[Item No.],DATA[V],"") ->  | K96: =_xlfn.XLOOKUP(A96,DATA[Item No.],DATA[GF],"") ->  | L96: =_xlfn.XLOOKUP(A96,DATA[Item No.],DATA[N],"") ->  | M96: =_xlfn.XLOOKUP(A96,DATA[Item No.],DATA[H],"") ->  | N96: =_xlfn.XLOOKUP(A96,DATA[Item No.],DATA[CM],"") ->  | O96: =_xlfn.XLOOKUP(A96,DATA[Item No.],DATA[CO],"") ->  | P96: =_xlfn.XLOOKUP(A96,DATA[Item No.],DATA[CP],"") ->  | Q96: =_xlfn.XLOOKUP(A96,DATA[Item No.],DATA[Guaranteed Days],"") ->  | R96: =_xlfn.XLOOKUP(A96,DATA[Item No.],DATA[Storage],"") ->  | S96: =_xlfn.XLOOKUP(A96,DATA[Item No.],DATA[Price],"") ->  | T96: =_xlfn.XLOOKUP(A96,DATA[Item No.],DATA[Monthly Promo],"") ->  | U96: =_xlfn.XLOOKUP(A96,DATA[Item No.],DATA[Promo Discount],"") ->  | V96: =_xlfn.XLOOKUP(A96,DATA[Item No.],DATA[SRP],"") ->  | W96: =_xlfn.XLOOKUP(A96,DATA[Item No.],DATA[SKU Territory Ranking - West],"") -> 
A97: Non-Alcoholic Beer | C97: =_xlfn.XLOOKUP(A97,DATA[Item No.],DATA[Description],"") ->  | D97: =_xlfn.XLOOKUP(A97,DATA[Item No.],DATA[Unit UPC],"") ->  | E97: =_xlfn.XLOOKUP(A97,DATA[Item No.],DATA[Size],"") ->  | F97: =_xlfn.XLOOKUP(A97,DATA[Item No.],DATA[Picked],"") ->  | G97: =_xlfn.XLOOKUP(A97,DATA[Item No.],DATA[Pack],"") ->  | H97: =_xlfn.XLOOKUP(A97,DATA[Item No.],DATA[O],"") ->  | I97: =_xlfn.XLOOKUP(A97,DATA[Item No.],DATA[K],"") ->  | J97: =_xlfn.XLOOKUP(A97,DATA[Item No.],DATA[V],"") ->  | K97: =_xlfn.XLOOKUP(A97,DATA[Item No.],DATA[GF],"") ->  | L97: =_xlfn.XLOOKUP(A97,DATA[Item No.],DATA[N],"") ->  | M97: =_xlfn.XLOOKUP(A97,DATA[Item No.],DATA[H],"") ->  | N97: =_xlfn.XLOOKUP(A97,DATA[Item No.],DATA[CM],"") ->  | O97: =_xlfn.XLOOKUP(A97,DATA[Item No.],DATA[CO],"") ->  | P97: =_xlfn.XLOOKUP(A97,DATA[Item No.],DATA[CP],"") ->  | Q97: =_xlfn.XLOOKUP(A97,DATA[Item No.],DATA[Guaranteed Days],"") ->  | R97: =_xlfn.XLOOKUP(A97,DATA[Item No.],DATA[Storage],"") ->  | S97: =_xlfn.XLOOKUP(A97,DATA[Item No.],DATA[Price],"") ->  | T97: =_xlfn.XLOOKUP(A97,DATA[Item No.],DATA[Monthly Promo],"") ->  | U97: =_xlfn.XLOOKUP(A97,DATA[Item No.],DATA[Promo Discount],"") ->  | V97: =_xlfn.XLOOKUP(A97,DATA[Item No.],DATA[SRP],"") ->  | W97: =_xlfn.XLOOKUP(A97,DATA[Item No.],DATA[SKU Territory Ranking - West],"") -> 
A98: BS5372 | C98: =_xlfn.XLOOKUP(A98,DATA[Item No.],DATA[Description],"") -> Blonde Pilsner | D98: =_xlfn.XLOOKUP(A98,DATA[Item No.],DATA[Unit UPC],"") -> 627987335378 | E98: =_xlfn.XLOOKUP(A98,DATA[Item No.],DATA[Size],"") -> 473ML | F98: =_xlfn.XLOOKUP(A98,DATA[Item No.],DATA[Picked],"") -> CA | G98: =_xlfn.XLOOKUP(A98,DATA[Item No.],DATA[Pack],"") -> 12 | H98: =_xlfn.XLOOKUP(A98,DATA[Item No.],DATA[O],"") -> 0 | I98: =_xlfn.XLOOKUP(A98,DATA[Item No.],DATA[K],"") -> 0 | J98: =_xlfn.XLOOKUP(A98,DATA[Item No.],DATA[V],"") -> 0 | K98: =_xlfn.XLOOKUP(A98,DATA[Item No.],DATA[GF],"") -> 0 | L98: =_xlfn.XLOOKUP(A98,DATA[Item No.],DATA[N],"") -> 0 | M98: =_xlfn.XLOOKUP(A98,DATA[Item No.],DATA[H],"") -> 0 | N98: =_xlfn.XLOOKUP(A98,DATA[Item No.],DATA[CM],"") -> Y | O98: =_xlfn.XLOOKUP(A98,DATA[Item No.],DATA[CO],"") -> Y | P98: =_xlfn.XLOOKUP(A98,DATA[Item No.],DATA[CP],"") -> 0 | Q98: =_xlfn.XLOOKUP(A98,DATA[Item No.],DATA[Guaranteed Days],"") -> 200 | R98: =_xlfn.XLOOKUP(A98,DATA[Item No.],DATA[Storage],"") -> Dry | S98: =_xlfn.XLOOKUP(A98,DATA[Item No.],DATA[Price],"") -> 32.33 | T98: =_xlfn.XLOOKUP(A98,DATA[Item No.],DATA[Monthly Promo],"") -> APRIL DEAL! | U98: =_xlfn.XLOOKUP(A98,DATA[Item No.],DATA[Promo Discount],"") -> SAVE 10% | V98: =_xlfn.XLOOKUP(A98,DATA[Item No.],DATA[SRP],"") -> 3.99 | W98: =_xlfn.XLOOKUP(A98,DATA[Item No.],DATA[SKU Territory Ranking - West],"") -> 4
A99: Non-Alcoholic Craft Beer | C99: =_xlfn.XLOOKUP(A99,DATA[Item No.],DATA[Description],"") ->  | D99: =_xlfn.XLOOKUP(A99,DATA[Item No.],DATA[Unit UPC],"") ->  | E99: =_xlfn.XLOOKUP(A99,DATA[Item No.],DATA[Size],"") ->  | F99: =_xlfn.XLOOKUP(A99,DATA[Item No.],DATA[Picked],"") ->  | G99: =_xlfn.XLOOKUP(A99,DATA[Item No.],DATA[Pack],"") ->  | H99: =_xlfn.XLOOKUP(A99,DATA[Item No.],DATA[O],"") ->  | I99: =_xlfn.XLOOKUP(A99,DATA[Item No.],DATA[K],"") ->  | J99: =_xlfn.XLOOKUP(A99,DATA[Item No.],DATA[V],"") ->  | K99: =_xlfn.XLOOKUP(A99,DATA[Item No.],DATA[GF],"") ->  | L99: =_xlfn.XLOOKUP(A99,DATA[Item No.],DATA[N],"") ->  | M99: =_xlfn.XLOOKUP(A99,DATA[Item No.],DATA[H],"") ->  | N99: =_xlfn.XLOOKUP(A99,DATA[Item No.],DATA[CM],"") ->  | O99: =_xlfn.XLOOKUP(A99,DATA[Item No.],DATA[CO],"") ->  | P99: =_xlfn.XLOOKUP(A99,DATA[Item No.],DATA[CP],"") ->  | Q99: =_xlfn.XLOOKUP(A99,DATA[Item No.],DATA[Guaranteed Days],"") ->  | R99: =_xlfn.XLOOKUP(A99,DATA[Item No.],DATA[Storage],"") ->  | S99: =_xlfn.XLOOKUP(A99,DATA[Item No.],DATA[Price],"") ->  | T99: =_xlfn.XLOOKUP(A99,DATA[Item No.],DATA[Monthly Promo],"") ->  | U99: =_xlfn.XLOOKUP(A99,DATA[Item No.],DATA[Promo Discount],"") ->  | V99: =_xlfn.XLOOKUP(A99,DATA[Item No.],DATA[SRP],"") ->  | W99: =_xlfn.XLOOKUP(A99,DATA[Item No.],DATA[SKU Territory Ranking - West],"") -> 
A100: BS5341 | C100: =_xlfn.XLOOKUP(A100,DATA[Item No.],DATA[Description],"") -> Smooth IPA | D100: =_xlfn.XLOOKUP(A100,DATA[Item No.],DATA[Unit UPC],"") -> 627987335347 | E100: =_xlfn.XLOOKUP(A100,DATA[Item No.],DATA[Size],"") -> 473ML | F100: =_xlfn.XLOOKUP(A100,DATA[Item No.],DATA[Picked],"") -> CA | G100: =_xlfn.XLOOKUP(A100,DATA[Item No.],DATA[Pack],"") -> 12 | H100: =_xlfn.XLOOKUP(A100,DATA[Item No.],DATA[O],"") -> 0 | I100: =_xlfn.XLOOKUP(A100,DATA[Item No.],DATA[K],"") -> 0 | J100: =_xlfn.XLOOKUP(A100,DATA[Item No.],DATA[V],"") -> 0 | K100: =_xlfn.XLOOKUP(A100,DATA[Item No.],DATA[GF],"") -> 0 | L100: =_xlfn.XLOOKUP(A100,DATA[Item No.],DATA[N],"") -> 0 | M100: =_xlfn.XLOOKUP(A100,DATA[Item No.],DATA[H],"") -> 0 | N100: =_xlfn.XLOOKUP(A100,DATA[Item No.],DATA[CM],"") -> Y | O100: =_xlfn.XLOOKUP(A100,DATA[Item No.],DATA[CO],"") -> Y | P100: =_xlfn.XLOOKUP(A100,DATA[Item No.],DATA[CP],"") -> 0 | Q100: =_xlfn.XLOOKUP(A100,DATA[Item No.],DATA[Guaranteed Days],"") -> 200 | R100: =_xlfn.XLOOKUP(A100,DATA[Item No.],DATA[Storage],"") -> Dry | S100: =_xlfn.XLOOKUP(A100,DATA[Item No.],DATA[Price],"") -> 32.33 | T100: =_xlfn.XLOOKUP(A100,DATA[Item No.],DATA[Monthly Promo],"") -> APRIL DEAL! | U100: =_xlfn.XLOOKUP(A100,DATA[Item No.],DATA[Promo Discount],"") -> SAVE 10% | V100: =_xlfn.XLOOKUP(A100,DATA[Item No.],DATA[SRP],"") -> 3.99 | W100: =_xlfn.XLOOKUP(A100,DATA[Item No.],DATA[SKU Territory Ranking - West],"") -> 3
A101: BS5358 | C101: =_xlfn.XLOOKUP(A101,DATA[Item No.],DATA[Description],"") -> Tropical Sour | D101: =_xlfn.XLOOKUP(A101,DATA[Item No.],DATA[Unit UPC],"") -> 627987335354 | E101: =_xlfn.XLOOKUP(A101,DATA[Item No.],DATA[Size],"") -> 473ML | F101: =_xlfn.XLOOKUP(A101,DATA[Item No.],DATA[Picked],"") -> CA | G101: =_xlfn.XLOOKUP(A101,DATA[Item No.],DATA[Pack],"") -> 12 | H101: =_xlfn.XLOOKUP(A101,DATA[Item No.],DATA[O],"") -> 0 | I101: =_xlfn.XLOOKUP(A101,DATA[Item No.],DATA[K],"") -> 0 | J101: =_xlfn.XLOOKUP(A101,DATA[Item No.],DATA[V],"") -> 0 | K101: =_xlfn.XLOOKUP(A101,DATA[Item No.],DATA[GF],"") -> 0 | L101: =_xlfn.XLOOKUP(A101,DATA[Item No.],DATA[N],"") -> 0 | M101: =_xlfn.XLOOKUP(A101,DATA[Item No.],DATA[H],"") -> 0 | N101: =_xlfn.XLOOKUP(A101,DATA[Item No.],DATA[CM],"") -> Y | O101: =_xlfn.XLOOKUP(A101,DATA[Item No.],DATA[CO],"") -> Y | P101: =_xlfn.XLOOKUP(A101,DATA[Item No.],DATA[CP],"") -> 0 | Q101: =_xlfn.XLOOKUP(A101,DATA[Item No.],DATA[Guaranteed Days],"") -> 200 | R101: =_xlfn.XLOOKUP(A101,DATA[Item No.],DATA[Storage],"") -> Dry | S101: =_xlfn.XLOOKUP(A101,DATA[Item No.],DATA[Price],"") -> 32.33 | T101: =_xlfn.XLOOKUP(A101,DATA[Item No.],DATA[Monthly Promo],"") -> APRIL DEAL! | U101: =_xlfn.XLOOKUP(A101,DATA[Item No.],DATA[Promo Discount],"") -> SAVE 10% | V101: =_xlfn.XLOOKUP(A101,DATA[Item No.],DATA[SRP],"") -> 3.99 | W101: =_xlfn.XLOOKUP(A101,DATA[Item No.],DATA[SKU Territory Ranking - West],"") -> 2
A102: BS5365 | C102: =_xlfn.XLOOKUP(A102,DATA[Item No.],DATA[Description],"") -> Raspberry Sour | D102: =_xlfn.XLOOKUP(A102,DATA[Item No.],DATA[Unit UPC],"") -> 627987335361 | E102: =_xlfn.XLOOKUP(A102,DATA[Item No.],DATA[Size],"") -> 473ML | F102: =_xlfn.XLOOKUP(A102,DATA[Item No.],DATA[Picked],"") -> CA | G102: =_xlfn.XLOOKUP(A102,DATA[Item No.],DATA[Pack],"") -> 12 | H102: =_xlfn.XLOOKUP(A102,DATA[Item No.],DATA[O],"") -> 0 | I102: =_xlfn.XLOOKUP(A102,DATA[Item No.],DATA[K],"") -> 0 | J102: =_xlfn.XLOOKUP(A102,DATA[Item No.],DATA[V],"") -> 0 | K102: =_xlfn.XLOOKUP(A102,DATA[Item No.],DATA[GF],"") -> 0 | L102: =_xlfn.XLOOKUP(A102,DATA[Item No.],DATA[N],"") -> 0 | M102: =_xlfn.XLOOKUP(A102,DATA[Item No.],DATA[H],"") -> 0 | N102: =_xlfn.XLOOKUP(A102,DATA[Item No.],DATA[CM],"") -> Y | O102: =_xlfn.XLOOKUP(A102,DATA[Item No.],DATA[CO],"") -> Y | P102: =_xlfn.XLOOKUP(A102,DATA[Item No.],DATA[CP],"") -> 0 | Q102: =_xlfn.XLOOKUP(A102,DATA[Item No.],DATA[Guaranteed Days],"") -> 200 | R102: =_xlfn.XLOOKUP(A102,DATA[Item No.],DATA[Storage],"") -> Dry | S102: =_xlfn.XLOOKUP(A102,DATA[Item No.],DATA[Price],"") -> 32.33 | T102: =_xlfn.XLOOKUP(A102,DATA[Item No.],DATA[Monthly Promo],"") -> APRIL DEAL! | U102: =_xlfn.XLOOKUP(A102,DATA[Item No.],DATA[Promo Discount],"") -> SAVE 10% | V102: =_xlfn.XLOOKUP(A102,DATA[Item No.],DATA[SRP],"") -> 3.99 | W102: =_xlfn.XLOOKUP(A102,DATA[Item No.],DATA[SKU Territory Ranking - West],"") -> 1
A103: BS5396 | C103: =_xlfn.XLOOKUP(A103,DATA[Item No.],DATA[Description],"") -> White Orange | D103: =_xlfn.XLOOKUP(A103,DATA[Item No.],DATA[Unit UPC],"") -> 627987335392 | E103: =_xlfn.XLOOKUP(A103,DATA[Item No.],DATA[Size],"") -> 473ML | F103: =_xlfn.XLOOKUP(A103,DATA[Item No.],DATA[Picked],"") -> CA | G103: =_xlfn.XLOOKUP(A103,DATA[Item No.],DATA[Pack],"") -> 12 | H103: =_xlfn.XLOOKUP(A103,DATA[Item No.],DATA[O],"") -> 0 | I103: =_xlfn.XLOOKUP(A103,DATA[Item No.],DATA[K],"") -> 0 | J103: =_xlfn.XLOOKUP(A103,DATA[Item No.],DATA[V],"") -> 0 | K103: =_xlfn.XLOOKUP(A103,DATA[Item No.],DATA[GF],"") -> 0 | L103: =_xlfn.XLOOKUP(A103,DATA[Item No.],DATA[N],"") -> 0 | M103: =_xlfn.XLOOKUP(A103,DATA[Item No.],DATA[H],"") -> 0 | N103: =_xlfn.XLOOKUP(A103,DATA[Item No.],DATA[CM],"") -> Y | O103: =_xlfn.XLOOKUP(A103,DATA[Item No.],DATA[CO],"") -> Y | P103: =_xlfn.XLOOKUP(A103,DATA[Item No.],DATA[CP],"") -> 0 | Q103: =_xlfn.XLOOKUP(A103,DATA[Item No.],DATA[Guaranteed Days],"") -> 219 | R103: =_xlfn.XLOOKUP(A103,DATA[Item No.],DATA[Storage],"") -> Dry | S103: =_xlfn.XLOOKUP(A103,DATA[Item No.],DATA[Price],"") -> 32.33 | T103: =_xlfn.XLOOKUP(A103,DATA[Item No.],DATA[Monthly Promo],"") -> APRIL DEAL! | U103: =_xlfn.XLOOKUP(A103,DATA[Item No.],DATA[Promo Discount],"") -> SAVE 10% | V103: =_xlfn.XLOOKUP(A103,DATA[Item No.],DATA[SRP],"") -> 3.99 | W103: =_xlfn.XLOOKUP(A103,DATA[Item No.],DATA[SKU Territory Ranking - West],"") -> 5
A104: BOTTICELLI | C104: =_xlfn.XLOOKUP(A104,DATA[Item No.],DATA[Description],"") ->  | D104: =_xlfn.XLOOKUP(A104,DATA[Item No.],DATA[Unit UPC],"") ->  | E104: =_xlfn.XLOOKUP(A104,DATA[Item No.],DATA[Size],"") ->  | F104: =_xlfn.XLOOKUP(A104,DATA[Item No.],DATA[Picked],"") ->  | G104: =_xlfn.XLOOKUP(A104,DATA[Item No.],DATA[Pack],"") ->  | H104: =_xlfn.XLOOKUP(A104,DATA[Item No.],DATA[O],"") ->  | I104: =_xlfn.XLOOKUP(A104,DATA[Item No.],DATA[K],"") ->  | J104: =_xlfn.XLOOKUP(A104,DATA[Item No.],DATA[V],"") ->  | K104: =_xlfn.XLOOKUP(A104,DATA[Item No.],DATA[GF],"") ->  | L104: =_xlfn.XLOOKUP(A104,DATA[Item No.],DATA[N],"") ->  | M104: =_xlfn.XLOOKUP(A104,DATA[Item No.],DATA[H],"") ->  | N104: =_xlfn.XLOOKUP(A104,DATA[Item No.],DATA[CM],"") ->  | O104: =_xlfn.XLOOKUP(A104,DATA[Item No.],DATA[CO],"") ->  | P104: =_xlfn.XLOOKUP(A104,DATA[Item No.],DATA[CP],"") ->  | Q104: =_xlfn.XLOOKUP(A104,DATA[Item No.],DATA[Guaranteed Days],"") ->  | R104: =_xlfn.XLOOKUP(A104,DATA[Item No.],DATA[Storage],"") ->  | S104: =_xlfn.XLOOKUP(A104,DATA[Item No.],DATA[Price],"") ->  | T104: =_xlfn.XLOOKUP(A104,DATA[Item No.],DATA[Monthly Promo],"") ->  | U104: =_xlfn.XLOOKUP(A104,DATA[Item No.],DATA[Promo Discount],"") ->  | V104: =_xlfn.XLOOKUP(A104,DATA[Item No.],DATA[SRP],"") ->  | W104: =_xlfn.XLOOKUP(A104,DATA[Item No.],DATA[SKU Territory Ranking - West],"") -> 
A105: Premium White Pasta Sauce | C105: =_xlfn.XLOOKUP(A105,DATA[Item No.],DATA[Description],"") ->  | D105: =_xlfn.XLOOKUP(A105,DATA[Item No.],DATA[Unit UPC],"") ->  | E105: =_xlfn.XLOOKUP(A105,DATA[Item No.],DATA[Size],"") ->  | F105: =_xlfn.XLOOKUP(A105,DATA[Item No.],DATA[Picked],"") ->  | G105: =_xlfn.XLOOKUP(A105,DATA[Item No.],DATA[Pack],"") ->  | H105: =_xlfn.XLOOKUP(A105,DATA[Item No.],DATA[O],"") ->  | I105: =_xlfn.XLOOKUP(A105,DATA[Item No.],DATA[K],"") ->  | J105: =_xlfn.XLOOKUP(A105,DATA[Item No.],DATA[V],"") ->  | K105: =_xlfn.XLOOKUP(A105,DATA[Item No.],DATA[GF],"") ->  | L105: =_xlfn.XLOOKUP(A105,DATA[Item No.],DATA[N],"") ->  | M105: =_xlfn.XLOOKUP(A105,DATA[Item No.],DATA[H],"") ->  | N105: =_xlfn.XLOOKUP(A105,DATA[Item No.],DATA[CM],"") ->  | O105: =_xlfn.XLOOKUP(A105,DATA[Item No.],DATA[CO],"") ->  | P105: =_xlfn.XLOOKUP(A105,DATA[Item No.],DATA[CP],"") ->  | Q105: =_xlfn.XLOOKUP(A105,DATA[Item No.],DATA[Guaranteed Days],"") ->  | R105: =_xlfn.XLOOKUP(A105,DATA[Item No.],DATA[Storage],"") ->  | S105: =_xlfn.XLOOKUP(A105,DATA[Item No.],DATA[Price],"") ->  | T105: =_xlfn.XLOOKUP(A105,DATA[Item No.],DATA[Monthly Promo],"") ->  | U105: =_xlfn.XLOOKUP(A105,DATA[Item No.],DATA[Promo Discount],"") ->  | V105: =_xlfn.XLOOKUP(A105,DATA[Item No.],DATA[SRP],"") ->  | W105: =_xlfn.XLOOKUP(A105,DATA[Item No.],DATA[SKU Territory Ranking - West],"") -> 
A106: UF0870 | C106: =_xlfn.XLOOKUP(A106,DATA[Item No.],DATA[Description],"") -> Alfredo Sauce | D106: =_xlfn.XLOOKUP(A106,DATA[Item No.],DATA[Unit UPC],"") -> 810095660566 | E106: =_xlfn.XLOOKUP(A106,DATA[Item No.],DATA[Size],"") -> 370ML | F106: =_xlfn.XLOOKUP(A106,DATA[Item No.],DATA[Picked],"") -> CA | G106: =_xlfn.XLOOKUP(A106,DATA[Item No.],DATA[Pack],"") -> 6 | H106: =_xlfn.XLOOKUP(A106,DATA[Item No.],DATA[O],"") -> 0 | I106: =_xlfn.XLOOKUP(A106,DATA[Item No.],DATA[K],"") -> 0 | J106: =_xlfn.XLOOKUP(A106,DATA[Item No.],DATA[V],"") -> 0 | K106: =_xlfn.XLOOKUP(A106,DATA[Item No.],DATA[GF],"") -> Y | L106: =_xlfn.XLOOKUP(A106,DATA[Item No.],DATA[N],"") -> 0 | M106: =_xlfn.XLOOKUP(A106,DATA[Item No.],DATA[H],"") -> 0 | N106: =_xlfn.XLOOKUP(A106,DATA[Item No.],DATA[CM],"") -> 0 | O106: =_xlfn.XLOOKUP(A106,DATA[Item No.],DATA[CO],"") -> 0 | P106: =_xlfn.XLOOKUP(A106,DATA[Item No.],DATA[CP],"") -> 0 | Q106: =_xlfn.XLOOKUP(A106,DATA[Item No.],DATA[Guaranteed Days],"") -> 205 | R106: =_xlfn.XLOOKUP(A106,DATA[Item No.],DATA[Storage],"") -> Dry | S106: =_xlfn.XLOOKUP(A106,DATA[Item No.],DATA[Price],"") -> 49.45 | T106: =_xlfn.XLOOKUP(A106,DATA[Item No.],DATA[Monthly Promo],"") -> APRIL DEAL! | U106: =_xlfn.XLOOKUP(A106,DATA[Item No.],DATA[Promo Discount],"") -> SAVE 10% | V106: =_xlfn.XLOOKUP(A106,DATA[Item No.],DATA[SRP],"") -> 12.99 | W106: =_xlfn.XLOOKUP(A106,DATA[Item No.],DATA[SKU Territory Ranking - West],"") -> 1
A107: BREW DR K | C107: =_xlfn.XLOOKUP(A107,DATA[Item No.],DATA[Description],"") ->  | D107: =_xlfn.XLOOKUP(A107,DATA[Item No.],DATA[Unit UPC],"") ->  | E107: =_xlfn.XLOOKUP(A107,DATA[Item No.],DATA[Size],"") ->  | F107: =_xlfn.XLOOKUP(A107,DATA[Item No.],DATA[Picked],"") ->  | G107: =_xlfn.XLOOKUP(A107,DATA[Item No.],DATA[Pack],"") ->  | H107: =_xlfn.XLOOKUP(A107,DATA[Item No.],DATA[O],"") ->  | I107: =_xlfn.XLOOKUP(A107,DATA[Item No.],DATA[K],"") ->  | J107: =_xlfn.XLOOKUP(A107,DATA[Item No.],DATA[V],"") ->  | K107: =_xlfn.XLOOKUP(A107,DATA[Item No.],DATA[GF],"") ->  | L107: =_xlfn.XLOOKUP(A107,DATA[Item No.],DATA[N],"") ->  | M107: =_xlfn.XLOOKUP(A107,DATA[Item No.],DATA[H],"") ->  | N107: =_xlfn.XLOOKUP(A107,DATA[Item No.],DATA[CM],"") ->  | O107: =_xlfn.XLOOKUP(A107,DATA[Item No.],DATA[CO],"") ->  | P107: =_xlfn.XLOOKUP(A107,DATA[Item No.],DATA[CP],"") ->  | Q107: =_xlfn.XLOOKUP(A107,DATA[Item No.],DATA[Guaranteed Days],"") ->  | R107: =_xlfn.XLOOKUP(A107,DATA[Item No.],DATA[Storage],"") ->  | S107: =_xlfn.XLOOKUP(A107,DATA[Item No.],DATA[Price],"") ->  | T107: =_xlfn.XLOOKUP(A107,DATA[Item No.],DATA[Monthly Promo],"") ->  | U107: =_xlfn.XLOOKUP(A107,DATA[Item No.],DATA[Promo Discount],"") ->  | V107: =_xlfn.XLOOKUP(A107,DATA[Item No.],DATA[SRP],"") ->  | W107: =_xlfn.XLOOKUP(A107,DATA[Item No.],DATA[SKU Territory Ranking - West],"") -> 
A108: Organic Kombucha - Glass Bottles | C108: =_xlfn.XLOOKUP(A108,DATA[Item No.],DATA[Description],"") ->  | D108: =_xlfn.XLOOKUP(A108,DATA[Item No.],DATA[Unit UPC],"") ->  | E108: =_xlfn.XLOOKUP(A108,DATA[Item No.],DATA[Size],"") ->  | F108: =_xlfn.XLOOKUP(A108,DATA[Item No.],DATA[Picked],"") ->  | G108: =_xlfn.XLOOKUP(A108,DATA[Item No.],DATA[Pack],"") ->  | H108: =_xlfn.XLOOKUP(A108,DATA[Item No.],DATA[O],"") ->  | I108: =_xlfn.XLOOKUP(A108,DATA[Item No.],DATA[K],"") ->  | J108: =_xlfn.XLOOKUP(A108,DATA[Item No.],DATA[V],"") ->  | K108: =_xlfn.XLOOKUP(A108,DATA[Item No.],DATA[GF],"") ->  | L108: =_xlfn.XLOOKUP(A108,DATA[Item No.],DATA[N],"") ->  | M108: =_xlfn.XLOOKUP(A108,DATA[Item No.],DATA[H],"") ->  | N108: =_xlfn.XLOOKUP(A108,DATA[Item No.],DATA[CM],"") ->  | O108: =_xlfn.XLOOKUP(A108,DATA[Item No.],DATA[CO],"") ->  | P108: =_xlfn.XLOOKUP(A108,DATA[Item No.],DATA[CP],"") ->  | Q108: =_xlfn.XLOOKUP(A108,DATA[Item No.],DATA[Guaranteed Days],"") ->  | R108: =_xlfn.XLOOKUP(A108,DATA[Item No.],DATA[Storage],"") ->  | S108: =_xlfn.XLOOKUP(A108,DATA[Item No.],DATA[Price],"") ->  | T108: =_xlfn.XLOOKUP(A108,DATA[Item No.],DATA[Monthly Promo],"") ->  | U108: =_xlfn.XLOOKUP(A108,DATA[Item No.],DATA[Promo Discount],"") ->  | V108: =_xlfn.XLOOKUP(A108,DATA[Item No.],DATA[SRP],"") ->  | W108: =_xlfn.XLOOKUP(A108,DATA[Item No.],DATA[SKU Territory Ranking - West],"") -> 
A109: BD8928 | C109: =_xlfn.XLOOKUP(A109,DATA[Item No.],DATA[Description],"") -> Organic Kombucha Pineapple Paradise | D109: =_xlfn.XLOOKUP(A109,DATA[Item No.],DATA[Unit UPC],"") -> 857161008921 | E109: =_xlfn.XLOOKUP(A109,DATA[Item No.],DATA[Size],"") -> 414ML | F109: =_xlfn.XLOOKUP(A109,DATA[Item No.],DATA[Picked],"") -> CA | G109: =_xlfn.XLOOKUP(A109,DATA[Item No.],DATA[Pack],"") -> 12 | H109: =_xlfn.XLOOKUP(A109,DATA[Item No.],DATA[O],"") -> Y | I109: =_xlfn.XLOOKUP(A109,DATA[Item No.],DATA[K],"") -> Y | J109: =_xlfn.XLOOKUP(A109,DATA[Item No.],DATA[V],"") -> 0 | K109: =_xlfn.XLOOKUP(A109,DATA[Item No.],DATA[GF],"") -> Y | L109: =_xlfn.XLOOKUP(A109,DATA[Item No.],DATA[N],"") -> Y | M109: =_xlfn.XLOOKUP(A109,DATA[Item No.],DATA[H],"") -> 0 | N109: =_xlfn.XLOOKUP(A109,DATA[Item No.],DATA[CM],"") -> 0 | O109: =_xlfn.XLOOKUP(A109,DATA[Item No.],DATA[CO],"") -> Y | P109: =_xlfn.XLOOKUP(A109,DATA[Item No.],DATA[CP],"") -> 0 | Q109: =_xlfn.XLOOKUP(A109,DATA[Item No.],DATA[Guaranteed Days],"") -> 40 | R109: =_xlfn.XLOOKUP(A109,DATA[Item No.],DATA[Storage],"") -> Chilled | S109: =_xlfn.XLOOKUP(A109,DATA[Item No.],DATA[Price],"") -> 38.46 | T109: =_xlfn.XLOOKUP(A109,DATA[Item No.],DATA[Monthly Promo],"") -> 0 | U109: =_xlfn.XLOOKUP(A109,DATA[Item No.],DATA[Promo Discount],"") -> 0 | V109: =_xlfn.XLOOKUP(A109,DATA[Item No.],DATA[SRP],"") -> 4.49 | W109: =_xlfn.XLOOKUP(A109,DATA[Item No.],DATA[SKU Territory Ranking - West],"") -> 5
A110: Organic Raw Kombucha - Glass Bottles | C110: =_xlfn.XLOOKUP(A110,DATA[Item No.],DATA[Description],"") ->  | D110: =_xlfn.XLOOKUP(A110,DATA[Item No.],DATA[Unit UPC],"") ->  | E110: =_xlfn.XLOOKUP(A110,DATA[Item No.],DATA[Size],"") ->  | F110: =_xlfn.XLOOKUP(A110,DATA[Item No.],DATA[Picked],"") ->  | G110: =_xlfn.XLOOKUP(A110,DATA[Item No.],DATA[Pack],"") ->  | H110: =_xlfn.XLOOKUP(A110,DATA[Item No.],DATA[O],"") ->  | I110: =_xlfn.XLOOKUP(A110,DATA[Item No.],DATA[K],"") ->  | J110: =_xlfn.XLOOKUP(A110,DATA[Item No.],DATA[V],"") ->  | K110: =_xlfn.XLOOKUP(A110,DATA[Item No.],DATA[GF],"") ->  | L110: =_xlfn.XLOOKUP(A110,DATA[Item No.],DATA[N],"") ->  | M110: =_xlfn.XLOOKUP(A110,DATA[Item No.],DATA[H],"") ->  | N110: =_xlfn.XLOOKUP(A110,DATA[Item No.],DATA[CM],"") ->  | O110: =_xlfn.XLOOKUP(A110,DATA[Item No.],DATA[CO],"") ->  | P110: =_xlfn.XLOOKUP(A110,DATA[Item No.],DATA[CP],"") ->  | Q110: =_xlfn.XLOOKUP(A110,DATA[Item No.],DATA[Guaranteed Days],"") ->  | R110: =_xlfn.XLOOKUP(A110,DATA[Item No.],DATA[Storage],"") ->  | S110: =_xlfn.XLOOKUP(A110,DATA[Item No.],DATA[Price],"") ->  | T110: =_xlfn.XLOOKUP(A110,DATA[Item No.],DATA[Monthly Promo],"") ->  | U110: =_xlfn.XLOOKUP(A110,DATA[Item No.],DATA[Promo Discount],"") ->  | V110: =_xlfn.XLOOKUP(A110,DATA[Item No.],DATA[SRP],"") ->  | W110: =_xlfn.XLOOKUP(A110,DATA[Item No.],DATA[SKU Territory Ranking - West],"") -> 
A111: BD1133 | C111: =_xlfn.XLOOKUP(A111,DATA[Item No.],DATA[Description],"") -> Crisp Apple | D111: =_xlfn.XLOOKUP(A111,DATA[Item No.],DATA[Unit UPC],"") -> 850044821136 | E111: =_xlfn.XLOOKUP(A111,DATA[Item No.],DATA[Size],"") -> 414ML | F111: =_xlfn.XLOOKUP(A111,DATA[Item No.],DATA[Picked],"") -> CA | G111: =_xlfn.XLOOKUP(A111,DATA[Item No.],DATA[Pack],"") -> 12 | H111: =_xlfn.XLOOKUP(A111,DATA[Item No.],DATA[O],"") -> Y | I111: =_xlfn.XLOOKUP(A111,DATA[Item No.],DATA[K],"") -> Y | J111: =_xlfn.XLOOKUP(A111,DATA[Item No.],DATA[V],"") -> Y | K111: =_xlfn.XLOOKUP(A111,DATA[Item No.],DATA[GF],"") -> Y | L111: =_xlfn.XLOOKUP(A111,DATA[Item No.],DATA[N],"") -> 0 | M111: =_xlfn.XLOOKUP(A111,DATA[Item No.],DATA[H],"") -> 0 | N111: =_xlfn.XLOOKUP(A111,DATA[Item No.],DATA[CM],"") -> 0 | O111: =_xlfn.XLOOKUP(A111,DATA[Item No.],DATA[CO],"") -> Y | P111: =_xlfn.XLOOKUP(A111,DATA[Item No.],DATA[CP],"") -> 0 | Q111: =_xlfn.XLOOKUP(A111,DATA[Item No.],DATA[Guaranteed Days],"") -> 22 | R111: =_xlfn.XLOOKUP(A111,DATA[Item No.],DATA[Storage],"") -> Chilled | S111: =_xlfn.XLOOKUP(A111,DATA[Item No.],DATA[Price],"") -> 38.46 | T111: =_xlfn.XLOOKUP(A111,DATA[Item No.],DATA[Monthly Promo],"") -> 0 | U111: =_xlfn.XLOOKUP(A111,DATA[Item No.],DATA[Promo Discount],"") -> 0 | V111: =_xlfn.XLOOKUP(A111,DATA[Item No.],DATA[SRP],"") -> 3.99 | W111: =_xlfn.XLOOKUP(A111,DATA[Item No.],DATA[SKU Territory Ranking - West],"") -> 0
A112: BD1140 | C112: =_xlfn.XLOOKUP(A112,DATA[Item No.],DATA[Description],"") -> Cherry Limeade | D112: =_xlfn.XLOOKUP(A112,DATA[Item No.],DATA[Unit UPC],"") -> 850044821143 | E112: =_xlfn.XLOOKUP(A112,DATA[Item No.],DATA[Size],"") -> 414ML | F112: =_xlfn.XLOOKUP(A112,DATA[Item No.],DATA[Picked],"") -> CA | G112: =_xlfn.XLOOKUP(A112,DATA[Item No.],DATA[Pack],"") -> 12 | H112: =_xlfn.XLOOKUP(A112,DATA[Item No.],DATA[O],"") -> Y | I112: =_xlfn.XLOOKUP(A112,DATA[Item No.],DATA[K],"") -> Y | J112: =_xlfn.XLOOKUP(A112,DATA[Item No.],DATA[V],"") -> Y | K112: =_xlfn.XLOOKUP(A112,DATA[Item No.],DATA[GF],"") -> Y | L112: =_xlfn.XLOOKUP(A112,DATA[Item No.],DATA[N],"") -> 0 | M112: =_xlfn.XLOOKUP(A112,DATA[Item No.],DATA[H],"") -> 0 | N112: =_xlfn.XLOOKUP(A112,DATA[Item No.],DATA[CM],"") -> 0 | O112: =_xlfn.XLOOKUP(A112,DATA[Item No.],DATA[CO],"") -> Y | P112: =_xlfn.XLOOKUP(A112,DATA[Item No.],DATA[CP],"") -> 0 | Q112: =_xlfn.XLOOKUP(A112,DATA[Item No.],DATA[Guaranteed Days],"") -> 22 | R112: =_xlfn.XLOOKUP(A112,DATA[Item No.],DATA[Storage],"") -> Chilled | S112: =_xlfn.XLOOKUP(A112,DATA[Item No.],DATA[Price],"") -> 38.46 | T112: =_xlfn.XLOOKUP(A112,DATA[Item No.],DATA[Monthly Promo],"") -> 0 | U112: =_xlfn.XLOOKUP(A112,DATA[Item No.],DATA[Promo Discount],"") -> 0 | V112: =_xlfn.XLOOKUP(A112,DATA[Item No.],DATA[SRP],"") -> 3.99 | W112: =_xlfn.XLOOKUP(A112,DATA[Item No.],DATA[SKU Territory Ranking - West],"") -> 0
A113: BD1171 | C113: =_xlfn.XLOOKUP(A113,DATA[Item No.],DATA[Description],"") -> Iced Tea Lemonade | D113: =_xlfn.XLOOKUP(A113,DATA[Item No.],DATA[Unit UPC],"") -> 850044821174 | E113: =_xlfn.XLOOKUP(A113,DATA[Item No.],DATA[Size],"") -> 414ML | F113: =_xlfn.XLOOKUP(A113,DATA[Item No.],DATA[Picked],"") -> CA | G113: =_xlfn.XLOOKUP(A113,DATA[Item No.],DATA[Pack],"") -> 12 | H113: =_xlfn.XLOOKUP(A113,DATA[Item No.],DATA[O],"") -> Y | I113: =_xlfn.XLOOKUP(A113,DATA[Item No.],DATA[K],"") -> Y | J113: =_xlfn.XLOOKUP(A113,DATA[Item No.],DATA[V],"") -> Y | K113: =_xlfn.XLOOKUP(A113,DATA[Item No.],DATA[GF],"") -> Y | L113: =_xlfn.XLOOKUP(A113,DATA[Item No.],DATA[N],"") -> 0 | M113: =_xlfn.XLOOKUP(A113,DATA[Item No.],DATA[H],"") -> 0 | N113: =_xlfn.XLOOKUP(A113,DATA[Item No.],DATA[CM],"") -> 0 | O113: =_xlfn.XLOOKUP(A113,DATA[Item No.],DATA[CO],"") -> Y | P113: =_xlfn.XLOOKUP(A113,DATA[Item No.],DATA[CP],"") -> 0 | Q113: =_xlfn.XLOOKUP(A113,DATA[Item No.],DATA[Guaranteed Days],"") -> 22 | R113: =_xlfn.XLOOKUP(A113,DATA[Item No.],DATA[Storage],"") -> Chilled | S113: =_xlfn.XLOOKUP(A113,DATA[Item No.],DATA[Price],"") -> 38.46 | T113: =_xlfn.XLOOKUP(A113,DATA[Item No.],DATA[Monthly Promo],"") -> 0 | U113: =_xlfn.XLOOKUP(A113,DATA[Item No.],DATA[Promo Discount],"") -> 0 | V113: =_xlfn.XLOOKUP(A113,DATA[Item No.],DATA[SRP],"") -> 3.99 | W113: =_xlfn.XLOOKUP(A113,DATA[Item No.],DATA[SKU Territory Ranking - West],"") -> 0
A114: BD3008 | C114: =_xlfn.XLOOKUP(A114,DATA[Item No.],DATA[Description],"") -> Clear Mind (Rosemary · Mint · Sage · Green Tea) | D114: =_xlfn.XLOOKUP(A114,DATA[Item No.],DATA[Unit UPC],"") -> 851107003001 | E114: =_xlfn.XLOOKUP(A114,DATA[Item No.],DATA[Size],"") -> 414ML | F114: =_xlfn.XLOOKUP(A114,DATA[Item No.],DATA[Picked],"") -> CA | G114: =_xlfn.XLOOKUP(A114,DATA[Item No.],DATA[Pack],"") -> 12 | H114: =_xlfn.XLOOKUP(A114,DATA[Item No.],DATA[O],"") -> Y | I114: =_xlfn.XLOOKUP(A114,DATA[Item No.],DATA[K],"") -> Y | J114: =_xlfn.XLOOKUP(A114,DATA[Item No.],DATA[V],"") -> 0 | K114: =_xlfn.XLOOKUP(A114,DATA[Item No.],DATA[GF],"") -> Y | L114: =_xlfn.XLOOKUP(A114,DATA[Item No.],DATA[N],"") -> Y | M114: =_xlfn.XLOOKUP(A114,DATA[Item No.],DATA[H],"") -> 0 | N114: =_xlfn.XLOOKUP(A114,DATA[Item No.],DATA[CM],"") -> 0 | O114: =_xlfn.XLOOKUP(A114,DATA[Item No.],DATA[CO],"") -> Y | P114: =_xlfn.XLOOKUP(A114,DATA[Item No.],DATA[CP],"") -> 0 | Q114: =_xlfn.XLOOKUP(A114,DATA[Item No.],DATA[Guaranteed Days],"") -> 36 | R114: =_xlfn.XLOOKUP(A114,DATA[Item No.],DATA[Storage],"") -> Chilled | S114: =_xlfn.XLOOKUP(A114,DATA[Item No.],DATA[Price],"") -> 38.46 | T114: =_xlfn.XLOOKUP(A114,DATA[Item No.],DATA[Monthly Promo],"") -> 0 | U114: =_xlfn.XLOOKUP(A114,DATA[Item No.],DATA[Promo Discount],"") -> 0 | V114: =_xlfn.XLOOKUP(A114,DATA[Item No.],DATA[SRP],"") -> 4.99 | W114: =_xlfn.XLOOKUP(A114,DATA[Item No.],DATA[SKU Territory Ranking - West],"") -> 3
A115: BD3039 | C115: =_xlfn.XLOOKUP(A115,DATA[Item No.],DATA[Description],"") -> Superberry (Raspberry · Blueberry · Goji Berry · Oolong Tea) | D115: =_xlfn.XLOOKUP(A115,DATA[Item No.],DATA[Unit UPC],"") -> 851107003032 | E115: =_xlfn.XLOOKUP(A115,DATA[Item No.],DATA[Size],"") -> 414ML | F115: =_xlfn.XLOOKUP(A115,DATA[Item No.],DATA[Picked],"") -> CA | G115: =_xlfn.XLOOKUP(A115,DATA[Item No.],DATA[Pack],"") -> 12 | H115: =_xlfn.XLOOKUP(A115,DATA[Item No.],DATA[O],"") -> Y | I115: =_xlfn.XLOOKUP(A115,DATA[Item No.],DATA[K],"") -> Y | J115: =_xlfn.XLOOKUP(A115,DATA[Item No.],DATA[V],"") -> 0 | K115: =_xlfn.XLOOKUP(A115,DATA[Item No.],DATA[GF],"") -> Y | L115: =_xlfn.XLOOKUP(A115,DATA[Item No.],DATA[N],"") -> Y | M115: =_xlfn.XLOOKUP(A115,DATA[Item No.],DATA[H],"") -> 0 | N115: =_xlfn.XLOOKUP(A115,DATA[Item No.],DATA[CM],"") -> 0 | O115: =_xlfn.XLOOKUP(A115,DATA[Item No.],DATA[CO],"") -> Y | P115: =_xlfn.XLOOKUP(A115,DATA[Item No.],DATA[CP],"") -> 0 | Q115: =_xlfn.XLOOKUP(A115,DATA[Item No.],DATA[Guaranteed Days],"") -> 36 | R115: =_xlfn.XLOOKUP(A115,DATA[Item No.],DATA[Storage],"") -> Chilled | S115: =_xlfn.XLOOKUP(A115,DATA[Item No.],DATA[Price],"") -> 38.46 | T115: =_xlfn.XLOOKUP(A115,DATA[Item No.],DATA[Monthly Promo],"") -> 0 | U115: =_xlfn.XLOOKUP(A115,DATA[Item No.],DATA[Promo Discount],"") -> 0 | V115: =_xlfn.XLOOKUP(A115,DATA[Item No.],DATA[SRP],"") -> 4.99 | W115: =_xlfn.XLOOKUP(A115,DATA[Item No.],DATA[SKU Territory Ranking - West],"") -> 3
A116: BD3077 | C116: =_xlfn.XLOOKUP(A116,DATA[Item No.],DATA[Description],"") -> Love (Lavender · Chamomile · Jasmine Green Tea | D116: =_xlfn.XLOOKUP(A116,DATA[Item No.],DATA[Unit UPC],"") -> 851107003070 | E116: =_xlfn.XLOOKUP(A116,DATA[Item No.],DATA[Size],"") -> 414ML | F116: =_xlfn.XLOOKUP(A116,DATA[Item No.],DATA[Picked],"") -> CA | G116: =_xlfn.XLOOKUP(A116,DATA[Item No.],DATA[Pack],"") -> 12 | H116: =_xlfn.XLOOKUP(A116,DATA[Item No.],DATA[O],"") -> Y | I116: =_xlfn.XLOOKUP(A116,DATA[Item No.],DATA[K],"") -> Y | J116: =_xlfn.XLOOKUP(A116,DATA[Item No.],DATA[V],"") -> 0 | K116: =_xlfn.XLOOKUP(A116,DATA[Item No.],DATA[GF],"") -> Y | L116: =_xlfn.XLOOKUP(A116,DATA[Item No.],DATA[N],"") -> Y | M116: =_xlfn.XLOOKUP(A116,DATA[Item No.],DATA[H],"") -> 0 | N116: =_xlfn.XLOOKUP(A116,DATA[Item No.],DATA[CM],"") -> 0 | O116: =_xlfn.XLOOKUP(A116,DATA[Item No.],DATA[CO],"") -> Y | P116: =_xlfn.XLOOKUP(A116,DATA[Item No.],DATA[CP],"") -> 0 | Q116: =_xlfn.XLOOKUP(A116,DATA[Item No.],DATA[Guaranteed Days],"") -> 36 | R116: =_xlfn.XLOOKUP(A116,DATA[Item No.],DATA[Storage],"") -> Chilled | S116: =_xlfn.XLOOKUP(A116,DATA[Item No.],DATA[Price],"") -> 38.46 | T116: =_xlfn.XLOOKUP(A116,DATA[Item No.],DATA[Monthly Promo],"") -> 0 | U116: =_xlfn.XLOOKUP(A116,DATA[Item No.],DATA[Promo Discount],"") -> 0 | V116: =_xlfn.XLOOKUP(A116,DATA[Item No.],DATA[SRP],"") -> 4.99 | W116: =_xlfn.XLOOKUP(A116,DATA[Item No.],DATA[SKU Territory Ranking - West],"") -> 2
A117: BD3643 | C117: =_xlfn.XLOOKUP(A117,DATA[Item No.],DATA[Description],"") -> Mountain Ginger | D117: =_xlfn.XLOOKUP(A117,DATA[Item No.],DATA[Unit UPC],"") -> 851107003629 | E117: =_xlfn.XLOOKUP(A117,DATA[Item No.],DATA[Size],"") -> 414ML | F117: =_xlfn.XLOOKUP(A117,DATA[Item No.],DATA[Picked],"") -> CA | G117: =_xlfn.XLOOKUP(A117,DATA[Item No.],DATA[Pack],"") -> 12 | H117: =_xlfn.XLOOKUP(A117,DATA[Item No.],DATA[O],"") -> Y | I117: =_xlfn.XLOOKUP(A117,DATA[Item No.],DATA[K],"") -> Y | J117: =_xlfn.XLOOKUP(A117,DATA[Item No.],DATA[V],"") -> 0 | K117: =_xlfn.XLOOKUP(A117,DATA[Item No.],DATA[GF],"") -> Y | L117: =_xlfn.XLOOKUP(A117,DATA[Item No.],DATA[N],"") -> Y | M117: =_xlfn.XLOOKUP(A117,DATA[Item No.],DATA[H],"") -> 0 | N117: =_xlfn.XLOOKUP(A117,DATA[Item No.],DATA[CM],"") -> 0 | O117: =_xlfn.XLOOKUP(A117,DATA[Item No.],DATA[CO],"") -> Y | P117: =_xlfn.XLOOKUP(A117,DATA[Item No.],DATA[CP],"") -> 0 | Q117: =_xlfn.XLOOKUP(A117,DATA[Item No.],DATA[Guaranteed Days],"") -> 0 | R117: =_xlfn.XLOOKUP(A117,DATA[Item No.],DATA[Storage],"") -> Chilled | S117: =_xlfn.XLOOKUP(A117,DATA[Item No.],DATA[Price],"") -> 38.46 | T117: =_xlfn.XLOOKUP(A117,DATA[Item No.],DATA[Monthly Promo],"") -> 0 | U117: =_xlfn.XLOOKUP(A117,DATA[Item No.],DATA[Promo Discount],"") -> 0 | V117: =_xlfn.XLOOKUP(A117,DATA[Item No.],DATA[SRP],"") -> 4.99 | W117: =_xlfn.XLOOKUP(A117,DATA[Item No.],DATA[SKU Territory Ranking - West],"") -> 0
A118: BD8461 | C118: =_xlfn.XLOOKUP(A118,DATA[Item No.],DATA[Description],"") -> Island Mango (Passionfruit · Ginger · Green Tea) | D118: =_xlfn.XLOOKUP(A118,DATA[Item No.],DATA[Unit UPC],"") -> 857161008464 | E118: =_xlfn.XLOOKUP(A118,DATA[Item No.],DATA[Size],"") -> 414ML | F118: =_xlfn.XLOOKUP(A118,DATA[Item No.],DATA[Picked],"") -> CA | G118: =_xlfn.XLOOKUP(A118,DATA[Item No.],DATA[Pack],"") -> 12 | H118: =_xlfn.XLOOKUP(A118,DATA[Item No.],DATA[O],"") -> Y | I118: =_xlfn.XLOOKUP(A118,DATA[Item No.],DATA[K],"") -> Y | J118: =_xlfn.XLOOKUP(A118,DATA[Item No.],DATA[V],"") -> 0 | K118: =_xlfn.XLOOKUP(A118,DATA[Item No.],DATA[GF],"") -> Y | L118: =_xlfn.XLOOKUP(A118,DATA[Item No.],DATA[N],"") -> Y | M118: =_xlfn.XLOOKUP(A118,DATA[Item No.],DATA[H],"") -> 0 | N118: =_xlfn.XLOOKUP(A118,DATA[Item No.],DATA[CM],"") -> 0 | O118: =_xlfn.XLOOKUP(A118,DATA[Item No.],DATA[CO],"") -> Y | P118: =_xlfn.XLOOKUP(A118,DATA[Item No.],DATA[CP],"") -> 0 | Q118: =_xlfn.XLOOKUP(A118,DATA[Item No.],DATA[Guaranteed Days],"") -> 36 | R118: =_xlfn.XLOOKUP(A118,DATA[Item No.],DATA[Storage],"") -> Chilled | S118: =_xlfn.XLOOKUP(A118,DATA[Item No.],DATA[Price],"") -> 38.46 | T118: =_xlfn.XLOOKUP(A118,DATA[Item No.],DATA[Monthly Promo],"") -> 0 | U118: =_xlfn.XLOOKUP(A118,DATA[Item No.],DATA[Promo Discount],"") -> 0 | V118: =_xlfn.XLOOKUP(A118,DATA[Item No.],DATA[SRP],"") -> 4.99 | W118: =_xlfn.XLOOKUP(A118,DATA[Item No.],DATA[SKU Territory Ranking - West],"") -> 3
A119: BRIGHTSIDE ORGANICS | C119: =_xlfn.XLOOKUP(A119,DATA[Item No.],DATA[Description],"") ->  | D119: =_xlfn.XLOOKUP(A119,DATA[Item No.],DATA[Unit UPC],"") ->  | E119: =_xlfn.XLOOKUP(A119,DATA[Item No.],DATA[Size],"") ->  | F119: =_xlfn.XLOOKUP(A119,DATA[Item No.],DATA[Picked],"") ->  | G119: =_xlfn.XLOOKUP(A119,DATA[Item No.],DATA[Pack],"") ->  | H119: =_xlfn.XLOOKUP(A119,DATA[Item No.],DATA[O],"") ->  | I119: =_xlfn.XLOOKUP(A119,DATA[Item No.],DATA[K],"") ->  | J119: =_xlfn.XLOOKUP(A119,DATA[Item No.],DATA[V],"") ->  | K119: =_xlfn.XLOOKUP(A119,DATA[Item No.],DATA[GF],"") ->  | L119: =_xlfn.XLOOKUP(A119,DATA[Item No.],DATA[N],"") ->  | M119: =_xlfn.XLOOKUP(A119,DATA[Item No.],DATA[H],"") ->  | N119: =_xlfn.XLOOKUP(A119,DATA[Item No.],DATA[CM],"") ->  | O119: =_xlfn.XLOOKUP(A119,DATA[Item No.],DATA[CO],"") ->  | P119: =_xlfn.XLOOKUP(A119,DATA[Item No.],DATA[CP],"") ->  | Q119: =_xlfn.XLOOKUP(A119,DATA[Item No.],DATA[Guaranteed Days],"") ->  | R119: =_xlfn.XLOOKUP(A119,DATA[Item No.],DATA[Storage],"") ->  | S119: =_xlfn.XLOOKUP(A119,DATA[Item No.],DATA[Price],"") ->  | T119: =_xlfn.XLOOKUP(A119,DATA[Item No.],DATA[Monthly Promo],"") ->  | U119: =_xlfn.XLOOKUP(A119,DATA[Item No.],DATA[Promo Discount],"") ->  | V119: =_xlfn.XLOOKUP(A119,DATA[Item No.],DATA[SRP],"") ->  | W119: =_xlfn.XLOOKUP(A119,DATA[Item No.],DATA[SKU Territory Ranking - West],"") -> 
A120: Daily Fibre Boost | C120: =_xlfn.XLOOKUP(A120,DATA[Item No.],DATA[Description],"") ->  | D120: =_xlfn.XLOOKUP(A120,DATA[Item No.],DATA[Unit UPC],"") ->  | E120: =_xlfn.XLOOKUP(A120,DATA[Item No.],DATA[Size],"") ->  | F120: =_xlfn.XLOOKUP(A120,DATA[Item No.],DATA[Picked],"") ->  | G120: =_xlfn.XLOOKUP(A120,DATA[Item No.],DATA[Pack],"") ->  | H120: =_xlfn.XLOOKUP(A120,DATA[Item No.],DATA[O],"") ->  | I120: =_xlfn.XLOOKUP(A120,DATA[Item No.],DATA[K],"") ->  | J120: =_xlfn.XLOOKUP(A120,DATA[Item No.],DATA[V],"") ->  | K120: =_xlfn.XLOOKUP(A120,DATA[Item No.],DATA[GF],"") ->  | L120: =_xlfn.XLOOKUP(A120,DATA[Item No.],DATA[N],"") ->  | M120: =_xlfn.XLOOKUP(A120,DATA[Item No.],DATA[H],"") ->  | N120: =_xlfn.XLOOKUP(A120,DATA[Item No.],DATA[CM],"") ->  | O120: =_xlfn.XLOOKUP(A120,DATA[Item No.],DATA[CO],"") ->  | P120: =_xlfn.XLOOKUP(A120,DATA[Item No.],DATA[CP],"") ->  | Q120: =_xlfn.XLOOKUP(A120,DATA[Item No.],DATA[Guaranteed Days],"") ->  | R120: =_xlfn.XLOOKUP(A120,DATA[Item No.],DATA[Storage],"") ->  | S120: =_xlfn.XLOOKUP(A120,DATA[Item No.],DATA[Price],"") ->  | T120: =_xlfn.XLOOKUP(A120,DATA[Item No.],DATA[Monthly Promo],"") ->  | U120: =_xlfn.XLOOKUP(A120,DATA[Item No.],DATA[Promo Discount],"") ->  | V120: =_xlfn.XLOOKUP(A120,DATA[Item No.],DATA[SRP],"") ->  | W120: =_xlfn.XLOOKUP(A120,DATA[Item No.],DATA[SKU Territory Ranking - West],"") -> 
A121: BO0059 | C121: =_xlfn.XLOOKUP(A121,DATA[Item No.],DATA[Description],"") -> Natura Fibre | D121: =_xlfn.XLOOKUP(A121,DATA[Item No.],DATA[Unit UPC],"") -> 839266000055 | E121: =_xlfn.XLOOKUP(A121,DATA[Item No.],DATA[Size],"") -> 750G | F121: =_xlfn.XLOOKUP(A121,DATA[Item No.],DATA[Picked],"") -> CA | G121: =_xlfn.XLOOKUP(A121,DATA[Item No.],DATA[Pack],"") -> 6 | H121: =_xlfn.XLOOKUP(A121,DATA[Item No.],DATA[O],"") -> Y | I121: =_xlfn.XLOOKUP(A121,DATA[Item No.],DATA[K],"") -> 0 | J121: =_xlfn.XLOOKUP(A121,DATA[Item No.],DATA[V],"") -> 0 | K121: =_xlfn.XLOOKUP(A121,DATA[Item No.],DATA[GF],"") -> Y | L121: =_xlfn.XLOOKUP(A121,DATA[Item No.],DATA[N],"") -> 0 | M121: =_xlfn.XLOOKUP(A121,DATA[Item No.],DATA[H],"") -> 0 | N121: =_xlfn.XLOOKUP(A121,DATA[Item No.],DATA[CM],"") -> 0 | O121: =_xlfn.XLOOKUP(A121,DATA[Item No.],DATA[CO],"") -> 0 | P121: =_xlfn.XLOOKUP(A121,DATA[Item No.],DATA[CP],"") -> 0 | Q121: =_xlfn.XLOOKUP(A121,DATA[Item No.],DATA[Guaranteed Days],"") -> 60 | R121: =_xlfn.XLOOKUP(A121,DATA[Item No.],DATA[Storage],"") -> Dry | S121: =_xlfn.XLOOKUP(A121,DATA[Item No.],DATA[Price],"") -> 145.33 | T121: =_xlfn.XLOOKUP(A121,DATA[Item No.],DATA[Monthly Promo],"") -> 0 | U121: =_xlfn.XLOOKUP(A121,DATA[Item No.],DATA[Promo Discount],"") -> 0 | V121: =_xlfn.XLOOKUP(A121,DATA[Item No.],DATA[SRP],"") -> 36.99 | W121: =_xlfn.XLOOKUP(A121,DATA[Item No.],DATA[SKU Territory Ranking - West],"") -> 0
A122: BROYA | C122: =_xlfn.XLOOKUP(A122,DATA[Item No.],DATA[Description],"") ->  | D122: =_xlfn.XLOOKUP(A122,DATA[Item No.],DATA[Unit UPC],"") ->  | E122: =_xlfn.XLOOKUP(A122,DATA[Item No.],DATA[Size],"") ->  | F122: =_xlfn.XLOOKUP(A122,DATA[Item No.],DATA[Picked],"") ->  | G122: =_xlfn.XLOOKUP(A122,DATA[Item No.],DATA[Pack],"") ->  | H122: =_xlfn.XLOOKUP(A122,DATA[Item No.],DATA[O],"") ->  | I122: =_xlfn.XLOOKUP(A122,DATA[Item No.],DATA[K],"") ->  | J122: =_xlfn.XLOOKUP(A122,DATA[Item No.],DATA[V],"") ->  | K122: =_xlfn.XLOOKUP(A122,DATA[Item No.],DATA[GF],"") ->  | L122: =_xlfn.XLOOKUP(A122,DATA[Item No.],DATA[N],"") ->  | M122: =_xlfn.XLOOKUP(A122,DATA[Item No.],DATA[H],"") ->  | N122: =_xlfn.XLOOKUP(A122,DATA[Item No.],DATA[CM],"") ->  | O122: =_xlfn.XLOOKUP(A122,DATA[Item No.],DATA[CO],"") ->  | P122: =_xlfn.XLOOKUP(A122,DATA[Item No.],DATA[CP],"") ->  | Q122: =_xlfn.XLOOKUP(A122,DATA[Item No.],DATA[Guaranteed Days],"") ->  | R122: =_xlfn.XLOOKUP(A122,DATA[Item No.],DATA[Storage],"") ->  | S122: =_xlfn.XLOOKUP(A122,DATA[Item No.],DATA[Price],"") ->  | T122: =_xlfn.XLOOKUP(A122,DATA[Item No.],DATA[Monthly Promo],"") ->  | U122: =_xlfn.XLOOKUP(A122,DATA[Item No.],DATA[Promo Discount],"") ->  | V122: =_xlfn.XLOOKUP(A122,DATA[Item No.],DATA[SRP],"") ->  | W122: =_xlfn.XLOOKUP(A122,DATA[Item No.],DATA[SKU Territory Ranking - West],"") -> 
A123: Bone Broth | C123: =_xlfn.XLOOKUP(A123,DATA[Item No.],DATA[Description],"") ->  | D123: =_xlfn.XLOOKUP(A123,DATA[Item No.],DATA[Unit UPC],"") ->  | E123: =_xlfn.XLOOKUP(A123,DATA[Item No.],DATA[Size],"") ->  | F123: =_xlfn.XLOOKUP(A123,DATA[Item No.],DATA[Picked],"") ->  | G123: =_xlfn.XLOOKUP(A123,DATA[Item No.],DATA[Pack],"") ->  | H123: =_xlfn.XLOOKUP(A123,DATA[Item No.],DATA[O],"") ->  | I123: =_xlfn.XLOOKUP(A123,DATA[Item No.],DATA[K],"") ->  | J123: =_xlfn.XLOOKUP(A123,DATA[Item No.],DATA[V],"") ->  | K123: =_xlfn.XLOOKUP(A123,DATA[Item No.],DATA[GF],"") ->  | L123: =_xlfn.XLOOKUP(A123,DATA[Item No.],DATA[N],"") ->  | M123: =_xlfn.XLOOKUP(A123,DATA[Item No.],DATA[H],"") ->  | N123: =_xlfn.XLOOKUP(A123,DATA[Item No.],DATA[CM],"") ->  | O123: =_xlfn.XLOOKUP(A123,DATA[Item No.],DATA[CO],"") ->  | P123: =_xlfn.XLOOKUP(A123,DATA[Item No.],DATA[CP],"") ->  | Q123: =_xlfn.XLOOKUP(A123,DATA[Item No.],DATA[Guaranteed Days],"") ->  | R123: =_xlfn.XLOOKUP(A123,DATA[Item No.],DATA[Storage],"") ->  | S123: =_xlfn.XLOOKUP(A123,DATA[Item No.],DATA[Price],"") ->  | T123: =_xlfn.XLOOKUP(A123,DATA[Item No.],DATA[Monthly Promo],"") ->  | U123: =_xlfn.XLOOKUP(A123,DATA[Item No.],DATA[Promo Discount],"") ->  | V123: =_xlfn.XLOOKUP(A123,DATA[Item No.],DATA[SRP],"") ->  | W123: =_xlfn.XLOOKUP(A123,DATA[Item No.],DATA[SKU Territory Ranking - West],"") -> 
A124: BR7170 | C124: =_xlfn.XLOOKUP(A124,DATA[Item No.],DATA[Description],"") -> Classic Chicken Bone Broth | D124: =_xlfn.XLOOKUP(A124,DATA[Item No.],DATA[Unit UPC],"") -> 628451797173 | E124: =_xlfn.XLOOKUP(A124,DATA[Item No.],DATA[Size],"") -> 237ML | F124: =_xlfn.XLOOKUP(A124,DATA[Item No.],DATA[Picked],"") -> CA | G124: =_xlfn.XLOOKUP(A124,DATA[Item No.],DATA[Pack],"") -> 6 | H124: =_xlfn.XLOOKUP(A124,DATA[Item No.],DATA[O],"") -> Y | I124: =_xlfn.XLOOKUP(A124,DATA[Item No.],DATA[K],"") -> 0 | J124: =_xlfn.XLOOKUP(A124,DATA[Item No.],DATA[V],"") -> 0 | K124: =_xlfn.XLOOKUP(A124,DATA[Item No.],DATA[GF],"") -> 0 | L124: =_xlfn.XLOOKUP(A124,DATA[Item No.],DATA[N],"") -> 0 | M124: =_xlfn.XLOOKUP(A124,DATA[Item No.],DATA[H],"") -> 0 | N124: =_xlfn.XLOOKUP(A124,DATA[Item No.],DATA[CM],"") -> Y | O124: =_xlfn.XLOOKUP(A124,DATA[Item No.],DATA[CO],"") -> Y | P124: =_xlfn.XLOOKUP(A124,DATA[Item No.],DATA[CP],"") -> Y | Q124: =_xlfn.XLOOKUP(A124,DATA[Item No.],DATA[Guaranteed Days],"") -> 150 | R124: =_xlfn.XLOOKUP(A124,DATA[Item No.],DATA[Storage],"") -> Dry | S124: =_xlfn.XLOOKUP(A124,DATA[Item No.],DATA[Price],"") -> 30.95 | T124: =_xlfn.XLOOKUP(A124,DATA[Item No.],DATA[Monthly Promo],"") -> APRIL DEAL! | U124: =_xlfn.XLOOKUP(A124,DATA[Item No.],DATA[Promo Discount],"") -> SAVE 15% | V124: =_xlfn.XLOOKUP(A124,DATA[Item No.],DATA[SRP],"") -> 7.99 | W124: =_xlfn.XLOOKUP(A124,DATA[Item No.],DATA[SKU Territory Ranking - West],"") -> 0
A125: BR7187 | C125: =_xlfn.XLOOKUP(A125,DATA[Item No.],DATA[Description],"") -> Classic Beef Bone Broth | D125: =_xlfn.XLOOKUP(A125,DATA[Item No.],DATA[Unit UPC],"") -> 628451797180 | E125: =_xlfn.XLOOKUP(A125,DATA[Item No.],DATA[Size],"") -> 237ML | F125: =_xlfn.XLOOKUP(A125,DATA[Item No.],DATA[Picked],"") -> CA | G125: =_xlfn.XLOOKUP(A125,DATA[Item No.],DATA[Pack],"") -> 6 | H125: =_xlfn.XLOOKUP(A125,DATA[Item No.],DATA[O],"") -> 0 | I125: =_xlfn.XLOOKUP(A125,DATA[Item No.],DATA[K],"") -> 0 | J125: =_xlfn.XLOOKUP(A125,DATA[Item No.],DATA[V],"") -> 0 | K125: =_xlfn.XLOOKUP(A125,DATA[Item No.],DATA[GF],"") -> 0 | L125: =_xlfn.XLOOKUP(A125,DATA[Item No.],DATA[N],"") -> 0 | M125: =_xlfn.XLOOKUP(A125,DATA[Item No.],DATA[H],"") -> 0 | N125: =_xlfn.XLOOKUP(A125,DATA[Item No.],DATA[CM],"") -> Y | O125: =_xlfn.XLOOKUP(A125,DATA[Item No.],DATA[CO],"") -> Y | P125: =_xlfn.XLOOKUP(A125,DATA[Item No.],DATA[CP],"") -> Y | Q125: =_xlfn.XLOOKUP(A125,DATA[Item No.],DATA[Guaranteed Days],"") -> 150 | R125: =_xlfn.XLOOKUP(A125,DATA[Item No.],DATA[Storage],"") -> Dry | S125: =_xlfn.XLOOKUP(A125,DATA[Item No.],DATA[Price],"") -> 30.95 | T125: =_xlfn.XLOOKUP(A125,DATA[Item No.],DATA[Monthly Promo],"") -> APRIL DEAL! | U125: =_xlfn.XLOOKUP(A125,DATA[Item No.],DATA[Promo Discount],"") -> SAVE 15% | V125: =_xlfn.XLOOKUP(A125,DATA[Item No.],DATA[SRP],"") -> 7.99 | W125: =_xlfn.XLOOKUP(A125,DATA[Item No.],DATA[SKU Territory Ranking - West],"") -> 0
A126: BR7200 | C126: =_xlfn.XLOOKUP(A126,DATA[Item No.],DATA[Description],"") -> Chocolate Broth | D126: =_xlfn.XLOOKUP(A126,DATA[Item No.],DATA[Unit UPC],"") -> 628451797203 | E126: =_xlfn.XLOOKUP(A126,DATA[Item No.],DATA[Size],"") -> 237ML | F126: =_xlfn.XLOOKUP(A126,DATA[Item No.],DATA[Picked],"") -> CA | G126: =_xlfn.XLOOKUP(A126,DATA[Item No.],DATA[Pack],"") -> 6 | H126: =_xlfn.XLOOKUP(A126,DATA[Item No.],DATA[O],"") -> 0 | I126: =_xlfn.XLOOKUP(A126,DATA[Item No.],DATA[K],"") -> 0 | J126: =_xlfn.XLOOKUP(A126,DATA[Item No.],DATA[V],"") -> 0 | K126: =_xlfn.XLOOKUP(A126,DATA[Item No.],DATA[GF],"") -> 0 | L126: =_xlfn.XLOOKUP(A126,DATA[Item No.],DATA[N],"") -> 0 | M126: =_xlfn.XLOOKUP(A126,DATA[Item No.],DATA[H],"") -> 0 | N126: =_xlfn.XLOOKUP(A126,DATA[Item No.],DATA[CM],"") -> 0 | O126: =_xlfn.XLOOKUP(A126,DATA[Item No.],DATA[CO],"") -> Y | P126: =_xlfn.XLOOKUP(A126,DATA[Item No.],DATA[CP],"") -> Y | Q126: =_xlfn.XLOOKUP(A126,DATA[Item No.],DATA[Guaranteed Days],"") -> 95 | R126: =_xlfn.XLOOKUP(A126,DATA[Item No.],DATA[Storage],"") -> Dry | S126: =_xlfn.XLOOKUP(A126,DATA[Item No.],DATA[Price],"") -> 40.99 | T126: =_xlfn.XLOOKUP(A126,DATA[Item No.],DATA[Monthly Promo],"") -> APRIL DEAL! | U126: =_xlfn.XLOOKUP(A126,DATA[Item No.],DATA[Promo Discount],"") -> SAVE 15% | V126: =_xlfn.XLOOKUP(A126,DATA[Item No.],DATA[SRP],"") -> 9.99 | W126: =_xlfn.XLOOKUP(A126,DATA[Item No.],DATA[SKU Territory Ranking - West],"") -> 0
A127: Bone Broth (Pouches) | C127: =_xlfn.XLOOKUP(A127,DATA[Item No.],DATA[Description],"") ->  | D127: =_xlfn.XLOOKUP(A127,DATA[Item No.],DATA[Unit UPC],"") ->  | E127: =_xlfn.XLOOKUP(A127,DATA[Item No.],DATA[Size],"") ->  | F127: =_xlfn.XLOOKUP(A127,DATA[Item No.],DATA[Picked],"") ->  | G127: =_xlfn.XLOOKUP(A127,DATA[Item No.],DATA[Pack],"") ->  | H127: =_xlfn.XLOOKUP(A127,DATA[Item No.],DATA[O],"") ->  | I127: =_xlfn.XLOOKUP(A127,DATA[Item No.],DATA[K],"") ->  | J127: =_xlfn.XLOOKUP(A127,DATA[Item No.],DATA[V],"") ->  | K127: =_xlfn.XLOOKUP(A127,DATA[Item No.],DATA[GF],"") ->  | L127: =_xlfn.XLOOKUP(A127,DATA[Item No.],DATA[N],"") ->  | M127: =_xlfn.XLOOKUP(A127,DATA[Item No.],DATA[H],"") ->  | N127: =_xlfn.XLOOKUP(A127,DATA[Item No.],DATA[CM],"") ->  | O127: =_xlfn.XLOOKUP(A127,DATA[Item No.],DATA[CO],"") ->  | P127: =_xlfn.XLOOKUP(A127,DATA[Item No.],DATA[CP],"") ->  | Q127: =_xlfn.XLOOKUP(A127,DATA[Item No.],DATA[Guaranteed Days],"") ->  | R127: =_xlfn.XLOOKUP(A127,DATA[Item No.],DATA[Storage],"") ->  | S127: =_xlfn.XLOOKUP(A127,DATA[Item No.],DATA[Price],"") ->  | T127: =_xlfn.XLOOKUP(A127,DATA[Item No.],DATA[Monthly Promo],"") ->  | U127: =_xlfn.XLOOKUP(A127,DATA[Item No.],DATA[Promo Discount],"") ->  | V127: =_xlfn.XLOOKUP(A127,DATA[Item No.],DATA[SRP],"") ->  | W127: =_xlfn.XLOOKUP(A127,DATA[Item No.],DATA[SKU Territory Ranking - West],"") -> 
A128: BR7132 | C128: =_xlfn.XLOOKUP(A128,DATA[Item No.],DATA[Description],"") -> Chicken - Turmeric & Ginger | D128: =_xlfn.XLOOKUP(A128,DATA[Item No.],DATA[Unit UPC],"") -> 628451797135 | E128: =_xlfn.XLOOKUP(A128,DATA[Item No.],DATA[Size],"") -> 500ML | F128: =_xlfn.XLOOKUP(A128,DATA[Item No.],DATA[Picked],"") -> CA | G128: =_xlfn.XLOOKUP(A128,DATA[Item No.],DATA[Pack],"") -> 8 | H128: =_xlfn.XLOOKUP(A128,DATA[Item No.],DATA[O],"") -> Y | I128: =_xlfn.XLOOKUP(A128,DATA[Item No.],DATA[K],"") -> 0 | J128: =_xlfn.XLOOKUP(A128,DATA[Item No.],DATA[V],"") -> 0 | K128: =_xlfn.XLOOKUP(A128,DATA[Item No.],DATA[GF],"") -> Y | L128: =_xlfn.XLOOKUP(A128,DATA[Item No.],DATA[N],"") -> Y | M128: =_xlfn.XLOOKUP(A128,DATA[Item No.],DATA[H],"") -> 0 | N128: =_xlfn.XLOOKUP(A128,DATA[Item No.],DATA[CM],"") -> Y | O128: =_xlfn.XLOOKUP(A128,DATA[Item No.],DATA[CO],"") -> Y | P128: =_xlfn.XLOOKUP(A128,DATA[Item No.],DATA[CP],"") -> Y | Q128: =_xlfn.XLOOKUP(A128,DATA[Item No.],DATA[Guaranteed Days],"") -> 76 | R128: =_xlfn.XLOOKUP(A128,DATA[Item No.],DATA[Storage],"") -> Dry | S128: =_xlfn.XLOOKUP(A128,DATA[Item No.],DATA[Price],"") -> 74.26 | T128: =_xlfn.XLOOKUP(A128,DATA[Item No.],DATA[Monthly Promo],"") -> APRIL DEAL! | U128: =_xlfn.XLOOKUP(A128,DATA[Item No.],DATA[Promo Discount],"") -> SAVE 15% | V128: =_xlfn.XLOOKUP(A128,DATA[Item No.],DATA[SRP],"") -> 12.99 | W128: =_xlfn.XLOOKUP(A128,DATA[Item No.],DATA[SKU Territory Ranking - West],"") -> 1
A129: BR7149 | C129: =_xlfn.XLOOKUP(A129,DATA[Item No.],DATA[Description],"") -> Beef - Parsley & Cumin | D129: =_xlfn.XLOOKUP(A129,DATA[Item No.],DATA[Unit UPC],"") -> 628451797142 | E129: =_xlfn.XLOOKUP(A129,DATA[Item No.],DATA[Size],"") -> 500ML | F129: =_xlfn.XLOOKUP(A129,DATA[Item No.],DATA[Picked],"") -> CA | G129: =_xlfn.XLOOKUP(A129,DATA[Item No.],DATA[Pack],"") -> 8 | H129: =_xlfn.XLOOKUP(A129,DATA[Item No.],DATA[O],"") -> 0 | I129: =_xlfn.XLOOKUP(A129,DATA[Item No.],DATA[K],"") -> 0 | J129: =_xlfn.XLOOKUP(A129,DATA[Item No.],DATA[V],"") -> 0 | K129: =_xlfn.XLOOKUP(A129,DATA[Item No.],DATA[GF],"") -> Y | L129: =_xlfn.XLOOKUP(A129,DATA[Item No.],DATA[N],"") -> Y | M129: =_xlfn.XLOOKUP(A129,DATA[Item No.],DATA[H],"") -> 0 | N129: =_xlfn.XLOOKUP(A129,DATA[Item No.],DATA[CM],"") -> Y | O129: =_xlfn.XLOOKUP(A129,DATA[Item No.],DATA[CO],"") -> Y | P129: =_xlfn.XLOOKUP(A129,DATA[Item No.],DATA[CP],"") -> Y | Q129: =_xlfn.XLOOKUP(A129,DATA[Item No.],DATA[Guaranteed Days],"") -> 76 | R129: =_xlfn.XLOOKUP(A129,DATA[Item No.],DATA[Storage],"") -> Dry | S129: =_xlfn.XLOOKUP(A129,DATA[Item No.],DATA[Price],"") -> 74.26 | T129: =_xlfn.XLOOKUP(A129,DATA[Item No.],DATA[Monthly Promo],"") -> APRIL DEAL! | U129: =_xlfn.XLOOKUP(A129,DATA[Item No.],DATA[Promo Discount],"") -> SAVE 15% | V129: =_xlfn.XLOOKUP(A129,DATA[Item No.],DATA[SRP],"") -> 12.99 | W129: =_xlfn.XLOOKUP(A129,DATA[Item No.],DATA[SKU Territory Ranking - West],"") -> 2
A130: BR7156 | C130: =_xlfn.XLOOKUP(A130,DATA[Item No.],DATA[Description],"") -> Chicken - Sriracha & Chili | D130: =_xlfn.XLOOKUP(A130,DATA[Item No.],DATA[Unit UPC],"") -> 628451797159 | E130: =_xlfn.XLOOKUP(A130,DATA[Item No.],DATA[Size],"") -> 500ML | F130: =_xlfn.XLOOKUP(A130,DATA[Item No.],DATA[Picked],"") -> CA | G130: =_xlfn.XLOOKUP(A130,DATA[Item No.],DATA[Pack],"") -> 8 | H130: =_xlfn.XLOOKUP(A130,DATA[Item No.],DATA[O],"") -> Y | I130: =_xlfn.XLOOKUP(A130,DATA[Item No.],DATA[K],"") -> 0 | J130: =_xlfn.XLOOKUP(A130,DATA[Item No.],DATA[V],"") -> 0 | K130: =_xlfn.XLOOKUP(A130,DATA[Item No.],DATA[GF],"") -> Y | L130: =_xlfn.XLOOKUP(A130,DATA[Item No.],DATA[N],"") -> Y | M130: =_xlfn.XLOOKUP(A130,DATA[Item No.],DATA[H],"") -> 0 | N130: =_xlfn.XLOOKUP(A130,DATA[Item No.],DATA[CM],"") -> Y | O130: =_xlfn.XLOOKUP(A130,DATA[Item No.],DATA[CO],"") -> Y | P130: =_xlfn.XLOOKUP(A130,DATA[Item No.],DATA[CP],"") -> Y | Q130: =_xlfn.XLOOKUP(A130,DATA[Item No.],DATA[Guaranteed Days],"") -> 76 | R130: =_xlfn.XLOOKUP(A130,DATA[Item No.],DATA[Storage],"") -> Dry | S130: =_xlfn.XLOOKUP(A130,DATA[Item No.],DATA[Price],"") -> 74.26 | T130: =_xlfn.XLOOKUP(A130,DATA[Item No.],DATA[Monthly Promo],"") -> APRIL DEAL! | U130: =_xlfn.XLOOKUP(A130,DATA[Item No.],DATA[Promo Discount],"") -> SAVE 15% | V130: =_xlfn.XLOOKUP(A130,DATA[Item No.],DATA[SRP],"") -> 12.99 | W130: =_xlfn.XLOOKUP(A130,DATA[Item No.],DATA[SKU Territory Ranking - West],"") -> 4
A131: BR7163 | C131: =_xlfn.XLOOKUP(A131,DATA[Item No.],DATA[Description],"") -> Beef - Tomato & Smoked Paprika | D131: =_xlfn.XLOOKUP(A131,DATA[Item No.],DATA[Unit UPC],"") -> 628451797166 | E131: =_xlfn.XLOOKUP(A131,DATA[Item No.],DATA[Size],"") -> 500ML | F131: =_xlfn.XLOOKUP(A131,DATA[Item No.],DATA[Picked],"") -> CA | G131: =_xlfn.XLOOKUP(A131,DATA[Item No.],DATA[Pack],"") -> 8 | H131: =_xlfn.XLOOKUP(A131,DATA[Item No.],DATA[O],"") -> Y | I131: =_xlfn.XLOOKUP(A131,DATA[Item No.],DATA[K],"") -> 0 | J131: =_xlfn.XLOOKUP(A131,DATA[Item No.],DATA[V],"") -> 0 | K131: =_xlfn.XLOOKUP(A131,DATA[Item No.],DATA[GF],"") -> Y | L131: =_xlfn.XLOOKUP(A131,DATA[Item No.],DATA[N],"") -> Y | M131: =_xlfn.XLOOKUP(A131,DATA[Item No.],DATA[H],"") -> 0 | N131: =_xlfn.XLOOKUP(A131,DATA[Item No.],DATA[CM],"") -> Y | O131: =_xlfn.XLOOKUP(A131,DATA[Item No.],DATA[CO],"") -> Y | P131: =_xlfn.XLOOKUP(A131,DATA[Item No.],DATA[CP],"") -> Y | Q131: =_xlfn.XLOOKUP(A131,DATA[Item No.],DATA[Guaranteed Days],"") -> 76 | R131: =_xlfn.XLOOKUP(A131,DATA[Item No.],DATA[Storage],"") -> Dry | S131: =_xlfn.XLOOKUP(A131,DATA[Item No.],DATA[Price],"") -> 74.26 | T131: =_xlfn.XLOOKUP(A131,DATA[Item No.],DATA[Monthly Promo],"") -> APRIL DEAL! | U131: =_xlfn.XLOOKUP(A131,DATA[Item No.],DATA[Promo Discount],"") -> SAVE 15% | V131: =_xlfn.XLOOKUP(A131,DATA[Item No.],DATA[SRP],"") -> 12.99 | W131: =_xlfn.XLOOKUP(A131,DATA[Item No.],DATA[SKU Territory Ranking - West],"") -> 3
A132: Tallow Balm | C132: =_xlfn.XLOOKUP(A132,DATA[Item No.],DATA[Description],"") ->  | D132: =_xlfn.XLOOKUP(A132,DATA[Item No.],DATA[Unit UPC],"") ->  | E132: =_xlfn.XLOOKUP(A132,DATA[Item No.],DATA[Size],"") ->  | F132: =_xlfn.XLOOKUP(A132,DATA[Item No.],DATA[Picked],"") ->  | G132: =_xlfn.XLOOKUP(A132,DATA[Item No.],DATA[Pack],"") ->  | H132: =_xlfn.XLOOKUP(A132,DATA[Item No.],DATA[O],"") ->  | I132: =_xlfn.XLOOKUP(A132,DATA[Item No.],DATA[K],"") ->  | J132: =_xlfn.XLOOKUP(A132,DATA[Item No.],DATA[V],"") ->  | K132: =_xlfn.XLOOKUP(A132,DATA[Item No.],DATA[GF],"") ->  | L132: =_xlfn.XLOOKUP(A132,DATA[Item No.],DATA[N],"") ->  | M132: =_xlfn.XLOOKUP(A132,DATA[Item No.],DATA[H],"") ->  | N132: =_xlfn.XLOOKUP(A132,DATA[Item No.],DATA[CM],"") ->  | O132: =_xlfn.XLOOKUP(A132,DATA[Item No.],DATA[CO],"") ->  | P132: =_xlfn.XLOOKUP(A132,DATA[Item No.],DATA[CP],"") ->  | Q132: =_xlfn.XLOOKUP(A132,DATA[Item No.],DATA[Guaranteed Days],"") ->  | R132: =_xlfn.XLOOKUP(A132,DATA[Item No.],DATA[Storage],"") ->  | S132: =_xlfn.XLOOKUP(A132,DATA[Item No.],DATA[Price],"") ->  | T132: =_xlfn.XLOOKUP(A132,DATA[Item No.],DATA[Monthly Promo],"") ->  | U132: =_xlfn.XLOOKUP(A132,DATA[Item No.],DATA[Promo Discount],"") ->  | V132: =_xlfn.XLOOKUP(A132,DATA[Item No.],DATA[SRP],"") ->  | W132: =_xlfn.XLOOKUP(A132,DATA[Item No.],DATA[SKU Territory Ranking - West],"") -> 
A133: BR7507 | C133: =_xlfn.XLOOKUP(A133,DATA[Item No.],DATA[Description],"") -> Premium Tallow Balm | D133: =_xlfn.XLOOKUP(A133,DATA[Item No.],DATA[Unit UPC],"") -> 628451797500 | E133: =_xlfn.XLOOKUP(A133,DATA[Item No.],DATA[Size],"") -> 56G | F133: =_xlfn.XLOOKUP(A133,DATA[Item No.],DATA[Picked],"") -> CA | G133: =_xlfn.XLOOKUP(A133,DATA[Item No.],DATA[Pack],"") -> 6 | H133: =_xlfn.XLOOKUP(A133,DATA[Item No.],DATA[O],"") -> 0 | I133: =_xlfn.XLOOKUP(A133,DATA[Item No.],DATA[K],"") -> 0 | J133: =_xlfn.XLOOKUP(A133,DATA[Item No.],DATA[V],"") -> 0 | K133: =_xlfn.XLOOKUP(A133,DATA[Item No.],DATA[GF],"") -> 0 | L133: =_xlfn.XLOOKUP(A133,DATA[Item No.],DATA[N],"") -> 0 | M133: =_xlfn.XLOOKUP(A133,DATA[Item No.],DATA[H],"") -> 0 | N133: =_xlfn.XLOOKUP(A133,DATA[Item No.],DATA[CM],"") -> Y | O133: =_xlfn.XLOOKUP(A133,DATA[Item No.],DATA[CO],"") -> Y | P133: =_xlfn.XLOOKUP(A133,DATA[Item No.],DATA[CP],"") -> Y | Q133: =_xlfn.XLOOKUP(A133,DATA[Item No.],DATA[Guaranteed Days],"") -> 196 | R133: =_xlfn.XLOOKUP(A133,DATA[Item No.],DATA[Storage],"") -> Dry | S133: =_xlfn.XLOOKUP(A133,DATA[Item No.],DATA[Price],"") -> 171.05 | T133: =_xlfn.XLOOKUP(A133,DATA[Item No.],DATA[Monthly Promo],"") -> APRIL DEAL! | U133: =_xlfn.XLOOKUP(A133,DATA[Item No.],DATA[Promo Discount],"") -> SAVE 15% | V133: =_xlfn.XLOOKUP(A133,DATA[Item No.],DATA[SRP],"") -> 44.99 | W133: =_xlfn.XLOOKUP(A133,DATA[Item No.],DATA[SKU Territory Ranking - West],"") -> 0
A134: BUBBIES | C134: =_xlfn.XLOOKUP(A134,DATA[Item No.],DATA[Description],"") ->  | D134: =_xlfn.XLOOKUP(A134,DATA[Item No.],DATA[Unit UPC],"") ->  | E134: =_xlfn.XLOOKUP(A134,DATA[Item No.],DATA[Size],"") ->  | F134: =_xlfn.XLOOKUP(A134,DATA[Item No.],DATA[Picked],"") ->  | G134: =_xlfn.XLOOKUP(A134,DATA[Item No.],DATA[Pack],"") ->  | H134: =_xlfn.XLOOKUP(A134,DATA[Item No.],DATA[O],"") ->  | I134: =_xlfn.XLOOKUP(A134,DATA[Item No.],DATA[K],"") ->  | J134: =_xlfn.XLOOKUP(A134,DATA[Item No.],DATA[V],"") ->  | K134: =_xlfn.XLOOKUP(A134,DATA[Item No.],DATA[GF],"") ->  | L134: =_xlfn.XLOOKUP(A134,DATA[Item No.],DATA[N],"") ->  | M134: =_xlfn.XLOOKUP(A134,DATA[Item No.],DATA[H],"") ->  | N134: =_xlfn.XLOOKUP(A134,DATA[Item No.],DATA[CM],"") ->  | O134: =_xlfn.XLOOKUP(A134,DATA[Item No.],DATA[CO],"") ->  | P134: =_xlfn.XLOOKUP(A134,DATA[Item No.],DATA[CP],"") ->  | Q134: =_xlfn.XLOOKUP(A134,DATA[Item No.],DATA[Guaranteed Days],"") ->  | R134: =_xlfn.XLOOKUP(A134,DATA[Item No.],DATA[Storage],"") ->  | S134: =_xlfn.XLOOKUP(A134,DATA[Item No.],DATA[Price],"") ->  | T134: =_xlfn.XLOOKUP(A134,DATA[Item No.],DATA[Monthly Promo],"") ->  | U134: =_xlfn.XLOOKUP(A134,DATA[Item No.],DATA[Promo Discount],"") ->  | V134: =_xlfn.XLOOKUP(A134,DATA[Item No.],DATA[SRP],"") ->  | W134: =_xlfn.XLOOKUP(A134,DATA[Item No.],DATA[SKU Territory Ranking - West],"") -> 
A135: Ferments | C135: =_xlfn.XLOOKUP(A135,DATA[Item No.],DATA[Description],"") ->  | D135: =_xlfn.XLOOKUP(A135,DATA[Item No.],DATA[Unit UPC],"") ->  | E135: =_xlfn.XLOOKUP(A135,DATA[Item No.],DATA[Size],"") ->  | F135: =_xlfn.XLOOKUP(A135,DATA[Item No.],DATA[Picked],"") ->  | G135: =_xlfn.XLOOKUP(A135,DATA[Item No.],DATA[Pack],"") ->  | H135: =_xlfn.XLOOKUP(A135,DATA[Item No.],DATA[O],"") ->  | I135: =_xlfn.XLOOKUP(A135,DATA[Item No.],DATA[K],"") ->  | J135: =_xlfn.XLOOKUP(A135,DATA[Item No.],DATA[V],"") ->  | K135: =_xlfn.XLOOKUP(A135,DATA[Item No.],DATA[GF],"") ->  | L135: =_xlfn.XLOOKUP(A135,DATA[Item No.],DATA[N],"") ->  | M135: =_xlfn.XLOOKUP(A135,DATA[Item No.],DATA[H],"") ->  | N135: =_xlfn.XLOOKUP(A135,DATA[Item No.],DATA[CM],"") ->  | O135: =_xlfn.XLOOKUP(A135,DATA[Item No.],DATA[CO],"") ->  | P135: =_xlfn.XLOOKUP(A135,DATA[Item No.],DATA[CP],"") ->  | Q135: =_xlfn.XLOOKUP(A135,DATA[Item No.],DATA[Guaranteed Days],"") ->  | R135: =_xlfn.XLOOKUP(A135,DATA[Item No.],DATA[Storage],"") ->  | S135: =_xlfn.XLOOKUP(A135,DATA[Item No.],DATA[Price],"") ->  | T135: =_xlfn.XLOOKUP(A135,DATA[Item No.],DATA[Monthly Promo],"") ->  | U135: =_xlfn.XLOOKUP(A135,DATA[Item No.],DATA[Promo Discount],"") ->  | V135: =_xlfn.XLOOKUP(A135,DATA[Item No.],DATA[SRP],"") ->  | W135: =_xlfn.XLOOKUP(A135,DATA[Item No.],DATA[SKU Territory Ranking - West],"") -> 
A136: BF4364 | C136: =_xlfn.XLOOKUP(A136,DATA[Item No.],DATA[Description],"") -> Spicy Kosher Dills | D136: =_xlfn.XLOOKUP(A136,DATA[Item No.],DATA[Unit UPC],"") -> 38261954367 | E136: =_xlfn.XLOOKUP(A136,DATA[Item No.],DATA[Size],"") -> 1L | F136: =_xlfn.XLOOKUP(A136,DATA[Item No.],DATA[Picked],"") -> CA | G136: =_xlfn.XLOOKUP(A136,DATA[Item No.],DATA[Pack],"") -> 6 | H136: =_xlfn.XLOOKUP(A136,DATA[Item No.],DATA[O],"") -> 0 | I136: =_xlfn.XLOOKUP(A136,DATA[Item No.],DATA[K],"") -> Y | J136: =_xlfn.XLOOKUP(A136,DATA[Item No.],DATA[V],"") -> 0 | K136: =_xlfn.XLOOKUP(A136,DATA[Item No.],DATA[GF],"") -> 0 | L136: =_xlfn.XLOOKUP(A136,DATA[Item No.],DATA[N],"") -> Y | M136: =_xlfn.XLOOKUP(A136,DATA[Item No.],DATA[H],"") -> 0 | N136: =_xlfn.XLOOKUP(A136,DATA[Item No.],DATA[CM],"") -> 0 | O136: =_xlfn.XLOOKUP(A136,DATA[Item No.],DATA[CO],"") -> 0 | P136: =_xlfn.XLOOKUP(A136,DATA[Item No.],DATA[CP],"") -> 0 | Q136: =_xlfn.XLOOKUP(A136,DATA[Item No.],DATA[Guaranteed Days],"") -> 60 | R136: =_xlfn.XLOOKUP(A136,DATA[Item No.],DATA[Storage],"") -> Chilled | S136: =_xlfn.XLOOKUP(A136,DATA[Item No.],DATA[Price],"") -> 55 | T136: =_xlfn.XLOOKUP(A136,DATA[Item No.],DATA[Monthly Promo],"") -> 0 | U136: =_xlfn.XLOOKUP(A136,DATA[Item No.],DATA[Promo Discount],"") -> 0 | V136: =_xlfn.XLOOKUP(A136,DATA[Item No.],DATA[SRP],"") -> 0 | W136: =_xlfn.XLOOKUP(A136,DATA[Item No.],DATA[SKU Territory Ranking - West],"") -> 0
A137: BF7122 | C137: =_xlfn.XLOOKUP(A137,DATA[Item No.],DATA[Description],"") -> Herring Filets | D137: =_xlfn.XLOOKUP(A137,DATA[Item No.],DATA[Unit UPC],"") -> 38261957122 | E137: =_xlfn.XLOOKUP(A137,DATA[Item No.],DATA[Size],"") -> 320G | F137: =_xlfn.XLOOKUP(A137,DATA[Item No.],DATA[Picked],"") -> CA | G137: =_xlfn.XLOOKUP(A137,DATA[Item No.],DATA[Pack],"") -> 12 | H137: =_xlfn.XLOOKUP(A137,DATA[Item No.],DATA[O],"") -> 0 | I137: =_xlfn.XLOOKUP(A137,DATA[Item No.],DATA[K],"") -> Y | J137: =_xlfn.XLOOKUP(A137,DATA[Item No.],DATA[V],"") -> Y | K137: =_xlfn.XLOOKUP(A137,DATA[Item No.],DATA[GF],"") -> 0 | L137: =_xlfn.XLOOKUP(A137,DATA[Item No.],DATA[N],"") -> 0 | M137: =_xlfn.XLOOKUP(A137,DATA[Item No.],DATA[H],"") -> 0 | N137: =_xlfn.XLOOKUP(A137,DATA[Item No.],DATA[CM],"") -> 0 | O137: =_xlfn.XLOOKUP(A137,DATA[Item No.],DATA[CO],"") -> 0 | P137: =_xlfn.XLOOKUP(A137,DATA[Item No.],DATA[CP],"") -> 0 | Q137: =_xlfn.XLOOKUP(A137,DATA[Item No.],DATA[Guaranteed Days],"") -> 36 | R137: =_xlfn.XLOOKUP(A137,DATA[Item No.],DATA[Storage],"") -> Chilled | S137: =_xlfn.XLOOKUP(A137,DATA[Item No.],DATA[Price],"") -> 117.48 | T137: =_xlfn.XLOOKUP(A137,DATA[Item No.],DATA[Monthly Promo],"") -> 0 | U137: =_xlfn.XLOOKUP(A137,DATA[Item No.],DATA[Promo Discount],"") -> 0 | V137: =_xlfn.XLOOKUP(A137,DATA[Item No.],DATA[SRP],"") -> 0 | W137: =_xlfn.XLOOKUP(A137,DATA[Item No.],DATA[SKU Territory Ranking - West],"") -> 7
A138: BF7365 | C138: =_xlfn.XLOOKUP(A138,DATA[Item No.],DATA[Description],"") -> Kosher Dill Pickle | D138: =_xlfn.XLOOKUP(A138,DATA[Item No.],DATA[Unit UPC],"") -> 38261957368 | E138: =_xlfn.XLOOKUP(A138,DATA[Item No.],DATA[Size],"") -> 1L | F138: =_xlfn.XLOOKUP(A138,DATA[Item No.],DATA[Picked],"") -> CA | G138: =_xlfn.XLOOKUP(A138,DATA[Item No.],DATA[Pack],"") -> 6 | H138: =_xlfn.XLOOKUP(A138,DATA[Item No.],DATA[O],"") -> 0 | I138: =_xlfn.XLOOKUP(A138,DATA[Item No.],DATA[K],"") -> Y | J138: =_xlfn.XLOOKUP(A138,DATA[Item No.],DATA[V],"") -> Y | K138: =_xlfn.XLOOKUP(A138,DATA[Item No.],DATA[GF],"") -> 0 | L138: =_xlfn.XLOOKUP(A138,DATA[Item No.],DATA[N],"") -> 0 | M138: =_xlfn.XLOOKUP(A138,DATA[Item No.],DATA[H],"") -> 0 | N138: =_xlfn.XLOOKUP(A138,DATA[Item No.],DATA[CM],"") -> 0 | O138: =_xlfn.XLOOKUP(A138,DATA[Item No.],DATA[CO],"") -> 0 | P138: =_xlfn.XLOOKUP(A138,DATA[Item No.],DATA[CP],"") -> 0 | Q138: =_xlfn.XLOOKUP(A138,DATA[Item No.],DATA[Guaranteed Days],"") -> 72 | R138: =_xlfn.XLOOKUP(A138,DATA[Item No.],DATA[Storage],"") -> Chilled | S138: =_xlfn.XLOOKUP(A138,DATA[Item No.],DATA[Price],"") -> 55 | T138: =_xlfn.XLOOKUP(A138,DATA[Item No.],DATA[Monthly Promo],"") -> 0 | U138: =_xlfn.XLOOKUP(A138,DATA[Item No.],DATA[Promo Discount],"") -> 0 | V138: =_xlfn.XLOOKUP(A138,DATA[Item No.],DATA[SRP],"") -> 0 | W138: =_xlfn.XLOOKUP(A138,DATA[Item No.],DATA[SKU Territory Ranking - West],"") -> 1
A139: BF7372 | C139: =_xlfn.XLOOKUP(A139,DATA[Item No.],DATA[Description],"") -> Pure Kosher Dill Pickle Relish | D139: =_xlfn.XLOOKUP(A139,DATA[Item No.],DATA[Unit UPC],"") -> 38261957375 | E139: =_xlfn.XLOOKUP(A139,DATA[Item No.],DATA[Size],"") -> 500ML | F139: =_xlfn.XLOOKUP(A139,DATA[Item No.],DATA[Picked],"") -> CA | G139: =_xlfn.XLOOKUP(A139,DATA[Item No.],DATA[Pack],"") -> 6 | H139: =_xlfn.XLOOKUP(A139,DATA[Item No.],DATA[O],"") -> 0 | I139: =_xlfn.XLOOKUP(A139,DATA[Item No.],DATA[K],"") -> Y | J139: =_xlfn.XLOOKUP(A139,DATA[Item No.],DATA[V],"") -> Y | K139: =_xlfn.XLOOKUP(A139,DATA[Item No.],DATA[GF],"") -> 0 | L139: =_xlfn.XLOOKUP(A139,DATA[Item No.],DATA[N],"") -> 0 | M139: =_xlfn.XLOOKUP(A139,DATA[Item No.],DATA[H],"") -> 0 | N139: =_xlfn.XLOOKUP(A139,DATA[Item No.],DATA[CM],"") -> 0 | O139: =_xlfn.XLOOKUP(A139,DATA[Item No.],DATA[CO],"") -> 0 | P139: =_xlfn.XLOOKUP(A139,DATA[Item No.],DATA[CP],"") -> 0 | Q139: =_xlfn.XLOOKUP(A139,DATA[Item No.],DATA[Guaranteed Days],"") -> 72 | R139: =_xlfn.XLOOKUP(A139,DATA[Item No.],DATA[Storage],"") -> Chilled | S139: =_xlfn.XLOOKUP(A139,DATA[Item No.],DATA[Price],"") -> 39.52 | T139: =_xlfn.XLOOKUP(A139,DATA[Item No.],DATA[Monthly Promo],"") -> 0 | U139: =_xlfn.XLOOKUP(A139,DATA[Item No.],DATA[Promo Discount],"") -> 0 | V139: =_xlfn.XLOOKUP(A139,DATA[Item No.],DATA[SRP],"") -> 0 | W139: =_xlfn.XLOOKUP(A139,DATA[Item No.],DATA[SKU Territory Ranking - West],"") -> 4
A140: BF7471 | C140: =_xlfn.XLOOKUP(A140,DATA[Item No.],DATA[Description],"") -> Plain Sauerkraut | D140: =_xlfn.XLOOKUP(A140,DATA[Item No.],DATA[Unit UPC],"") -> 38261957474 | E140: =_xlfn.XLOOKUP(A140,DATA[Item No.],DATA[Size],"") -> 750ML | F140: =_xlfn.XLOOKUP(A140,DATA[Item No.],DATA[Picked],"") -> CA | G140: =_xlfn.XLOOKUP(A140,DATA[Item No.],DATA[Pack],"") -> 6 | H140: =_xlfn.XLOOKUP(A140,DATA[Item No.],DATA[O],"") -> 0 | I140: =_xlfn.XLOOKUP(A140,DATA[Item No.],DATA[K],"") -> Y | J140: =_xlfn.XLOOKUP(A140,DATA[Item No.],DATA[V],"") -> Y | K140: =_xlfn.XLOOKUP(A140,DATA[Item No.],DATA[GF],"") -> 0 | L140: =_xlfn.XLOOKUP(A140,DATA[Item No.],DATA[N],"") -> 0 | M140: =_xlfn.XLOOKUP(A140,DATA[Item No.],DATA[H],"") -> 0 | N140: =_xlfn.XLOOKUP(A140,DATA[Item No.],DATA[CM],"") -> 0 | O140: =_xlfn.XLOOKUP(A140,DATA[Item No.],DATA[CO],"") -> 0 | P140: =_xlfn.XLOOKUP(A140,DATA[Item No.],DATA[CP],"") -> 0 | Q140: =_xlfn.XLOOKUP(A140,DATA[Item No.],DATA[Guaranteed Days],"") -> 72 | R140: =_xlfn.XLOOKUP(A140,DATA[Item No.],DATA[Storage],"") -> Chilled | S140: =_xlfn.XLOOKUP(A140,DATA[Item No.],DATA[Price],"") -> 55 | T140: =_xlfn.XLOOKUP(A140,DATA[Item No.],DATA[Monthly Promo],"") -> 0 | U140: =_xlfn.XLOOKUP(A140,DATA[Item No.],DATA[Promo Discount],"") -> 0 | V140: =_xlfn.XLOOKUP(A140,DATA[Item No.],DATA[SRP],"") -> 0 | W140: =_xlfn.XLOOKUP(A140,DATA[Item No.],DATA[SKU Territory Ranking - West],"") -> 2
A141: BF7501 | C141: =_xlfn.XLOOKUP(A141,DATA[Item No.],DATA[Description],"") -> Bread N Butter Pickle | D141: =_xlfn.XLOOKUP(A141,DATA[Item No.],DATA[Unit UPC],"") -> 38261957504 | E141: =_xlfn.XLOOKUP(A141,DATA[Item No.],DATA[Size],"") -> 1L | F141: =_xlfn.XLOOKUP(A141,DATA[Item No.],DATA[Picked],"") -> CA | G141: =_xlfn.XLOOKUP(A141,DATA[Item No.],DATA[Pack],"") -> 6 | H141: =_xlfn.XLOOKUP(A141,DATA[Item No.],DATA[O],"") -> 0 | I141: =_xlfn.XLOOKUP(A141,DATA[Item No.],DATA[K],"") -> Y | J141: =_xlfn.XLOOKUP(A141,DATA[Item No.],DATA[V],"") -> Y | K141: =_xlfn.XLOOKUP(A141,DATA[Item No.],DATA[GF],"") -> 0 | L141: =_xlfn.XLOOKUP(A141,DATA[Item No.],DATA[N],"") -> 0 | M141: =_xlfn.XLOOKUP(A141,DATA[Item No.],DATA[H],"") -> 0 | N141: =_xlfn.XLOOKUP(A141,DATA[Item No.],DATA[CM],"") -> 0 | O141: =_xlfn.XLOOKUP(A141,DATA[Item No.],DATA[CO],"") -> 0 | P141: =_xlfn.XLOOKUP(A141,DATA[Item No.],DATA[CP],"") -> 0 | Q141: =_xlfn.XLOOKUP(A141,DATA[Item No.],DATA[Guaranteed Days],"") -> 72 | R141: =_xlfn.XLOOKUP(A141,DATA[Item No.],DATA[Storage],"") -> Chilled | S141: =_xlfn.XLOOKUP(A141,DATA[Item No.],DATA[Price],"") -> 55 | T141: =_xlfn.XLOOKUP(A141,DATA[Item No.],DATA[Monthly Promo],"") -> 0 | U141: =_xlfn.XLOOKUP(A141,DATA[Item No.],DATA[Promo Discount],"") -> 0 | V141: =_xlfn.XLOOKUP(A141,DATA[Item No.],DATA[SRP],"") -> 0 | W141: =_xlfn.XLOOKUP(A141,DATA[Item No.],DATA[SKU Territory Ranking - West],"") -> 3
A142: BF7610 | C142: =_xlfn.XLOOKUP(A142,DATA[Item No.],DATA[Description],"") -> Beet Horseradish | D142: =_xlfn.XLOOKUP(A142,DATA[Item No.],DATA[Unit UPC],"") -> 38261957610 | E142: =_xlfn.XLOOKUP(A142,DATA[Item No.],DATA[Size],"") -> 250ML | F142: =_xlfn.XLOOKUP(A142,DATA[Item No.],DATA[Picked],"") -> CA | G142: =_xlfn.XLOOKUP(A142,DATA[Item No.],DATA[Pack],"") -> 12 | H142: =_xlfn.XLOOKUP(A142,DATA[Item No.],DATA[O],"") -> 0 | I142: =_xlfn.XLOOKUP(A142,DATA[Item No.],DATA[K],"") -> Y | J142: =_xlfn.XLOOKUP(A142,DATA[Item No.],DATA[V],"") -> Y | K142: =_xlfn.XLOOKUP(A142,DATA[Item No.],DATA[GF],"") -> 0 | L142: =_xlfn.XLOOKUP(A142,DATA[Item No.],DATA[N],"") -> 0 | M142: =_xlfn.XLOOKUP(A142,DATA[Item No.],DATA[H],"") -> 0 | N142: =_xlfn.XLOOKUP(A142,DATA[Item No.],DATA[CM],"") -> 0 | O142: =_xlfn.XLOOKUP(A142,DATA[Item No.],DATA[CO],"") -> 0 | P142: =_xlfn.XLOOKUP(A142,DATA[Item No.],DATA[CP],"") -> 0 | Q142: =_xlfn.XLOOKUP(A142,DATA[Item No.],DATA[Guaranteed Days],"") -> 24 | R142: =_xlfn.XLOOKUP(A142,DATA[Item No.],DATA[Storage],"") -> Chilled | S142: =_xlfn.XLOOKUP(A142,DATA[Item No.],DATA[Price],"") -> 55 | T142: =_xlfn.XLOOKUP(A142,DATA[Item No.],DATA[Monthly Promo],"") -> 0 | U142: =_xlfn.XLOOKUP(A142,DATA[Item No.],DATA[Promo Discount],"") -> 0 | V142: =_xlfn.XLOOKUP(A142,DATA[Item No.],DATA[SRP],"") -> 0 | W142: =_xlfn.XLOOKUP(A142,DATA[Item No.],DATA[SKU Territory Ranking - West],"") -> 6
A143: BF7665 | C143: =_xlfn.XLOOKUP(A143,DATA[Item No.],DATA[Description],"") -> Prepared Horseradish | D143: =_xlfn.XLOOKUP(A143,DATA[Item No.],DATA[Unit UPC],"") -> 38261957665 | E143: =_xlfn.XLOOKUP(A143,DATA[Item No.],DATA[Size],"") -> 250ML | F143: =_xlfn.XLOOKUP(A143,DATA[Item No.],DATA[Picked],"") -> CA | G143: =_xlfn.XLOOKUP(A143,DATA[Item No.],DATA[Pack],"") -> 12 | H143: =_xlfn.XLOOKUP(A143,DATA[Item No.],DATA[O],"") -> 0 | I143: =_xlfn.XLOOKUP(A143,DATA[Item No.],DATA[K],"") -> Y | J143: =_xlfn.XLOOKUP(A143,DATA[Item No.],DATA[V],"") -> Y | K143: =_xlfn.XLOOKUP(A143,DATA[Item No.],DATA[GF],"") -> 0 | L143: =_xlfn.XLOOKUP(A143,DATA[Item No.],DATA[N],"") -> 0 | M143: =_xlfn.XLOOKUP(A143,DATA[Item No.],DATA[H],"") -> 0 | N143: =_xlfn.XLOOKUP(A143,DATA[Item No.],DATA[CM],"") -> 0 | O143: =_xlfn.XLOOKUP(A143,DATA[Item No.],DATA[CO],"") -> 0 | P143: =_xlfn.XLOOKUP(A143,DATA[Item No.],DATA[CP],"") -> 0 | Q143: =_xlfn.XLOOKUP(A143,DATA[Item No.],DATA[Guaranteed Days],"") -> 24 | R143: =_xlfn.XLOOKUP(A143,DATA[Item No.],DATA[Storage],"") -> Chilled | S143: =_xlfn.XLOOKUP(A143,DATA[Item No.],DATA[Price],"") -> 55 | T143: =_xlfn.XLOOKUP(A143,DATA[Item No.],DATA[Monthly Promo],"") -> 0 | U143: =_xlfn.XLOOKUP(A143,DATA[Item No.],DATA[Promo Discount],"") -> 0 | V143: =_xlfn.XLOOKUP(A143,DATA[Item No.],DATA[SRP],"") -> 0 | W143: =_xlfn.XLOOKUP(A143,DATA[Item No.],DATA[SKU Territory Ranking - West],"") -> 5
A144: CASA BONITA | C144: =_xlfn.XLOOKUP(A144,DATA[Item No.],DATA[Description],"") ->  | D144: =_xlfn.XLOOKUP(A144,DATA[Item No.],DATA[Unit UPC],"") ->  | E144: =_xlfn.XLOOKUP(A144,DATA[Item No.],DATA[Size],"") ->  | F144: =_xlfn.XLOOKUP(A144,DATA[Item No.],DATA[Picked],"") ->  | G144: =_xlfn.XLOOKUP(A144,DATA[Item No.],DATA[Pack],"") ->  | H144: =_xlfn.XLOOKUP(A144,DATA[Item No.],DATA[O],"") ->  | I144: =_xlfn.XLOOKUP(A144,DATA[Item No.],DATA[K],"") ->  | J144: =_xlfn.XLOOKUP(A144,DATA[Item No.],DATA[V],"") ->  | K144: =_xlfn.XLOOKUP(A144,DATA[Item No.],DATA[GF],"") ->  | L144: =_xlfn.XLOOKUP(A144,DATA[Item No.],DATA[N],"") ->  | M144: =_xlfn.XLOOKUP(A144,DATA[Item No.],DATA[H],"") ->  | N144: =_xlfn.XLOOKUP(A144,DATA[Item No.],DATA[CM],"") ->  | O144: =_xlfn.XLOOKUP(A144,DATA[Item No.],DATA[CO],"") ->  | P144: =_xlfn.XLOOKUP(A144,DATA[Item No.],DATA[CP],"") ->  | Q144: =_xlfn.XLOOKUP(A144,DATA[Item No.],DATA[Guaranteed Days],"") ->  | R144: =_xlfn.XLOOKUP(A144,DATA[Item No.],DATA[Storage],"") ->  | S144: =_xlfn.XLOOKUP(A144,DATA[Item No.],DATA[Price],"") ->  | T144: =_xlfn.XLOOKUP(A144,DATA[Item No.],DATA[Monthly Promo],"") ->  | U144: =_xlfn.XLOOKUP(A144,DATA[Item No.],DATA[Promo Discount],"") ->  | V144: =_xlfn.XLOOKUP(A144,DATA[Item No.],DATA[SRP],"") ->  | W144: =_xlfn.XLOOKUP(A144,DATA[Item No.],DATA[SKU Territory Ranking - West],"") -> 
A145: Casa Bonita Soft Tortillas | C145: =_xlfn.XLOOKUP(A145,DATA[Item No.],DATA[Description],"") ->  | D145: =_xlfn.XLOOKUP(A145,DATA[Item No.],DATA[Unit UPC],"") ->  | E145: =_xlfn.XLOOKUP(A145,DATA[Item No.],DATA[Size],"") ->  | F145: =_xlfn.XLOOKUP(A145,DATA[Item No.],DATA[Picked],"") ->  | G145: =_xlfn.XLOOKUP(A145,DATA[Item No.],DATA[Pack],"") ->  | H145: =_xlfn.XLOOKUP(A145,DATA[Item No.],DATA[O],"") ->  | I145: =_xlfn.XLOOKUP(A145,DATA[Item No.],DATA[K],"") ->  | J145: =_xlfn.XLOOKUP(A145,DATA[Item No.],DATA[V],"") ->  | K145: =_xlfn.XLOOKUP(A145,DATA[Item No.],DATA[GF],"") ->  | L145: =_xlfn.XLOOKUP(A145,DATA[Item No.],DATA[N],"") ->  | M145: =_xlfn.XLOOKUP(A145,DATA[Item No.],DATA[H],"") ->  | N145: =_xlfn.XLOOKUP(A145,DATA[Item No.],DATA[CM],"") ->  | O145: =_xlfn.XLOOKUP(A145,DATA[Item No.],DATA[CO],"") ->  | P145: =_xlfn.XLOOKUP(A145,DATA[Item No.],DATA[CP],"") ->  | Q145: =_xlfn.XLOOKUP(A145,DATA[Item No.],DATA[Guaranteed Days],"") ->  | R145: =_xlfn.XLOOKUP(A145,DATA[Item No.],DATA[Storage],"") ->  | S145: =_xlfn.XLOOKUP(A145,DATA[Item No.],DATA[Price],"") ->  | T145: =_xlfn.XLOOKUP(A145,DATA[Item No.],DATA[Monthly Promo],"") ->  | U145: =_xlfn.XLOOKUP(A145,DATA[Item No.],DATA[Promo Discount],"") ->  | V145: =_xlfn.XLOOKUP(A145,DATA[Item No.],DATA[SRP],"") ->  | W145: =_xlfn.XLOOKUP(A145,DATA[Item No.],DATA[SKU Territory Ranking - West],"") -> 
A146: CAS0202 | C146: =_xlfn.XLOOKUP(A146,DATA[Item No.],DATA[Description],"") -> White Corn Soft Tortillas | D146: =_xlfn.XLOOKUP(A146,DATA[Item No.],DATA[Unit UPC],"") -> 627843861041 | E146: =_xlfn.XLOOKUP(A146,DATA[Item No.],DATA[Size],"") -> 450G | F146: =_xlfn.XLOOKUP(A146,DATA[Item No.],DATA[Picked],"") -> CA | G146: =_xlfn.XLOOKUP(A146,DATA[Item No.],DATA[Pack],"") -> 18 | H146: =_xlfn.XLOOKUP(A146,DATA[Item No.],DATA[O],"") -> 0 | I146: =_xlfn.XLOOKUP(A146,DATA[Item No.],DATA[K],"") -> 0 | J146: =_xlfn.XLOOKUP(A146,DATA[Item No.],DATA[V],"") -> Y | K146: =_xlfn.XLOOKUP(A146,DATA[Item No.],DATA[GF],"") -> 0 | L146: =_xlfn.XLOOKUP(A146,DATA[Item No.],DATA[N],"") -> 0 | M146: =_xlfn.XLOOKUP(A146,DATA[Item No.],DATA[H],"") -> 0 | N146: =_xlfn.XLOOKUP(A146,DATA[Item No.],DATA[CM],"") -> Y | O146: =_xlfn.XLOOKUP(A146,DATA[Item No.],DATA[CO],"") -> Y | P146: =_xlfn.XLOOKUP(A146,DATA[Item No.],DATA[CP],"") -> Y | Q146: =_xlfn.XLOOKUP(A146,DATA[Item No.],DATA[Guaranteed Days],"") -> 41 | R146: =_xlfn.XLOOKUP(A146,DATA[Item No.],DATA[Storage],"") -> Dry | S146: =_xlfn.XLOOKUP(A146,DATA[Item No.],DATA[Price],"") -> 66.03 | T146: =_xlfn.XLOOKUP(A146,DATA[Item No.],DATA[Monthly Promo],"") -> 0 | U146: =_xlfn.XLOOKUP(A146,DATA[Item No.],DATA[Promo Discount],"") -> 0 | V146: =_xlfn.XLOOKUP(A146,DATA[Item No.],DATA[SRP],"") -> 0 | W146: =_xlfn.XLOOKUP(A146,DATA[Item No.],DATA[SKU Territory Ranking - West],"") -> 1
A147: CAS0203 | C147: =_xlfn.XLOOKUP(A147,DATA[Item No.],DATA[Description],"") -> Yellow Corn Soft Tortillas | D147: =_xlfn.XLOOKUP(A147,DATA[Item No.],DATA[Unit UPC],"") -> 627843861072 | E147: =_xlfn.XLOOKUP(A147,DATA[Item No.],DATA[Size],"") -> 450G | F147: =_xlfn.XLOOKUP(A147,DATA[Item No.],DATA[Picked],"") -> CA | G147: =_xlfn.XLOOKUP(A147,DATA[Item No.],DATA[Pack],"") -> 18 | H147: =_xlfn.XLOOKUP(A147,DATA[Item No.],DATA[O],"") -> 0 | I147: =_xlfn.XLOOKUP(A147,DATA[Item No.],DATA[K],"") -> 0 | J147: =_xlfn.XLOOKUP(A147,DATA[Item No.],DATA[V],"") -> Y | K147: =_xlfn.XLOOKUP(A147,DATA[Item No.],DATA[GF],"") -> 0 | L147: =_xlfn.XLOOKUP(A147,DATA[Item No.],DATA[N],"") -> 0 | M147: =_xlfn.XLOOKUP(A147,DATA[Item No.],DATA[H],"") -> 0 | N147: =_xlfn.XLOOKUP(A147,DATA[Item No.],DATA[CM],"") -> Y | O147: =_xlfn.XLOOKUP(A147,DATA[Item No.],DATA[CO],"") -> Y | P147: =_xlfn.XLOOKUP(A147,DATA[Item No.],DATA[CP],"") -> Y | Q147: =_xlfn.XLOOKUP(A147,DATA[Item No.],DATA[Guaranteed Days],"") -> 41 | R147: =_xlfn.XLOOKUP(A147,DATA[Item No.],DATA[Storage],"") -> Dry | S147: =_xlfn.XLOOKUP(A147,DATA[Item No.],DATA[Price],"") -> 66.03 | T147: =_xlfn.XLOOKUP(A147,DATA[Item No.],DATA[Monthly Promo],"") -> 0 | U147: =_xlfn.XLOOKUP(A147,DATA[Item No.],DATA[Promo Discount],"") -> 0 | V147: =_xlfn.XLOOKUP(A147,DATA[Item No.],DATA[SRP],"") -> 0 | W147: =_xlfn.XLOOKUP(A147,DATA[Item No.],DATA[SKU Territory Ranking - West],"") -> 3
A148: CAS0204 | C148: =_xlfn.XLOOKUP(A148,DATA[Item No.],DATA[Description],"") -> Blue Corn Soft Tortillas | D148: =_xlfn.XLOOKUP(A148,DATA[Item No.],DATA[Unit UPC],"") -> 627843861065 | E148: =_xlfn.XLOOKUP(A148,DATA[Item No.],DATA[Size],"") -> 250G | F148: =_xlfn.XLOOKUP(A148,DATA[Item No.],DATA[Picked],"") -> CA | G148: =_xlfn.XLOOKUP(A148,DATA[Item No.],DATA[Pack],"") -> 18 | H148: =_xlfn.XLOOKUP(A148,DATA[Item No.],DATA[O],"") -> 0 | I148: =_xlfn.XLOOKUP(A148,DATA[Item No.],DATA[K],"") -> 0 | J148: =_xlfn.XLOOKUP(A148,DATA[Item No.],DATA[V],"") -> Y | K148: =_xlfn.XLOOKUP(A148,DATA[Item No.],DATA[GF],"") -> 0 | L148: =_xlfn.XLOOKUP(A148,DATA[Item No.],DATA[N],"") -> 0 | M148: =_xlfn.XLOOKUP(A148,DATA[Item No.],DATA[H],"") -> 0 | N148: =_xlfn.XLOOKUP(A148,DATA[Item No.],DATA[CM],"") -> Y | O148: =_xlfn.XLOOKUP(A148,DATA[Item No.],DATA[CO],"") -> Y | P148: =_xlfn.XLOOKUP(A148,DATA[Item No.],DATA[CP],"") -> Y | Q148: =_xlfn.XLOOKUP(A148,DATA[Item No.],DATA[Guaranteed Days],"") -> 41 | R148: =_xlfn.XLOOKUP(A148,DATA[Item No.],DATA[Storage],"") -> Dry | S148: =_xlfn.XLOOKUP(A148,DATA[Item No.],DATA[Price],"") -> 66.03 | T148: =_xlfn.XLOOKUP(A148,DATA[Item No.],DATA[Monthly Promo],"") -> 0 | U148: =_xlfn.XLOOKUP(A148,DATA[Item No.],DATA[Promo Discount],"") -> 0 | V148: =_xlfn.XLOOKUP(A148,DATA[Item No.],DATA[SRP],"") -> 0 | W148: =_xlfn.XLOOKUP(A148,DATA[Item No.],DATA[SKU Territory Ranking - West],"") -> 2
A149: Corn Chips | C149: =_xlfn.XLOOKUP(A149,DATA[Item No.],DATA[Description],"") ->  | D149: =_xlfn.XLOOKUP(A149,DATA[Item No.],DATA[Unit UPC],"") ->  | E149: =_xlfn.XLOOKUP(A149,DATA[Item No.],DATA[Size],"") ->  | F149: =_xlfn.XLOOKUP(A149,DATA[Item No.],DATA[Picked],"") ->  | G149: =_xlfn.XLOOKUP(A149,DATA[Item No.],DATA[Pack],"") ->  | H149: =_xlfn.XLOOKUP(A149,DATA[Item No.],DATA[O],"") ->  | I149: =_xlfn.XLOOKUP(A149,DATA[Item No.],DATA[K],"") ->  | J149: =_xlfn.XLOOKUP(A149,DATA[Item No.],DATA[V],"") ->  | K149: =_xlfn.XLOOKUP(A149,DATA[Item No.],DATA[GF],"") ->  | L149: =_xlfn.XLOOKUP(A149,DATA[Item No.],DATA[N],"") ->  | M149: =_xlfn.XLOOKUP(A149,DATA[Item No.],DATA[H],"") ->  | N149: =_xlfn.XLOOKUP(A149,DATA[Item No.],DATA[CM],"") ->  | O149: =_xlfn.XLOOKUP(A149,DATA[Item No.],DATA[CO],"") ->  | P149: =_xlfn.XLOOKUP(A149,DATA[Item No.],DATA[CP],"") ->  | Q149: =_xlfn.XLOOKUP(A149,DATA[Item No.],DATA[Guaranteed Days],"") ->  | R149: =_xlfn.XLOOKUP(A149,DATA[Item No.],DATA[Storage],"") ->  | S149: =_xlfn.XLOOKUP(A149,DATA[Item No.],DATA[Price],"") ->  | T149: =_xlfn.XLOOKUP(A149,DATA[Item No.],DATA[Monthly Promo],"") ->  | U149: =_xlfn.XLOOKUP(A149,DATA[Item No.],DATA[Promo Discount],"") ->  | V149: =_xlfn.XLOOKUP(A149,DATA[Item No.],DATA[SRP],"") ->  | W149: =_xlfn.XLOOKUP(A149,DATA[Item No.],DATA[SKU Territory Ranking - West],"") -> 
A150: CAS0101 | C150: =_xlfn.XLOOKUP(A150,DATA[Item No.],DATA[Description],"") -> Cantina Style Corn Chips | D150: =_xlfn.XLOOKUP(A150,DATA[Item No.],DATA[Unit UPC],"") -> 627843861058 | E150: =_xlfn.XLOOKUP(A150,DATA[Item No.],DATA[Size],"") -> 300G | F150: =_xlfn.XLOOKUP(A150,DATA[Item No.],DATA[Picked],"") -> CA | G150: =_xlfn.XLOOKUP(A150,DATA[Item No.],DATA[Pack],"") -> 6 | H150: =_xlfn.XLOOKUP(A150,DATA[Item No.],DATA[O],"") -> Y | I150: =_xlfn.XLOOKUP(A150,DATA[Item No.],DATA[K],"") -> 0 | J150: =_xlfn.XLOOKUP(A150,DATA[Item No.],DATA[V],"") -> Y | K150: =_xlfn.XLOOKUP(A150,DATA[Item No.],DATA[GF],"") -> Y | L150: =_xlfn.XLOOKUP(A150,DATA[Item No.],DATA[N],"") -> 0 | M150: =_xlfn.XLOOKUP(A150,DATA[Item No.],DATA[H],"") -> 0 | N150: =_xlfn.XLOOKUP(A150,DATA[Item No.],DATA[CM],"") -> Y | O150: =_xlfn.XLOOKUP(A150,DATA[Item No.],DATA[CO],"") -> Y | P150: =_xlfn.XLOOKUP(A150,DATA[Item No.],DATA[CP],"") -> Y | Q150: =_xlfn.XLOOKUP(A150,DATA[Item No.],DATA[Guaranteed Days],"") -> 27 | R150: =_xlfn.XLOOKUP(A150,DATA[Item No.],DATA[Storage],"") -> Dry | S150: =_xlfn.XLOOKUP(A150,DATA[Item No.],DATA[Price],"") -> 27.22 | T150: =_xlfn.XLOOKUP(A150,DATA[Item No.],DATA[Monthly Promo],"") -> 0 | U150: =_xlfn.XLOOKUP(A150,DATA[Item No.],DATA[Promo Discount],"") -> 0 | V150: =_xlfn.XLOOKUP(A150,DATA[Item No.],DATA[SRP],"") -> 0 | W150: =_xlfn.XLOOKUP(A150,DATA[Item No.],DATA[SKU Territory Ranking - West],"") -> 2
A151: CAS0103 | C151: =_xlfn.XLOOKUP(A151,DATA[Item No.],DATA[Description],"") -> Tortilla chips with Tajin | D151: =_xlfn.XLOOKUP(A151,DATA[Item No.],DATA[Unit UPC],"") -> 627843861096 | E151: =_xlfn.XLOOKUP(A151,DATA[Item No.],DATA[Size],"") -> 300G | F151: =_xlfn.XLOOKUP(A151,DATA[Item No.],DATA[Picked],"") -> CA | G151: =_xlfn.XLOOKUP(A151,DATA[Item No.],DATA[Pack],"") -> 6 | H151: =_xlfn.XLOOKUP(A151,DATA[Item No.],DATA[O],"") -> 0 | I151: =_xlfn.XLOOKUP(A151,DATA[Item No.],DATA[K],"") -> 0 | J151: =_xlfn.XLOOKUP(A151,DATA[Item No.],DATA[V],"") -> Y | K151: =_xlfn.XLOOKUP(A151,DATA[Item No.],DATA[GF],"") -> 0 | L151: =_xlfn.XLOOKUP(A151,DATA[Item No.],DATA[N],"") -> 0 | M151: =_xlfn.XLOOKUP(A151,DATA[Item No.],DATA[H],"") -> 0 | N151: =_xlfn.XLOOKUP(A151,DATA[Item No.],DATA[CM],"") -> Y | O151: =_xlfn.XLOOKUP(A151,DATA[Item No.],DATA[CO],"") -> Y | P151: =_xlfn.XLOOKUP(A151,DATA[Item No.],DATA[CP],"") -> Y | Q151: =_xlfn.XLOOKUP(A151,DATA[Item No.],DATA[Guaranteed Days],"") -> 27 | R151: =_xlfn.XLOOKUP(A151,DATA[Item No.],DATA[Storage],"") -> 0 | S151: =_xlfn.XLOOKUP(A151,DATA[Item No.],DATA[Price],"") -> 29.99 | T151: =_xlfn.XLOOKUP(A151,DATA[Item No.],DATA[Monthly Promo],"") -> 0 | U151: =_xlfn.XLOOKUP(A151,DATA[Item No.],DATA[Promo Discount],"") -> 0 | V151: =_xlfn.XLOOKUP(A151,DATA[Item No.],DATA[SRP],"") -> 0 | W151: =_xlfn.XLOOKUP(A151,DATA[Item No.],DATA[SKU Territory Ranking - West],"") -> 3
A152: CAS0104 | C152: =_xlfn.XLOOKUP(A152,DATA[Item No.],DATA[Description],"") -> Cantina Style Smokey Chipotle | D152: =_xlfn.XLOOKUP(A152,DATA[Item No.],DATA[Unit UPC],"") -> 627843861089 | E152: =_xlfn.XLOOKUP(A152,DATA[Item No.],DATA[Size],"") -> 300G | F152: =_xlfn.XLOOKUP(A152,DATA[Item No.],DATA[Picked],"") -> CA | G152: =_xlfn.XLOOKUP(A152,DATA[Item No.],DATA[Pack],"") -> 6 | H152: =_xlfn.XLOOKUP(A152,DATA[Item No.],DATA[O],"") -> 0 | I152: =_xlfn.XLOOKUP(A152,DATA[Item No.],DATA[K],"") -> 0 | J152: =_xlfn.XLOOKUP(A152,DATA[Item No.],DATA[V],"") -> 0 | K152: =_xlfn.XLOOKUP(A152,DATA[Item No.],DATA[GF],"") -> 0 | L152: =_xlfn.XLOOKUP(A152,DATA[Item No.],DATA[N],"") -> 0 | M152: =_xlfn.XLOOKUP(A152,DATA[Item No.],DATA[H],"") -> 0 | N152: =_xlfn.XLOOKUP(A152,DATA[Item No.],DATA[CM],"") -> 0 | O152: =_xlfn.XLOOKUP(A152,DATA[Item No.],DATA[CO],"") -> Y | P152: =_xlfn.XLOOKUP(A152,DATA[Item No.],DATA[CP],"") -> 0 | Q152: =_xlfn.XLOOKUP(A152,DATA[Item No.],DATA[Guaranteed Days],"") -> 27 | R152: =_xlfn.XLOOKUP(A152,DATA[Item No.],DATA[Storage],"") -> 0 | S152: =_xlfn.XLOOKUP(A152,DATA[Item No.],DATA[Price],"") -> 29.99 | T152: =_xlfn.XLOOKUP(A152,DATA[Item No.],DATA[Monthly Promo],"") -> 0 | U152: =_xlfn.XLOOKUP(A152,DATA[Item No.],DATA[Promo Discount],"") -> 0 | V152: =_xlfn.XLOOKUP(A152,DATA[Item No.],DATA[SRP],"") -> 0 | W152: =_xlfn.XLOOKUP(A152,DATA[Item No.],DATA[SKU Territory Ranking - West],"") -> 3
A153: Displayer | C153: =_xlfn.XLOOKUP(A153,DATA[Item No.],DATA[Description],"") ->  | D153: =_xlfn.XLOOKUP(A153,DATA[Item No.],DATA[Unit UPC],"") ->  | E153: =_xlfn.XLOOKUP(A153,DATA[Item No.],DATA[Size],"") ->  | F153: =_xlfn.XLOOKUP(A153,DATA[Item No.],DATA[Picked],"") ->  | G153: =_xlfn.XLOOKUP(A153,DATA[Item No.],DATA[Pack],"") ->  | H153: =_xlfn.XLOOKUP(A153,DATA[Item No.],DATA[O],"") ->  | I153: =_xlfn.XLOOKUP(A153,DATA[Item No.],DATA[K],"") ->  | J153: =_xlfn.XLOOKUP(A153,DATA[Item No.],DATA[V],"") ->  | K153: =_xlfn.XLOOKUP(A153,DATA[Item No.],DATA[GF],"") ->  | L153: =_xlfn.XLOOKUP(A153,DATA[Item No.],DATA[N],"") ->  | M153: =_xlfn.XLOOKUP(A153,DATA[Item No.],DATA[H],"") ->  | N153: =_xlfn.XLOOKUP(A153,DATA[Item No.],DATA[CM],"") ->  | O153: =_xlfn.XLOOKUP(A153,DATA[Item No.],DATA[CO],"") ->  | P153: =_xlfn.XLOOKUP(A153,DATA[Item No.],DATA[CP],"") ->  | Q153: =_xlfn.XLOOKUP(A153,DATA[Item No.],DATA[Guaranteed Days],"") ->  | R153: =_xlfn.XLOOKUP(A153,DATA[Item No.],DATA[Storage],"") ->  | S153: =_xlfn.XLOOKUP(A153,DATA[Item No.],DATA[Price],"") ->  | T153: =_xlfn.XLOOKUP(A153,DATA[Item No.],DATA[Monthly Promo],"") ->  | U153: =_xlfn.XLOOKUP(A153,DATA[Item No.],DATA[Promo Discount],"") ->  | V153: =_xlfn.XLOOKUP(A153,DATA[Item No.],DATA[SRP],"") ->  | W153: =_xlfn.XLOOKUP(A153,DATA[Item No.],DATA[SKU Territory Ranking - West],"") -> 
A154: CAS0105 | C154: =_xlfn.XLOOKUP(A154,DATA[Item No.],DATA[Description],"") -> Tortilla Display Wire Rack | D154: =_xlfn.XLOOKUP(A154,DATA[Item No.],DATA[Unit UPC],"") -> 628250868029 | E154: =_xlfn.XLOOKUP(A154,DATA[Item No.],DATA[Size],"") -> 0 | F154: =_xlfn.XLOOKUP(A154,DATA[Item No.],DATA[Picked],"") -> CA | G154: =_xlfn.XLOOKUP(A154,DATA[Item No.],DATA[Pack],"") -> 1 | H154: =_xlfn.XLOOKUP(A154,DATA[Item No.],DATA[O],"") -> 0 | I154: =_xlfn.XLOOKUP(A154,DATA[Item No.],DATA[K],"") -> 0 | J154: =_xlfn.XLOOKUP(A154,DATA[Item No.],DATA[V],"") -> 0 | K154: =_xlfn.XLOOKUP(A154,DATA[Item No.],DATA[GF],"") -> 0 | L154: =_xlfn.XLOOKUP(A154,DATA[Item No.],DATA[N],"") -> 0 | M154: =_xlfn.XLOOKUP(A154,DATA[Item No.],DATA[H],"") -> 0 | N154: =_xlfn.XLOOKUP(A154,DATA[Item No.],DATA[CM],"") -> Y | O154: =_xlfn.XLOOKUP(A154,DATA[Item No.],DATA[CO],"") -> Y | P154: =_xlfn.XLOOKUP(A154,DATA[Item No.],DATA[CP],"") -> Y | Q154: =_xlfn.XLOOKUP(A154,DATA[Item No.],DATA[Guaranteed Days],"") -> 0 | R154: =_xlfn.XLOOKUP(A154,DATA[Item No.],DATA[Storage],"") -> Dry | S154: =_xlfn.XLOOKUP(A154,DATA[Item No.],DATA[Price],"") -> 0.001 | T154: =_xlfn.XLOOKUP(A154,DATA[Item No.],DATA[Monthly Promo],"") -> 0 | U154: =_xlfn.XLOOKUP(A154,DATA[Item No.],DATA[Promo Discount],"") -> 0 | V154: =_xlfn.XLOOKUP(A154,DATA[Item No.],DATA[SRP],"") -> 0 | W154: =_xlfn.XLOOKUP(A154,DATA[Item No.],DATA[SKU Territory Ranking - West],"") -> 0
A155: Salsa | C155: =_xlfn.XLOOKUP(A155,DATA[Item No.],DATA[Description],"") ->  | D155: =_xlfn.XLOOKUP(A155,DATA[Item No.],DATA[Unit UPC],"") ->  | E155: =_xlfn.XLOOKUP(A155,DATA[Item No.],DATA[Size],"") ->  | F155: =_xlfn.XLOOKUP(A155,DATA[Item No.],DATA[Picked],"") ->  | G155: =_xlfn.XLOOKUP(A155,DATA[Item No.],DATA[Pack],"") ->  | H155: =_xlfn.XLOOKUP(A155,DATA[Item No.],DATA[O],"") ->  | I155: =_xlfn.XLOOKUP(A155,DATA[Item No.],DATA[K],"") ->  | J155: =_xlfn.XLOOKUP(A155,DATA[Item No.],DATA[V],"") ->  | K155: =_xlfn.XLOOKUP(A155,DATA[Item No.],DATA[GF],"") ->  | L155: =_xlfn.XLOOKUP(A155,DATA[Item No.],DATA[N],"") ->  | M155: =_xlfn.XLOOKUP(A155,DATA[Item No.],DATA[H],"") ->  | N155: =_xlfn.XLOOKUP(A155,DATA[Item No.],DATA[CM],"") ->  | O155: =_xlfn.XLOOKUP(A155,DATA[Item No.],DATA[CO],"") ->  | P155: =_xlfn.XLOOKUP(A155,DATA[Item No.],DATA[CP],"") ->  | Q155: =_xlfn.XLOOKUP(A155,DATA[Item No.],DATA[Guaranteed Days],"") ->  | R155: =_xlfn.XLOOKUP(A155,DATA[Item No.],DATA[Storage],"") ->  | S155: =_xlfn.XLOOKUP(A155,DATA[Item No.],DATA[Price],"") ->  | T155: =_xlfn.XLOOKUP(A155,DATA[Item No.],DATA[Monthly Promo],"") ->  | U155: =_xlfn.XLOOKUP(A155,DATA[Item No.],DATA[Promo Discount],"") ->  | V155: =_xlfn.XLOOKUP(A155,DATA[Item No.],DATA[SRP],"") ->  | W155: =_xlfn.XLOOKUP(A155,DATA[Item No.],DATA[SKU Territory Ranking - West],"") -> 
A156: CAS0106 | C156: =_xlfn.XLOOKUP(A156,DATA[Item No.],DATA[Description],"") -> Yellow Cheese Salsa with Chipotle | D156: =_xlfn.XLOOKUP(A156,DATA[Item No.],DATA[Unit UPC],"") -> 628250868005 | E156: =_xlfn.XLOOKUP(A156,DATA[Item No.],DATA[Size],"") -> 425G | F156: =_xlfn.XLOOKUP(A156,DATA[Item No.],DATA[Picked],"") -> CA | G156: =_xlfn.XLOOKUP(A156,DATA[Item No.],DATA[Pack],"") -> 6 | H156: =_xlfn.XLOOKUP(A156,DATA[Item No.],DATA[O],"") -> 0 | I156: =_xlfn.XLOOKUP(A156,DATA[Item No.],DATA[K],"") -> 0 | J156: =_xlfn.XLOOKUP(A156,DATA[Item No.],DATA[V],"") -> 0 | K156: =_xlfn.XLOOKUP(A156,DATA[Item No.],DATA[GF],"") -> Y | L156: =_xlfn.XLOOKUP(A156,DATA[Item No.],DATA[N],"") -> 0 | M156: =_xlfn.XLOOKUP(A156,DATA[Item No.],DATA[H],"") -> 0 | N156: =_xlfn.XLOOKUP(A156,DATA[Item No.],DATA[CM],"") -> 0 | O156: =_xlfn.XLOOKUP(A156,DATA[Item No.],DATA[CO],"") -> Y | P156: =_xlfn.XLOOKUP(A156,DATA[Item No.],DATA[CP],"") -> 0 | Q156: =_xlfn.XLOOKUP(A156,DATA[Item No.],DATA[Guaranteed Days],"") -> 150 | R156: =_xlfn.XLOOKUP(A156,DATA[Item No.],DATA[Storage],"") -> Dry | S156: =_xlfn.XLOOKUP(A156,DATA[Item No.],DATA[Price],"") -> 37.44 | T156: =_xlfn.XLOOKUP(A156,DATA[Item No.],DATA[Monthly Promo],"") -> 0 | U156: =_xlfn.XLOOKUP(A156,DATA[Item No.],DATA[Promo Discount],"") -> 0 | V156: =_xlfn.XLOOKUP(A156,DATA[Item No.],DATA[SRP],"") -> 10.39 | W156: =_xlfn.XLOOKUP(A156,DATA[Item No.],DATA[SKU Territory Ranking - West],"") -> 0
A157: CAS0107 | C157: =_xlfn.XLOOKUP(A157,DATA[Item No.],DATA[Description],"") -> White Cheese Salsa with Jalapeno | D157: =_xlfn.XLOOKUP(A157,DATA[Item No.],DATA[Unit UPC],"") -> 628250868012 | E157: =_xlfn.XLOOKUP(A157,DATA[Item No.],DATA[Size],"") -> 425G | F157: =_xlfn.XLOOKUP(A157,DATA[Item No.],DATA[Picked],"") -> CA | G157: =_xlfn.XLOOKUP(A157,DATA[Item No.],DATA[Pack],"") -> 6 | H157: =_xlfn.XLOOKUP(A157,DATA[Item No.],DATA[O],"") -> 0 | I157: =_xlfn.XLOOKUP(A157,DATA[Item No.],DATA[K],"") -> 0 | J157: =_xlfn.XLOOKUP(A157,DATA[Item No.],DATA[V],"") -> 0 | K157: =_xlfn.XLOOKUP(A157,DATA[Item No.],DATA[GF],"") -> Y | L157: =_xlfn.XLOOKUP(A157,DATA[Item No.],DATA[N],"") -> 0 | M157: =_xlfn.XLOOKUP(A157,DATA[Item No.],DATA[H],"") -> 0 | N157: =_xlfn.XLOOKUP(A157,DATA[Item No.],DATA[CM],"") -> 0 | O157: =_xlfn.XLOOKUP(A157,DATA[Item No.],DATA[CO],"") -> Y | P157: =_xlfn.XLOOKUP(A157,DATA[Item No.],DATA[CP],"") -> 0 | Q157: =_xlfn.XLOOKUP(A157,DATA[Item No.],DATA[Guaranteed Days],"") -> 150 | R157: =_xlfn.XLOOKUP(A157,DATA[Item No.],DATA[Storage],"") -> Dry | S157: =_xlfn.XLOOKUP(A157,DATA[Item No.],DATA[Price],"") -> 37.44 | T157: =_xlfn.XLOOKUP(A157,DATA[Item No.],DATA[Monthly Promo],"") -> 0 | U157: =_xlfn.XLOOKUP(A157,DATA[Item No.],DATA[Promo Discount],"") -> 0 | V157: =_xlfn.XLOOKUP(A157,DATA[Item No.],DATA[SRP],"") -> 10.39 | W157: =_xlfn.XLOOKUP(A157,DATA[Item No.],DATA[SKU Territory Ranking - West],"") -> 0
A158: CAS0401 | C158: =_xlfn.XLOOKUP(A158,DATA[Item No.],DATA[Description],"") -> Fire Roasted Habanero Salsa | D158: =_xlfn.XLOOKUP(A158,DATA[Item No.],DATA[Unit UPC],"") -> 627843861126 | E158: =_xlfn.XLOOKUP(A158,DATA[Item No.],DATA[Size],"") -> 300ML | F158: =_xlfn.XLOOKUP(A158,DATA[Item No.],DATA[Picked],"") -> CA | G158: =_xlfn.XLOOKUP(A158,DATA[Item No.],DATA[Pack],"") -> 6 | H158: =_xlfn.XLOOKUP(A158,DATA[Item No.],DATA[O],"") -> 0 | I158: =_xlfn.XLOOKUP(A158,DATA[Item No.],DATA[K],"") -> 0 | J158: =_xlfn.XLOOKUP(A158,DATA[Item No.],DATA[V],"") -> Y | K158: =_xlfn.XLOOKUP(A158,DATA[Item No.],DATA[GF],"") -> 0 | L158: =_xlfn.XLOOKUP(A158,DATA[Item No.],DATA[N],"") -> 0 | M158: =_xlfn.XLOOKUP(A158,DATA[Item No.],DATA[H],"") -> 0 | N158: =_xlfn.XLOOKUP(A158,DATA[Item No.],DATA[CM],"") -> 0 | O158: =_xlfn.XLOOKUP(A158,DATA[Item No.],DATA[CO],"") -> Y | P158: =_xlfn.XLOOKUP(A158,DATA[Item No.],DATA[CP],"") -> 0 | Q158: =_xlfn.XLOOKUP(A158,DATA[Item No.],DATA[Guaranteed Days],"") -> 148 | R158: =_xlfn.XLOOKUP(A158,DATA[Item No.],DATA[Storage],"") -> Dry | S158: =_xlfn.XLOOKUP(A158,DATA[Item No.],DATA[Price],"") -> 24.18 | T158: =_xlfn.XLOOKUP(A158,DATA[Item No.],DATA[Monthly Promo],"") -> APRIL DEAL! | U158: =_xlfn.XLOOKUP(A158,DATA[Item No.],DATA[Promo Discount],"") -> SAVE 30% | V158: =_xlfn.XLOOKUP(A158,DATA[Item No.],DATA[SRP],"") -> 0 | W158: =_xlfn.XLOOKUP(A158,DATA[Item No.],DATA[SKU Territory Ranking - West],"") -> 2
A159: CAS0402 | C159: =_xlfn.XLOOKUP(A159,DATA[Item No.],DATA[Description],"") -> Fire Roasted Jalapeno Salsa | D159: =_xlfn.XLOOKUP(A159,DATA[Item No.],DATA[Unit UPC],"") -> 627843861133 | E159: =_xlfn.XLOOKUP(A159,DATA[Item No.],DATA[Size],"") -> 300ML | F159: =_xlfn.XLOOKUP(A159,DATA[Item No.],DATA[Picked],"") -> CA | G159: =_xlfn.XLOOKUP(A159,DATA[Item No.],DATA[Pack],"") -> 6 | H159: =_xlfn.XLOOKUP(A159,DATA[Item No.],DATA[O],"") -> 0 | I159: =_xlfn.XLOOKUP(A159,DATA[Item No.],DATA[K],"") -> 0 | J159: =_xlfn.XLOOKUP(A159,DATA[Item No.],DATA[V],"") -> Y | K159: =_xlfn.XLOOKUP(A159,DATA[Item No.],DATA[GF],"") -> 0 | L159: =_xlfn.XLOOKUP(A159,DATA[Item No.],DATA[N],"") -> 0 | M159: =_xlfn.XLOOKUP(A159,DATA[Item No.],DATA[H],"") -> 0 | N159: =_xlfn.XLOOKUP(A159,DATA[Item No.],DATA[CM],"") -> 0 | O159: =_xlfn.XLOOKUP(A159,DATA[Item No.],DATA[CO],"") -> Y | P159: =_xlfn.XLOOKUP(A159,DATA[Item No.],DATA[CP],"") -> 0 | Q159: =_xlfn.XLOOKUP(A159,DATA[Item No.],DATA[Guaranteed Days],"") -> 148 | R159: =_xlfn.XLOOKUP(A159,DATA[Item No.],DATA[Storage],"") -> Dry | S159: =_xlfn.XLOOKUP(A159,DATA[Item No.],DATA[Price],"") -> 24.18 | T159: =_xlfn.XLOOKUP(A159,DATA[Item No.],DATA[Monthly Promo],"") -> APRIL DEAL! | U159: =_xlfn.XLOOKUP(A159,DATA[Item No.],DATA[Promo Discount],"") -> SAVE 30% | V159: =_xlfn.XLOOKUP(A159,DATA[Item No.],DATA[SRP],"") -> 0 | W159: =_xlfn.XLOOKUP(A159,DATA[Item No.],DATA[SKU Territory Ranking - West],"") -> 2
A160: CAS0403 | C160: =_xlfn.XLOOKUP(A160,DATA[Item No.],DATA[Description],"") -> Fire Roasted Chipotle Salsa | D160: =_xlfn.XLOOKUP(A160,DATA[Item No.],DATA[Unit UPC],"") -> 627843861119 | E160: =_xlfn.XLOOKUP(A160,DATA[Item No.],DATA[Size],"") -> 300ML | F160: =_xlfn.XLOOKUP(A160,DATA[Item No.],DATA[Picked],"") -> CA | G160: =_xlfn.XLOOKUP(A160,DATA[Item No.],DATA[Pack],"") -> 6 | H160: =_xlfn.XLOOKUP(A160,DATA[Item No.],DATA[O],"") -> 0 | I160: =_xlfn.XLOOKUP(A160,DATA[Item No.],DATA[K],"") -> 0 | J160: =_xlfn.XLOOKUP(A160,DATA[Item No.],DATA[V],"") -> Y | K160: =_xlfn.XLOOKUP(A160,DATA[Item No.],DATA[GF],"") -> 0 | L160: =_xlfn.XLOOKUP(A160,DATA[Item No.],DATA[N],"") -> 0 | M160: =_xlfn.XLOOKUP(A160,DATA[Item No.],DATA[H],"") -> 0 | N160: =_xlfn.XLOOKUP(A160,DATA[Item No.],DATA[CM],"") -> 0 | O160: =_xlfn.XLOOKUP(A160,DATA[Item No.],DATA[CO],"") -> Y | P160: =_xlfn.XLOOKUP(A160,DATA[Item No.],DATA[CP],"") -> 0 | Q160: =_xlfn.XLOOKUP(A160,DATA[Item No.],DATA[Guaranteed Days],"") -> 148 | R160: =_xlfn.XLOOKUP(A160,DATA[Item No.],DATA[Storage],"") -> Dry | S160: =_xlfn.XLOOKUP(A160,DATA[Item No.],DATA[Price],"") -> 24.18 | T160: =_xlfn.XLOOKUP(A160,DATA[Item No.],DATA[Monthly Promo],"") -> APRIL DEAL! | U160: =_xlfn.XLOOKUP(A160,DATA[Item No.],DATA[Promo Discount],"") -> SAVE 30% | V160: =_xlfn.XLOOKUP(A160,DATA[Item No.],DATA[SRP],"") -> 0 | W160: =_xlfn.XLOOKUP(A160,DATA[Item No.],DATA[SKU Territory Ranking - West],"") -> 2
A161: Taco Shells | C161: =_xlfn.XLOOKUP(A161,DATA[Item No.],DATA[Description],"") ->  | D161: =_xlfn.XLOOKUP(A161,DATA[Item No.],DATA[Unit UPC],"") ->  | E161: =_xlfn.XLOOKUP(A161,DATA[Item No.],DATA[Size],"") ->  | F161: =_xlfn.XLOOKUP(A161,DATA[Item No.],DATA[Picked],"") ->  | G161: =_xlfn.XLOOKUP(A161,DATA[Item No.],DATA[Pack],"") ->  | H161: =_xlfn.XLOOKUP(A161,DATA[Item No.],DATA[O],"") ->  | I161: =_xlfn.XLOOKUP(A161,DATA[Item No.],DATA[K],"") ->  | J161: =_xlfn.XLOOKUP(A161,DATA[Item No.],DATA[V],"") ->  | K161: =_xlfn.XLOOKUP(A161,DATA[Item No.],DATA[GF],"") ->  | L161: =_xlfn.XLOOKUP(A161,DATA[Item No.],DATA[N],"") ->  | M161: =_xlfn.XLOOKUP(A161,DATA[Item No.],DATA[H],"") ->  | N161: =_xlfn.XLOOKUP(A161,DATA[Item No.],DATA[CM],"") ->  | O161: =_xlfn.XLOOKUP(A161,DATA[Item No.],DATA[CO],"") ->  | P161: =_xlfn.XLOOKUP(A161,DATA[Item No.],DATA[CP],"") ->  | Q161: =_xlfn.XLOOKUP(A161,DATA[Item No.],DATA[Guaranteed Days],"") ->  | R161: =_xlfn.XLOOKUP(A161,DATA[Item No.],DATA[Storage],"") ->  | S161: =_xlfn.XLOOKUP(A161,DATA[Item No.],DATA[Price],"") ->  | T161: =_xlfn.XLOOKUP(A161,DATA[Item No.],DATA[Monthly Promo],"") ->  | U161: =_xlfn.XLOOKUP(A161,DATA[Item No.],DATA[Promo Discount],"") ->  | V161: =_xlfn.XLOOKUP(A161,DATA[Item No.],DATA[SRP],"") ->  | W161: =_xlfn.XLOOKUP(A161,DATA[Item No.],DATA[SKU Territory Ranking - West],"") -> 
A162: CAS0208 | C162: =_xlfn.XLOOKUP(A162,DATA[Item No.],DATA[Description],"") -> Hard Taco Shells | D162: =_xlfn.XLOOKUP(A162,DATA[Item No.],DATA[Unit UPC],"") -> 628250868227 | E162: =_xlfn.XLOOKUP(A162,DATA[Item No.],DATA[Size],"") -> 125G | F162: =_xlfn.XLOOKUP(A162,DATA[Item No.],DATA[Picked],"") -> CA | G162: =_xlfn.XLOOKUP(A162,DATA[Item No.],DATA[Pack],"") -> 12 | H162: =_xlfn.XLOOKUP(A162,DATA[Item No.],DATA[O],"") -> 0 | I162: =_xlfn.XLOOKUP(A162,DATA[Item No.],DATA[K],"") -> 0 | J162: =_xlfn.XLOOKUP(A162,DATA[Item No.],DATA[V],"") -> 0 | K162: =_xlfn.XLOOKUP(A162,DATA[Item No.],DATA[GF],"") -> Y | L162: =_xlfn.XLOOKUP(A162,DATA[Item No.],DATA[N],"") -> Y | M162: =_xlfn.XLOOKUP(A162,DATA[Item No.],DATA[H],"") -> 0 | N162: =_xlfn.XLOOKUP(A162,DATA[Item No.],DATA[CM],"") -> 0 | O162: =_xlfn.XLOOKUP(A162,DATA[Item No.],DATA[CO],"") -> 0 | P162: =_xlfn.XLOOKUP(A162,DATA[Item No.],DATA[CP],"") -> Y | Q162: =_xlfn.XLOOKUP(A162,DATA[Item No.],DATA[Guaranteed Days],"") -> 72 | R162: =_xlfn.XLOOKUP(A162,DATA[Item No.],DATA[Storage],"") -> Dry | S162: =_xlfn.XLOOKUP(A162,DATA[Item No.],DATA[Price],"") -> 40.56 | T162: =_xlfn.XLOOKUP(A162,DATA[Item No.],DATA[Monthly Promo],"") -> 0 | U162: =_xlfn.XLOOKUP(A162,DATA[Item No.],DATA[Promo Discount],"") -> 0 | V162: =_xlfn.XLOOKUP(A162,DATA[Item No.],DATA[SRP],"") -> 6 | W162: =_xlfn.XLOOKUP(A162,DATA[Item No.],DATA[SKU Territory Ranking - West],"") -> 0
A163: Tajin | C163: =_xlfn.XLOOKUP(A163,DATA[Item No.],DATA[Description],"") ->  | D163: =_xlfn.XLOOKUP(A163,DATA[Item No.],DATA[Unit UPC],"") ->  | E163: =_xlfn.XLOOKUP(A163,DATA[Item No.],DATA[Size],"") ->  | F163: =_xlfn.XLOOKUP(A163,DATA[Item No.],DATA[Picked],"") ->  | G163: =_xlfn.XLOOKUP(A163,DATA[Item No.],DATA[Pack],"") ->  | H163: =_xlfn.XLOOKUP(A163,DATA[Item No.],DATA[O],"") ->  | I163: =_xlfn.XLOOKUP(A163,DATA[Item No.],DATA[K],"") ->  | J163: =_xlfn.XLOOKUP(A163,DATA[Item No.],DATA[V],"") ->  | K163: =_xlfn.XLOOKUP(A163,DATA[Item No.],DATA[GF],"") ->  | L163: =_xlfn.XLOOKUP(A163,DATA[Item No.],DATA[N],"") ->  | M163: =_xlfn.XLOOKUP(A163,DATA[Item No.],DATA[H],"") ->  | N163: =_xlfn.XLOOKUP(A163,DATA[Item No.],DATA[CM],"") ->  | O163: =_xlfn.XLOOKUP(A163,DATA[Item No.],DATA[CO],"") ->  | P163: =_xlfn.XLOOKUP(A163,DATA[Item No.],DATA[CP],"") ->  | Q163: =_xlfn.XLOOKUP(A163,DATA[Item No.],DATA[Guaranteed Days],"") ->  | R163: =_xlfn.XLOOKUP(A163,DATA[Item No.],DATA[Storage],"") ->  | S163: =_xlfn.XLOOKUP(A163,DATA[Item No.],DATA[Price],"") ->  | T163: =_xlfn.XLOOKUP(A163,DATA[Item No.],DATA[Monthly Promo],"") ->  | U163: =_xlfn.XLOOKUP(A163,DATA[Item No.],DATA[Promo Discount],"") ->  | V163: =_xlfn.XLOOKUP(A163,DATA[Item No.],DATA[SRP],"") ->  | W163: =_xlfn.XLOOKUP(A163,DATA[Item No.],DATA[SKU Territory Ranking - West],"") -> 
A164: CAS0301 | C164: =_xlfn.XLOOKUP(A164,DATA[Item No.],DATA[Description],"") -> Tajin classic lime | D164: =_xlfn.XLOOKUP(A164,DATA[Item No.],DATA[Unit UPC],"") -> 633148100013 | E164: =_xlfn.XLOOKUP(A164,DATA[Item No.],DATA[Size],"") -> 142G | F164: =_xlfn.XLOOKUP(A164,DATA[Item No.],DATA[Picked],"") -> CA | G164: =_xlfn.XLOOKUP(A164,DATA[Item No.],DATA[Pack],"") -> 12 | H164: =_xlfn.XLOOKUP(A164,DATA[Item No.],DATA[O],"") -> 0 | I164: =_xlfn.XLOOKUP(A164,DATA[Item No.],DATA[K],"") -> Y | J164: =_xlfn.XLOOKUP(A164,DATA[Item No.],DATA[V],"") -> Y | K164: =_xlfn.XLOOKUP(A164,DATA[Item No.],DATA[GF],"") -> 0 | L164: =_xlfn.XLOOKUP(A164,DATA[Item No.],DATA[N],"") -> 0 | M164: =_xlfn.XLOOKUP(A164,DATA[Item No.],DATA[H],"") -> 0 | N164: =_xlfn.XLOOKUP(A164,DATA[Item No.],DATA[CM],"") -> 0 | O164: =_xlfn.XLOOKUP(A164,DATA[Item No.],DATA[CO],"") -> Y | P164: =_xlfn.XLOOKUP(A164,DATA[Item No.],DATA[CP],"") -> 0 | Q164: =_xlfn.XLOOKUP(A164,DATA[Item No.],DATA[Guaranteed Days],"") -> 126 | R164: =_xlfn.XLOOKUP(A164,DATA[Item No.],DATA[Storage],"") -> Dry | S164: =_xlfn.XLOOKUP(A164,DATA[Item No.],DATA[Price],"") -> 61.48 | T164: =_xlfn.XLOOKUP(A164,DATA[Item No.],DATA[Monthly Promo],"") -> 0 | U164: =_xlfn.XLOOKUP(A164,DATA[Item No.],DATA[Promo Discount],"") -> 0 | V164: =_xlfn.XLOOKUP(A164,DATA[Item No.],DATA[SRP],"") -> 0 | W164: =_xlfn.XLOOKUP(A164,DATA[Item No.],DATA[SKU Territory Ranking - West],"") -> 2
A165: CAS0302 | C165: =_xlfn.XLOOKUP(A165,DATA[Item No.],DATA[Description],"") -> Tajin habanero | D165: =_xlfn.XLOOKUP(A165,DATA[Item No.],DATA[Unit UPC],"") -> 633148104547 | E165: =_xlfn.XLOOKUP(A165,DATA[Item No.],DATA[Size],"") -> 45G | F165: =_xlfn.XLOOKUP(A165,DATA[Item No.],DATA[Picked],"") -> CA | G165: =_xlfn.XLOOKUP(A165,DATA[Item No.],DATA[Pack],"") -> 24 | H165: =_xlfn.XLOOKUP(A165,DATA[Item No.],DATA[O],"") -> 0 | I165: =_xlfn.XLOOKUP(A165,DATA[Item No.],DATA[K],"") -> Y | J165: =_xlfn.XLOOKUP(A165,DATA[Item No.],DATA[V],"") -> Y | K165: =_xlfn.XLOOKUP(A165,DATA[Item No.],DATA[GF],"") -> 0 | L165: =_xlfn.XLOOKUP(A165,DATA[Item No.],DATA[N],"") -> 0 | M165: =_xlfn.XLOOKUP(A165,DATA[Item No.],DATA[H],"") -> 0 | N165: =_xlfn.XLOOKUP(A165,DATA[Item No.],DATA[CM],"") -> 0 | O165: =_xlfn.XLOOKUP(A165,DATA[Item No.],DATA[CO],"") -> Y | P165: =_xlfn.XLOOKUP(A165,DATA[Item No.],DATA[CP],"") -> 0 | Q165: =_xlfn.XLOOKUP(A165,DATA[Item No.],DATA[Guaranteed Days],"") -> 126 | R165: =_xlfn.XLOOKUP(A165,DATA[Item No.],DATA[Storage],"") -> Dry | S165: =_xlfn.XLOOKUP(A165,DATA[Item No.],DATA[Price],"") -> 117.85 | T165: =_xlfn.XLOOKUP(A165,DATA[Item No.],DATA[Monthly Promo],"") -> 0 | U165: =_xlfn.XLOOKUP(A165,DATA[Item No.],DATA[Promo Discount],"") -> 0 | V165: =_xlfn.XLOOKUP(A165,DATA[Item No.],DATA[SRP],"") -> 0 | W165: =_xlfn.XLOOKUP(A165,DATA[Item No.],DATA[SKU Territory Ranking - West],"") -> 3
A166: CAS0503 | C166: =_xlfn.XLOOKUP(A166,DATA[Item No.],DATA[Description],"") -> Tajin Liquid Classic | D166: =_xlfn.XLOOKUP(A166,DATA[Item No.],DATA[Unit UPC],"") -> 633148104035 | E166: =_xlfn.XLOOKUP(A166,DATA[Item No.],DATA[Size],"") -> 455ML | F166: =_xlfn.XLOOKUP(A166,DATA[Item No.],DATA[Picked],"") -> CA | G166: =_xlfn.XLOOKUP(A166,DATA[Item No.],DATA[Pack],"") -> 12 | H166: =_xlfn.XLOOKUP(A166,DATA[Item No.],DATA[O],"") -> 0 | I166: =_xlfn.XLOOKUP(A166,DATA[Item No.],DATA[K],"") -> Y | J166: =_xlfn.XLOOKUP(A166,DATA[Item No.],DATA[V],"") -> Y | K166: =_xlfn.XLOOKUP(A166,DATA[Item No.],DATA[GF],"") -> 0 | L166: =_xlfn.XLOOKUP(A166,DATA[Item No.],DATA[N],"") -> 0 | M166: =_xlfn.XLOOKUP(A166,DATA[Item No.],DATA[H],"") -> 0 | N166: =_xlfn.XLOOKUP(A166,DATA[Item No.],DATA[CM],"") -> 0 | O166: =_xlfn.XLOOKUP(A166,DATA[Item No.],DATA[CO],"") -> Y | P166: =_xlfn.XLOOKUP(A166,DATA[Item No.],DATA[CP],"") -> 0 | Q166: =_xlfn.XLOOKUP(A166,DATA[Item No.],DATA[Guaranteed Days],"") -> 81 | R166: =_xlfn.XLOOKUP(A166,DATA[Item No.],DATA[Storage],"") -> Dry | S166: =_xlfn.XLOOKUP(A166,DATA[Item No.],DATA[Price],"") -> 76.69 | T166: =_xlfn.XLOOKUP(A166,DATA[Item No.],DATA[Monthly Promo],"") -> 0 | U166: =_xlfn.XLOOKUP(A166,DATA[Item No.],DATA[Promo Discount],"") -> 0 | V166: =_xlfn.XLOOKUP(A166,DATA[Item No.],DATA[SRP],"") -> 0 | W166: =_xlfn.XLOOKUP(A166,DATA[Item No.],DATA[SKU Territory Ranking - West],"") -> 2
A167: CAS0504 | C167: =_xlfn.XLOOKUP(A167,DATA[Item No.],DATA[Description],"") -> Tajin Liquid Chamoy | D167: =_xlfn.XLOOKUP(A167,DATA[Item No.],DATA[Unit UPC],"") -> 633148104028 | E167: =_xlfn.XLOOKUP(A167,DATA[Item No.],DATA[Size],"") -> 455ML | F167: =_xlfn.XLOOKUP(A167,DATA[Item No.],DATA[Picked],"") -> CA | G167: =_xlfn.XLOOKUP(A167,DATA[Item No.],DATA[Pack],"") -> 12 | H167: =_xlfn.XLOOKUP(A167,DATA[Item No.],DATA[O],"") -> 0 | I167: =_xlfn.XLOOKUP(A167,DATA[Item No.],DATA[K],"") -> Y | J167: =_xlfn.XLOOKUP(A167,DATA[Item No.],DATA[V],"") -> Y | K167: =_xlfn.XLOOKUP(A167,DATA[Item No.],DATA[GF],"") -> 0 | L167: =_xlfn.XLOOKUP(A167,DATA[Item No.],DATA[N],"") -> 0 | M167: =_xlfn.XLOOKUP(A167,DATA[Item No.],DATA[H],"") -> 0 | N167: =_xlfn.XLOOKUP(A167,DATA[Item No.],DATA[CM],"") -> 0 | O167: =_xlfn.XLOOKUP(A167,DATA[Item No.],DATA[CO],"") -> Y | P167: =_xlfn.XLOOKUP(A167,DATA[Item No.],DATA[CP],"") -> 0 | Q167: =_xlfn.XLOOKUP(A167,DATA[Item No.],DATA[Guaranteed Days],"") -> 81 | R167: =_xlfn.XLOOKUP(A167,DATA[Item No.],DATA[Storage],"") -> Dry | S167: =_xlfn.XLOOKUP(A167,DATA[Item No.],DATA[Price],"") -> 76.69 | T167: =_xlfn.XLOOKUP(A167,DATA[Item No.],DATA[Monthly Promo],"") -> 0 | U167: =_xlfn.XLOOKUP(A167,DATA[Item No.],DATA[Promo Discount],"") -> 0 | V167: =_xlfn.XLOOKUP(A167,DATA[Item No.],DATA[SRP],"") -> 0 | W167: =_xlfn.XLOOKUP(A167,DATA[Item No.],DATA[SKU Territory Ranking - West],"") -> 2
A168: Tortilla Chips | C168: =_xlfn.XLOOKUP(A168,DATA[Item No.],DATA[Description],"") ->  | D168: =_xlfn.XLOOKUP(A168,DATA[Item No.],DATA[Unit UPC],"") ->  | E168: =_xlfn.XLOOKUP(A168,DATA[Item No.],DATA[Size],"") ->  | F168: =_xlfn.XLOOKUP(A168,DATA[Item No.],DATA[Picked],"") ->  | G168: =_xlfn.XLOOKUP(A168,DATA[Item No.],DATA[Pack],"") ->  | H168: =_xlfn.XLOOKUP(A168,DATA[Item No.],DATA[O],"") ->  | I168: =_xlfn.XLOOKUP(A168,DATA[Item No.],DATA[K],"") ->  | J168: =_xlfn.XLOOKUP(A168,DATA[Item No.],DATA[V],"") ->  | K168: =_xlfn.XLOOKUP(A168,DATA[Item No.],DATA[GF],"") ->  | L168: =_xlfn.XLOOKUP(A168,DATA[Item No.],DATA[N],"") ->  | M168: =_xlfn.XLOOKUP(A168,DATA[Item No.],DATA[H],"") ->  | N168: =_xlfn.XLOOKUP(A168,DATA[Item No.],DATA[CM],"") ->  | O168: =_xlfn.XLOOKUP(A168,DATA[Item No.],DATA[CO],"") ->  | P168: =_xlfn.XLOOKUP(A168,DATA[Item No.],DATA[CP],"") ->  | Q168: =_xlfn.XLOOKUP(A168,DATA[Item No.],DATA[Guaranteed Days],"") ->  | R168: =_xlfn.XLOOKUP(A168,DATA[Item No.],DATA[Storage],"") ->  | S168: =_xlfn.XLOOKUP(A168,DATA[Item No.],DATA[Price],"") ->  | T168: =_xlfn.XLOOKUP(A168,DATA[Item No.],DATA[Monthly Promo],"") ->  | U168: =_xlfn.XLOOKUP(A168,DATA[Item No.],DATA[Promo Discount],"") ->  | V168: =_xlfn.XLOOKUP(A168,DATA[Item No.],DATA[SRP],"") ->  | W168: =_xlfn.XLOOKUP(A168,DATA[Item No.],DATA[SKU Territory Ranking - West],"") -> 
A169: CAS0108 | C169: =_xlfn.XLOOKUP(A169,DATA[Item No.],DATA[Description],"") -> Casa Bonita Jalapeno Cheddar | D169: =_xlfn.XLOOKUP(A169,DATA[Item No.],DATA[Unit UPC],"") -> 628250868104 | E169: =_xlfn.XLOOKUP(A169,DATA[Item No.],DATA[Size],"") -> 63G | F169: =_xlfn.XLOOKUP(A169,DATA[Item No.],DATA[Picked],"") -> CA | G169: =_xlfn.XLOOKUP(A169,DATA[Item No.],DATA[Pack],"") -> 20 | H169: =_xlfn.XLOOKUP(A169,DATA[Item No.],DATA[O],"") -> 0 | I169: =_xlfn.XLOOKUP(A169,DATA[Item No.],DATA[K],"") -> 0 | J169: =_xlfn.XLOOKUP(A169,DATA[Item No.],DATA[V],"") -> 0 | K169: =_xlfn.XLOOKUP(A169,DATA[Item No.],DATA[GF],"") -> Y | L169: =_xlfn.XLOOKUP(A169,DATA[Item No.],DATA[N],"") -> Y | M169: =_xlfn.XLOOKUP(A169,DATA[Item No.],DATA[H],"") -> 0 | N169: =_xlfn.XLOOKUP(A169,DATA[Item No.],DATA[CM],"") -> Y | O169: =_xlfn.XLOOKUP(A169,DATA[Item No.],DATA[CO],"") -> 0 | P169: =_xlfn.XLOOKUP(A169,DATA[Item No.],DATA[CP],"") -> 0 | Q169: =_xlfn.XLOOKUP(A169,DATA[Item No.],DATA[Guaranteed Days],"") -> 94 | R169: =_xlfn.XLOOKUP(A169,DATA[Item No.],DATA[Storage],"") -> Dry | S169: =_xlfn.XLOOKUP(A169,DATA[Item No.],DATA[Price],"") -> 30 | T169: =_xlfn.XLOOKUP(A169,DATA[Item No.],DATA[Monthly Promo],"") -> 0 | U169: =_xlfn.XLOOKUP(A169,DATA[Item No.],DATA[Promo Discount],"") -> 0 | V169: =_xlfn.XLOOKUP(A169,DATA[Item No.],DATA[SRP],"") -> 2.31 | W169: =_xlfn.XLOOKUP(A169,DATA[Item No.],DATA[SKU Territory Ranking - West],"") -> 0
A170: CAS0109 | C170: =_xlfn.XLOOKUP(A170,DATA[Item No.],DATA[Description],"") -> Casa Bonita Chilli Lime | D170: =_xlfn.XLOOKUP(A170,DATA[Item No.],DATA[Unit UPC],"") -> 628250868111 | E170: =_xlfn.XLOOKUP(A170,DATA[Item No.],DATA[Size],"") -> 63G | F170: =_xlfn.XLOOKUP(A170,DATA[Item No.],DATA[Picked],"") -> CA | G170: =_xlfn.XLOOKUP(A170,DATA[Item No.],DATA[Pack],"") -> 20 | H170: =_xlfn.XLOOKUP(A170,DATA[Item No.],DATA[O],"") -> 0 | I170: =_xlfn.XLOOKUP(A170,DATA[Item No.],DATA[K],"") -> 0 | J170: =_xlfn.XLOOKUP(A170,DATA[Item No.],DATA[V],"") -> 0 | K170: =_xlfn.XLOOKUP(A170,DATA[Item No.],DATA[GF],"") -> Y | L170: =_xlfn.XLOOKUP(A170,DATA[Item No.],DATA[N],"") -> Y | M170: =_xlfn.XLOOKUP(A170,DATA[Item No.],DATA[H],"") -> 0 | N170: =_xlfn.XLOOKUP(A170,DATA[Item No.],DATA[CM],"") -> Y | O170: =_xlfn.XLOOKUP(A170,DATA[Item No.],DATA[CO],"") -> 0 | P170: =_xlfn.XLOOKUP(A170,DATA[Item No.],DATA[CP],"") -> 0 | Q170: =_xlfn.XLOOKUP(A170,DATA[Item No.],DATA[Guaranteed Days],"") -> 94 | R170: =_xlfn.XLOOKUP(A170,DATA[Item No.],DATA[Storage],"") -> Dry | S170: =_xlfn.XLOOKUP(A170,DATA[Item No.],DATA[Price],"") -> 30 | T170: =_xlfn.XLOOKUP(A170,DATA[Item No.],DATA[Monthly Promo],"") -> 0 | U170: =_xlfn.XLOOKUP(A170,DATA[Item No.],DATA[Promo Discount],"") -> 0 | V170: =_xlfn.XLOOKUP(A170,DATA[Item No.],DATA[SRP],"") -> 2.31 | W170: =_xlfn.XLOOKUP(A170,DATA[Item No.],DATA[SKU Territory Ranking - West],"") -> 0
A171: Seasonings | C171: =_xlfn.XLOOKUP(A171,DATA[Item No.],DATA[Description],"") ->  | D171: =_xlfn.XLOOKUP(A171,DATA[Item No.],DATA[Unit UPC],"") ->  | E171: =_xlfn.XLOOKUP(A171,DATA[Item No.],DATA[Size],"") ->  | F171: =_xlfn.XLOOKUP(A171,DATA[Item No.],DATA[Picked],"") ->  | G171: =_xlfn.XLOOKUP(A171,DATA[Item No.],DATA[Pack],"") ->  | H171: =_xlfn.XLOOKUP(A171,DATA[Item No.],DATA[O],"") ->  | I171: =_xlfn.XLOOKUP(A171,DATA[Item No.],DATA[K],"") ->  | J171: =_xlfn.XLOOKUP(A171,DATA[Item No.],DATA[V],"") ->  | K171: =_xlfn.XLOOKUP(A171,DATA[Item No.],DATA[GF],"") ->  | L171: =_xlfn.XLOOKUP(A171,DATA[Item No.],DATA[N],"") ->  | M171: =_xlfn.XLOOKUP(A171,DATA[Item No.],DATA[H],"") ->  | N171: =_xlfn.XLOOKUP(A171,DATA[Item No.],DATA[CM],"") ->  | O171: =_xlfn.XLOOKUP(A171,DATA[Item No.],DATA[CO],"") ->  | P171: =_xlfn.XLOOKUP(A171,DATA[Item No.],DATA[CP],"") ->  | Q171: =_xlfn.XLOOKUP(A171,DATA[Item No.],DATA[Guaranteed Days],"") ->  | R171: =_xlfn.XLOOKUP(A171,DATA[Item No.],DATA[Storage],"") ->  | S171: =_xlfn.XLOOKUP(A171,DATA[Item No.],DATA[Price],"") ->  | T171: =_xlfn.XLOOKUP(A171,DATA[Item No.],DATA[Monthly Promo],"") ->  | U171: =_xlfn.XLOOKUP(A171,DATA[Item No.],DATA[Promo Discount],"") ->  | V171: =_xlfn.XLOOKUP(A171,DATA[Item No.],DATA[SRP],"") ->  | W171: =_xlfn.XLOOKUP(A171,DATA[Item No.],DATA[SKU Territory Ranking - West],"") -> 
A172: CAS0303 | C172: =_xlfn.XLOOKUP(A172,DATA[Item No.],DATA[Description],"") -> Al Pastor Seasonings | D172: =_xlfn.XLOOKUP(A172,DATA[Item No.],DATA[Unit UPC],"") -> 628250868043 | E172: =_xlfn.XLOOKUP(A172,DATA[Item No.],DATA[Size],"") -> 30G | F172: =_xlfn.XLOOKUP(A172,DATA[Item No.],DATA[Picked],"") -> CA | G172: =_xlfn.XLOOKUP(A172,DATA[Item No.],DATA[Pack],"") -> 12 | H172: =_xlfn.XLOOKUP(A172,DATA[Item No.],DATA[O],"") -> 0 | I172: =_xlfn.XLOOKUP(A172,DATA[Item No.],DATA[K],"") -> 0 | J172: =_xlfn.XLOOKUP(A172,DATA[Item No.],DATA[V],"") -> Y | K172: =_xlfn.XLOOKUP(A172,DATA[Item No.],DATA[GF],"") -> Y | L172: =_xlfn.XLOOKUP(A172,DATA[Item No.],DATA[N],"") -> Y | M172: =_xlfn.XLOOKUP(A172,DATA[Item No.],DATA[H],"") -> 0 | N172: =_xlfn.XLOOKUP(A172,DATA[Item No.],DATA[CM],"") -> 0 | O172: =_xlfn.XLOOKUP(A172,DATA[Item No.],DATA[CO],"") -> 0 | P172: =_xlfn.XLOOKUP(A172,DATA[Item No.],DATA[CP],"") -> 0 | Q172: =_xlfn.XLOOKUP(A172,DATA[Item No.],DATA[Guaranteed Days],"") -> 720 | R172: =_xlfn.XLOOKUP(A172,DATA[Item No.],DATA[Storage],"") -> Dry | S172: =_xlfn.XLOOKUP(A172,DATA[Item No.],DATA[Price],"") -> 17.14 | T172: =_xlfn.XLOOKUP(A172,DATA[Item No.],DATA[Monthly Promo],"") -> 0 | U172: =_xlfn.XLOOKUP(A172,DATA[Item No.],DATA[Promo Discount],"") -> 0 | V172: =_xlfn.XLOOKUP(A172,DATA[Item No.],DATA[SRP],"") -> 2.35 | W172: =_xlfn.XLOOKUP(A172,DATA[Item No.],DATA[SKU Territory Ranking - West],"") -> 0
A173: CAS0306 | C173: =_xlfn.XLOOKUP(A173,DATA[Item No.],DATA[Description],"") -> Barbacoa Seasonings | D173: =_xlfn.XLOOKUP(A173,DATA[Item No.],DATA[Unit UPC],"") -> 628250868036 | E173: =_xlfn.XLOOKUP(A173,DATA[Item No.],DATA[Size],"") -> 30G | F173: =_xlfn.XLOOKUP(A173,DATA[Item No.],DATA[Picked],"") -> CA | G173: =_xlfn.XLOOKUP(A173,DATA[Item No.],DATA[Pack],"") -> 12 | H173: =_xlfn.XLOOKUP(A173,DATA[Item No.],DATA[O],"") -> 0 | I173: =_xlfn.XLOOKUP(A173,DATA[Item No.],DATA[K],"") -> 0 | J173: =_xlfn.XLOOKUP(A173,DATA[Item No.],DATA[V],"") -> Y | K173: =_xlfn.XLOOKUP(A173,DATA[Item No.],DATA[GF],"") -> Y | L173: =_xlfn.XLOOKUP(A173,DATA[Item No.],DATA[N],"") -> Y | M173: =_xlfn.XLOOKUP(A173,DATA[Item No.],DATA[H],"") -> 0 | N173: =_xlfn.XLOOKUP(A173,DATA[Item No.],DATA[CM],"") -> 0 | O173: =_xlfn.XLOOKUP(A173,DATA[Item No.],DATA[CO],"") -> 0 | P173: =_xlfn.XLOOKUP(A173,DATA[Item No.],DATA[CP],"") -> 0 | Q173: =_xlfn.XLOOKUP(A173,DATA[Item No.],DATA[Guaranteed Days],"") -> 720 | R173: =_xlfn.XLOOKUP(A173,DATA[Item No.],DATA[Storage],"") -> Dry | S173: =_xlfn.XLOOKUP(A173,DATA[Item No.],DATA[Price],"") -> 17.14 | T173: =_xlfn.XLOOKUP(A173,DATA[Item No.],DATA[Monthly Promo],"") -> 0 | U173: =_xlfn.XLOOKUP(A173,DATA[Item No.],DATA[Promo Discount],"") -> 0 | V173: =_xlfn.XLOOKUP(A173,DATA[Item No.],DATA[SRP],"") -> 2.35 | W173: =_xlfn.XLOOKUP(A173,DATA[Item No.],DATA[SKU Territory Ranking - West],"") -> 0
A174: CAS0304 | C174: =_xlfn.XLOOKUP(A174,DATA[Item No.],DATA[Description],"") -> Carne Asada Seasonings | D174: =_xlfn.XLOOKUP(A174,DATA[Item No.],DATA[Unit UPC],"") -> 628250868081 | E174: =_xlfn.XLOOKUP(A174,DATA[Item No.],DATA[Size],"") -> 30G | F174: =_xlfn.XLOOKUP(A174,DATA[Item No.],DATA[Picked],"") -> CA | G174: =_xlfn.XLOOKUP(A174,DATA[Item No.],DATA[Pack],"") -> 12 | H174: =_xlfn.XLOOKUP(A174,DATA[Item No.],DATA[O],"") -> 0 | I174: =_xlfn.XLOOKUP(A174,DATA[Item No.],DATA[K],"") -> 0 | J174: =_xlfn.XLOOKUP(A174,DATA[Item No.],DATA[V],"") -> Y | K174: =_xlfn.XLOOKUP(A174,DATA[Item No.],DATA[GF],"") -> Y | L174: =_xlfn.XLOOKUP(A174,DATA[Item No.],DATA[N],"") -> Y | M174: =_xlfn.XLOOKUP(A174,DATA[Item No.],DATA[H],"") -> 0 | N174: =_xlfn.XLOOKUP(A174,DATA[Item No.],DATA[CM],"") -> 0 | O174: =_xlfn.XLOOKUP(A174,DATA[Item No.],DATA[CO],"") -> 0 | P174: =_xlfn.XLOOKUP(A174,DATA[Item No.],DATA[CP],"") -> 0 | Q174: =_xlfn.XLOOKUP(A174,DATA[Item No.],DATA[Guaranteed Days],"") -> 720 | R174: =_xlfn.XLOOKUP(A174,DATA[Item No.],DATA[Storage],"") -> Dry | S174: =_xlfn.XLOOKUP(A174,DATA[Item No.],DATA[Price],"") -> 17.14 | T174: =_xlfn.XLOOKUP(A174,DATA[Item No.],DATA[Monthly Promo],"") -> 0 | U174: =_xlfn.XLOOKUP(A174,DATA[Item No.],DATA[Promo Discount],"") -> 0 | V174: =_xlfn.XLOOKUP(A174,DATA[Item No.],DATA[SRP],"") -> 2.35 | W174: =_xlfn.XLOOKUP(A174,DATA[Item No.],DATA[SKU Territory Ranking - West],"") -> 0
A175: CAS0307 | C175: =_xlfn.XLOOKUP(A175,DATA[Item No.],DATA[Description],"") -> Carnitas Seasonings | D175: =_xlfn.XLOOKUP(A175,DATA[Item No.],DATA[Unit UPC],"") -> 628250868067 | E175: =_xlfn.XLOOKUP(A175,DATA[Item No.],DATA[Size],"") -> 30G | F175: =_xlfn.XLOOKUP(A175,DATA[Item No.],DATA[Picked],"") -> CA | G175: =_xlfn.XLOOKUP(A175,DATA[Item No.],DATA[Pack],"") -> 12 | H175: =_xlfn.XLOOKUP(A175,DATA[Item No.],DATA[O],"") -> 0 | I175: =_xlfn.XLOOKUP(A175,DATA[Item No.],DATA[K],"") -> 0 | J175: =_xlfn.XLOOKUP(A175,DATA[Item No.],DATA[V],"") -> Y | K175: =_xlfn.XLOOKUP(A175,DATA[Item No.],DATA[GF],"") -> Y | L175: =_xlfn.XLOOKUP(A175,DATA[Item No.],DATA[N],"") -> Y | M175: =_xlfn.XLOOKUP(A175,DATA[Item No.],DATA[H],"") -> 0 | N175: =_xlfn.XLOOKUP(A175,DATA[Item No.],DATA[CM],"") -> 0 | O175: =_xlfn.XLOOKUP(A175,DATA[Item No.],DATA[CO],"") -> 0 | P175: =_xlfn.XLOOKUP(A175,DATA[Item No.],DATA[CP],"") -> 0 | Q175: =_xlfn.XLOOKUP(A175,DATA[Item No.],DATA[Guaranteed Days],"") -> 720 | R175: =_xlfn.XLOOKUP(A175,DATA[Item No.],DATA[Storage],"") -> Dry | S175: =_xlfn.XLOOKUP(A175,DATA[Item No.],DATA[Price],"") -> 17.14 | T175: =_xlfn.XLOOKUP(A175,DATA[Item No.],DATA[Monthly Promo],"") -> 0 | U175: =_xlfn.XLOOKUP(A175,DATA[Item No.],DATA[Promo Discount],"") -> 0 | V175: =_xlfn.XLOOKUP(A175,DATA[Item No.],DATA[SRP],"") -> 2.35 | W175: =_xlfn.XLOOKUP(A175,DATA[Item No.],DATA[SKU Territory Ranking - West],"") -> 0
A176: CAS0308 | C176: =_xlfn.XLOOKUP(A176,DATA[Item No.],DATA[Description],"") -> Chicken Tinga Seasonings | D176: =_xlfn.XLOOKUP(A176,DATA[Item No.],DATA[Unit UPC],"") -> 628250868074 | E176: =_xlfn.XLOOKUP(A176,DATA[Item No.],DATA[Size],"") -> 30G | F176: =_xlfn.XLOOKUP(A176,DATA[Item No.],DATA[Picked],"") -> CA | G176: =_xlfn.XLOOKUP(A176,DATA[Item No.],DATA[Pack],"") -> 12 | H176: =_xlfn.XLOOKUP(A176,DATA[Item No.],DATA[O],"") -> 0 | I176: =_xlfn.XLOOKUP(A176,DATA[Item No.],DATA[K],"") -> 0 | J176: =_xlfn.XLOOKUP(A176,DATA[Item No.],DATA[V],"") -> Y | K176: =_xlfn.XLOOKUP(A176,DATA[Item No.],DATA[GF],"") -> Y | L176: =_xlfn.XLOOKUP(A176,DATA[Item No.],DATA[N],"") -> Y | M176: =_xlfn.XLOOKUP(A176,DATA[Item No.],DATA[H],"") -> 0 | N176: =_xlfn.XLOOKUP(A176,DATA[Item No.],DATA[CM],"") -> 0 | O176: =_xlfn.XLOOKUP(A176,DATA[Item No.],DATA[CO],"") -> 0 | P176: =_xlfn.XLOOKUP(A176,DATA[Item No.],DATA[CP],"") -> 0 | Q176: =_xlfn.XLOOKUP(A176,DATA[Item No.],DATA[Guaranteed Days],"") -> 720 | R176: =_xlfn.XLOOKUP(A176,DATA[Item No.],DATA[Storage],"") -> Dry | S176: =_xlfn.XLOOKUP(A176,DATA[Item No.],DATA[Price],"") -> 17.14 | T176: =_xlfn.XLOOKUP(A176,DATA[Item No.],DATA[Monthly Promo],"") -> 0 | U176: =_xlfn.XLOOKUP(A176,DATA[Item No.],DATA[Promo Discount],"") -> 0 | V176: =_xlfn.XLOOKUP(A176,DATA[Item No.],DATA[SRP],"") -> 2.35 | W176: =_xlfn.XLOOKUP(A176,DATA[Item No.],DATA[SKU Territory Ranking - West],"") -> 0
A177: CAS0305 | C177: =_xlfn.XLOOKUP(A177,DATA[Item No.],DATA[Description],"") -> Street Tacos Taco Seasoning | D177: =_xlfn.XLOOKUP(A177,DATA[Item No.],DATA[Unit UPC],"") -> 628250868050 | E177: =_xlfn.XLOOKUP(A177,DATA[Item No.],DATA[Size],"") -> 30G | F177: =_xlfn.XLOOKUP(A177,DATA[Item No.],DATA[Picked],"") -> CA | G177: =_xlfn.XLOOKUP(A177,DATA[Item No.],DATA[Pack],"") -> 12 | H177: =_xlfn.XLOOKUP(A177,DATA[Item No.],DATA[O],"") -> 0 | I177: =_xlfn.XLOOKUP(A177,DATA[Item No.],DATA[K],"") -> 0 | J177: =_xlfn.XLOOKUP(A177,DATA[Item No.],DATA[V],"") -> Y | K177: =_xlfn.XLOOKUP(A177,DATA[Item No.],DATA[GF],"") -> Y | L177: =_xlfn.XLOOKUP(A177,DATA[Item No.],DATA[N],"") -> Y | M177: =_xlfn.XLOOKUP(A177,DATA[Item No.],DATA[H],"") -> 0 | N177: =_xlfn.XLOOKUP(A177,DATA[Item No.],DATA[CM],"") -> 0 | O177: =_xlfn.XLOOKUP(A177,DATA[Item No.],DATA[CO],"") -> 0 | P177: =_xlfn.XLOOKUP(A177,DATA[Item No.],DATA[CP],"") -> 0 | Q177: =_xlfn.XLOOKUP(A177,DATA[Item No.],DATA[Guaranteed Days],"") -> 720 | R177: =_xlfn.XLOOKUP(A177,DATA[Item No.],DATA[Storage],"") -> Dry | S177: =_xlfn.XLOOKUP(A177,DATA[Item No.],DATA[Price],"") -> 17.14 | T177: =_xlfn.XLOOKUP(A177,DATA[Item No.],DATA[Monthly Promo],"") -> 0 | U177: =_xlfn.XLOOKUP(A177,DATA[Item No.],DATA[Promo Discount],"") -> 0 | V177: =_xlfn.XLOOKUP(A177,DATA[Item No.],DATA[SRP],"") -> 2.35 | W177: =_xlfn.XLOOKUP(A177,DATA[Item No.],DATA[SKU Territory Ranking - West],"") -> 0
A178: Corn Tortilla | C178: =_xlfn.XLOOKUP(A178,DATA[Item No.],DATA[Description],"") ->  | D178: =_xlfn.XLOOKUP(A178,DATA[Item No.],DATA[Unit UPC],"") ->  | E178: =_xlfn.XLOOKUP(A178,DATA[Item No.],DATA[Size],"") ->  | F178: =_xlfn.XLOOKUP(A178,DATA[Item No.],DATA[Picked],"") ->  | G178: =_xlfn.XLOOKUP(A178,DATA[Item No.],DATA[Pack],"") ->  | H178: =_xlfn.XLOOKUP(A178,DATA[Item No.],DATA[O],"") ->  | I178: =_xlfn.XLOOKUP(A178,DATA[Item No.],DATA[K],"") ->  | J178: =_xlfn.XLOOKUP(A178,DATA[Item No.],DATA[V],"") ->  | K178: =_xlfn.XLOOKUP(A178,DATA[Item No.],DATA[GF],"") ->  | L178: =_xlfn.XLOOKUP(A178,DATA[Item No.],DATA[N],"") ->  | M178: =_xlfn.XLOOKUP(A178,DATA[Item No.],DATA[H],"") ->  | N178: =_xlfn.XLOOKUP(A178,DATA[Item No.],DATA[CM],"") ->  | O178: =_xlfn.XLOOKUP(A178,DATA[Item No.],DATA[CO],"") ->  | P178: =_xlfn.XLOOKUP(A178,DATA[Item No.],DATA[CP],"") ->  | Q178: =_xlfn.XLOOKUP(A178,DATA[Item No.],DATA[Guaranteed Days],"") ->  | R178: =_xlfn.XLOOKUP(A178,DATA[Item No.],DATA[Storage],"") ->  | S178: =_xlfn.XLOOKUP(A178,DATA[Item No.],DATA[Price],"") ->  | T178: =_xlfn.XLOOKUP(A178,DATA[Item No.],DATA[Monthly Promo],"") ->  | U178: =_xlfn.XLOOKUP(A178,DATA[Item No.],DATA[Promo Discount],"") ->  | V178: =_xlfn.XLOOKUP(A178,DATA[Item No.],DATA[SRP],"") ->  | W178: =_xlfn.XLOOKUP(A178,DATA[Item No.],DATA[SKU Territory Ranking - West],"") -> 
A179: CAS0207 | C179: =_xlfn.XLOOKUP(A179,DATA[Item No.],DATA[Description],"") -> Retail Ready Blue Corn Tortilla | D179: =_xlfn.XLOOKUP(A179,DATA[Item No.],DATA[Unit UPC],"") -> 627843861065 | E179: =_xlfn.XLOOKUP(A179,DATA[Item No.],DATA[Size],"") -> 250G | F179: =_xlfn.XLOOKUP(A179,DATA[Item No.],DATA[Picked],"") -> CA | G179: =_xlfn.XLOOKUP(A179,DATA[Item No.],DATA[Pack],"") -> 18 | H179: =_xlfn.XLOOKUP(A179,DATA[Item No.],DATA[O],"") -> Y | I179: =_xlfn.XLOOKUP(A179,DATA[Item No.],DATA[K],"") -> 0 | J179: =_xlfn.XLOOKUP(A179,DATA[Item No.],DATA[V],"") -> 0 | K179: =_xlfn.XLOOKUP(A179,DATA[Item No.],DATA[GF],"") -> 0 | L179: =_xlfn.XLOOKUP(A179,DATA[Item No.],DATA[N],"") -> Y | M179: =_xlfn.XLOOKUP(A179,DATA[Item No.],DATA[H],"") -> 0 | N179: =_xlfn.XLOOKUP(A179,DATA[Item No.],DATA[CM],"") -> 0 | O179: =_xlfn.XLOOKUP(A179,DATA[Item No.],DATA[CO],"") -> Y | P179: =_xlfn.XLOOKUP(A179,DATA[Item No.],DATA[CP],"") -> Y | Q179: =_xlfn.XLOOKUP(A179,DATA[Item No.],DATA[Guaranteed Days],"") -> 40 | R179: =_xlfn.XLOOKUP(A179,DATA[Item No.],DATA[Storage],"") -> Dry | S179: =_xlfn.XLOOKUP(A179,DATA[Item No.],DATA[Price],"") -> 69.61 | T179: =_xlfn.XLOOKUP(A179,DATA[Item No.],DATA[Monthly Promo],"") -> 0 | U179: =_xlfn.XLOOKUP(A179,DATA[Item No.],DATA[Promo Discount],"") -> 0 | V179: =_xlfn.XLOOKUP(A179,DATA[Item No.],DATA[SRP],"") -> 5 | W179: =_xlfn.XLOOKUP(A179,DATA[Item No.],DATA[SKU Territory Ranking - West],"") -> 0
A180: CAS0205 | C180: =_xlfn.XLOOKUP(A180,DATA[Item No.],DATA[Description],"") -> Retail Ready White Corn Tortilla | D180: =_xlfn.XLOOKUP(A180,DATA[Item No.],DATA[Unit UPC],"") -> 627843861041 | E180: =_xlfn.XLOOKUP(A180,DATA[Item No.],DATA[Size],"") -> 450G | F180: =_xlfn.XLOOKUP(A180,DATA[Item No.],DATA[Picked],"") -> CA | G180: =_xlfn.XLOOKUP(A180,DATA[Item No.],DATA[Pack],"") -> 12 | H180: =_xlfn.XLOOKUP(A180,DATA[Item No.],DATA[O],"") -> Y | I180: =_xlfn.XLOOKUP(A180,DATA[Item No.],DATA[K],"") -> 0 | J180: =_xlfn.XLOOKUP(A180,DATA[Item No.],DATA[V],"") -> 0 | K180: =_xlfn.XLOOKUP(A180,DATA[Item No.],DATA[GF],"") -> 0 | L180: =_xlfn.XLOOKUP(A180,DATA[Item No.],DATA[N],"") -> Y | M180: =_xlfn.XLOOKUP(A180,DATA[Item No.],DATA[H],"") -> 0 | N180: =_xlfn.XLOOKUP(A180,DATA[Item No.],DATA[CM],"") -> 0 | O180: =_xlfn.XLOOKUP(A180,DATA[Item No.],DATA[CO],"") -> Y | P180: =_xlfn.XLOOKUP(A180,DATA[Item No.],DATA[CP],"") -> Y | Q180: =_xlfn.XLOOKUP(A180,DATA[Item No.],DATA[Guaranteed Days],"") -> 40 | R180: =_xlfn.XLOOKUP(A180,DATA[Item No.],DATA[Storage],"") -> Dry | S180: =_xlfn.XLOOKUP(A180,DATA[Item No.],DATA[Price],"") -> 47.98 | T180: =_xlfn.XLOOKUP(A180,DATA[Item No.],DATA[Monthly Promo],"") -> 0 | U180: =_xlfn.XLOOKUP(A180,DATA[Item No.],DATA[Promo Discount],"") -> 0 | V180: =_xlfn.XLOOKUP(A180,DATA[Item No.],DATA[SRP],"") -> 5.29 | W180: =_xlfn.XLOOKUP(A180,DATA[Item No.],DATA[SKU Territory Ranking - West],"") -> 0
A181: CAS0206 | C181: =_xlfn.XLOOKUP(A181,DATA[Item No.],DATA[Description],"") -> Retail Ready Yellow Corn Tortilla | D181: =_xlfn.XLOOKUP(A181,DATA[Item No.],DATA[Unit UPC],"") -> 627843861072 | E181: =_xlfn.XLOOKUP(A181,DATA[Item No.],DATA[Size],"") -> 450G | F181: =_xlfn.XLOOKUP(A181,DATA[Item No.],DATA[Picked],"") -> CA | G181: =_xlfn.XLOOKUP(A181,DATA[Item No.],DATA[Pack],"") -> 12 | H181: =_xlfn.XLOOKUP(A181,DATA[Item No.],DATA[O],"") -> Y | I181: =_xlfn.XLOOKUP(A181,DATA[Item No.],DATA[K],"") -> 0 | J181: =_xlfn.XLOOKUP(A181,DATA[Item No.],DATA[V],"") -> 0 | K181: =_xlfn.XLOOKUP(A181,DATA[Item No.],DATA[GF],"") -> 0 | L181: =_xlfn.XLOOKUP(A181,DATA[Item No.],DATA[N],"") -> Y | M181: =_xlfn.XLOOKUP(A181,DATA[Item No.],DATA[H],"") -> 0 | N181: =_xlfn.XLOOKUP(A181,DATA[Item No.],DATA[CM],"") -> 0 | O181: =_xlfn.XLOOKUP(A181,DATA[Item No.],DATA[CO],"") -> Y | P181: =_xlfn.XLOOKUP(A181,DATA[Item No.],DATA[CP],"") -> Y | Q181: =_xlfn.XLOOKUP(A181,DATA[Item No.],DATA[Guaranteed Days],"") -> 40 | R181: =_xlfn.XLOOKUP(A181,DATA[Item No.],DATA[Storage],"") -> Dry | S181: =_xlfn.XLOOKUP(A181,DATA[Item No.],DATA[Price],"") -> 47.98 | T181: =_xlfn.XLOOKUP(A181,DATA[Item No.],DATA[Monthly Promo],"") -> 0 | U181: =_xlfn.XLOOKUP(A181,DATA[Item No.],DATA[Promo Discount],"") -> 0 | V181: =_xlfn.XLOOKUP(A181,DATA[Item No.],DATA[SRP],"") -> 5.29 | W181: =_xlfn.XLOOKUP(A181,DATA[Item No.],DATA[SKU Territory Ranking - West],"") -> 0
A182: CATHERINE'S PRESERVES | C182: =_xlfn.XLOOKUP(A182,DATA[Item No.],DATA[Description],"") ->  | D182: =_xlfn.XLOOKUP(A182,DATA[Item No.],DATA[Unit UPC],"") ->  | E182: =_xlfn.XLOOKUP(A182,DATA[Item No.],DATA[Size],"") ->  | F182: =_xlfn.XLOOKUP(A182,DATA[Item No.],DATA[Picked],"") ->  | G182: =_xlfn.XLOOKUP(A182,DATA[Item No.],DATA[Pack],"") ->  | H182: =_xlfn.XLOOKUP(A182,DATA[Item No.],DATA[O],"") ->  | I182: =_xlfn.XLOOKUP(A182,DATA[Item No.],DATA[K],"") ->  | J182: =_xlfn.XLOOKUP(A182,DATA[Item No.],DATA[V],"") ->  | K182: =_xlfn.XLOOKUP(A182,DATA[Item No.],DATA[GF],"") ->  | L182: =_xlfn.XLOOKUP(A182,DATA[Item No.],DATA[N],"") ->  | M182: =_xlfn.XLOOKUP(A182,DATA[Item No.],DATA[H],"") ->  | N182: =_xlfn.XLOOKUP(A182,DATA[Item No.],DATA[CM],"") ->  | O182: =_xlfn.XLOOKUP(A182,DATA[Item No.],DATA[CO],"") ->  | P182: =_xlfn.XLOOKUP(A182,DATA[Item No.],DATA[CP],"") ->  | Q182: =_xlfn.XLOOKUP(A182,DATA[Item No.],DATA[Guaranteed Days],"") ->  | R182: =_xlfn.XLOOKUP(A182,DATA[Item No.],DATA[Storage],"") ->  | S182: =_xlfn.XLOOKUP(A182,DATA[Item No.],DATA[Price],"") ->  | T182: =_xlfn.XLOOKUP(A182,DATA[Item No.],DATA[Monthly Promo],"") ->  | U182: =_xlfn.XLOOKUP(A182,DATA[Item No.],DATA[Promo Discount],"") ->  | V182: =_xlfn.XLOOKUP(A182,DATA[Item No.],DATA[SRP],"") ->  | W182: =_xlfn.XLOOKUP(A182,DATA[Item No.],DATA[SKU Territory Ranking - West],"") -> 
A183: Catherine's Preserves | C183: =_xlfn.XLOOKUP(A183,DATA[Item No.],DATA[Description],"") ->  | D183: =_xlfn.XLOOKUP(A183,DATA[Item No.],DATA[Unit UPC],"") ->  | E183: =_xlfn.XLOOKUP(A183,DATA[Item No.],DATA[Size],"") ->  | F183: =_xlfn.XLOOKUP(A183,DATA[Item No.],DATA[Picked],"") ->  | G183: =_xlfn.XLOOKUP(A183,DATA[Item No.],DATA[Pack],"") ->  | H183: =_xlfn.XLOOKUP(A183,DATA[Item No.],DATA[O],"") ->  | I183: =_xlfn.XLOOKUP(A183,DATA[Item No.],DATA[K],"") ->  | J183: =_xlfn.XLOOKUP(A183,DATA[Item No.],DATA[V],"") ->  | K183: =_xlfn.XLOOKUP(A183,DATA[Item No.],DATA[GF],"") ->  | L183: =_xlfn.XLOOKUP(A183,DATA[Item No.],DATA[N],"") ->  | M183: =_xlfn.XLOOKUP(A183,DATA[Item No.],DATA[H],"") ->  | N183: =_xlfn.XLOOKUP(A183,DATA[Item No.],DATA[CM],"") ->  | O183: =_xlfn.XLOOKUP(A183,DATA[Item No.],DATA[CO],"") ->  | P183: =_xlfn.XLOOKUP(A183,DATA[Item No.],DATA[CP],"") ->  | Q183: =_xlfn.XLOOKUP(A183,DATA[Item No.],DATA[Guaranteed Days],"") ->  | R183: =_xlfn.XLOOKUP(A183,DATA[Item No.],DATA[Storage],"") ->  | S183: =_xlfn.XLOOKUP(A183,DATA[Item No.],DATA[Price],"") ->  | T183: =_xlfn.XLOOKUP(A183,DATA[Item No.],DATA[Monthly Promo],"") ->  | U183: =_xlfn.XLOOKUP(A183,DATA[Item No.],DATA[Promo Discount],"") ->  | V183: =_xlfn.XLOOKUP(A183,DATA[Item No.],DATA[SRP],"") ->  | W183: =_xlfn.XLOOKUP(A183,DATA[Item No.],DATA[SKU Territory Ranking - West],"") -> 
A184: CA5016 | C184: =_xlfn.XLOOKUP(A184,DATA[Item No.],DATA[Description],"") -> Original Antipasto | D184: =_xlfn.XLOOKUP(A184,DATA[Item No.],DATA[Unit UPC],"") -> 63026445019 | E184: =_xlfn.XLOOKUP(A184,DATA[Item No.],DATA[Size],"") -> 250ML | F184: =_xlfn.XLOOKUP(A184,DATA[Item No.],DATA[Picked],"") -> CA | G184: =_xlfn.XLOOKUP(A184,DATA[Item No.],DATA[Pack],"") -> 12 | H184: =_xlfn.XLOOKUP(A184,DATA[Item No.],DATA[O],"") -> 0 | I184: =_xlfn.XLOOKUP(A184,DATA[Item No.],DATA[K],"") -> 0 | J184: =_xlfn.XLOOKUP(A184,DATA[Item No.],DATA[V],"") -> 0 | K184: =_xlfn.XLOOKUP(A184,DATA[Item No.],DATA[GF],"") -> 0 | L184: =_xlfn.XLOOKUP(A184,DATA[Item No.],DATA[N],"") -> 0 | M184: =_xlfn.XLOOKUP(A184,DATA[Item No.],DATA[H],"") -> 0 | N184: =_xlfn.XLOOKUP(A184,DATA[Item No.],DATA[CM],"") -> Y | O184: =_xlfn.XLOOKUP(A184,DATA[Item No.],DATA[CO],"") -> Y | P184: =_xlfn.XLOOKUP(A184,DATA[Item No.],DATA[CP],"") -> Y | Q184: =_xlfn.XLOOKUP(A184,DATA[Item No.],DATA[Guaranteed Days],"") -> 205 | R184: =_xlfn.XLOOKUP(A184,DATA[Item No.],DATA[Storage],"") -> Dry | S184: =_xlfn.XLOOKUP(A184,DATA[Item No.],DATA[Price],"") -> 72.45 | T184: =_xlfn.XLOOKUP(A184,DATA[Item No.],DATA[Monthly Promo],"") -> 0 | U184: =_xlfn.XLOOKUP(A184,DATA[Item No.],DATA[Promo Discount],"") -> 0 | V184: =_xlfn.XLOOKUP(A184,DATA[Item No.],DATA[SRP],"") -> 0 | W184: =_xlfn.XLOOKUP(A184,DATA[Item No.],DATA[SKU Territory Ranking - West],"") -> 0
A185: CA5023 | C185: =_xlfn.XLOOKUP(A185,DATA[Item No.],DATA[Description],"") -> Original Antipasto | D185: =_xlfn.XLOOKUP(A185,DATA[Item No.],DATA[Unit UPC],"") -> 63026445026 | E185: =_xlfn.XLOOKUP(A185,DATA[Item No.],DATA[Size],"") -> 375ML | F185: =_xlfn.XLOOKUP(A185,DATA[Item No.],DATA[Picked],"") -> CA | G185: =_xlfn.XLOOKUP(A185,DATA[Item No.],DATA[Pack],"") -> 12 | H185: =_xlfn.XLOOKUP(A185,DATA[Item No.],DATA[O],"") -> 0 | I185: =_xlfn.XLOOKUP(A185,DATA[Item No.],DATA[K],"") -> 0 | J185: =_xlfn.XLOOKUP(A185,DATA[Item No.],DATA[V],"") -> 0 | K185: =_xlfn.XLOOKUP(A185,DATA[Item No.],DATA[GF],"") -> 0 | L185: =_xlfn.XLOOKUP(A185,DATA[Item No.],DATA[N],"") -> 0 | M185: =_xlfn.XLOOKUP(A185,DATA[Item No.],DATA[H],"") -> 0 | N185: =_xlfn.XLOOKUP(A185,DATA[Item No.],DATA[CM],"") -> Y | O185: =_xlfn.XLOOKUP(A185,DATA[Item No.],DATA[CO],"") -> Y | P185: =_xlfn.XLOOKUP(A185,DATA[Item No.],DATA[CP],"") -> Y | Q185: =_xlfn.XLOOKUP(A185,DATA[Item No.],DATA[Guaranteed Days],"") -> 205 | R185: =_xlfn.XLOOKUP(A185,DATA[Item No.],DATA[Storage],"") -> Dry | S185: =_xlfn.XLOOKUP(A185,DATA[Item No.],DATA[Price],"") -> 91.14 | T185: =_xlfn.XLOOKUP(A185,DATA[Item No.],DATA[Monthly Promo],"") -> 0 | U185: =_xlfn.XLOOKUP(A185,DATA[Item No.],DATA[Promo Discount],"") -> 0 | V185: =_xlfn.XLOOKUP(A185,DATA[Item No.],DATA[SRP],"") -> 0 | W185: =_xlfn.XLOOKUP(A185,DATA[Item No.],DATA[SKU Territory Ranking - West],"") -> 0
A186: CA5030 | C186: =_xlfn.XLOOKUP(A186,DATA[Item No.],DATA[Description],"") -> Hot Antipasto | D186: =_xlfn.XLOOKUP(A186,DATA[Item No.],DATA[Unit UPC],"") -> 63026445033 | E186: =_xlfn.XLOOKUP(A186,DATA[Item No.],DATA[Size],"") -> 250ML | F186: =_xlfn.XLOOKUP(A186,DATA[Item No.],DATA[Picked],"") -> CA | G186: =_xlfn.XLOOKUP(A186,DATA[Item No.],DATA[Pack],"") -> 12 | H186: =_xlfn.XLOOKUP(A186,DATA[Item No.],DATA[O],"") -> 0 | I186: =_xlfn.XLOOKUP(A186,DATA[Item No.],DATA[K],"") -> 0 | J186: =_xlfn.XLOOKUP(A186,DATA[Item No.],DATA[V],"") -> 0 | K186: =_xlfn.XLOOKUP(A186,DATA[Item No.],DATA[GF],"") -> 0 | L186: =_xlfn.XLOOKUP(A186,DATA[Item No.],DATA[N],"") -> 0 | M186: =_xlfn.XLOOKUP(A186,DATA[Item No.],DATA[H],"") -> 0 | N186: =_xlfn.XLOOKUP(A186,DATA[Item No.],DATA[CM],"") -> Y | O186: =_xlfn.XLOOKUP(A186,DATA[Item No.],DATA[CO],"") -> Y | P186: =_xlfn.XLOOKUP(A186,DATA[Item No.],DATA[CP],"") -> Y | Q186: =_xlfn.XLOOKUP(A186,DATA[Item No.],DATA[Guaranteed Days],"") -> 205 | R186: =_xlfn.XLOOKUP(A186,DATA[Item No.],DATA[Storage],"") -> Dry | S186: =_xlfn.XLOOKUP(A186,DATA[Item No.],DATA[Price],"") -> 72.45 | T186: =_xlfn.XLOOKUP(A186,DATA[Item No.],DATA[Monthly Promo],"") -> 0 | U186: =_xlfn.XLOOKUP(A186,DATA[Item No.],DATA[Promo Discount],"") -> 0 | V186: =_xlfn.XLOOKUP(A186,DATA[Item No.],DATA[SRP],"") -> 0 | W186: =_xlfn.XLOOKUP(A186,DATA[Item No.],DATA[SKU Territory Ranking - West],"") -> 0
A187: CA5092 | C187: =_xlfn.XLOOKUP(A187,DATA[Item No.],DATA[Description],"") -> Cranberry Sauce | D187: =_xlfn.XLOOKUP(A187,DATA[Item No.],DATA[Unit UPC],"") -> 63026445095 | E187: =_xlfn.XLOOKUP(A187,DATA[Item No.],DATA[Size],"") -> 250ML | F187: =_xlfn.XLOOKUP(A187,DATA[Item No.],DATA[Picked],"") -> CA | G187: =_xlfn.XLOOKUP(A187,DATA[Item No.],DATA[Pack],"") -> 12 | H187: =_xlfn.XLOOKUP(A187,DATA[Item No.],DATA[O],"") -> 0 | I187: =_xlfn.XLOOKUP(A187,DATA[Item No.],DATA[K],"") -> 0 | J187: =_xlfn.XLOOKUP(A187,DATA[Item No.],DATA[V],"") -> 0 | K187: =_xlfn.XLOOKUP(A187,DATA[Item No.],DATA[GF],"") -> 0 | L187: =_xlfn.XLOOKUP(A187,DATA[Item No.],DATA[N],"") -> 0 | M187: =_xlfn.XLOOKUP(A187,DATA[Item No.],DATA[H],"") -> 0 | N187: =_xlfn.XLOOKUP(A187,DATA[Item No.],DATA[CM],"") -> Y | O187: =_xlfn.XLOOKUP(A187,DATA[Item No.],DATA[CO],"") -> Y | P187: =_xlfn.XLOOKUP(A187,DATA[Item No.],DATA[CP],"") -> Y | Q187: =_xlfn.XLOOKUP(A187,DATA[Item No.],DATA[Guaranteed Days],"") -> 205 | R187: =_xlfn.XLOOKUP(A187,DATA[Item No.],DATA[Storage],"") -> Dry | S187: =_xlfn.XLOOKUP(A187,DATA[Item No.],DATA[Price],"") -> 69.69 | T187: =_xlfn.XLOOKUP(A187,DATA[Item No.],DATA[Monthly Promo],"") -> 0 | U187: =_xlfn.XLOOKUP(A187,DATA[Item No.],DATA[Promo Discount],"") -> 0 | V187: =_xlfn.XLOOKUP(A187,DATA[Item No.],DATA[SRP],"") -> 0 | W187: =_xlfn.XLOOKUP(A187,DATA[Item No.],DATA[SKU Territory Ranking - West],"") -> 0
A188: CA5115 | C188: =_xlfn.XLOOKUP(A188,DATA[Item No.],DATA[Description],"") -> Port Wine Jelly | D188: =_xlfn.XLOOKUP(A188,DATA[Item No.],DATA[Unit UPC],"") -> 63026445118 | E188: =_xlfn.XLOOKUP(A188,DATA[Item No.],DATA[Size],"") -> 125ML | F188: =_xlfn.XLOOKUP(A188,DATA[Item No.],DATA[Picked],"") -> CA | G188: =_xlfn.XLOOKUP(A188,DATA[Item No.],DATA[Pack],"") -> 12 | H188: =_xlfn.XLOOKUP(A188,DATA[Item No.],DATA[O],"") -> 0 | I188: =_xlfn.XLOOKUP(A188,DATA[Item No.],DATA[K],"") -> 0 | J188: =_xlfn.XLOOKUP(A188,DATA[Item No.],DATA[V],"") -> 0 | K188: =_xlfn.XLOOKUP(A188,DATA[Item No.],DATA[GF],"") -> 0 | L188: =_xlfn.XLOOKUP(A188,DATA[Item No.],DATA[N],"") -> 0 | M188: =_xlfn.XLOOKUP(A188,DATA[Item No.],DATA[H],"") -> 0 | N188: =_xlfn.XLOOKUP(A188,DATA[Item No.],DATA[CM],"") -> Y | O188: =_xlfn.XLOOKUP(A188,DATA[Item No.],DATA[CO],"") -> Y | P188: =_xlfn.XLOOKUP(A188,DATA[Item No.],DATA[CP],"") -> Y | Q188: =_xlfn.XLOOKUP(A188,DATA[Item No.],DATA[Guaranteed Days],"") -> 205 | R188: =_xlfn.XLOOKUP(A188,DATA[Item No.],DATA[Storage],"") -> Dry | S188: =_xlfn.XLOOKUP(A188,DATA[Item No.],DATA[Price],"") -> 61.27 | T188: =_xlfn.XLOOKUP(A188,DATA[Item No.],DATA[Monthly Promo],"") -> 0 | U188: =_xlfn.XLOOKUP(A188,DATA[Item No.],DATA[Promo Discount],"") -> 0 | V188: =_xlfn.XLOOKUP(A188,DATA[Item No.],DATA[SRP],"") -> 0 | W188: =_xlfn.XLOOKUP(A188,DATA[Item No.],DATA[SKU Territory Ranking - West],"") -> 0
